Workbook

Sheet Control
A1: Sheets | B1: Text File Names | C1: Description | E1: Notes: 50 sheets maximum
A2: P_N_Prop | B2: Project_North_Property.txt | C2: Groundwater concentrations in the north flow path at the property boundary from the project. | E2: Referenced text files must be in same root folder as this spreadsheet
A3: P_NW_Prop | B3: Project_NorthWest_Property.txt | C3: Groundwater concentrations in the northwest flow path at the property boundary from the project.
A4: P_W_Prop | B4: Project_West_Property.txt | C4: Groundwater concentrations in the west flow path at the property boundary from the project.
A5: NA_N_Prop | B5: Ex_North_Property.txt | C5: Groundwater concentrations in the north flow path at the property boundary without the project.
A6: NA_NW_Prop | B6: Ex_NorthWest_Property.txt | C6: Groundwater concentrations in the northwest flow path at the property boundary without the project.
A7: NA_W_Prop | B7: Ex_West_Property.txt | C7: Groundwater concentrations in the west flow path at the property boundary without the project.

Sheet Data_Pkg
F1: North | G1: North | H1: North-West | I1: North-West | J1: West | K1: West
B2: Constituent | C2: Primary Standard (ug/L) | D2: Secondary Standard (ug/L) | E2: Plotted Standard | F2: Min | G2: Max | H2: Min | I2: Max | J2: Min | K2: Max
A3: 1 | B3: Ag | C3: 30 | D3: 100 | E3: 30 | F3: =MIN(OFFSET(P_N_Prop!$C$10, 0, 4*(Data_Pkg!$A3-1), 2401, 1)) -> 0.078405 | G3: =MAX(OFFSET(P_N_Prop!$E$10, 0, 4*(Data_Pkg!$A3-1), 2401, 1)) -> 0.11866 | H3: =MIN(OFFSET(P_NW_Prop!$C$10, 0, 4*(Data_Pkg!$A3-1), 2401, 1)) -> 0.070301 | I3: =MAX(OFFSET(P_NW_Prop!$E$10, 0, 4*(Data_Pkg!$A3-1), 2401, 1)) -> 0.10368 | J3: =MIN(OFFSET(P_W_Prop!$C$10, 0, 4*(Data_Pkg!$A3-1), 2401, 1)) -> 0.071635 | K3: =MAX(OFFSET(P_W_Prop!$E$10, 0, 4*(Data_Pkg!$A3-1), 2401, 1)) -> 0.10719
A4: 2 | B4: Al | F4: =MIN(OFFSET(P_N_Prop!$C$10, 0, 4*(Data_Pkg!$A4-1), 2401, 1)) -> 22.078 | G4: =MAX(OFFSET(P_N_Prop!$E$10, 0, 4*(Data_Pkg!$A4-1), 2401, 1)) -> 66.429 | H4: =MIN(OFFSET(P_NW_Prop!$C$10, 0, 4*(Data_Pkg!$A4-1), 2401, 1)) -> 25.002 | I4: =MAX(OFFSET(P_NW_Prop!$E$10, 0, 4*(Data_Pkg!$A4-1), 2401, 1)) -> 66.894 | J4: =MIN(OFFSET(P_W_Prop!$C$10, 0, 4*(Data_Pkg!$A4-1), 2401, 1)) -> 29.528 | K4: =MAX(OFFSET(P_W_Prop!$E$10, 0, 4*(Data_Pkg!$A4-1), 2401, 1)) -> 69.681
A5: 3 | B5: Alk | F5: =MIN(OFFSET(P_N_Prop!$C$10, 0, 4*(Data_Pkg!$A5-1), 2401, 1)) -> 84597 | G5: =MAX(OFFSET(P_N_Prop!$E$10, 0, 4*(Data_Pkg!$A5-1), 2401, 1)) -> 241430 | H5: =MIN(OFFSET(P_NW_Prop!$C$10, 0, 4*(Data_Pkg!$A5-1), 2401, 1)) -> 96264 | I5: =MAX(OFFSET(P_NW_Prop!$E$10, 0, 4*(Data_Pkg!$A5-1), 2401, 1)) -> 205310 | J5: =MIN(OFFSET(P_W_Prop!$C$10, 0, 4*(Data_Pkg!$A5-1), 2401, 1)) -> 91981 | K5: =MAX(OFFSET(P_W_Prop!$E$10, 0, 4*(Data_Pkg!$A5-1), 2401, 1)) -> 190340
A6: 4 | B6: As | C6: 10 | E6: 10 | F6: =MIN(OFFSET(P_N_Prop!$C$10, 0, 4*(Data_Pkg!$A6-1), 2401, 1)) -> 2.4463 | G6: =MAX(OFFSET(P_N_Prop!$E$10, 0, 4*(Data_Pkg!$A6-1), 2401, 1)) -> 3.7577 | H6: =MIN(OFFSET(P_NW_Prop!$C$10, 0, 4*(Data_Pkg!$A6-1), 2401, 1)) -> 0.82916 | I6: =MAX(OFFSET(P_NW_Prop!$E$10, 0, 4*(Data_Pkg!$A6-1), 2401, 1)) -> 1.0422 | J6: =MIN(OFFSET(P_W_Prop!$C$10, 0, 4*(Data_Pkg!$A6-1), 2401, 1)) -> 0.82532 | K6: =MAX(OFFSET(P_W_Prop!$E$10, 0, 4*(Data_Pkg!$A6-1), 2401, 1)) -> 1.1085
A7: 5 | B7: B | C7: 1000 | E7: 1000 | F7: =MIN(OFFSET(P_N_Prop!$C$10, 0, 4*(Data_Pkg!$A7-1), 2401, 1)) -> 46.71 | G7: =MAX(OFFSET(P_N_Prop!$E$10, 0, 4*(Data_Pkg!$A7-1), 2401, 1)) -> 247.61 | H7: =MIN(OFFSET(P_NW_Prop!$C$10, 0, 4*(Data_Pkg!$A7-1), 2401, 1)) -> 72.295 | I7: =MAX(OFFSET(P_NW_Prop!$E$10, 0, 4*(Data_Pkg!$A7-1), 2401, 1)) -> 383.19 | J7: =MIN(OFFSET(P_W_Prop!$C$10, 0, 4*(Data_Pkg!$A7-1), 2401, 1)) -> 61.06 | K7: =MAX(OFFSET(P_W_Prop!$E$10, 0, 4*(Data_Pkg!$A7-1), 2401, 1)) -> 339.02
A8: 6 | B8: Ba | C8: 2000 | E8: 2000 | F8: =MIN(OFFSET(P_N_Prop!$C$10, 0, 4*(Data_Pkg!$A8-1), 2401, 1)) -> 50.426 | G8: =MAX(OFFSET(P_N_Prop!$E$10, 0, 4*(Data_Pkg!$A8-1), 2401, 1)) -> 178.33 | H8: =MIN(OFFSET(P_NW_Prop!$C$10, 0, 4*(Data_Pkg!$A8-1), 2401, 1)) -> 29.919 | I8: =MAX(OFFSET(P_NW_Prop!$E$10, 0, 4*(Data_Pkg!$A8-1), 2401, 1)) -> 68.728 | J8: =MIN(OFFSET(P_W_Prop!$C$10, 0, 4*(Data_Pkg!$A8-1), 2401, 1)) -> 35.365 | K8: =MAX(OFFSET(P_W_Prop!$E$10, 0, 4*(Data_Pkg!$A8-1), 2401, 1)) -> 72.082
A9: 7 | B9: Be* | C9: 0.54 | E9: 0.54 | F9: =MIN(OFFSET(P_N_Prop!$C$10, 0, 4*(Data_Pkg!$A9-1), 2401, 1)) -> 0.16924 | G9: =MAX(OFFSET(P_N_Prop!$E$10, 0, 4*(Data_Pkg!$A9-1), 2401, 1)) -> 0.23349 | H9: =MIN(OFFSET(P_NW_Prop!$C$10, 0, 4*(Data_Pkg!$A9-1), 2401, 1)) -> 0.17053 | I9: =MAX(OFFSET(P_NW_Prop!$E$10, 0, 4*(Data_Pkg!$A9-1), 2401, 1)) -> 0.26252 | J9: =MIN(OFFSET(P_W_Prop!$C$10, 0, 4*(Data_Pkg!$A9-1), 2401, 1)) -> 0.16501 | K9: =MAX(OFFSET(P_W_Prop!$E$10, 0, 4*(Data_Pkg!$A9-1), 2401, 1)) -> 0.21657
A10: 8 | B10: Ca | F10: =MIN(OFFSET(P_N_Prop!$C$10, 0, 4*(Data_Pkg!$A10-1), 2401, 1)) -> 28258 | G10: =MAX(OFFSET(P_N_Prop!$E$10, 0, 4*(Data_Pkg!$A10-1), 2401, 1)) -> 43547 | H10: =MIN(OFFSET(P_NW_Prop!$C$10, 0, 4*(Data_Pkg!$A10-1), 2401, 1)) -> 33455 | I10: =MAX(OFFSET(P_NW_Prop!$E$10, 0, 4*(Data_Pkg!$A10-1), 2401, 1)) -> 81840 | J10: =MIN(OFFSET(P_W_Prop!$C$10, 0, 4*(Data_Pkg!$A10-1), 2401, 1)) -> 31373 | K10: =MAX(OFFSET(P_W_Prop!$E$10, 0, 4*(Data_Pkg!$A10-1), 2401, 1)) -> 73957
A11: 9 | B11: Cd | C11: 4 | E11: 4 | F11: =MIN(OFFSET(P_N_Prop!$C$10, 0, 4*(Data_Pkg!$A11-1), 2401, 1)) -> 0.11898 | G11: =MAX(OFFSET(P_N_Prop!$E$10, 0, 4*(Data_Pkg!$A11-1), 2401, 1)) -> 0.34057 | H11: =MIN(OFFSET(P_NW_Prop!$C$10, 0, 4*(Data_Pkg!$A11-1), 2401, 1)) -> 0.11074 | I11: =MAX(OFFSET(P_NW_Prop!$E$10, 0, 4*(Data_Pkg!$A11-1), 2401, 1)) -> 0.15044 | J11: =MIN(OFFSET(P_W_Prop!$C$10, 0, 4*(Data_Pkg!$A11-1), 2401, 1)) -> 0.11477 | K11: =MAX(OFFSET(P_W_Prop!$E$10, 0, 4*(Data_Pkg!$A11-1), 2401, 1)) -> 0.14185
A12: 10 | B12: Cl | D12: 250000 | E12: 250000 | F12: =MIN(OFFSET(P_N_Prop!$C$10, 0, 4*(Data_Pkg!$A12-1), 2401, 1)) -> 3495.8 | G12: =MAX(OFFSET(P_N_Prop!$E$10, 0, 4*(Data_Pkg!$A12-1), 2401, 1)) -> 18022 | H12: =MIN(OFFSET(P_NW_Prop!$C$10, 0, 4*(Data_Pkg!$A12-1), 2401, 1)) -> 3767.5 | I12: =MAX(OFFSET(P_NW_Prop!$E$10, 0, 4*(Data_Pkg!$A12-1), 2401, 1)) -> 17190 | J12: =MIN(OFFSET(P_W_Prop!$C$10, 0, 4*(Data_Pkg!$A12-1), 2401, 1)) -> 3207.8 | K12: =MAX(OFFSET(P_W_Prop!$E$10, 0, 4*(Data_Pkg!$A12-1), 2401, 1)) -> 15239
A13: 11 | B13: Co | F13: =MIN(OFFSET(P_N_Prop!$C$10, 0, 4*(Data_Pkg!$A13-1), 2401, 1)) -> 0.43213 | G13: =MAX(OFFSET(P_N_Prop!$E$10, 0, 4*(Data_Pkg!$A13-1), 2401, 1)) -> 3.863 | H13: =MIN(OFFSET(P_NW_Prop!$C$10, 0, 4*(Data_Pkg!$A13-1), 2401, 1)) -> 0.38647 | I13: =MAX(OFFSET(P_NW_Prop!$E$10, 0, 4*(Data_Pkg!$A13-1), 2401, 1)) -> 1.7609 | J13: =MIN(OFFSET(P_W_Prop!$C$10, 0, 4*(Data_Pkg!$A13-1), 2401, 1)) -> 0.35406 | K13: =MAX(OFFSET(P_W_Prop!$E$10, 0, 4*(Data_Pkg!$A13-1), 2401, 1)) -> 1.6955
A14: 12 | B14: Cr | C14: 100 | E14: 100 | F14: =MIN(OFFSET(P_N_Prop!$C$10, 0, 4*(Data_Pkg!$A14-1), 2401, 1)) -> 0.61594 | G14: =MAX(OFFSET(P_N_Prop!$E$10, 0, 4*(Data_Pkg!$A14-1), 2401, 1)) -> 1.5202 | H14: =MIN(OFFSET(P_NW_Prop!$C$10, 0, 4*(Data_Pkg!$A14-1), 2401, 1)) -> 0.67513 | I14: =MAX(OFFSET(P_NW_Prop!$E$10, 0, 4*(Data_Pkg!$A14-1), 2401, 1)) -> 1.063 | J14: =MIN(OFFSET(P_W_Prop!$C$10, 0, 4*(Data_Pkg!$A14-1), 2401, 1)) -> 0.70258 | K14: =MAX(OFFSET(P_W_Prop!$E$10, 0, 4*(Data_Pkg!$A14-1), 2401, 1)) -> 1.079
A15: 13 | B15: Cu | F15: =MIN(OFFSET(P_N_Prop!$C$10, 0, 4*(Data_Pkg!$A15-1), 2401, 1)) -> 1.9311 | G15: =MAX(OFFSET(P_N_Prop!$E$10, 0, 4*(Data_Pkg!$A15-1), 2401, 1)) -> 2.1898 | H15: =MIN(OFFSET(P_NW_Prop!$C$10, 0, 4*(Data_Pkg!$A15-1), 2401, 1)) -> 2.1078 | I15: =MAX(OFFSET(P_NW_Prop!$E$10, 0, 4*(Data_Pkg!$A15-1), 2401, 1)) -> 2.37 | J15: =MIN(OFFSET(P_W_Prop!$C$10, 0, 4*(Data_Pkg!$A15-1), 2401, 1)) -> 2.1413 | K15: =MAX(OFFSET(P_W_Prop!$E$10, 0, 4*(Data_Pkg!$A15-1), 2401, 1)) -> 2.5171
A16: 14 | B16: F | C16: 4000 | D16: 2000 | E16: 2000 | F16: =MIN(OFFSET(P_N_Prop!$C$10, 0, 4*(Data_Pkg!$A16-1), 2401, 1)) -> 218.09 | G16: =MAX(OFFSET(P_N_Prop!$E$10, 0, 4*(Data_Pkg!$A16-1), 2401, 1)) -> 3377.6 | H16: =MIN(OFFSET(P_NW_Prop!$C$10, 0, 4*(Data_Pkg!$A16-1), 2401, 1)) -> 89.731 | I16: =MAX(OFFSET(P_NW_Prop!$E$10, 0, 4*(Data_Pkg!$A16-1), 2401, 1)) -> 150.01 | J16: =MIN(OFFSET(P_W_Prop!$C$10, 0, 4*(Data_Pkg!$A16-1), 2401, 1)) -> 136.75 | K16: =MAX(OFFSET(P_W_Prop!$E$10, 0, 4*(Data_Pkg!$A16-1), 2401, 1)) -> 182.97
A17: 15 | B17: Fe | F17: =MIN(OFFSET(P_N_Prop!$C$10, 0, 4*(Data_Pkg!$A17-1), 2401, 1)) -> 149.34 | G17: =MAX(OFFSET(P_N_Prop!$E$10, 0, 4*(Data_Pkg!$A17-1), 2401, 1)) -> 1779.3 | H17: =MIN(OFFSET(P_NW_Prop!$C$10, 0, 4*(Data_Pkg!$A17-1), 2401, 1)) -> 544.88 | I17: =MAX(OFFSET(P_NW_Prop!$E$10, 0, 4*(Data_Pkg!$A17-1), 2401, 1)) -> 3903.3 | J17: =MIN(OFFSET(P_W_Prop!$C$10, 0, 4*(Data_Pkg!$A17-1), 2401, 1)) -> 441.27 | K17: =MAX(OFFSET(P_W_Prop!$E$10, 0, 4*(Data_Pkg!$A17-1), 2401, 1)) -> 3680.1
A18: 16 | B18: K | F18: =MIN(OFFSET(P_N_Prop!$C$10, 0, 4*(Data_Pkg!$A18-1), 2401, 1)) -> 3222.9 | G18: =MAX(OFFSET(P_N_Prop!$E$10, 0, 4*(Data_Pkg!$A18-1), 2401, 1)) -> 8367.7 | H18: =MIN(OFFSET(P_NW_Prop!$C$10, 0, 4*(Data_Pkg!$A18-1), 2401, 1)) -> 2701.3 | I18: =MAX(OFFSET(P_NW_Prop!$E$10, 0, 4*(Data_Pkg!$A18-1), 2401, 1)) -> 8323.8 | J18: =MIN(OFFSET(P_W_Prop!$C$10, 0, 4*(Data_Pkg!$A18-1), 2401, 1)) -> 2457.5 | K18: =MAX(OFFSET(P_W_Prop!$E$10, 0, 4*(Data_Pkg!$A18-1), 2401, 1)) -> 7440.6
A19: 17 | B19: Mg | F19: =MIN(OFFSET(P_N_Prop!$C$10, 0, 4*(Data_Pkg!$A19-1), 2401, 1)) -> 17103 | G19: =MAX(OFFSET(P_N_Prop!$E$10, 0, 4*(Data_Pkg!$A19-1), 2401, 1)) -> 60822 | H19: =MIN(OFFSET(P_NW_Prop!$C$10, 0, 4*(Data_Pkg!$A19-1), 2401, 1)) -> 25980 | I19: =MAX(OFFSET(P_NW_Prop!$E$10, 0, 4*(Data_Pkg!$A19-1), 2401, 1)) -> 132890 | J19: =MIN(OFFSET(P_W_Prop!$C$10, 0, 4*(Data_Pkg!$A19-1), 2401, 1)) -> 21945 | K19: =MAX(OFFSET(P_W_Prop!$E$10, 0, 4*(Data_Pkg!$A19-1), 2401, 1)) -> 115480
A20: 18 | B20: Mn* | C20: 704 | E20: 704 | F20: =MIN(OFFSET(P_N_Prop!$C$10, 0, 4*(Data_Pkg!$A20-1), 2401, 1)) -> 220.48 | G20: =MAX(OFFSET(P_N_Prop!$E$10, 0, 4*(Data_Pkg!$A20-1), 2401, 1)) -> 383.61 | H20: =MIN(OFFSET(P_NW_Prop!$C$10, 0, 4*(Data_Pkg!$A20-1), 2401, 1)) -> 335.58 | I20: =MAX(OFFSET(P_NW_Prop!$E$10, 0, 4*(Data_Pkg!$A20-1), 2401, 1)) -> 974.49 | J20: =MIN(OFFSET(P_W_Prop!$C$10, 0, 4*(Data_Pkg!$A20-1), 2401, 1)) -> 311.73 | K20: =MAX(OFFSET(P_W_Prop!$E$10, 0, 4*(Data_Pkg!$A20-1), 2401, 1)) -> 866.48
A21: 19 | B21: Na | F21: =MIN(OFFSET(P_N_Prop!$C$10, 0, 4*(Data_Pkg!$A21-1), 2401, 1)) -> 10384 | G21: =MAX(OFFSET(P_N_Prop!$E$10, 0, 4*(Data_Pkg!$A21-1), 2401, 1)) -> 58418 | H21: =MIN(OFFSET(P_NW_Prop!$C$10, 0, 4*(Data_Pkg!$A21-1), 2401, 1)) -> 9598.2 | I21: =MAX(OFFSET(P_NW_Prop!$E$10, 0, 4*(Data_Pkg!$A21-1), 2401, 1)) -> 45048 | J21: =MIN(OFFSET(P_W_Prop!$C$10, 0, 4*(Data_Pkg!$A21-1), 2401, 1)) -> 8357.1 | K21: =MAX(OFFSET(P_W_Prop!$E$10, 0, 4*(Data_Pkg!$A21-1), 2401, 1)) -> 40189
A22: 20 | B22: Ni | C22: 100 | E22: 100 | F22: =MIN(OFFSET(P_N_Prop!$C$10, 0, 4*(Data_Pkg!$A22-1), 2401, 1)) -> 3.3574 | G22: =MAX(OFFSET(P_N_Prop!$E$10, 0, 4*(Data_Pkg!$A22-1), 2401, 1)) -> 3.9649 | H22: =MIN(OFFSET(P_NW_Prop!$C$10, 0, 4*(Data_Pkg!$A22-1), 2401, 1)) -> 4.4459 | I22: =MAX(OFFSET(P_NW_Prop!$E$10, 0, 4*(Data_Pkg!$A22-1), 2401, 1)) -> 4.9576 | J22: =MIN(OFFSET(P_W_Prop!$C$10, 0, 4*(Data_Pkg!$A22-1), 2401, 1)) -> 4.499 | K22: =MAX(OFFSET(P_W_Prop!$E$10, 0, 4*(Data_Pkg!$A22-1), 2401, 1)) -> 5.1745
A23: 21 | B23: Pb | F23: =MIN(OFFSET(P_N_Prop!$C$10, 0, 4*(Data_Pkg!$A23-1), 2401, 1)) -> 0.51717 | G23: =MAX(OFFSET(P_N_Prop!$E$10, 0, 4*(Data_Pkg!$A23-1), 2401, 1)) -> 5.8091 | H23: =MIN(OFFSET(P_NW_Prop!$C$10, 0, 4*(Data_Pkg!$A23-1), 2401, 1)) -> 0.2111 | I23: =MAX(OFFSET(P_NW_Prop!$E$10, 0, 4*(Data_Pkg!$A23-1), 2401, 1)) -> 0.7544 | J23: =MIN(OFFSET(P_W_Prop!$C$10, 0, 4*(Data_Pkg!$A23-1), 2401, 1)) -> 0.21626 | K23: =MAX(OFFSET(P_W_Prop!$E$10, 0, 4*(Data_Pkg!$A23-1), 2401, 1)) -> 0.59427
A24: 22 | B24: Sb | C24: 6 | E24: 6 | F24: =MIN(OFFSET(P_N_Prop!$C$10, 0, 4*(Data_Pkg!$A24-1), 2401, 1)) -> 0.31998 | G24: =MAX(OFFSET(P_N_Prop!$E$10, 0, 4*(Data_Pkg!$A24-1), 2401, 1)) -> 0.39599 | H24: =MIN(OFFSET(P_NW_Prop!$C$10, 0, 4*(Data_Pkg!$A24-1), 2401, 1)) -> 0.30277 | I24: =MAX(OFFSET(P_NW_Prop!$E$10, 0, 4*(Data_Pkg!$A24-1), 2401, 1)) -> 0.37573 | J24: =MIN(OFFSET(P_W_Prop!$C$10, 0, 4*(Data_Pkg!$A24-1), 2401, 1)) -> 0.31363 | K24: =MAX(OFFSET(P_W_Prop!$E$10, 0, 4*(Data_Pkg!$A24-1), 2401, 1)) -> 0.40347
A25: 23 | B25: Se | C25: 30 | E25: 30 | F25: =MIN(OFFSET(P_N_Prop!$C$10, 0, 4*(Data_Pkg!$A25-1), 2401, 1)) -> 0.64269 | G25: =MAX(OFFSET(P_N_Prop!$E$10, 0, 4*(Data_Pkg!$A25-1), 2401, 1)) -> 1.1058 | H25: =MIN(OFFSET(P_NW_Prop!$C$10, 0, 4*(Data_Pkg!$A25-1), 2401, 1)) -> 0.51733 | I25: =MAX(OFFSET(P_NW_Prop!$E$10, 0, 4*(Data_Pkg!$A25-1), 2401, 1)) -> 0.84221 | J25: =MIN(OFFSET(P_W_Prop!$C$10, 0, 4*(Data_Pkg!$A25-1), 2401, 1)) -> 0.57279 | K25: =MAX(OFFSET(P_W_Prop!$E$10, 0, 4*(Data_Pkg!$A25-1), 2401, 1)) -> 0.84556
A26: 24 | B26: SO4 | D26: 250000 | E26: 250000 | F26: =MIN(OFFSET(P_N_Prop!$C$10, 0, 4*(Data_Pkg!$A26-1), 2401, 1)) -> 29359 | G26: =MAX(OFFSET(P_N_Prop!$E$10, 0, 4*(Data_Pkg!$A26-1), 2401, 1)) -> 188420 | H26: =MIN(OFFSET(P_NW_Prop!$C$10, 0, 4*(Data_Pkg!$A26-1), 2401, 1)) -> 39463 | I26: =MAX(OFFSET(P_NW_Prop!$E$10, 0, 4*(Data_Pkg!$A26-1), 2401, 1)) -> 253080 | J26: =MIN(OFFSET(P_W_Prop!$C$10, 0, 4*(Data_Pkg!$A26-1), 2401, 1)) -> 32694 | K26: =MAX(OFFSET(P_W_Prop!$E$10, 0, 4*(Data_Pkg!$A26-1), 2401, 1)) -> 243270
A27: 25 | B27: Tl | C27: 0.6 | E27: 0.6 | F27: =MIN(OFFSET(P_N_Prop!$C$10, 0, 4*(Data_Pkg!$A27-1), 2401, 1)) -> 0.14512 | G27: =MAX(OFFSET(P_N_Prop!$E$10, 0, 4*(Data_Pkg!$A27-1), 2401, 1)) -> 0.19781 | H27: =MIN(OFFSET(P_NW_Prop!$C$10, 0, 4*(Data_Pkg!$A27-1), 2401, 1)) -> 0.089024 | I27: =MAX(OFFSET(P_NW_Prop!$E$10, 0, 4*(Data_Pkg!$A27-1), 2401, 1)) -> 0.18129 | J27: =MIN(OFFSET(P_W_Prop!$C$10, 0, 4*(Data_Pkg!$A27-1), 2401, 1)) -> 0.10321 | K27: =MAX(OFFSET(P_W_Prop!$E$10, 0, 4*(Data_Pkg!$A27-1), 2401, 1)) -> 0.18606
A28: 26 | B28: V | C28: 50 | E28: 50 | F28: =MIN(OFFSET(P_N_Prop!$C$10, 0, 4*(Data_Pkg!$A28-1), 2401, 1)) -> 4.7452 | G28: =MAX(OFFSET(P_N_Prop!$E$10, 0, 4*(Data_Pkg!$A28-1), 2401, 1)) -> 5.9657 | H28: =MIN(OFFSET(P_NW_Prop!$C$10, 0, 4*(Data_Pkg!$A28-1), 2401, 1)) -> 1.7776 | I28: =MAX(OFFSET(P_NW_Prop!$E$10, 0, 4*(Data_Pkg!$A28-1), 2401, 1)) -> 5.0553 | J28: =MIN(OFFSET(P_W_Prop!$C$10, 0, 4*(Data_Pkg!$A28-1), 2401, 1)) -> 2.3026 | K28: =MAX(OFFSET(P_W_Prop!$E$10, 0, 4*(Data_Pkg!$A28-1), 2401, 1)) -> 5.1992
A29: 27 | B29: Zn | C29: 2000 | D29: 5000 | E29: 2000 | F29: =MIN(OFFSET(P_N_Prop!$C$10, 0, 4*(Data_Pkg!$A29-1), 2401, 1)) -> 12.059 | G29: =MAX(OFFSET(P_N_Prop!$E$10, 0, 4*(Data_Pkg!$A29-1), 2401, 1)) -> 31.313 | H29: =MIN(OFFSET(P_NW_Prop!$C$10, 0, 4*(Data_Pkg!$A29-1), 2401, 1)) -> 5.4767 | I29: =MAX(OFFSET(P_NW_Prop!$E$10, 0, 4*(Data_Pkg!$A29-1), 2401, 1)) -> 14.802 | J29: =MIN(OFFSET(P_W_Prop!$C$10, 0, 4*(Data_Pkg!$A29-1), 2401, 1)) -> 6.7957 | K29: =MAX(OFFSET(P_W_Prop!$E$10, 0, 4*(Data_Pkg!$A29-1), 2401, 1)) -> 14.77

Sheet LRG_FIG_18

Sheet LRG_FIG_19

Sheet LRG_FIG_20

Sheet PlotControl
A2: Model Name: | B2: Plant Site Version 6.0 | C2: =B2 & " Model Annual Maximum of Concentration Statistics " & B4 & " in the " & B6 & " Flow Path at the " & B8 -> Plant Site Version 6.0 Model Annual Maximum of Concentration Statistics Ag in the North Flow Path at the Property Boundary
A4: Constituent to Plot (dropdown): | B4: Ag | C4: =MATCH(B4,$A$23:$A$49,0) -> 1 | V4: Directory to save PDFs to: | W4: C:\Users\jem4\Desktop\temp
V5: Figure caption | W5: Figure H-03-27.1
A6: Flowpath to Plot (dropdown): | B6: North | C6: =MATCH(B6,$A$13:$A$20,0) -> 1 | D6: =FIND("surficial",B6) -> 
A8: Evaluation Location (dropdown): | B8: Property Boundary | C8: =MATCH(B8,$B$13:$B$15,0) -> 1
A10: Standard | B10: =VLOOKUP($B$4,$A$23:$B$49,2,FALSE) -> 30
A12: Flowpaths | B12: Locations
A13: North | B13: Property Boundary
A14: Northwest
A15: West
G21: Annual Project Results | J21: Annual No-Action Results
A22: Constituent | B22: Primary Standard (ug/L) | C22: Secondary Standard (ug/L) | F22: Time | G22: P10 | H22: P50 | I22: P90 | J22: P10 | K22: P50 | L22: P90 | M22: =IF(OR($B$4="Be", $B$4="Mn"), "Site Specific Evaluation Criteria","Primary Standard") -> Primary Standard | N22: Secondary Standard
A23: Ag | B23: 30 | C23: 100 | F23: 0 | G23: =VLOOKUP($F23,P_All!$A$5:$J$205,3*($C$6-1)+2) -> 0.10027 | H23: =VLOOKUP($F23,P_All!$A$5:$J$205,3*($C$6-1)+3) -> 0.11082 | I23: =VLOOKUP($F23,P_All!$A$5:$J$205,3*($C$6-1)+4) -> 0.11866 | J23: =VLOOKUP($F23,NA_All!$A$5:$J$205,3*($C$6-1)+2) -> 0.10027 | K23: =VLOOKUP($F23,NA_All!$A$5:$J$205,3*($C$6-1)+3) -> 0.11082 | L23: =VLOOKUP($F23,NA_All!$A$5:$J$205,3*($C$6-1)+4) -> 0.11866 | M23: =VLOOKUP($B$4,$A$23:$C$49,2) -> 30 | N23: =VLOOKUP($B$4,$A$23:$C$49,3) -> 100
A24: Al | F24: 1 | G24: =VLOOKUP($F24,P_All!$A$5:$J$205,3*($C$6-1)+2) -> 0.10007 | H24: =VLOOKUP($F24,P_All!$A$5:$J$205,3*($C$6-1)+3) -> 0.11062 | I24: =VLOOKUP($F24,P_All!$A$5:$J$205,3*($C$6-1)+4) -> 0.11843 | J24: =VLOOKUP($F24,NA_All!$A$5:$J$205,3*($C$6-1)+2) -> 0.10027 | K24: =VLOOKUP($F24,NA_All!$A$5:$J$205,3*($C$6-1)+3) -> 0.11082 | L24: =VLOOKUP($F24,NA_All!$A$5:$J$205,3*($C$6-1)+4) -> 0.11866 | M24: =VLOOKUP($B$4,$A$23:$C$49,2) -> 30 | N24: =VLOOKUP($B$4,$A$23:$C$49,3) -> 100
A25: Alkalinity | F25: 2 | G25: =VLOOKUP($F25,P_All!$A$5:$J$205,3*($C$6-1)+2) -> 0.099869 | H25: =VLOOKUP($F25,P_All!$A$5:$J$205,3*($C$6-1)+3) -> 0.11037 | I25: =VLOOKUP($F25,P_All!$A$5:$J$205,3*($C$6-1)+4) -> 0.11816 | J25: =VLOOKUP($F25,NA_All!$A$5:$J$205,3*($C$6-1)+2) -> 0.10027 | K25: =VLOOKUP($F25,NA_All!$A$5:$J$205,3*($C$6-1)+3) -> 0.11082 | L25: =VLOOKUP($F25,NA_All!$A$5:$J$205,3*($C$6-1)+4) -> 0.11866 | M25: 30 | N25: 100
A26: As | B26: 10 | F26: 3 | G26: =VLOOKUP($F26,P_All!$A$5:$J$205,3*($C$6-1)+2) -> 0.099666 | H26: =VLOOKUP($F26,P_All!$A$5:$J$205,3*($C$6-1)+3) -> 0.11013 | I26: =VLOOKUP($F26,P_All!$A$5:$J$205,3*($C$6-1)+4) -> 0.11795 | J26: =VLOOKUP($F26,NA_All!$A$5:$J$205,3*($C$6-1)+2) -> 0.10027 | K26: =VLOOKUP($F26,NA_All!$A$5:$J$205,3*($C$6-1)+3) -> 0.11082 | L26: =VLOOKUP($F26,NA_All!$A$5:$J$205,3*($C$6-1)+4) -> 0.11866 | M26: 30 | N26: 100
A27: B | B27: 1000 | F27: 4 | G27: =VLOOKUP($F27,P_All!$A$5:$J$205,3*($C$6-1)+2) -> 0.099463 | H27: =VLOOKUP($F27,P_All!$A$5:$J$205,3*($C$6-1)+3) -> 0.10993 | I27: =VLOOKUP($F27,P_All!$A$5:$J$205,3*($C$6-1)+4) -> 0.11772 | J27: =VLOOKUP($F27,NA_All!$A$5:$J$205,3*($C$6-1)+2) -> 0.10027 | K27: =VLOOKUP($F27,NA_All!$A$5:$J$205,3*($C$6-1)+3) -> 0.11082 | L27: =VLOOKUP($F27,NA_All!$A$5:$J$205,3*($C$6-1)+4) -> 0.11866 | M27: 30 | N27: 100
A28: Ba | B28: 2000 | F28: 5 | G28: =VLOOKUP($F28,P_All!$A$5:$J$205,3*($C$6-1)+2) -> 0.09926 | H28: =VLOOKUP($F28,P_All!$A$5:$J$205,3*($C$6-1)+3) -> 0.10973 | I28: =VLOOKUP($F28,P_All!$A$5:$J$205,3*($C$6-1)+4) -> 0.11751 | J28: =VLOOKUP($F28,NA_All!$A$5:$J$205,3*($C$6-1)+2) -> 0.10027 | K28: =VLOOKUP($F28,NA_All!$A$5:$J$205,3*($C$6-1)+3) -> 0.11082 | L28: =VLOOKUP($F28,NA_All!$A$5:$J$205,3*($C$6-1)+4) -> 0.11866 | M28: 30 | N28: 100
A29: Be | B29: 0.54 | F29: 6 | G29: =VLOOKUP($F29,P_All!$A$5:$J$205,3*($C$6-1)+2) -> 0.099057 | H29: =VLOOKUP($F29,P_All!$A$5:$J$205,3*($C$6-1)+3) -> 0.10954 | I29: =VLOOKUP($F29,P_All!$A$5:$J$205,3*($C$6-1)+4) -> 0.11732 | J29: =VLOOKUP($F29,NA_All!$A$5:$J$205,3*($C$6-1)+2) -> 0.10027 | K29: =VLOOKUP($F29,NA_All!$A$5:$J$205,3*($C$6-1)+3) -> 0.11082 | L29: =VLOOKUP($F29,NA_All!$A$5:$J$205,3*($C$6-1)+4) -> 0.11866 | M29: 30 | N29: 100
A30: Ca | F30: 7 | G30: =VLOOKUP($F30,P_All!$A$5:$J$205,3*($C$6-1)+2) -> 0.098873 | H30: =VLOOKUP($F30,P_All!$A$5:$J$205,3*($C$6-1)+3) -> 0.10936 | I30: =VLOOKUP($F30,P_All!$A$5:$J$205,3*($C$6-1)+4) -> 0.11715 | J30: =VLOOKUP($F30,NA_All!$A$5:$J$205,3*($C$6-1)+2) -> 0.10027 | K30: =VLOOKUP($F30,NA_All!$A$5:$J$205,3*($C$6-1)+3) -> 0.11082 | L30: =VLOOKUP($F30,NA_All!$A$5:$J$205,3*($C$6-1)+4) -> 0.11866 | M30: 30 | N30: 100
A31: Cd | B31: 4 | F31: 8 | G31: =VLOOKUP($F31,P_All!$A$5:$J$205,3*($C$6-1)+2) -> 0.098734 | H31: =VLOOKUP($F31,P_All!$A$5:$J$205,3*($C$6-1)+3) -> 0.10918 | I31: =VLOOKUP($F31,P_All!$A$5:$J$205,3*($C$6-1)+4) -> 0.11698 | J31: =VLOOKUP($F31,NA_All!$A$5:$J$205,3*($C$6-1)+2) -> 0.10027 | K31: =VLOOKUP($F31,NA_All!$A$5:$J$205,3*($C$6-1)+3) -> 0.11082 | L31: =VLOOKUP($F31,NA_All!$A$5:$J$205,3*($C$6-1)+4) -> 0.11866 | M31: 30 | N31: 100
A32: Cl | C32: 250000 | F32: 9 | G32: =VLOOKUP($F32,P_All!$A$5:$J$205,3*($C$6-1)+2) -> 0.098594 | H32: =VLOOKUP($F32,P_All!$A$5:$J$205,3*($C$6-1)+3) -> 0.10901 | I32: =VLOOKUP($F32,P_All!$A$5:$J$205,3*($C$6-1)+4) -> 0.11682 | J32: =VLOOKUP($F32,NA_All!$A$5:$J$205,3*($C$6-1)+2) -> 0.10027 | K32: =VLOOKUP($F32,NA_All!$A$5:$J$205,3*($C$6-1)+3) -> 0.11082 | L32: =VLOOKUP($F32,NA_All!$A$5:$J$205,3*($C$6-1)+4) -> 0.11866 | M32: 30 | N32: 100
A33: Co | F33: 10 | G33: =VLOOKUP($F33,P_All!$A$5:$J$205,3*($C$6-1)+2) -> 0.098454 | H33: =VLOOKUP($F33,P_All!$A$5:$J$205,3*($C$6-1)+3) -> 0.10885 | I33: =VLOOKUP($F33,P_All!$A$5:$J$205,3*($C$6-1)+4) -> 0.11664 | J33: =VLOOKUP($F33,NA_All!$A$5:$J$205,3*($C$6-1)+2) -> 0.10027 | K33: =VLOOKUP($F33,NA_All!$A$5:$J$205,3*($C$6-1)+3) -> 0.11082 | L33: =VLOOKUP($F33,NA_All!$A$5:$J$205,3*($C$6-1)+4) -> 0.11866 | M33: 30 | N33: 100
A34: Cr | B34: 100 | F34: 11 | G34: =VLOOKUP($F34,P_All!$A$5:$J$205,3*($C$6-1)+2) -> 0.098274 | H34: =VLOOKUP($F34,P_All!$A$5:$J$205,3*($C$6-1)+3) -> 0.10869 | I34: =VLOOKUP($F34,P_All!$A$5:$J$205,3*($C$6-1)+4) -> 0.11646 | J34: =VLOOKUP($F34,NA_All!$A$5:$J$205,3*($C$6-1)+2) -> 0.10027 | K34: =VLOOKUP($F34,NA_All!$A$5:$J$205,3*($C$6-1)+3) -> 0.11082 | L34: =VLOOKUP($F34,NA_All!$A$5:$J$205,3*($C$6-1)+4) -> 0.11866 | M34: 30 | N34: 100
A35: Cu | F35: 12 | G35: =VLOOKUP($F35,P_All!$A$5:$J$205,3*($C$6-1)+2) -> 0.098047 | H35: =VLOOKUP($F35,P_All!$A$5:$J$205,3*($C$6-1)+3) -> 0.10849 | I35: =VLOOKUP($F35,P_All!$A$5:$J$205,3*($C$6-1)+4) -> 0.1163 | J35: =VLOOKUP($F35,NA_All!$A$5:$J$205,3*($C$6-1)+2) -> 0.10027 | K35: =VLOOKUP($F35,NA_All!$A$5:$J$205,3*($C$6-1)+3) -> 0.11082 | L35: =VLOOKUP($F35,NA_All!$A$5:$J$205,3*($C$6-1)+4) -> 0.11866 | M35: 30 | N35: 100
A36: F | B36: 4000 | C36: 2000 | F36: 13 | G36: =VLOOKUP($F36,P_All!$A$5:$J$205,3*($C$6-1)+2) -> 0.097817 | H36: =VLOOKUP($F36,P_All!$A$5:$J$205,3*($C$6-1)+3) -> 0.10829 | I36: =VLOOKUP($F36,P_All!$A$5:$J$205,3*($C$6-1)+4) -> 0.11613 | J36: =VLOOKUP($F36,NA_All!$A$5:$J$205,3*($C$6-1)+2) -> 0.10027 | K36: =VLOOKUP($F36,NA_All!$A$5:$J$205,3*($C$6-1)+3) -> 0.11082 | L36: =VLOOKUP($F36,NA_All!$A$5:$J$205,3*($C$6-1)+4) -> 0.11866 | M36: 30 | N36: 100
A37: Fe | F37: 14 | G37: =VLOOKUP($F37,P_All!$A$5:$J$205,3*($C$6-1)+2) -> 0.097582 | H37: =VLOOKUP($F37,P_All!$A$5:$J$205,3*($C$6-1)+3) -> 0.10805 | I37: =VLOOKUP($F37,P_All!$A$5:$J$205,3*($C$6-1)+4) -> 0.11596 | J37: =VLOOKUP($F37,NA_All!$A$5:$J$205,3*($C$6-1)+2) -> 0.10027 | K37: =VLOOKUP($F37,NA_All!$A$5:$J$205,3*($C$6-1)+3) -> 0.11082 | L37: =VLOOKUP($F37,NA_All!$A$5:$J$205,3*($C$6-1)+4) -> 0.11866 | M37: 30 | N37: 100
A38: K | F38: 15 | G38: =VLOOKUP($F38,P_All!$A$5:$J$205,3*($C$6-1)+2) -> 0.09732 | H38: =VLOOKUP($F38,P_All!$A$5:$J$205,3*($C$6-1)+3) -> 0.10785 | I38: =VLOOKUP($F38,P_All!$A$5:$J$205,3*($C$6-1)+4) -> 0.11565 | J38: =VLOOKUP($F38,NA_All!$A$5:$J$205,3*($C$6-1)+2) -> 0.10027 | K38: =VLOOKUP($F38,NA_All!$A$5:$J$205,3*($C$6-1)+3) -> 0.11082 | L38: =VLOOKUP($F38,NA_All!$A$5:$J$205,3*($C$6-1)+4) -> 0.11866 | M38: 30 | N38: 100
A39: Mg | F39: 16 | G39: =VLOOKUP($F39,P_All!$A$5:$J$205,3*($C$6-1)+2) -> 0.097114 | H39: =VLOOKUP($F39,P_All!$A$5:$J$205,3*($C$6-1)+3) -> 0.10762 | I39: =VLOOKUP($F39,P_All!$A$5:$J$205,3*($C$6-1)+4) -> 0.11542 | J39: =VLOOKUP($F39,NA_All!$A$5:$J$205,3*($C$6-1)+2) -> 0.10027 | K39: =VLOOKUP($F39,NA_All!$A$5:$J$205,3*($C$6-1)+3) -> 0.11082 | L39: =VLOOKUP($F39,NA_All!$A$5:$J$205,3*($C$6-1)+4) -> 0.11866 | M39: 30 | N39: 100
A40: Mn | B40: 704 | F40: 17 | G40: =VLOOKUP($F40,P_All!$A$5:$J$205,3*($C$6-1)+2) -> 0.096932 | H40: =VLOOKUP($F40,P_All!$A$5:$J$205,3*($C$6-1)+3) -> 0.10733 | I40: =VLOOKUP($F40,P_All!$A$5:$J$205,3*($C$6-1)+4) -> 0.11527 | J40: =VLOOKUP($F40,NA_All!$A$5:$J$205,3*($C$6-1)+2) -> 0.10027 | K40: =VLOOKUP($F40,NA_All!$A$5:$J$205,3*($C$6-1)+3) -> 0.11082 | L40: =VLOOKUP($F40,NA_All!$A$5:$J$205,3*($C$6-1)+4) -> 0.11866 | M40: 30 | N40: 100
A41: Na | F41: 18 | G41: =VLOOKUP($F41,P_All!$A$5:$J$205,3*($C$6-1)+2) -> 0.096751 | H41: =VLOOKUP($F41,P_All!$A$5:$J$205,3*($C$6-1)+3) -> 0.10711 | I41: =VLOOKUP($F41,P_All!$A$5:$J$205,3*($C$6-1)+4) -> 0.11515 | J41: =VLOOKUP($F41,NA_All!$A$5:$J$205,3*($C$6-1)+2) -> 0.10027 | K41: =VLOOKUP($F41,NA_All!$A$5:$J$205,3*($C$6-1)+3) -> 0.11082 | L41: =VLOOKUP($F41,NA_All!$A$5:$J$205,3*($C$6-1)+4) -> 0.11862 | M41: 30 | N41: 100
A42: Ni | B42: 100 | F42: 19 | G42: =VLOOKUP($F42,P_All!$A$5:$J$205,3*($C$6-1)+2) -> 0.096571 | H42: =VLOOKUP($F42,P_All!$A$5:$J$205,3*($C$6-1)+3) -> 0.10693 | I42: =VLOOKUP($F42,P_All!$A$5:$J$205,3*($C$6-1)+4) -> 0.11503 | J42: =VLOOKUP($F42,NA_All!$A$5:$J$205,3*($C$6-1)+2) -> 0.10027 | K42: =VLOOKUP($F42,NA_All!$A$5:$J$205,3*($C$6-1)+3) -> 0.11082 | L42: =VLOOKUP($F42,NA_All!$A$5:$J$205,3*($C$6-1)+4) -> 0.11843 | M42: 30 | N42: 100
A43: Pb | F43: 20 | G43: =VLOOKUP($F43,P_All!$A$5:$J$205,3*($C$6-1)+2) -> 0.096358 | H43: =VLOOKUP($F43,P_All!$A$5:$J$205,3*($C$6-1)+3) -> 0.10674 | I43: =VLOOKUP($F43,P_All!$A$5:$J$205,3*($C$6-1)+4) -> 0.11485 | J43: =VLOOKUP($F43,NA_All!$A$5:$J$205,3*($C$6-1)+2) -> 0.10027 | K43: =VLOOKUP($F43,NA_All!$A$5:$J$205,3*($C$6-1)+3) -> 0.11082 | L43: =VLOOKUP($F43,NA_All!$A$5:$J$205,3*($C$6-1)+4) -> 0.1184 | M43: 30 | N43: 100
A44: Sb | B44: 6 | F44: 21 | G44: =VLOOKUP($F44,P_All!$A$5:$J$205,3*($C$6-1)+2) -> 0.096138 | H44: =VLOOKUP($F44,P_All!$A$5:$J$205,3*($C$6-1)+3) -> 0.1066 | I44: =VLOOKUP($F44,P_All!$A$5:$J$205,3*($C$6-1)+4) -> 0.1147 | J44: =VLOOKUP($F44,NA_All!$A$5:$J$205,3*($C$6-1)+2) -> 0.10027 | K44: =VLOOKUP($F44,NA_All!$A$5:$J$205,3*($C$6-1)+3) -> 0.11082 | L44: =VLOOKUP($F44,NA_All!$A$5:$J$205,3*($C$6-1)+4) -> 0.11835 | M44: 30 | N44: 100
A45: Se | B45: 30 | F45: 22 | G45: =VLOOKUP($F45,P_All!$A$5:$J$205,3*($C$6-1)+2) -> 0.095917 | H45: =VLOOKUP($F45,P_All!$A$5:$J$205,3*($C$6-1)+3) -> 0.10642 | I45: =VLOOKUP($F45,P_All!$A$5:$J$205,3*($C$6-1)+4) -> 0.11458 | J45: =VLOOKUP($F45,NA_All!$A$5:$J$205,3*($C$6-1)+2) -> 0.10027 | K45: =VLOOKUP($F45,NA_All!$A$5:$J$205,3*($C$6-1)+3) -> 0.11082 | L45: =VLOOKUP($F45,NA_All!$A$5:$J$205,3*($C$6-1)+4) -> 0.1183 | M45: 30 | N45: 100
A46: SO4 | C46: 250000 | F46: 23 | G46: =VLOOKUP($F46,P_All!$A$5:$J$205,3*($C$6-1)+2) -> 0.095698 | H46: =VLOOKUP($F46,P_All!$A$5:$J$205,3*($C$6-1)+3) -> 0.10629 | I46: =VLOOKUP($F46,P_All!$A$5:$J$205,3*($C$6-1)+4) -> 0.11442 | J46: =VLOOKUP($F46,NA_All!$A$5:$J$205,3*($C$6-1)+2) -> 0.10027 | K46: =VLOOKUP($F46,NA_All!$A$5:$J$205,3*($C$6-1)+3) -> 0.11081 | L46: =VLOOKUP($F46,NA_All!$A$5:$J$205,3*($C$6-1)+4) -> 0.11827 | M46: 30 | N46: 100
A47: Tl | B47: 0.6 | F47: 24 | G47: =VLOOKUP($F47,P_All!$A$5:$J$205,3*($C$6-1)+2) -> 0.095479 | H47: =VLOOKUP($F47,P_All!$A$5:$J$205,3*($C$6-1)+3) -> 0.10611 | I47: =VLOOKUP($F47,P_All!$A$5:$J$205,3*($C$6-1)+4) -> 0.11424 | J47: =VLOOKUP($F47,NA_All!$A$5:$J$205,3*($C$6-1)+2) -> 0.10027 | K47: =VLOOKUP($F47,NA_All!$A$5:$J$205,3*($C$6-1)+3) -> 0.11079 | L47: =VLOOKUP($F47,NA_All!$A$5:$J$205,3*($C$6-1)+4) -> 0.11819 | M47: 30 | N47: 100
A48: V | B48: 50 | F48: 25 | G48: =VLOOKUP($F48,P_All!$A$5:$J$205,3*($C$6-1)+2) -> 0.0953 | H48: =VLOOKUP($F48,P_All!$A$5:$J$205,3*($C$6-1)+3) -> 0.10593 | I48: =VLOOKUP($F48,P_All!$A$5:$J$205,3*($C$6-1)+4) -> 0.11407 | J48: =VLOOKUP($F48,NA_All!$A$5:$J$205,3*($C$6-1)+2) -> 0.10027 | K48: =VLOOKUP($F48,NA_All!$A$5:$J$205,3*($C$6-1)+3) -> 0.11071 | L48: =VLOOKUP($F48,NA_All!$A$5:$J$205,3*($C$6-1)+4) -> 0.11815 | M48: 30 | N48: 100
A49: Zn | B49: 2000 | C49: 5000 | F49: 26 | G49: =VLOOKUP($F49,P_All!$A$5:$J$205,3*($C$6-1)+2) -> 0.095101 | H49: =VLOOKUP($F49,P_All!$A$5:$J$205,3*($C$6-1)+3) -> 0.1057 | I49: =VLOOKUP($F49,P_All!$A$5:$J$205,3*($C$6-1)+4) -> 0.1139 | J49: =VLOOKUP($F49,NA_All!$A$5:$J$205,3*($C$6-1)+2) -> 0.10027 | K49: =VLOOKUP($F49,NA_All!$A$5:$J$205,3*($C$6-1)+3) -> 0.11068 | L49: =VLOOKUP($F49,NA_All!$A$5:$J$205,3*($C$6-1)+4) -> 0.11805 | M49: 30 | N49: 100
F50: 27 | G50: =VLOOKUP($F50,P_All!$A$5:$J$205,3*($C$6-1)+2) -> 0.094903 | H50: =VLOOKUP($F50,P_All!$A$5:$J$205,3*($C$6-1)+3) -> 0.10546 | I50: =VLOOKUP($F50,P_All!$A$5:$J$205,3*($C$6-1)+4) -> 0.11373 | J50: =VLOOKUP($F50,NA_All!$A$5:$J$205,3*($C$6-1)+2) -> 0.10027 | K50: =VLOOKUP($F50,NA_All!$A$5:$J$205,3*($C$6-1)+3) -> 0.11058 | L50: =VLOOKUP($F50,NA_All!$A$5:$J$205,3*($C$6-1)+4) -> 0.11801 | M50: 30 | N50: 100
F51: 28 | G51: =VLOOKUP($F51,P_All!$A$5:$J$205,3*($C$6-1)+2) -> 0.094705 | H51: =VLOOKUP($F51,P_All!$A$5:$J$205,3*($C$6-1)+3) -> 0.10525 | I51: =VLOOKUP($F51,P_All!$A$5:$J$205,3*($C$6-1)+4) -> 0.11359 | J51: =VLOOKUP($F51,NA_All!$A$5:$J$205,3*($C$6-1)+2) -> 0.10027 | K51: =VLOOKUP($F51,NA_All!$A$5:$J$205,3*($C$6-1)+3) -> 0.1106 | L51: =VLOOKUP($F51,NA_All!$A$5:$J$205,3*($C$6-1)+4) -> 0.11793 | M51: 30 | N51: 100
F52: 29 | G52: =VLOOKUP($F52,P_All!$A$5:$J$205,3*($C$6-1)+2) -> 0.094508 | H52: =VLOOKUP($F52,P_All!$A$5:$J$205,3*($C$6-1)+3) -> 0.10509 | I52: =VLOOKUP($F52,P_All!$A$5:$J$205,3*($C$6-1)+4) -> 0.11344 | J52: =VLOOKUP($F52,NA_All!$A$5:$J$205,3*($C$6-1)+2) -> 0.10027 | K52: =VLOOKUP($F52,NA_All!$A$5:$J$205,3*($C$6-1)+3) -> 0.11055 | L52: =VLOOKUP($F52,NA_All!$A$5:$J$205,3*($C$6-1)+4) -> 0.1179 | M52: 30 | N52: 100
F53: 30 | G53: =VLOOKUP($F53,P_All!$A$5:$J$205,3*($C$6-1)+2) -> 0.094311 | H53: =VLOOKUP($F53,P_All!$A$5:$J$205,3*($C$6-1)+3) -> 0.1049 | I53: =VLOOKUP($F53,P_All!$A$5:$J$205,3*($C$6-1)+4) -> 0.11326 | J53: =VLOOKUP($F53,NA_All!$A$5:$J$205,3*($C$6-1)+2) -> 0.10027 | K53: =VLOOKUP($F53,NA_All!$A$5:$J$205,3*($C$6-1)+3) -> 0.11053 | L53: =VLOOKUP($F53,NA_All!$A$5:$J$205,3*($C$6-1)+4) -> 0.11788 | M53: 30 | N53: 100
F54: 31 | G54: =VLOOKUP($F54,P_All!$A$5:$J$205,3*($C$6-1)+2) -> 0.094115 | H54: =VLOOKUP($F54,P_All!$A$5:$J$205,3*($C$6-1)+3) -> 0.1047 | I54: =VLOOKUP($F54,P_All!$A$5:$J$205,3*($C$6-1)+4) -> 0.11308 | J54: =VLOOKUP($F54,NA_All!$A$5:$J$205,3*($C$6-1)+2) -> 0.10027 | K54: =VLOOKUP($F54,NA_All!$A$5:$J$205,3*($C$6-1)+3) -> 0.11048 | L54: =VLOOKUP($F54,NA_All!$A$5:$J$205,3*($C$6-1)+4) -> 0.11783 | M54: 30 | N54: 100
F55: 32 | G55: =VLOOKUP($F55,P_All!$A$5:$J$205,3*($C$6-1)+2) -> 0.093942 | H55: =VLOOKUP($F55,P_All!$A$5:$J$205,3*($C$6-1)+3) -> 0.10451 | I55: =VLOOKUP($F55,P_All!$A$5:$J$205,3*($C$6-1)+4) -> 0.1129 | J55: =VLOOKUP($F55,NA_All!$A$5:$J$205,3*($C$6-1)+2) -> 0.10027 | K55: =VLOOKUP($F55,NA_All!$A$5:$J$205,3*($C$6-1)+3) -> 0.11041 | L55: =VLOOKUP($F55,NA_All!$A$5:$J$205,3*($C$6-1)+4) -> 0.11778 | M55: 30 | N55: 100
F56: 33 | G56: =VLOOKUP($F56,P_All!$A$5:$J$205,3*($C$6-1)+2) -> 0.093738 | H56: =VLOOKUP($F56,P_All!$A$5:$J$205,3*($C$6-1)+3) -> 0.10426 | I56: =VLOOKUP($F56,P_All!$A$5:$J$205,3*($C$6-1)+4) -> 0.11272 | J56: =VLOOKUP($F56,NA_All!$A$5:$J$205,3*($C$6-1)+2) -> 0.10026 | K56: =VLOOKUP($F56,NA_All!$A$5:$J$205,3*($C$6-1)+3) -> 0.1103 | L56: =VLOOKUP($F56,NA_All!$A$5:$J$205,3*($C$6-1)+4) -> 0.11775 | M56: 30 | N56: 100
F57: 34 | G57: =VLOOKUP($F57,P_All!$A$5:$J$205,3*($C$6-1)+2) -> 0.093535 | H57: =VLOOKUP($F57,P_All!$A$5:$J$205,3*($C$6-1)+3) -> 0.10407 | I57: =VLOOKUP($F57,P_All!$A$5:$J$205,3*($C$6-1)+4) -> 0.11255 | J57: =VLOOKUP($F57,NA_All!$A$5:$J$205,3*($C$6-1)+2) -> 0.10007 | K57: =VLOOKUP($F57,NA_All!$A$5:$J$205,3*($C$6-1)+3) -> 0.11012 | L57: =VLOOKUP($F57,NA_All!$A$5:$J$205,3*($C$6-1)+4) -> 0.11767 | M57: 30 | N57: 100
F58: 35 | G58: =VLOOKUP($F58,P_All!$A$5:$J$205,3*($C$6-1)+2) -> 0.093326 | H58: =VLOOKUP($F58,P_All!$A$5:$J$205,3*($C$6-1)+3) -> 0.10389 | I58: =VLOOKUP($F58,P_All!$A$5:$J$205,3*($C$6-1)+4) -> 0.11239 | J58: =VLOOKUP($F58,NA_All!$A$5:$J$205,3*($C$6-1)+2) -> 0.09978 | K58: =VLOOKUP($F58,NA_All!$A$5:$J$205,3*($C$6-1)+3) -> 0.10991 | L58: =VLOOKUP($F58,NA_All!$A$5:$J$205,3*($C$6-1)+4) -> 0.11765 | M58: 30 | N58: 100
F59: 36 | G59: =VLOOKUP($F59,P_All!$A$5:$J$205,3*($C$6-1)+2) -> 0.093098 | H59: =VLOOKUP($F59,P_All!$A$5:$J$205,3*($C$6-1)+3) -> 0.10371 | I59: =VLOOKUP($F59,P_All!$A$5:$J$205,3*($C$6-1)+4) -> 0.11223 | J59: =VLOOKUP($F59,NA_All!$A$5:$J$205,3*($C$6-1)+2) -> 0.099751 | K59: =VLOOKUP($F59,NA_All!$A$5:$J$205,3*($C$6-1)+3) -> 0.10975 | L59: =VLOOKUP($F59,NA_All!$A$5:$J$205,3*($C$6-1)+4) -> 0.11762 | M59: 30 | N59: 100
F60: 37 | G60: =VLOOKUP($F60,P_All!$A$5:$J$205,3*($C$6-1)+2) -> 0.092901 | H60: =VLOOKUP($F60,P_All!$A$5:$J$205,3*($C$6-1)+3) -> 0.10353 | I60: =VLOOKUP($F60,P_All!$A$5:$J$205,3*($C$6-1)+4) -> 0.11208 | J60: =VLOOKUP($F60,NA_All!$A$5:$J$205,3*($C$6-1)+2) -> 0.099752 | K60: =VLOOKUP($F60,NA_All!$A$5:$J$205,3*($C$6-1)+3) -> 0.10964 | L60: =VLOOKUP($F60,NA_All!$A$5:$J$205,3*($C$6-1)+4) -> 0.11752 | M60: 30 | N60: 100
F61: 38 | G61: =VLOOKUP($F61,P_All!$A$5:$J$205,3*($C$6-1)+2) -> 0.092725 | H61: =VLOOKUP($F61,P_All!$A$5:$J$205,3*($C$6-1)+3) -> 0.10335 | I61: =VLOOKUP($F61,P_All!$A$5:$J$205,3*($C$6-1)+4) -> 0.11192 | J61: =VLOOKUP($F61,NA_All!$A$5:$J$205,3*($C$6-1)+2) -> 0.099485 | K61: =VLOOKUP($F61,NA_All!$A$5:$J$205,3*($C$6-1)+3) -> 0.10949 | L61: =VLOOKUP($F61,NA_All!$A$5:$J$205,3*($C$6-1)+4) -> 0.11756 | M61: 30 | N61: 100
F62: 39 | G62: =VLOOKUP($F62,P_All!$A$5:$J$205,3*($C$6-1)+2) -> 0.092536 | H62: =VLOOKUP($F62,P_All!$A$5:$J$205,3*($C$6-1)+3) -> 0.10314 | I62: =VLOOKUP($F62,P_All!$A$5:$J$205,3*($C$6-1)+4) -> 0.11176 | J62: =VLOOKUP($F62,NA_All!$A$5:$J$205,3*($C$6-1)+2) -> 0.099332 | K62: =VLOOKUP($F62,NA_All!$A$5:$J$205,3*($C$6-1)+3) -> 0.10939 | L62: =VLOOKUP($F62,NA_All!$A$5:$J$205,3*($C$6-1)+4) -> 0.11755 | M62: 30 | N62: 100
F63: 40 | G63: =VLOOKUP($F63,P_All!$A$5:$J$205,3*($C$6-1)+2) -> 0.092348 | H63: =VLOOKUP($F63,P_All!$A$5:$J$205,3*($C$6-1)+3) -> 0.10295 | I63: =VLOOKUP($F63,P_All!$A$5:$J$205,3*($C$6-1)+4) -> 0.1116 | J63: =VLOOKUP($F63,NA_All!$A$5:$J$205,3*($C$6-1)+2) -> 0.099332 | K63: =VLOOKUP($F63,NA_All!$A$5:$J$205,3*($C$6-1)+3) -> 0.10927 | L63: =VLOOKUP($F63,NA_All!$A$5:$J$205,3*($C$6-1)+4) -> 0.11754 | M63: 30 | N63: 100
F64: 41 | G64: =VLOOKUP($F64,P_All!$A$5:$J$205,3*($C$6-1)+2) -> 0.092157 | H64: =VLOOKUP($F64,P_All!$A$5:$J$205,3*($C$6-1)+3) -> 0.10277 | I64: =VLOOKUP($F64,P_All!$A$5:$J$205,3*($C$6-1)+4) -> 0.11145 | J64: =VLOOKUP($F64,NA_All!$A$5:$J$205,3*($C$6-1)+2) -> 0.099328 | K64: =VLOOKUP($F64,NA_All!$A$5:$J$205,3*($C$6-1)+3) -> 0.10922 | L64: =VLOOKUP($F64,NA_All!$A$5:$J$205,3*($C$6-1)+4) -> 0.11751 | M64: 30 | N64: 100
F65: 42 | G65: =VLOOKUP($F65,P_All!$A$5:$J$205,3*($C$6-1)+2) -> 0.091965 | H65: =VLOOKUP($F65,P_All!$A$5:$J$205,3*($C$6-1)+3) -> 0.10258 | I65: =VLOOKUP($F65,P_All!$A$5:$J$205,3*($C$6-1)+4) -> 0.1113 | J65: =VLOOKUP($F65,NA_All!$A$5:$J$205,3*($C$6-1)+2) -> 0.099071 | K65: =VLOOKUP($F65,NA_All!$A$5:$J$205,3*($C$6-1)+3) -> 0.1092 | L65: =VLOOKUP($F65,NA_All!$A$5:$J$205,3*($C$6-1)+4) -> 0.11748 | M65: 30 | N65: 100
F66: 43 | G66: =VLOOKUP($F66,P_All!$A$5:$J$205,3*($C$6-1)+2) -> 0.091774 | H66: =VLOOKUP($F66,P_All!$A$5:$J$205,3*($C$6-1)+3) -> 0.1024 | I66: =VLOOKUP($F66,P_All!$A$5:$J$205,3*($C$6-1)+4) -> 0.11114 | J66: =VLOOKUP($F66,NA_All!$A$5:$J$205,3*($C$6-1)+2) -> 0.099033 | K66: =VLOOKUP($F66,NA_All!$A$5:$J$205,3*($C$6-1)+3) -> 0.10917 | L66: =VLOOKUP($F66,NA_All!$A$5:$J$205,3*($C$6-1)+4) -> 0.11762 | M66: 30 | N66: 100
F67: 44 | G67: =VLOOKUP($F67,P_All!$A$5:$J$205,3*($C$6-1)+2) -> 0.091621 | H67: =VLOOKUP($F67,P_All!$A$5:$J$205,3*($C$6-1)+3) -> 0.10221 | I67: =VLOOKUP($F67,P_All!$A$5:$J$205,3*($C$6-1)+4) -> 0.11099 | J67: =VLOOKUP($F67,NA_All!$A$5:$J$205,3*($C$6-1)+2) -> 0.098955 | K67: =VLOOKUP($F67,NA_All!$A$5:$J$205,3*($C$6-1)+3) -> 0.10907 | L67: =VLOOKUP($F67,NA_All!$A$5:$J$205,3*($C$6-1)+4) -> 0.11759 | M67: 30 | N67: 100
F68: 45 | G68: =VLOOKUP($F68,P_All!$A$5:$J$205,3*($C$6-1)+2) -> 0.091482 | H68: =VLOOKUP($F68,P_All!$A$5:$J$205,3*($C$6-1)+3) -> 0.10203 | I68: =VLOOKUP($F68,P_All!$A$5:$J$205,3*($C$6-1)+4) -> 0.11083 | J68: =VLOOKUP($F68,NA_All!$A$5:$J$205,3*($C$6-1)+2) -> 0.098739 | K68: =VLOOKUP($F68,NA_All!$A$5:$J$205,3*($C$6-1)+3) -> 0.10885 | L68: =VLOOKUP($F68,NA_All!$A$5:$J$205,3*($C$6-1)+4) -> 0.11791 | M68: 30 | N68: 100
F69: 46 | G69: =VLOOKUP($F69,P_All!$A$5:$J$205,3*($C$6-1)+2) -> 0.091342 | H69: =VLOOKUP($F69,P_All!$A$5:$J$205,3*($C$6-1)+3) -> 0.10186 | I69: =VLOOKUP($F69,P_All!$A$5:$J$205,3*($C$6-1)+4) -> 0.11065 | J69: =VLOOKUP($F69,NA_All!$A$5:$J$205,3*($C$6-1)+2) -> 0.098545 | K69: =VLOOKUP($F69,NA_All!$A$5:$J$205,3*($C$6-1)+3) -> 0.10865 | L69: =VLOOKUP($F69,NA_All!$A$5:$J$205,3*($C$6-1)+4) -> 0.11803 | M69: 30 | N69: 100
F70: 47 | G70: =VLOOKUP($F70,P_All!$A$5:$J$205,3*($C$6-1)+2) -> 0.091162 | H70: =VLOOKUP($F70,P_All!$A$5:$J$205,3*($C$6-1)+3) -> 0.10169 | I70: =VLOOKUP($F70,P_All!$A$5:$J$205,3*($C$6-1)+4) -> 0.11046 | J70: =VLOOKUP($F70,NA_All!$A$5:$J$205,3*($C$6-1)+2) -> 0.098228 | K70: =VLOOKUP($F70,NA_All!$A$5:$J$205,3*($C$6-1)+3) -> 0.10848 | L70: =VLOOKUP($F70,NA_All!$A$5:$J$205,3*($C$6-1)+4) -> 0.11802 | M70: 30 | N70: 100
F71: 48 | G71: =VLOOKUP($F71,P_All!$A$5:$J$205,3*($C$6-1)+2) -> 0.090979 | H71: =VLOOKUP($F71,P_All!$A$5:$J$205,3*($C$6-1)+3) -> 0.1015 | I71: =VLOOKUP($F71,P_All!$A$5:$J$205,3*($C$6-1)+4) -> 0.11028 | J71: =VLOOKUP($F71,NA_All!$A$5:$J$205,3*($C$6-1)+2) -> 0.097835 | K71: =VLOOKUP($F71,NA_All!$A$5:$J$205,3*($C$6-1)+3) -> 0.10824 | L71: =VLOOKUP($F71,NA_All!$A$5:$J$205,3*($C$6-1)+4) -> 0.11859 | M71: 30 | N71: 100
F72: 49 | G72: =VLOOKUP($F72,P_All!$A$5:$J$205,3*($C$6-1)+2) -> 0.090796 | H72: =VLOOKUP($F72,P_All!$A$5:$J$205,3*($C$6-1)+3) -> 0.10133 | I72: =VLOOKUP($F72,P_All!$A$5:$J$205,3*($C$6-1)+4) -> 0.11011 | J72: =VLOOKUP($F72,NA_All!$A$5:$J$205,3*($C$6-1)+2) -> 0.097685 | K72: =VLOOKUP($F72,NA_All!$A$5:$J$205,3*($C$6-1)+3) -> 0.10805 | L72: =VLOOKUP($F72,NA_All!$A$5:$J$205,3*($C$6-1)+4) -> 0.11908 | M72: 30 | N72: 100
F73: 50 | G73: =VLOOKUP($F73,P_All!$A$5:$J$205,3*($C$6-1)+2) -> 0.090614 | H73: =VLOOKUP($F73,P_All!$A$5:$J$205,3*($C$6-1)+3) -> 0.10117 | I73: =VLOOKUP($F73,P_All!$A$5:$J$205,3*($C$6-1)+4) -> 0.10996 | J73: =VLOOKUP($F73,NA_All!$A$5:$J$205,3*($C$6-1)+2) -> 0.097582 | K73: =VLOOKUP($F73,NA_All!$A$5:$J$205,3*($C$6-1)+3) -> 0.10783 | L73: =VLOOKUP($F73,NA_All!$A$5:$J$205,3*($C$6-1)+4) -> 0.11953 | M73: 30 | N73: 100
F74: 51 | G74: =VLOOKUP($F74,P_All!$A$5:$J$205,3*($C$6-1)+2) -> 0.090423 | H74: =VLOOKUP($F74,P_All!$A$5:$J$205,3*($C$6-1)+3) -> 0.101 | I74: =VLOOKUP($F74,P_All!$A$5:$J$205,3*($C$6-1)+4) -> 0.10982 | J74: =VLOOKUP($F74,NA_All!$A$5:$J$205,3*($C$6-1)+2) -> 0.097499 | K74: =VLOOKUP($F74,NA_All!$A$5:$J$205,3*($C$6-1)+3) -> 0.10776 | L74: =VLOOKUP($F74,NA_All!$A$5:$J$205,3*($C$6-1)+4) -> 0.12002 | M74: 30 | N74: 100
F75: 52 | G75: =VLOOKUP($F75,P_All!$A$5:$J$205,3*($C$6-1)+2) -> 0.090207 | H75: =VLOOKUP($F75,P_All!$A$5:$J$205,3*($C$6-1)+3) -> 0.10084 | I75: =VLOOKUP($F75,P_All!$A$5:$J$205,3*($C$6-1)+4) -> 0.10968 | J75: =VLOOKUP($F75,NA_All!$A$5:$J$205,3*($C$6-1)+2) -> 0.097433 | K75: =VLOOKUP($F75,NA_All!$A$5:$J$205,3*($C$6-1)+3) -> 0.10768 | L75: =VLOOKUP($F75,NA_All!$A$5:$J$205,3*($C$6-1)+4) -> 0.12079 | M75: 30 | N75: 100
F76: 53 | G76: =VLOOKUP($F76,P_All!$A$5:$J$205,3*($C$6-1)+2) -> 0.089992 | H76: =VLOOKUP($F76,P_All!$A$5:$J$205,3*($C$6-1)+3) -> 0.10067 | I76: =VLOOKUP($F76,P_All!$A$5:$J$205,3*($C$6-1)+4) -> 0.10956 | J76: =VLOOKUP($F76,NA_All!$A$5:$J$205,3*($C$6-1)+2) -> 0.097321 | K76: =VLOOKUP($F76,NA_All!$A$5:$J$205,3*($C$6-1)+3) -> 0.10753 | L76: =VLOOKUP($F76,NA_All!$A$5:$J$205,3*($C$6-1)+4) -> 0.12126 | M76: 30 | N76: 100
F77: 54 | G77: =VLOOKUP($F77,P_All!$A$5:$J$205,3*($C$6-1)+2) -> 0.089729 | H77: =VLOOKUP($F77,P_All!$A$5:$J$205,3*($C$6-1)+3) -> 0.10051 | I77: =VLOOKUP($F77,P_All!$A$5:$J$205,3*($C$6-1)+4) -> 0.10942 | J77: =VLOOKUP($F77,NA_All!$A$5:$J$205,3*($C$6-1)+2) -> 0.097107 | K77: =VLOOKUP($F77,NA_All!$A$5:$J$205,3*($C$6-1)+3) -> 0.10737 | L77: =VLOOKUP($F77,NA_All!$A$5:$J$205,3*($C$6-1)+4) -> 0.12188 | M77: 30 | N77: 100
F78: 55 | G78: =VLOOKUP($F78,P_All!$A$5:$J$205,3*($C$6-1)+2) -> 0.089494 | H78: =VLOOKUP($F78,P_All!$A$5:$J$205,3*($C$6-1)+3) -> 0.10033 | I78: =VLOOKUP($F78,P_All!$A$5:$J$205,3*($C$6-1)+4) -> 0.1093 | J78: =VLOOKUP($F78,NA_All!$A$5:$J$205,3*($C$6-1)+2) -> 0.096888 | K78: =VLOOKUP($F78,NA_All!$A$5:$J$205,3*($C$6-1)+3) -> 0.1072 | L78: =VLOOKUP($F78,NA_All!$A$5:$J$205,3*($C$6-1)+4) -> 0.12248 | M78: 30 | N78: 100
F79: 56 | G79: =VLOOKUP($F79,P_All!$A$5:$J$205,3*($C$6-1)+2) -> 0.089261 | H79: =VLOOKUP($F79,P_All!$A$5:$J$205,3*($C$6-1)+3) -> 0.10013 | I79: =VLOOKUP($F79,P_All!$A$5:$J$205,3*($C$6-1)+4) -> 0.10916 | J79: =VLOOKUP($F79,NA_All!$A$5:$J$205,3*($C$6-1)+2) -> 0.096651 | K79: =VLOOKUP($F79,NA_All!$A$5:$J$205,3*($C$6-1)+3) -> 0.10695 | L79: =VLOOKUP($F79,NA_All!$A$5:$J$205,3*($C$6-1)+4) -> 0.12287 | M79: 30 | N79: 100
F80: 57 | G80: =VLOOKUP($F80,P_All!$A$5:$J$205,3*($C$6-1)+2) -> 0.089118 | H80: =VLOOKUP($F80,P_All!$A$5:$J$205,3*($C$6-1)+3) -> 0.099984 | I80: =VLOOKUP($F80,P_All!$A$5:$J$205,3*($C$6-1)+4) -> 0.10901 | J80: =VLOOKUP($F80,NA_All!$A$5:$J$205,3*($C$6-1)+2) -> 0.096305 | K80: =VLOOKUP($F80,NA_All!$A$5:$J$205,3*($C$6-1)+3) -> 0.10682 | L80: =VLOOKUP($F80,NA_All!$A$5:$J$205,3*($C$6-1)+4) -> 0.12301 | M80: 30 | N80: 100
F81: 58 | G81: =VLOOKUP($F81,P_All!$A$5:$J$205,3*($C$6-1)+2) -> 0.088994 | H81: =VLOOKUP($F81,P_All!$A$5:$J$205,3*($C$6-1)+3) -> 0.099841 | I81: =VLOOKUP($F81,P_All!$A$5:$J$205,3*($C$6-1)+4) -> 0.10886 | J81: =VLOOKUP($F81,NA_All!$A$5:$J$205,3*($C$6-1)+2) -> 0.09607 | K81: =VLOOKUP($F81,NA_All!$A$5:$J$205,3*($C$6-1)+3) -> 0.10671 | L81: =VLOOKUP($F81,NA_All!$A$5:$J$205,3*($C$6-1)+4) -> 0.12331 | M81: 30 | N81: 100
F82: 59 | G82: =VLOOKUP($F82,P_All!$A$5:$J$205,3*($C$6-1)+2) -> 0.088871 | H82: =VLOOKUP($F82,P_All!$A$5:$J$205,3*($C$6-1)+3) -> 0.099657 | I82: =VLOOKUP($F82,P_All!$A$5:$J$205,3*($C$6-1)+4) -> 0.10872 | J82: =VLOOKUP($F82,NA_All!$A$5:$J$205,3*($C$6-1)+2) -> 0.09588 | K82: =VLOOKUP($F82,NA_All!$A$5:$J$205,3*($C$6-1)+3) -> 0.10642 | L82: =VLOOKUP($F82,NA_All!$A$5:$J$205,3*($C$6-1)+4) -> 0.1241 | M82: 30 | N82: 100
F83: 60 | G83: =VLOOKUP($F83,P_All!$A$5:$J$205,3*($C$6-1)+2) -> 0.088718 | H83: =VLOOKUP($F83,P_All!$A$5:$J$205,3*($C$6-1)+3) -> 0.099477 | I83: =VLOOKUP($F83,P_All!$A$5:$J$205,3*($C$6-1)+4) -> 0.10859 | J83: =VLOOKUP($F83,NA_All!$A$5:$J$205,3*($C$6-1)+2) -> 0.09561 | K83: =VLOOKUP($F83,NA_All!$A$5:$J$205,3*($C$6-1)+3) -> 0.10622 | L83: =VLOOKUP($F83,NA_All!$A$5:$J$205,3*($C$6-1)+4) -> 0.1245 | M83: 30 | N83: 100
F84: 61 | G84: =VLOOKUP($F84,P_All!$A$5:$J$205,3*($C$6-1)+2) -> 0.088552 | H84: =VLOOKUP($F84,P_All!$A$5:$J$205,3*($C$6-1)+3) -> 0.099288 | I84: =VLOOKUP($F84,P_All!$A$5:$J$205,3*($C$6-1)+4) -> 0.10846 | J84: =VLOOKUP($F84,NA_All!$A$5:$J$205,3*($C$6-1)+2) -> 0.0954 | K84: =VLOOKUP($F84,NA_All!$A$5:$J$205,3*($C$6-1)+3) -> 0.1061 | L84: =VLOOKUP($F84,NA_All!$A$5:$J$205,3*($C$6-1)+4) -> 0.12543 | M84: 30 | N84: 100
F85: 62 | G85: =VLOOKUP($F85,P_All!$A$5:$J$205,3*($C$6-1)+2) -> 0.088369 | H85: =VLOOKUP($F85,P_All!$A$5:$J$205,3*($C$6-1)+3) -> 0.099107 | I85: =VLOOKUP($F85,P_All!$A$5:$J$205,3*($C$6-1)+4) -> 0.10833 | J85: =VLOOKUP($F85,NA_All!$A$5:$J$205,3*($C$6-1)+2) -> 0.095133 | K85: =VLOOKUP($F85,NA_All!$A$5:$J$205,3*($C$6-1)+3) -> 0.10585 | L85: =VLOOKUP($F85,NA_All!$A$5:$J$205,3*($C$6-1)+4) -> 0.12649 | M85: 30 | N85: 100
F86: 63 | G86: =VLOOKUP($F86,P_All!$A$5:$J$205,3*($C$6-1)+2) -> 0.088171 | H86: =VLOOKUP($F86,P_All!$A$5:$J$205,3*($C$6-1)+3) -> 0.098955 | I86: =VLOOKUP($F86,P_All!$A$5:$J$205,3*($C$6-1)+4) -> 0.1082 | J86: =VLOOKUP($F86,NA_All!$A$5:$J$205,3*($C$6-1)+2) -> 0.094921 | K86: =VLOOKUP($F86,NA_All!$A$5:$J$205,3*($C$6-1)+3) -> 0.10579 | L86: =VLOOKUP($F86,NA_All!$A$5:$J$205,3*($C$6-1)+4) -> 0.12727 | M86: 30 | N86: 100
F87: 64 | G87: =VLOOKUP($F87,P_All!$A$5:$J$205,3*($C$6-1)+2) -> 0.088008 | H87: =VLOOKUP($F87,P_All!$A$5:$J$205,3*($C$6-1)+3) -> 0.098775 | I87: =VLOOKUP($F87,P_All!$A$5:$J$205,3*($C$6-1)+4) -> 0.10808 | J87: =VLOOKUP($F87,NA_All!$A$5:$J$205,3*($C$6-1)+2) -> 0.094828 | K87: =VLOOKUP($F87,NA_All!$A$5:$J$205,3*($C$6-1)+3) -> 0.1057 | L87: =VLOOKUP($F87,NA_All!$A$5:$J$205,3*($C$6-1)+4) -> 0.12821 | M87: 30 | N87: 100
F88: 65 | G88: =VLOOKUP($F88,P_All!$A$5:$J$205,3*($C$6-1)+2) -> 0.087851 | H88: =VLOOKUP($F88,P_All!$A$5:$J$205,3*($C$6-1)+3) -> 0.098631 | I88: =VLOOKUP($F88,P_All!$A$5:$J$205,3*($C$6-1)+4) -> 0.10798 | J88: =VLOOKUP($F88,NA_All!$A$5:$J$205,3*($C$6-1)+2) -> 0.094747 | K88: =VLOOKUP($F88,NA_All!$A$5:$J$205,3*($C$6-1)+3) -> 0.10532 | L88: =VLOOKUP($F88,NA_All!$A$5:$J$205,3*($C$6-1)+4) -> 0.12881 | M88: =VLOOKUP($B$4,$A$23:$C$49,2) -> 30 | N88: =VLOOKUP($B$4,$A$23:$C$49,3) -> 100
F89: 66 | G89: =VLOOKUP($F89,P_All!$A$5:$J$205,3*($C$6-1)+2) -> 0.087694 | H89: =VLOOKUP($F89,P_All!$A$5:$J$205,3*($C$6-1)+3) -> 0.098465 | I89: =VLOOKUP($F89,P_All!$A$5:$J$205,3*($C$6-1)+4) -> 0.10787 | J89: =VLOOKUP($F89,NA_All!$A$5:$J$205,3*($C$6-1)+2) -> 0.094582 | K89: =VLOOKUP($F89,NA_All!$A$5:$J$205,3*($C$6-1)+3) -> 0.10514 | L89: =VLOOKUP($F89,NA_All!$A$5:$J$205,3*($C$6-1)+4) -> 0.12932 | M89: 30 | N89: 100
F90: 67 | G90: =VLOOKUP($F90,P_All!$A$5:$J$205,3*($C$6-1)+2) -> 0.087503 | H90: =VLOOKUP($F90,P_All!$A$5:$J$205,3*($C$6-1)+3) -> 0.0983 | I90: =VLOOKUP($F90,P_All!$A$5:$J$205,3*($C$6-1)+4) -> 0.10776 | J90: =VLOOKUP($F90,NA_All!$A$5:$J$205,3*($C$6-1)+2) -> 0.094316 | K90: =VLOOKUP($F90,NA_All!$A$5:$J$205,3*($C$6-1)+3) -> 0.10493 | L90: =VLOOKUP($F90,NA_All!$A$5:$J$205,3*($C$6-1)+4) -> 0.12986 | M90: 30 | N90: 100
F91: 68 | G91: =VLOOKUP($F91,P_All!$A$5:$J$205,3*($C$6-1)+2) -> 0.087306 | H91: =VLOOKUP($F91,P_All!$A$5:$J$205,3*($C$6-1)+3) -> 0.098122 | I91: =VLOOKUP($F91,P_All!$A$5:$J$205,3*($C$6-1)+4) -> 0.10764 | J91: =VLOOKUP($F91,NA_All!$A$5:$J$205,3*($C$6-1)+2) -> 0.094075 | K91: =VLOOKUP($F91,NA_All!$A$5:$J$205,3*($C$6-1)+3) -> 0.10485 | L91: =VLOOKUP($F91,NA_All!$A$5:$J$205,3*($C$6-1)+4) -> 0.13021 | M91: 30 | N91: 100
F92: 69 | G92: =VLOOKUP($F92,P_All!$A$5:$J$205,3*($C$6-1)+2) -> 0.087111 | H92: =VLOOKUP($F92,P_All!$A$5:$J$205,3*($C$6-1)+3) -> 0.097937 | I92: =VLOOKUP($F92,P_All!$A$5:$J$205,3*($C$6-1)+4) -> 0.10751 | J92: =VLOOKUP($F92,NA_All!$A$5:$J$205,3*($C$6-1)+2) -> 0.093937 | K92: =VLOOKUP($F92,NA_All!$A$5:$J$205,3*($C$6-1)+3) -> 0.10476 | L92: =VLOOKUP($F92,NA_All!$A$5:$J$205,3*($C$6-1)+4) -> 0.13054 | M92: 30 | N92: 100
F93: 70 | G93: =VLOOKUP($F93,P_All!$A$5:$J$205,3*($C$6-1)+2) -> 0.086917 | H93: =VLOOKUP($F93,P_All!$A$5:$J$205,3*($C$6-1)+3) -> 0.097773 | I93: =VLOOKUP($F93,P_All!$A$5:$J$205,3*($C$6-1)+4) -> 0.10739 | J93: =VLOOKUP($F93,NA_All!$A$5:$J$205,3*($C$6-1)+2) -> 0.093688 | K93: =VLOOKUP($F93,NA_All!$A$5:$J$205,3*($C$6-1)+3) -> 0.1045 | L93: =VLOOKUP($F93,NA_All!$A$5:$J$205,3*($C$6-1)+4) -> 0.13106 | M93: 30 | N93: 100
F94: 71 | G94: =VLOOKUP($F94,P_All!$A$5:$J$205,3*($C$6-1)+2) -> 0.086728 | H94: =VLOOKUP($F94,P_All!$A$5:$J$205,3*($C$6-1)+3) -> 0.097591 | I94: =VLOOKUP($F94,P_All!$A$5:$J$205,3*($C$6-1)+4) -> 0.10723 | J94: =VLOOKUP($F94,NA_All!$A$5:$J$205,3*($C$6-1)+2) -> 0.093463 | K94: =VLOOKUP($F94,NA_All!$A$5:$J$205,3*($C$6-1)+3) -> 0.10427 | L94: =VLOOKUP($F94,NA_All!$A$5:$J$205,3*($C$6-1)+4) -> 0.13185 | M94: 30 | N94: 100
F95: 72 | G95: =VLOOKUP($F95,P_All!$A$5:$J$205,3*($C$6-1)+2) -> 0.08655 | H95: =VLOOKUP($F95,P_All!$A$5:$J$205,3*($C$6-1)+3) -> 0.097456 | I95: =VLOOKUP($F95,P_All!$A$5:$J$205,3*($C$6-1)+4) -> 0.10708 | J95: =VLOOKUP($F95,NA_All!$A$5:$J$205,3*($C$6-1)+2) -> 0.093221 | K95: =VLOOKUP($F95,NA_All!$A$5:$J$205,3*($C$6-1)+3) -> 0.10407 | L95: =VLOOKUP($F95,NA_All!$A$5:$J$205,3*($C$6-1)+4) -> 0.13264 | M95: 30 | N95: 100
F96: 73 | G96: =VLOOKUP($F96,P_All!$A$5:$J$205,3*($C$6-1)+2) -> 0.086389 | H96: =VLOOKUP($F96,P_All!$A$5:$J$205,3*($C$6-1)+3) -> 0.097304 | I96: =VLOOKUP($F96,P_All!$A$5:$J$205,3*($C$6-1)+4) -> 0.10693 | J96: =VLOOKUP($F96,NA_All!$A$5:$J$205,3*($C$6-1)+2) -> 0.09298 | K96: =VLOOKUP($F96,NA_All!$A$5:$J$205,3*($C$6-1)+3) -> 0.104 | L96: =VLOOKUP($F96,NA_All!$A$5:$J$205,3*($C$6-1)+4) -> 0.13319 | M96: 30 | N96: 100
F97: 74 | G97: =VLOOKUP($F97,P_All!$A$5:$J$205,3*($C$6-1)+2) -> 0.086247 | H97: =VLOOKUP($F97,P_All!$A$5:$J$205,3*($C$6-1)+3) -> 0.097149 | I97: =VLOOKUP($F97,P_All!$A$5:$J$205,3*($C$6-1)+4) -> 0.10679 | J97: =VLOOKUP($F97,NA_All!$A$5:$J$205,3*($C$6-1)+2) -> 0.092762 | K97: =VLOOKUP($F97,NA_All!$A$5:$J$205,3*($C$6-1)+3) -> 0.10394 | L97: =VLOOKUP($F97,NA_All!$A$5:$J$205,3*($C$6-1)+4) -> 0.1337 | M97: 30 | N97: 100
F98: 75 | G98: =VLOOKUP($F98,P_All!$A$5:$J$205,3*($C$6-1)+2) -> 0.086123 | H98: =VLOOKUP($F98,P_All!$A$5:$J$205,3*($C$6-1)+3) -> 0.097001 | I98: =VLOOKUP($F98,P_All!$A$5:$J$205,3*($C$6-1)+4) -> 0.10667 | J98: =VLOOKUP($F98,NA_All!$A$5:$J$205,3*($C$6-1)+2) -> 0.092575 | K98: =VLOOKUP($F98,NA_All!$A$5:$J$205,3*($C$6-1)+3) -> 0.104 | L98: =VLOOKUP($F98,NA_All!$A$5:$J$205,3*($C$6-1)+4) -> 0.13404 | M98: 30 | N98: 100
F99: 76 | G99: =VLOOKUP($F99,P_All!$A$5:$J$205,3*($C$6-1)+2) -> 0.086 | H99: =VLOOKUP($F99,P_All!$A$5:$J$205,3*($C$6-1)+3) -> 0.09687 | I99: =VLOOKUP($F99,P_All!$A$5:$J$205,3*($C$6-1)+4) -> 0.10657 | J99: =VLOOKUP($F99,NA_All!$A$5:$J$205,3*($C$6-1)+2) -> 0.092467 | K99: =VLOOKUP($F99,NA_All!$A$5:$J$205,3*($C$6-1)+3) -> 0.10399 | L99: =VLOOKUP($F99,NA_All!$A$5:$J$205,3*($C$6-1)+4) -> 0.13427 | M99: 30 | N99: 100
F100: 77 | G100: =VLOOKUP($F100,P_All!$A$5:$J$205,3*($C$6-1)+2) -> 0.085874 | H100: =VLOOKUP($F100,P_All!$A$5:$J$205,3*($C$6-1)+3) -> 0.096719 | I100: =VLOOKUP($F100,P_All!$A$5:$J$205,3*($C$6-1)+4) -> 0.10647 | J100: =VLOOKUP($F100,NA_All!$A$5:$J$205,3*($C$6-1)+2) -> 0.092332 | K100: =VLOOKUP($F100,NA_All!$A$5:$J$205,3*($C$6-1)+3) -> 0.10401 | L100: =VLOOKUP($F100,NA_All!$A$5:$J$205,3*($C$6-1)+4) -> 0.13473 | M100: 30 | N100: 100
F101: 78 | G101: =VLOOKUP($F101,P_All!$A$5:$J$205,3*($C$6-1)+2) -> 0.085746 | H101: =VLOOKUP($F101,P_All!$A$5:$J$205,3*($C$6-1)+3) -> 0.096579 | I101: =VLOOKUP($F101,P_All!$A$5:$J$205,3*($C$6-1)+4) -> 0.10636 | J101: =VLOOKUP($F101,NA_All!$A$5:$J$205,3*($C$6-1)+2) -> 0.092157 | K101: =VLOOKUP($F101,NA_All!$A$5:$J$205,3*($C$6-1)+3) -> 0.10394 | L101: =VLOOKUP($F101,NA_All!$A$5:$J$205,3*($C$6-1)+4) -> 0.13486 | M101: 30 | N101: 100
F102: 79 | G102: =VLOOKUP($F102,P_All!$A$5:$J$205,3*($C$6-1)+2) -> 0.08562 | H102: =VLOOKUP($F102,P_All!$A$5:$J$205,3*($C$6-1)+3) -> 0.096418 | I102: =VLOOKUP($F102,P_All!$A$5:$J$205,3*($C$6-1)+4) -> 0.10626 | J102: =VLOOKUP($F102,NA_All!$A$5:$J$205,3*($C$6-1)+2) -> 0.092105 | K102: =VLOOKUP($F102,NA_All!$A$5:$J$205,3*($C$6-1)+3) -> 0.10379 | L102: =VLOOKUP($F102,NA_All!$A$5:$J$205,3*($C$6-1)+4) -> 0.13496 | M102: 30 | N102: 100
F103: 80 | G103: =VLOOKUP($F103,P_All!$A$5:$J$205,3*($C$6-1)+2) -> 0.085494 | H103: =VLOOKUP($F103,P_All!$A$5:$J$205,3*($C$6-1)+3) -> 0.096262 | I103: =VLOOKUP($F103,P_All!$A$5:$J$205,3*($C$6-1)+4) -> 0.10615 | J103: =VLOOKUP($F103,NA_All!$A$5:$J$205,3*($C$6-1)+2) -> 0.091883 | K103: =VLOOKUP($F103,NA_All!$A$5:$J$205,3*($C$6-1)+3) -> 0.10352 | L103: =VLOOKUP($F103,NA_All!$A$5:$J$205,3*($C$6-1)+4) -> 0.13533 | M103: 30 | N103: 100
F104: 81 | G104: =VLOOKUP($F104,P_All!$A$5:$J$205,3*($C$6-1)+2) -> 0.085367 | H104: =VLOOKUP($F104,P_All!$A$5:$J$205,3*($C$6-1)+3) -> 0.096113 | I104: =VLOOKUP($F104,P_All!$A$5:$J$205,3*($C$6-1)+4) -> 0.10602 | J104: =VLOOKUP($F104,NA_All!$A$5:$J$205,3*($C$6-1)+2) -> 0.091635 | K104: =VLOOKUP($F104,NA_All!$A$5:$J$205,3*($C$6-1)+3) -> 0.10339 | L104: =VLOOKUP($F104,NA_All!$A$5:$J$205,3*($C$6-1)+4) -> 0.13588 | M104: 30 | N104: 100
F105: 82 | G105: =VLOOKUP($F105,P_All!$A$5:$J$205,3*($C$6-1)+2) -> 0.085212 | H105: =VLOOKUP($F105,P_All!$A$5:$J$205,3*($C$6-1)+3) -> 0.095976 | I105: =VLOOKUP($F105,P_All!$A$5:$J$205,3*($C$6-1)+4) -> 0.1059 | J105: =VLOOKUP($F105,NA_All!$A$5:$J$205,3*($C$6-1)+2) -> 0.091486 | K105: =VLOOKUP($F105,NA_All!$A$5:$J$205,3*($C$6-1)+3) -> 0.10324 | L105: =VLOOKUP($F105,NA_All!$A$5:$J$205,3*($C$6-1)+4) -> 0.13687 | M105: 30 | N105: 100
F106: 83 | G106: =VLOOKUP($F106,P_All!$A$5:$J$205,3*($C$6-1)+2) -> 0.085058 | H106: =VLOOKUP($F106,P_All!$A$5:$J$205,3*($C$6-1)+3) -> 0.095844 | I106: =VLOOKUP($F106,P_All!$A$5:$J$205,3*($C$6-1)+4) -> 0.1058 | J106: =VLOOKUP($F106,NA_All!$A$5:$J$205,3*($C$6-1)+2) -> 0.091394 | K106: =VLOOKUP($F106,NA_All!$A$5:$J$205,3*($C$6-1)+3) -> 0.10313 | L106: =VLOOKUP($F106,NA_All!$A$5:$J$205,3*($C$6-1)+4) -> 0.13762 | M106: 30 | N106: 100
F107: 84 | G107: =VLOOKUP($F107,P_All!$A$5:$J$205,3*($C$6-1)+2) -> 0.084906 | H107: =VLOOKUP($F107,P_All!$A$5:$J$205,3*($C$6-1)+3) -> 0.095714 | I107: =VLOOKUP($F107,P_All!$A$5:$J$205,3*($C$6-1)+4) -> 0.10569 | J107: =VLOOKUP($F107,NA_All!$A$5:$J$205,3*($C$6-1)+2) -> 0.091206 | K107: =VLOOKUP($F107,NA_All!$A$5:$J$205,3*($C$6-1)+3) -> 0.10305 | L107: =VLOOKUP($F107,NA_All!$A$5:$J$205,3*($C$6-1)+4) -> 0.13799 | M107: 30 | N107: 100
F108: 85 | G108: =VLOOKUP($F108,P_All!$A$5:$J$205,3*($C$6-1)+2) -> 0.084762 | H108: =VLOOKUP($F108,P_All!$A$5:$J$205,3*($C$6-1)+3) -> 0.095583 | I108: =VLOOKUP($F108,P_All!$A$5:$J$205,3*($C$6-1)+4) -> 0.10556 | J108: =VLOOKUP($F108,NA_All!$A$5:$J$205,3*($C$6-1)+2) -> 0.090995 | K108: =VLOOKUP($F108,NA_All!$A$5:$J$205,3*($C$6-1)+3) -> 0.10299 | L108: =VLOOKUP($F108,NA_All!$A$5:$J$205,3*($C$6-1)+4) -> 0.13849 | M108: 30 | N108: 100
F109: 86 | G109: =VLOOKUP($F109,P_All!$A$5:$J$205,3*($C$6-1)+2) -> 0.08464 | H109: =VLOOKUP($F109,P_All!$A$5:$J$205,3*($C$6-1)+3) -> 0.095444 | I109: =VLOOKUP($F109,P_All!$A$5:$J$205,3*($C$6-1)+4) -> 0.10543 | J109: =VLOOKUP($F109,NA_All!$A$5:$J$205,3*($C$6-1)+2) -> 0.090809 | K109: =VLOOKUP($F109,NA_All!$A$5:$J$205,3*($C$6-1)+3) -> 0.10285 | L109: =VLOOKUP($F109,NA_All!$A$5:$J$205,3*($C$6-1)+4) -> 0.13945 | M109: 30 | N109: 100
F110: 87 | G110: =VLOOKUP($F110,P_All!$A$5:$J$205,3*($C$6-1)+2) -> 0.08452 | H110: =VLOOKUP($F110,P_All!$A$5:$J$205,3*($C$6-1)+3) -> 0.095287 | I110: =VLOOKUP($F110,P_All!$A$5:$J$205,3*($C$6-1)+4) -> 0.1053 | J110: =VLOOKUP($F110,NA_All!$A$5:$J$205,3*($C$6-1)+2) -> 0.090718 | K110: =VLOOKUP($F110,NA_All!$A$5:$J$205,3*($C$6-1)+3) -> 0.10264 | L110: =VLOOKUP($F110,NA_All!$A$5:$J$205,3*($C$6-1)+4) -> 0.13993 | M110: 30 | N110: 100
F111: 88 | G111: =VLOOKUP($F111,P_All!$A$5:$J$205,3*($C$6-1)+2) -> 0.0844 | H111: =VLOOKUP($F111,P_All!$A$5:$J$205,3*($C$6-1)+3) -> 0.09513 | I111: =VLOOKUP($F111,P_All!$A$5:$J$205,3*($C$6-1)+4) -> 0.10517 | J111: =VLOOKUP($F111,NA_All!$A$5:$J$205,3*($C$6-1)+2) -> 0.090602 | K111: =VLOOKUP($F111,NA_All!$A$5:$J$205,3*($C$6-1)+3) -> 0.10252 | L111: =VLOOKUP($F111,NA_All!$A$5:$J$205,3*($C$6-1)+4) -> 0.13996 | M111: 30 | N111: 100
F112: 89 | G112: =VLOOKUP($F112,P_All!$A$5:$J$205,3*($C$6-1)+2) -> 0.084282 | H112: =VLOOKUP($F112,P_All!$A$5:$J$205,3*($C$6-1)+3) -> 0.094985 | I112: =VLOOKUP($F112,P_All!$A$5:$J$205,3*($C$6-1)+4) -> 0.10504 | J112: =VLOOKUP($F112,NA_All!$A$5:$J$205,3*($C$6-1)+2) -> 0.09043 | K112: =VLOOKUP($F112,NA_All!$A$5:$J$205,3*($C$6-1)+3) -> 0.10237 | L112: =VLOOKUP($F112,NA_All!$A$5:$J$205,3*($C$6-1)+4) -> 0.13991 | M112: 30 | N112: 100
F113: 90 | G113: =VLOOKUP($F113,P_All!$A$5:$J$205,3*($C$6-1)+2) -> 0.084164 | H113: =VLOOKUP($F113,P_All!$A$5:$J$205,3*($C$6-1)+3) -> 0.094842 | I113: =VLOOKUP($F113,P_All!$A$5:$J$205,3*($C$6-1)+4) -> 0.10491 | J113: =VLOOKUP($F113,NA_All!$A$5:$J$205,3*($C$6-1)+2) -> 0.090267 | K113: =VLOOKUP($F113,NA_All!$A$5:$J$205,3*($C$6-1)+3) -> 0.10221 | L113: =VLOOKUP($F113,NA_All!$A$5:$J$205,3*($C$6-1)+4) -> 0.1398 | M113: 30 | N113: 100
F114: 91 | G114: =VLOOKUP($F114,P_All!$A$5:$J$205,3*($C$6-1)+2) -> 0.084047 | H114: =VLOOKUP($F114,P_All!$A$5:$J$205,3*($C$6-1)+3) -> 0.094792 | I114: =VLOOKUP($F114,P_All!$A$5:$J$205,3*($C$6-1)+4) -> 0.10478 | J114: =VLOOKUP($F114,NA_All!$A$5:$J$205,3*($C$6-1)+2) -> 0.090191 | K114: =VLOOKUP($F114,NA_All!$A$5:$J$205,3*($C$6-1)+3) -> 0.10214 | L114: =VLOOKUP($F114,NA_All!$A$5:$J$205,3*($C$6-1)+4) -> 0.13964 | M114: 30 | N114: 100
F115: 92 | G115: =VLOOKUP($F115,P_All!$A$5:$J$205,3*($C$6-1)+2) -> 0.083984 | H115: =VLOOKUP($F115,P_All!$A$5:$J$205,3*($C$6-1)+3) -> 0.094702 | I115: =VLOOKUP($F115,P_All!$A$5:$J$205,3*($C$6-1)+4) -> 0.10467 | J115: =VLOOKUP($F115,NA_All!$A$5:$J$205,3*($C$6-1)+2) -> 0.090119 | K115: =VLOOKUP($F115,NA_All!$A$5:$J$205,3*($C$6-1)+3) -> 0.10207 | L115: =VLOOKUP($F115,NA_All!$A$5:$J$205,3*($C$6-1)+4) -> 0.13984 | M115: 30 | N115: 100
F116: 93 | G116: =VLOOKUP($F116,P_All!$A$5:$J$205,3*($C$6-1)+2) -> 0.083907 | H116: =VLOOKUP($F116,P_All!$A$5:$J$205,3*($C$6-1)+3) -> 0.0946 | I116: =VLOOKUP($F116,P_All!$A$5:$J$205,3*($C$6-1)+4) -> 0.10457 | J116: =VLOOKUP($F116,NA_All!$A$5:$J$205,3*($C$6-1)+2) -> 0.090062 | K116: =VLOOKUP($F116,NA_All!$A$5:$J$205,3*($C$6-1)+3) -> 0.10197 | L116: =VLOOKUP($F116,NA_All!$A$5:$J$205,3*($C$6-1)+4) -> 0.1399 | M116: 30 | N116: 100
F117: 94 | G117: =VLOOKUP($F117,P_All!$A$5:$J$205,3*($C$6-1)+2) -> 0.083766 | H117: =VLOOKUP($F117,P_All!$A$5:$J$205,3*($C$6-1)+3) -> 0.094527 | I117: =VLOOKUP($F117,P_All!$A$5:$J$205,3*($C$6-1)+4) -> 0.10446 | J117: =VLOOKUP($F117,NA_All!$A$5:$J$205,3*($C$6-1)+2) -> 0.089953 | K117: =VLOOKUP($F117,NA_All!$A$5:$J$205,3*($C$6-1)+3) -> 0.10177 | L117: =VLOOKUP($F117,NA_All!$A$5:$J$205,3*($C$6-1)+4) -> 0.13968 | M117: 30 | N117: 100
F118: 95 | G118: =VLOOKUP($F118,P_All!$A$5:$J$205,3*($C$6-1)+2) -> 0.083628 | H118: =VLOOKUP($F118,P_All!$A$5:$J$205,3*($C$6-1)+3) -> 0.094464 | I118: =VLOOKUP($F118,P_All!$A$5:$J$205,3*($C$6-1)+4) -> 0.10436 | J118: =VLOOKUP($F118,NA_All!$A$5:$J$205,3*($C$6-1)+2) -> 0.089817 | K118: =VLOOKUP($F118,NA_All!$A$5:$J$205,3*($C$6-1)+3) -> 0.10169 | L118: =VLOOKUP($F118,NA_All!$A$5:$J$205,3*($C$6-1)+4) -> 0.1395 | M118: 30 | N118: 100
F119: 96 | G119: =VLOOKUP($F119,P_All!$A$5:$J$205,3*($C$6-1)+2) -> 0.083494 | H119: =VLOOKUP($F119,P_All!$A$5:$J$205,3*($C$6-1)+3) -> 0.094376 | I119: =VLOOKUP($F119,P_All!$A$5:$J$205,3*($C$6-1)+4) -> 0.10425 | J119: =VLOOKUP($F119,NA_All!$A$5:$J$205,3*($C$6-1)+2) -> 0.089682 | K119: =VLOOKUP($F119,NA_All!$A$5:$J$205,3*($C$6-1)+3) -> 0.10161 | L119: =VLOOKUP($F119,NA_All!$A$5:$J$205,3*($C$6-1)+4) -> 0.13966 | M119: 30 | N119: 100
F120: 97 | G120: =VLOOKUP($F120,P_All!$A$5:$J$205,3*($C$6-1)+2) -> 0.083437 | H120: =VLOOKUP($F120,P_All!$A$5:$J$205,3*($C$6-1)+3) -> 0.094265 | I120: =VLOOKUP($F120,P_All!$A$5:$J$205,3*($C$6-1)+4) -> 0.10416 | J120: =VLOOKUP($F120,NA_All!$A$5:$J$205,3*($C$6-1)+2) -> 0.089551 | K120: =VLOOKUP($F120,NA_All!$A$5:$J$205,3*($C$6-1)+3) -> 0.10156 | L120: =VLOOKUP($F120,NA_All!$A$5:$J$205,3*($C$6-1)+4) -> 0.13976 | M120: 30 | N120: 100
F121: 98 | G121: =VLOOKUP($F121,P_All!$A$5:$J$205,3*($C$6-1)+2) -> 0.083314 | H121: =VLOOKUP($F121,P_All!$A$5:$J$205,3*($C$6-1)+3) -> 0.094167 | I121: =VLOOKUP($F121,P_All!$A$5:$J$205,3*($C$6-1)+4) -> 0.10418 | J121: =VLOOKUP($F121,NA_All!$A$5:$J$205,3*($C$6-1)+2) -> 0.089458 | K121: =VLOOKUP($F121,NA_All!$A$5:$J$205,3*($C$6-1)+3) -> 0.10155 | L121: =VLOOKUP($F121,NA_All!$A$5:$J$205,3*($C$6-1)+4) -> 0.13972 | M121: 30 | N121: 100
F122: 99 | G122: =VLOOKUP($F122,P_All!$A$5:$J$205,3*($C$6-1)+2) -> 0.08318 | H122: =VLOOKUP($F122,P_All!$A$5:$J$205,3*($C$6-1)+3) -> 0.094048 | I122: =VLOOKUP($F122,P_All!$A$5:$J$205,3*($C$6-1)+4) -> 0.10412 | J122: =VLOOKUP($F122,NA_All!$A$5:$J$205,3*($C$6-1)+2) -> 0.089364 | K122: =VLOOKUP($F122,NA_All!$A$5:$J$205,3*($C$6-1)+3) -> 0.10149 | L122: =VLOOKUP($F122,NA_All!$A$5:$J$205,3*($C$6-1)+4) -> 0.13966 | M122: 30 | N122: 100
F123: 100 | G123: =VLOOKUP($F123,P_All!$A$5:$J$205,3*($C$6-1)+2) -> 0.083048 | H123: =VLOOKUP($F123,P_All!$A$5:$J$205,3*($C$6-1)+3) -> 0.093957 | I123: =VLOOKUP($F123,P_All!$A$5:$J$205,3*($C$6-1)+4) -> 0.10408 | J123: =VLOOKUP($F123,NA_All!$A$5:$J$205,3*($C$6-1)+2) -> 0.089231 | K123: =VLOOKUP($F123,NA_All!$A$5:$J$205,3*($C$6-1)+3) -> 0.10141 | L123: =VLOOKUP($F123,NA_All!$A$5:$J$205,3*($C$6-1)+4) -> 0.1398 | M123: 30 | N123: 100
F124: 101 | G124: =VLOOKUP($F124,P_All!$A$5:$J$205,3*($C$6-1)+2) -> 0.082917 | H124: =VLOOKUP($F124,P_All!$A$5:$J$205,3*($C$6-1)+3) -> 0.093832 | I124: =VLOOKUP($F124,P_All!$A$5:$J$205,3*($C$6-1)+4) -> 0.10398 | J124: =VLOOKUP($F124,NA_All!$A$5:$J$205,3*($C$6-1)+2) -> 0.08904 | K124: =VLOOKUP($F124,NA_All!$A$5:$J$205,3*($C$6-1)+3) -> 0.10139 | L124: =VLOOKUP($F124,NA_All!$A$5:$J$205,3*($C$6-1)+4) -> 0.13985 | M124: 30 | N124: 100
F125: 102 | G125: =VLOOKUP($F125,P_All!$A$5:$J$205,3*($C$6-1)+2) -> 0.08279 | H125: =VLOOKUP($F125,P_All!$A$5:$J$205,3*($C$6-1)+3) -> 0.093718 | I125: =VLOOKUP($F125,P_All!$A$5:$J$205,3*($C$6-1)+4) -> 0.10387 | J125: =VLOOKUP($F125,NA_All!$A$5:$J$205,3*($C$6-1)+2) -> 0.088946 | K125: =VLOOKUP($F125,NA_All!$A$5:$J$205,3*($C$6-1)+3) -> 0.1013 | L125: =VLOOKUP($F125,NA_All!$A$5:$J$205,3*($C$6-1)+4) -> 0.14001 | M125: 30 | N125: 100
F126: 103 | G126: =VLOOKUP($F126,P_All!$A$5:$J$205,3*($C$6-1)+2) -> 0.082677 | H126: =VLOOKUP($F126,P_All!$A$5:$J$205,3*($C$6-1)+3) -> 0.093627 | I126: =VLOOKUP($F126,P_All!$A$5:$J$205,3*($C$6-1)+4) -> 0.10377 | J126: =VLOOKUP($F126,NA_All!$A$5:$J$205,3*($C$6-1)+2) -> 0.088799 | K126: =VLOOKUP($F126,NA_All!$A$5:$J$205,3*($C$6-1)+3) -> 0.1012 | L126: =VLOOKUP($F126,NA_All!$A$5:$J$205,3*($C$6-1)+4) -> 0.14001 | M126: 30 | N126: 100
F127: 104 | G127: =VLOOKUP($F127,P_All!$A$5:$J$205,3*($C$6-1)+2) -> 0.082599 | H127: =VLOOKUP($F127,P_All!$A$5:$J$205,3*($C$6-1)+3) -> 0.093547 | I127: =VLOOKUP($F127,P_All!$A$5:$J$205,3*($C$6-1)+4) -> 0.10366 | J127: =VLOOKUP($F127,NA_All!$A$5:$J$205,3*($C$6-1)+2) -> 0.088636 | K127: =VLOOKUP($F127,NA_All!$A$5:$J$205,3*($C$6-1)+3) -> 0.1011 | L127: =VLOOKUP($F127,NA_All!$A$5:$J$205,3*($C$6-1)+4) -> 0.13999 | M127: 30 | N127: 100
F128: 105 | G128: =VLOOKUP($F128,P_All!$A$5:$J$205,3*($C$6-1)+2) -> 0.082529 | H128: =VLOOKUP($F128,P_All!$A$5:$J$205,3*($C$6-1)+3) -> 0.093468 | I128: =VLOOKUP($F128,P_All!$A$5:$J$205,3*($C$6-1)+4) -> 0.10355 | J128: =VLOOKUP($F128,NA_All!$A$5:$J$205,3*($C$6-1)+2) -> 0.088517 | K128: =VLOOKUP($F128,NA_All!$A$5:$J$205,3*($C$6-1)+3) -> 0.10106 | L128: =VLOOKUP($F128,NA_All!$A$5:$J$205,3*($C$6-1)+4) -> 0.13997 | M128: 30 | N128: 100
F129: 106 | G129: =VLOOKUP($F129,P_All!$A$5:$J$205,3*($C$6-1)+2) -> 0.082458 | H129: =VLOOKUP($F129,P_All!$A$5:$J$205,3*($C$6-1)+3) -> 0.093437 | I129: =VLOOKUP($F129,P_All!$A$5:$J$205,3*($C$6-1)+4) -> 0.10349 | J129: =VLOOKUP($F129,NA_All!$A$5:$J$205,3*($C$6-1)+2) -> 0.08841 | K129: =VLOOKUP($F129,NA_All!$A$5:$J$205,3*($C$6-1)+3) -> 0.10108 | L129: =VLOOKUP($F129,NA_All!$A$5:$J$205,3*($C$6-1)+4) -> 0.13981 | M129: 30 | N129: 100
F130: 107 | G130: =VLOOKUP($F130,P_All!$A$5:$J$205,3*($C$6-1)+2) -> 0.082344 | H130: =VLOOKUP($F130,P_All!$A$5:$J$205,3*($C$6-1)+3) -> 0.093322 | I130: =VLOOKUP($F130,P_All!$A$5:$J$205,3*($C$6-1)+4) -> 0.10338 | J130: =VLOOKUP($F130,NA_All!$A$5:$J$205,3*($C$6-1)+2) -> 0.088326 | K130: =VLOOKUP($F130,NA_All!$A$5:$J$205,3*($C$6-1)+3) -> 0.10108 | L130: =VLOOKUP($F130,NA_All!$A$5:$J$205,3*($C$6-1)+4) -> 0.13944 | M130: 30 | N130: 100
F131: 108 | G131: =VLOOKUP($F131,P_All!$A$5:$J$205,3*($C$6-1)+2) -> 0.082231 | H131: =VLOOKUP($F131,P_All!$A$5:$J$205,3*($C$6-1)+3) -> 0.093225 | I131: =VLOOKUP($F131,P_All!$A$5:$J$205,3*($C$6-1)+4) -> 0.10326 | J131: =VLOOKUP($F131,NA_All!$A$5:$J$205,3*($C$6-1)+2) -> 0.088243 | K131: =VLOOKUP($F131,NA_All!$A$5:$J$205,3*($C$6-1)+3) -> 0.10108 | L131: =VLOOKUP($F131,NA_All!$A$5:$J$205,3*($C$6-1)+4) -> 0.13906 | M131: 30 | N131: 100
F132: 109 | G132: =VLOOKUP($F132,P_All!$A$5:$J$205,3*($C$6-1)+2) -> 0.082127 | H132: =VLOOKUP($F132,P_All!$A$5:$J$205,3*($C$6-1)+3) -> 0.093175 | I132: =VLOOKUP($F132,P_All!$A$5:$J$205,3*($C$6-1)+4) -> 0.10316 | J132: =VLOOKUP($F132,NA_All!$A$5:$J$205,3*($C$6-1)+2) -> 0.088165 | K132: =VLOOKUP($F132,NA_All!$A$5:$J$205,3*($C$6-1)+3) -> 0.10088 | L132: =VLOOKUP($F132,NA_All!$A$5:$J$205,3*($C$6-1)+4) -> 0.13875 | M132: 30 | N132: 100
F133: 110 | G133: =VLOOKUP($F133,P_All!$A$5:$J$205,3*($C$6-1)+2) -> 0.082037 | H133: =VLOOKUP($F133,P_All!$A$5:$J$205,3*($C$6-1)+3) -> 0.093104 | I133: =VLOOKUP($F133,P_All!$A$5:$J$205,3*($C$6-1)+4) -> 0.10309 | J133: =VLOOKUP($F133,NA_All!$A$5:$J$205,3*($C$6-1)+2) -> 0.088108 | K133: =VLOOKUP($F133,NA_All!$A$5:$J$205,3*($C$6-1)+3) -> 0.10068 | L133: =VLOOKUP($F133,NA_All!$A$5:$J$205,3*($C$6-1)+4) -> 0.13852 | M133: 30 | N133: 100
F134: 111 | G134: =VLOOKUP($F134,P_All!$A$5:$J$205,3*($C$6-1)+2) -> 0.081948 | H134: =VLOOKUP($F134,P_All!$A$5:$J$205,3*($C$6-1)+3) -> 0.092972 | I134: =VLOOKUP($F134,P_All!$A$5:$J$205,3*($C$6-1)+4) -> 0.10303 | J134: =VLOOKUP($F134,NA_All!$A$5:$J$205,3*($C$6-1)+2) -> 0.088052 | K134: =VLOOKUP($F134,NA_All!$A$5:$J$205,3*($C$6-1)+3) -> 0.10061 | L134: =VLOOKUP($F134,NA_All!$A$5:$J$205,3*($C$6-1)+4) -> 0.13832 | M134: 30 | N134: 100
F135: 112 | G135: =VLOOKUP($F135,P_All!$A$5:$J$205,3*($C$6-1)+2) -> 0.081862 | H135: =VLOOKUP($F135,P_All!$A$5:$J$205,3*($C$6-1)+3) -> 0.092892 | I135: =VLOOKUP($F135,P_All!$A$5:$J$205,3*($C$6-1)+4) -> 0.10292 | J135: =VLOOKUP($F135,NA_All!$A$5:$J$205,3*($C$6-1)+2) -> 0.087996 | K135: =VLOOKUP($F135,NA_All!$A$5:$J$205,3*($C$6-1)+3) -> 0.10053 | L135: =VLOOKUP($F135,NA_All!$A$5:$J$205,3*($C$6-1)+4) -> 0.138 | M135: 30 | N135: 100
F136: 113 | G136: =VLOOKUP($F136,P_All!$A$5:$J$205,3*($C$6-1)+2) -> 0.081777 | H136: =VLOOKUP($F136,P_All!$A$5:$J$205,3*($C$6-1)+3) -> 0.092785 | I136: =VLOOKUP($F136,P_All!$A$5:$J$205,3*($C$6-1)+4) -> 0.10282 | J136: =VLOOKUP($F136,NA_All!$A$5:$J$205,3*($C$6-1)+2) -> 0.087938 | K136: =VLOOKUP($F136,NA_All!$A$5:$J$205,3*($C$6-1)+3) -> 0.10044 | L136: =VLOOKUP($F136,NA_All!$A$5:$J$205,3*($C$6-1)+4) -> 0.13766 | M136: 30 | N136: 100
F137: 114 | G137: =VLOOKUP($F137,P_All!$A$5:$J$205,3*($C$6-1)+2) -> 0.081722 | H137: =VLOOKUP($F137,P_All!$A$5:$J$205,3*($C$6-1)+3) -> 0.092698 | I137: =VLOOKUP($F137,P_All!$A$5:$J$205,3*($C$6-1)+4) -> 0.10272 | J137: =VLOOKUP($F137,NA_All!$A$5:$J$205,3*($C$6-1)+2) -> 0.087892 | K137: =VLOOKUP($F137,NA_All!$A$5:$J$205,3*($C$6-1)+3) -> 0.1004 | L137: =VLOOKUP($F137,NA_All!$A$5:$J$205,3*($C$6-1)+4) -> 0.13732 | M137: 30 | N137: 100
F138: 115 | G138: =VLOOKUP($F138,P_All!$A$5:$J$205,3*($C$6-1)+2) -> 0.081637 | H138: =VLOOKUP($F138,P_All!$A$5:$J$205,3*($C$6-1)+3) -> 0.092686 | I138: =VLOOKUP($F138,P_All!$A$5:$J$205,3*($C$6-1)+4) -> 0.10264 | J138: =VLOOKUP($F138,NA_All!$A$5:$J$205,3*($C$6-1)+2) -> 0.087781 | K138: =VLOOKUP($F138,NA_All!$A$5:$J$205,3*($C$6-1)+3) -> 0.10033 | L138: =VLOOKUP($F138,NA_All!$A$5:$J$205,3*($C$6-1)+4) -> 0.13697 | M138: 30 | N138: 100
F139: 116 | G139: =VLOOKUP($F139,P_All!$A$5:$J$205,3*($C$6-1)+2) -> 0.081538 | H139: =VLOOKUP($F139,P_All!$A$5:$J$205,3*($C$6-1)+3) -> 0.092611 | I139: =VLOOKUP($F139,P_All!$A$5:$J$205,3*($C$6-1)+4) -> 0.10256 | J139: =VLOOKUP($F139,NA_All!$A$5:$J$205,3*($C$6-1)+2) -> 0.087669 | K139: =VLOOKUP($F139,NA_All!$A$5:$J$205,3*($C$6-1)+3) -> 0.10024 | L139: =VLOOKUP($F139,NA_All!$A$5:$J$205,3*($C$6-1)+4) -> 0.1366 | M139: 30 | N139: 100
F140: 117 | G140: =VLOOKUP($F140,P_All!$A$5:$J$205,3*($C$6-1)+2) -> 0.08144 | H140: =VLOOKUP($F140,P_All!$A$5:$J$205,3*($C$6-1)+3) -> 0.092526 | I140: =VLOOKUP($F140,P_All!$A$5:$J$205,3*($C$6-1)+4) -> 0.10248 | J140: =VLOOKUP($F140,NA_All!$A$5:$J$205,3*($C$6-1)+2) -> 0.087526 | K140: =VLOOKUP($F140,NA_All!$A$5:$J$205,3*($C$6-1)+3) -> 0.10019 | L140: =VLOOKUP($F140,NA_All!$A$5:$J$205,3*($C$6-1)+4) -> 0.13633 | M140: 30 | N140: 100
F141: 118 | G141: =VLOOKUP($F141,P_All!$A$5:$J$205,3*($C$6-1)+2) -> 0.081358 | H141: =VLOOKUP($F141,P_All!$A$5:$J$205,3*($C$6-1)+3) -> 0.092414 | I141: =VLOOKUP($F141,P_All!$A$5:$J$205,3*($C$6-1)+4) -> 0.10241 | J141: =VLOOKUP($F141,NA_All!$A$5:$J$205,3*($C$6-1)+2) -> 0.087403 | K141: =VLOOKUP($F141,NA_All!$A$5:$J$205,3*($C$6-1)+3) -> 0.10013 | L141: =VLOOKUP($F141,NA_All!$A$5:$J$205,3*($C$6-1)+4) -> 0.13594 | M141: 30 | N141: 100
F142: 119 | G142: =VLOOKUP($F142,P_All!$A$5:$J$205,3*($C$6-1)+2) -> 0.081281 | H142: =VLOOKUP($F142,P_All!$A$5:$J$205,3*($C$6-1)+3) -> 0.092351 | I142: =VLOOKUP($F142,P_All!$A$5:$J$205,3*($C$6-1)+4) -> 0.10234 | J142: =VLOOKUP($F142,NA_All!$A$5:$J$205,3*($C$6-1)+2) -> 0.087273 | K142: =VLOOKUP($F142,NA_All!$A$5:$J$205,3*($C$6-1)+3) -> 0.10009 | L142: =VLOOKUP($F142,NA_All!$A$5:$J$205,3*($C$6-1)+4) -> 0.13555 | M142: 30 | N142: 100
F143: 120 | G143: =VLOOKUP($F143,P_All!$A$5:$J$205,3*($C$6-1)+2) -> 0.081209 | H143: =VLOOKUP($F143,P_All!$A$5:$J$205,3*($C$6-1)+3) -> 0.092301 | I143: =VLOOKUP($F143,P_All!$A$5:$J$205,3*($C$6-1)+4) -> 0.10229 | J143: =VLOOKUP($F143,NA_All!$A$5:$J$205,3*($C$6-1)+2) -> 0.087134 | K143: =VLOOKUP($F143,NA_All!$A$5:$J$205,3*($C$6-1)+3) -> 0.10005 | L143: =VLOOKUP($F143,NA_All!$A$5:$J$205,3*($C$6-1)+4) -> 0.13516 | M143: 30 | N143: 100
F144: 121 | G144: =VLOOKUP($F144,P_All!$A$5:$J$205,3*($C$6-1)+2) -> 0.081141 | H144: =VLOOKUP($F144,P_All!$A$5:$J$205,3*($C$6-1)+3) -> 0.092206 | I144: =VLOOKUP($F144,P_All!$A$5:$J$205,3*($C$6-1)+4) -> 0.10227 | J144: =VLOOKUP($F144,NA_All!$A$5:$J$205,3*($C$6-1)+2) -> 0.086987 | K144: =VLOOKUP($F144,NA_All!$A$5:$J$205,3*($C$6-1)+3) -> 0.099955 | L144: =VLOOKUP($F144,NA_All!$A$5:$J$205,3*($C$6-1)+4) -> 0.13489 | M144: 30 | N144: 100
F145: 122 | G145: =VLOOKUP($F145,P_All!$A$5:$J$205,3*($C$6-1)+2) -> 0.081076 | H145: =VLOOKUP($F145,P_All!$A$5:$J$205,3*($C$6-1)+3) -> 0.092153 | I145: =VLOOKUP($F145,P_All!$A$5:$J$205,3*($C$6-1)+4) -> 0.1022 | J145: =VLOOKUP($F145,NA_All!$A$5:$J$205,3*($C$6-1)+2) -> 0.08686 | K145: =VLOOKUP($F145,NA_All!$A$5:$J$205,3*($C$6-1)+3) -> 0.099785 | L145: =VLOOKUP($F145,NA_All!$A$5:$J$205,3*($C$6-1)+4) -> 0.13469 | M145: 30 | N145: 100
F146: 123 | G146: =VLOOKUP($F146,P_All!$A$5:$J$205,3*($C$6-1)+2) -> 0.081021 | H146: =VLOOKUP($F146,P_All!$A$5:$J$205,3*($C$6-1)+3) -> 0.092113 | I146: =VLOOKUP($F146,P_All!$A$5:$J$205,3*($C$6-1)+4) -> 0.10218 | J146: =VLOOKUP($F146,NA_All!$A$5:$J$205,3*($C$6-1)+2) -> 0.086808 | K146: =VLOOKUP($F146,NA_All!$A$5:$J$205,3*($C$6-1)+3) -> 0.099613 | L146: =VLOOKUP($F146,NA_All!$A$5:$J$205,3*($C$6-1)+4) -> 0.13443 | M146: 30 | N146: 100
F147: 124 | G147: =VLOOKUP($F147,P_All!$A$5:$J$205,3*($C$6-1)+2) -> 0.080967 | H147: =VLOOKUP($F147,P_All!$A$5:$J$205,3*($C$6-1)+3) -> 0.092018 | I147: =VLOOKUP($F147,P_All!$A$5:$J$205,3*($C$6-1)+4) -> 0.10213 | J147: =VLOOKUP($F147,NA_All!$A$5:$J$205,3*($C$6-1)+2) -> 0.086764 | K147: =VLOOKUP($F147,NA_All!$A$5:$J$205,3*($C$6-1)+3) -> 0.099452 | L147: =VLOOKUP($F147,NA_All!$A$5:$J$205,3*($C$6-1)+4) -> 0.13417 | M147: 30 | N147: 100
F148: 125 | G148: =VLOOKUP($F148,P_All!$A$5:$J$205,3*($C$6-1)+2) -> 0.080906 | H148: =VLOOKUP($F148,P_All!$A$5:$J$205,3*($C$6-1)+3) -> 0.091946 | I148: =VLOOKUP($F148,P_All!$A$5:$J$205,3*($C$6-1)+4) -> 0.10207 | J148: =VLOOKUP($F148,NA_All!$A$5:$J$205,3*($C$6-1)+2) -> 0.08671 | K148: =VLOOKUP($F148,NA_All!$A$5:$J$205,3*($C$6-1)+3) -> 0.09936 | L148: =VLOOKUP($F148,NA_All!$A$5:$J$205,3*($C$6-1)+4) -> 0.13392 | M148: 30 | N148: 100
F149: 126 | G149: =VLOOKUP($F149,P_All!$A$5:$J$205,3*($C$6-1)+2) -> 0.080863 | H149: =VLOOKUP($F149,P_All!$A$5:$J$205,3*($C$6-1)+3) -> 0.091913 | I149: =VLOOKUP($F149,P_All!$A$5:$J$205,3*($C$6-1)+4) -> 0.10198 | J149: =VLOOKUP($F149,NA_All!$A$5:$J$205,3*($C$6-1)+2) -> 0.086628 | K149: =VLOOKUP($F149,NA_All!$A$5:$J$205,3*($C$6-1)+3) -> 0.099265 | L149: =VLOOKUP($F149,NA_All!$A$5:$J$205,3*($C$6-1)+4) -> 0.13404 | M149: 30 | N149: 100
F150: 127 | G150: =VLOOKUP($F150,P_All!$A$5:$J$205,3*($C$6-1)+2) -> 0.080825 | H150: =VLOOKUP($F150,P_All!$A$5:$J$205,3*($C$6-1)+3) -> 0.091825 | I150: =VLOOKUP($F150,P_All!$A$5:$J$205,3*($C$6-1)+4) -> 0.10189 | J150: =VLOOKUP($F150,NA_All!$A$5:$J$205,3*($C$6-1)+2) -> 0.086594 | K150: =VLOOKUP($F150,NA_All!$A$5:$J$205,3*($C$6-1)+3) -> 0.099231 | L150: =VLOOKUP($F150,NA_All!$A$5:$J$205,3*($C$6-1)+4) -> 0.13403 | M150: 30 | N150: 100
F151: 128 | G151: =VLOOKUP($F151,P_All!$A$5:$J$205,3*($C$6-1)+2) -> 0.080766 | H151: =VLOOKUP($F151,P_All!$A$5:$J$205,3*($C$6-1)+3) -> 0.091742 | I151: =VLOOKUP($F151,P_All!$A$5:$J$205,3*($C$6-1)+4) -> 0.10182 | J151: =VLOOKUP($F151,NA_All!$A$5:$J$205,3*($C$6-1)+2) -> 0.086534 | K151: =VLOOKUP($F151,NA_All!$A$5:$J$205,3*($C$6-1)+3) -> 0.09917 | L151: =VLOOKUP($F151,NA_All!$A$5:$J$205,3*($C$6-1)+4) -> 0.13385 | M151: 30 | N151: 100
F152: 129 | G152: =VLOOKUP($F152,P_All!$A$5:$J$205,3*($C$6-1)+2) -> 0.080728 | H152: =VLOOKUP($F152,P_All!$A$5:$J$205,3*($C$6-1)+3) -> 0.09166 | I152: =VLOOKUP($F152,P_All!$A$5:$J$205,3*($C$6-1)+4) -> 0.10181 | J152: =VLOOKUP($F152,NA_All!$A$5:$J$205,3*($C$6-1)+2) -> 0.086468 | K152: =VLOOKUP($F152,NA_All!$A$5:$J$205,3*($C$6-1)+3) -> 0.099071 | L152: =VLOOKUP($F152,NA_All!$A$5:$J$205,3*($C$6-1)+4) -> 0.13368 | M152: =VLOOKUP($B$4,$A$23:$C$49,2) -> 30 | N152: =VLOOKUP($B$4,$A$23:$C$49,3) -> 100
F153: 130 | G153: =VLOOKUP($F153,P_All!$A$5:$J$205,3*($C$6-1)+2) -> 0.080715 | H153: =VLOOKUP($F153,P_All!$A$5:$J$205,3*($C$6-1)+3) -> 0.091627 | I153: =VLOOKUP($F153,P_All!$A$5:$J$205,3*($C$6-1)+4) -> 0.10175 | J153: =VLOOKUP($F153,NA_All!$A$5:$J$205,3*($C$6-1)+2) -> 0.086382 | K153: =VLOOKUP($F153,NA_All!$A$5:$J$205,3*($C$6-1)+3) -> 0.098931 | L153: =VLOOKUP($F153,NA_All!$A$5:$J$205,3*($C$6-1)+4) -> 0.13349 | M153: 30 | N153: 100
F154: 131 | G154: =VLOOKUP($F154,P_All!$A$5:$J$205,3*($C$6-1)+2) -> 0.080657 | H154: =VLOOKUP($F154,P_All!$A$5:$J$205,3*($C$6-1)+3) -> 0.091649 | I154: =VLOOKUP($F154,P_All!$A$5:$J$205,3*($C$6-1)+4) -> 0.10167 | J154: =VLOOKUP($F154,NA_All!$A$5:$J$205,3*($C$6-1)+2) -> 0.086289 | K154: =VLOOKUP($F154,NA_All!$A$5:$J$205,3*($C$6-1)+3) -> 0.098764 | L154: =VLOOKUP($F154,NA_All!$A$5:$J$205,3*($C$6-1)+4) -> 0.1333 | M154: 30 | N154: 100
F155: 132 | G155: =VLOOKUP($F155,P_All!$A$5:$J$205,3*($C$6-1)+2) -> 0.08059 | H155: =VLOOKUP($F155,P_All!$A$5:$J$205,3*($C$6-1)+3) -> 0.091633 | I155: =VLOOKUP($F155,P_All!$A$5:$J$205,3*($C$6-1)+4) -> 0.10164 | J155: =VLOOKUP($F155,NA_All!$A$5:$J$205,3*($C$6-1)+2) -> 0.086179 | K155: =VLOOKUP($F155,NA_All!$A$5:$J$205,3*($C$6-1)+3) -> 0.098583 | L155: =VLOOKUP($F155,NA_All!$A$5:$J$205,3*($C$6-1)+4) -> 0.1331 | M155: 30 | N155: 100
F156: 133 | G156: =VLOOKUP($F156,P_All!$A$5:$J$205,3*($C$6-1)+2) -> 0.080547 | H156: =VLOOKUP($F156,P_All!$A$5:$J$205,3*($C$6-1)+3) -> 0.091582 | I156: =VLOOKUP($F156,P_All!$A$5:$J$205,3*($C$6-1)+4) -> 0.10165 | J156: =VLOOKUP($F156,NA_All!$A$5:$J$205,3*($C$6-1)+2) -> 0.086081 | K156: =VLOOKUP($F156,NA_All!$A$5:$J$205,3*($C$6-1)+3) -> 0.098503 | L156: =VLOOKUP($F156,NA_All!$A$5:$J$205,3*($C$6-1)+4) -> 0.1329 | M156: 30 | N156: 100
F157: 134 | G157: =VLOOKUP($F157,P_All!$A$5:$J$205,3*($C$6-1)+2) -> 0.080513 | H157: =VLOOKUP($F157,P_All!$A$5:$J$205,3*($C$6-1)+3) -> 0.091529 | I157: =VLOOKUP($F157,P_All!$A$5:$J$205,3*($C$6-1)+4) -> 0.10158 | J157: =VLOOKUP($F157,NA_All!$A$5:$J$205,3*($C$6-1)+2) -> 0.086003 | K157: =VLOOKUP($F157,NA_All!$A$5:$J$205,3*($C$6-1)+3) -> 0.098325 | L157: =VLOOKUP($F157,NA_All!$A$5:$J$205,3*($C$6-1)+4) -> 0.1327 | M157: 30 | N157: 100
F158: 135 | G158: =VLOOKUP($F158,P_All!$A$5:$J$205,3*($C$6-1)+2) -> 0.080501 | H158: =VLOOKUP($F158,P_All!$A$5:$J$205,3*($C$6-1)+3) -> 0.091486 | I158: =VLOOKUP($F158,P_All!$A$5:$J$205,3*($C$6-1)+4) -> 0.10148 | J158: =VLOOKUP($F158,NA_All!$A$5:$J$205,3*($C$6-1)+2) -> 0.085942 | K158: =VLOOKUP($F158,NA_All!$A$5:$J$205,3*($C$6-1)+3) -> 0.098082 | L158: =VLOOKUP($F158,NA_All!$A$5:$J$205,3*($C$6-1)+4) -> 0.13242 | M158: 30 | N158: 100
F159: 136 | G159: =VLOOKUP($F159,P_All!$A$5:$J$205,3*($C$6-1)+2) -> 0.080511 | H159: =VLOOKUP($F159,P_All!$A$5:$J$205,3*($C$6-1)+3) -> 0.091425 | I159: =VLOOKUP($F159,P_All!$A$5:$J$205,3*($C$6-1)+4) -> 0.10139 | J159: =VLOOKUP($F159,NA_All!$A$5:$J$205,3*($C$6-1)+2) -> 0.085895 | K159: =VLOOKUP($F159,NA_All!$A$5:$J$205,3*($C$6-1)+3) -> 0.09794 | L159: =VLOOKUP($F159,NA_All!$A$5:$J$205,3*($C$6-1)+4) -> 0.13213 | M159: 30 | N159: 100
F160: 137 | G160: =VLOOKUP($F160,P_All!$A$5:$J$205,3*($C$6-1)+2) -> 0.080515 | H160: =VLOOKUP($F160,P_All!$A$5:$J$205,3*($C$6-1)+3) -> 0.091429 | I160: =VLOOKUP($F160,P_All!$A$5:$J$205,3*($C$6-1)+4) -> 0.1013 | J160: =VLOOKUP($F160,NA_All!$A$5:$J$205,3*($C$6-1)+2) -> 0.085852 | K160: =VLOOKUP($F160,NA_All!$A$5:$J$205,3*($C$6-1)+3) -> 0.097771 | L160: =VLOOKUP($F160,NA_All!$A$5:$J$205,3*($C$6-1)+4) -> 0.13185 | M160: 30 | N160: 100
F161: 138 | G161: =VLOOKUP($F161,P_All!$A$5:$J$205,3*($C$6-1)+2) -> 0.080479 | H161: =VLOOKUP($F161,P_All!$A$5:$J$205,3*($C$6-1)+3) -> 0.091419 | I161: =VLOOKUP($F161,P_All!$A$5:$J$205,3*($C$6-1)+4) -> 0.10121 | J161: =VLOOKUP($F161,NA_All!$A$5:$J$205,3*($C$6-1)+2) -> 0.08581 | K161: =VLOOKUP($F161,NA_All!$A$5:$J$205,3*($C$6-1)+3) -> 0.097653 | L161: =VLOOKUP($F161,NA_All!$A$5:$J$205,3*($C$6-1)+4) -> 0.1316 | M161: 30 | N161: 100
F162: 139 | G162: =VLOOKUP($F162,P_All!$A$5:$J$205,3*($C$6-1)+2) -> 0.080423 | H162: =VLOOKUP($F162,P_All!$A$5:$J$205,3*($C$6-1)+3) -> 0.091323 | I162: =VLOOKUP($F162,P_All!$A$5:$J$205,3*($C$6-1)+4) -> 0.10114 | J162: =VLOOKUP($F162,NA_All!$A$5:$J$205,3*($C$6-1)+2) -> 0.085719 | K162: =VLOOKUP($F162,NA_All!$A$5:$J$205,3*($C$6-1)+3) -> 0.097536 | L162: =VLOOKUP($F162,NA_All!$A$5:$J$205,3*($C$6-1)+4) -> 0.13135 | M162: 30 | N162: 100
F163: 140 | G163: =VLOOKUP($F163,P_All!$A$5:$J$205,3*($C$6-1)+2) -> 0.080409 | H163: =VLOOKUP($F163,P_All!$A$5:$J$205,3*($C$6-1)+3) -> 0.091244 | I163: =VLOOKUP($F163,P_All!$A$5:$J$205,3*($C$6-1)+4) -> 0.10107 | J163: =VLOOKUP($F163,NA_All!$A$5:$J$205,3*($C$6-1)+2) -> 0.085626 | K163: =VLOOKUP($F163,NA_All!$A$5:$J$205,3*($C$6-1)+3) -> 0.097421 | L163: =VLOOKUP($F163,NA_All!$A$5:$J$205,3*($C$6-1)+4) -> 0.13112 | M163: 30 | N163: 100
F164: 141 | G164: =VLOOKUP($F164,P_All!$A$5:$J$205,3*($C$6-1)+2) -> 0.080388 | H164: =VLOOKUP($F164,P_All!$A$5:$J$205,3*($C$6-1)+3) -> 0.091192 | I164: =VLOOKUP($F164,P_All!$A$5:$J$205,3*($C$6-1)+4) -> 0.10101 | J164: =VLOOKUP($F164,NA_All!$A$5:$J$205,3*($C$6-1)+2) -> 0.085537 | K164: =VLOOKUP($F164,NA_All!$A$5:$J$205,3*($C$6-1)+3) -> 0.09733 | L164: =VLOOKUP($F164,NA_All!$A$5:$J$205,3*($C$6-1)+4) -> 0.1309 | M164: 30 | N164: 100
F165: 142 | G165: =VLOOKUP($F165,P_All!$A$5:$J$205,3*($C$6-1)+2) -> 0.08035 | H165: =VLOOKUP($F165,P_All!$A$5:$J$205,3*($C$6-1)+3) -> 0.091142 | I165: =VLOOKUP($F165,P_All!$A$5:$J$205,3*($C$6-1)+4) -> 0.10101 | J165: =VLOOKUP($F165,NA_All!$A$5:$J$205,3*($C$6-1)+2) -> 0.085455 | K165: =VLOOKUP($F165,NA_All!$A$5:$J$205,3*($C$6-1)+3) -> 0.097248 | L165: =VLOOKUP($F165,NA_All!$A$5:$J$205,3*($C$6-1)+4) -> 0.13069 | M165: 30 | N165: 100
F166: 143 | G166: =VLOOKUP($F166,P_All!$A$5:$J$205,3*($C$6-1)+2) -> 0.08032 | H166: =VLOOKUP($F166,P_All!$A$5:$J$205,3*($C$6-1)+3) -> 0.091118 | I166: =VLOOKUP($F166,P_All!$A$5:$J$205,3*($C$6-1)+4) -> 0.10107 | J166: =VLOOKUP($F166,NA_All!$A$5:$J$205,3*($C$6-1)+2) -> 0.085405 | K166: =VLOOKUP($F166,NA_All!$A$5:$J$205,3*($C$6-1)+3) -> 0.097194 | L166: =VLOOKUP($F166,NA_All!$A$5:$J$205,3*($C$6-1)+4) -> 0.13047 | M166: 30 | N166: 100
F167: 144 | G167: =VLOOKUP($F167,P_All!$A$5:$J$205,3*($C$6-1)+2) -> 0.080309 | H167: =VLOOKUP($F167,P_All!$A$5:$J$205,3*($C$6-1)+3) -> 0.091098 | I167: =VLOOKUP($F167,P_All!$A$5:$J$205,3*($C$6-1)+4) -> 0.10112 | J167: =VLOOKUP($F167,NA_All!$A$5:$J$205,3*($C$6-1)+2) -> 0.085329 | K167: =VLOOKUP($F167,NA_All!$A$5:$J$205,3*($C$6-1)+3) -> 0.097135 | L167: =VLOOKUP($F167,NA_All!$A$5:$J$205,3*($C$6-1)+4) -> 0.13021 | M167: 30 | N167: 100
F168: 145 | G168: =VLOOKUP($F168,P_All!$A$5:$J$205,3*($C$6-1)+2) -> 0.0803 | H168: =VLOOKUP($F168,P_All!$A$5:$J$205,3*($C$6-1)+3) -> 0.091105 | I168: =VLOOKUP($F168,P_All!$A$5:$J$205,3*($C$6-1)+4) -> 0.10118 | J168: =VLOOKUP($F168,NA_All!$A$5:$J$205,3*($C$6-1)+2) -> 0.085249 | K168: =VLOOKUP($F168,NA_All!$A$5:$J$205,3*($C$6-1)+3) -> 0.097061 | L168: =VLOOKUP($F168,NA_All!$A$5:$J$205,3*($C$6-1)+4) -> 0.12989 | M168: 30 | N168: 100
F169: 146 | G169: =VLOOKUP($F169,P_All!$A$5:$J$205,3*($C$6-1)+2) -> 0.080267 | H169: =VLOOKUP($F169,P_All!$A$5:$J$205,3*($C$6-1)+3) -> 0.091071 | I169: =VLOOKUP($F169,P_All!$A$5:$J$205,3*($C$6-1)+4) -> 0.10123 | J169: =VLOOKUP($F169,NA_All!$A$5:$J$205,3*($C$6-1)+2) -> 0.08517 | K169: =VLOOKUP($F169,NA_All!$A$5:$J$205,3*($C$6-1)+3) -> 0.096971 | L169: =VLOOKUP($F169,NA_All!$A$5:$J$205,3*($C$6-1)+4) -> 0.12958 | M169: 30 | N169: 100
F170: 147 | G170: =VLOOKUP($F170,P_All!$A$5:$J$205,3*($C$6-1)+2) -> 0.080229 | H170: =VLOOKUP($F170,P_All!$A$5:$J$205,3*($C$6-1)+3) -> 0.091012 | I170: =VLOOKUP($F170,P_All!$A$5:$J$205,3*($C$6-1)+4) -> 0.1013 | J170: =VLOOKUP($F170,NA_All!$A$5:$J$205,3*($C$6-1)+2) -> 0.085091 | K170: =VLOOKUP($F170,NA_All!$A$5:$J$205,3*($C$6-1)+3) -> 0.096877 | L170: =VLOOKUP($F170,NA_All!$A$5:$J$205,3*($C$6-1)+4) -> 0.12922 | M170: 30 | N170: 100
F171: 148 | G171: =VLOOKUP($F171,P_All!$A$5:$J$205,3*($C$6-1)+2) -> 0.080191 | H171: =VLOOKUP($F171,P_All!$A$5:$J$205,3*($C$6-1)+3) -> 0.091005 | I171: =VLOOKUP($F171,P_All!$A$5:$J$205,3*($C$6-1)+4) -> 0.10138 | J171: =VLOOKUP($F171,NA_All!$A$5:$J$205,3*($C$6-1)+2) -> 0.085034 | K171: =VLOOKUP($F171,NA_All!$A$5:$J$205,3*($C$6-1)+3) -> 0.096815 | L171: =VLOOKUP($F171,NA_All!$A$5:$J$205,3*($C$6-1)+4) -> 0.12897 | M171: 30 | N171: 100
F172: 149 | G172: =VLOOKUP($F172,P_All!$A$5:$J$205,3*($C$6-1)+2) -> 0.080163 | H172: =VLOOKUP($F172,P_All!$A$5:$J$205,3*($C$6-1)+3) -> 0.090959 | I172: =VLOOKUP($F172,P_All!$A$5:$J$205,3*($C$6-1)+4) -> 0.10137 | J172: =VLOOKUP($F172,NA_All!$A$5:$J$205,3*($C$6-1)+2) -> 0.08499 | K172: =VLOOKUP($F172,NA_All!$A$5:$J$205,3*($C$6-1)+3) -> 0.096769 | L172: =VLOOKUP($F172,NA_All!$A$5:$J$205,3*($C$6-1)+4) -> 0.12875 | M172: 30 | N172: 100
F173: 150 | G173: =VLOOKUP($F173,P_All!$A$5:$J$205,3*($C$6-1)+2) -> 0.080156 | H173: =VLOOKUP($F173,P_All!$A$5:$J$205,3*($C$6-1)+3) -> 0.090931 | I173: =VLOOKUP($F173,P_All!$A$5:$J$205,3*($C$6-1)+4) -> 0.10135 | J173: =VLOOKUP($F173,NA_All!$A$5:$J$205,3*($C$6-1)+2) -> 0.084947 | K173: =VLOOKUP($F173,NA_All!$A$5:$J$205,3*($C$6-1)+3) -> 0.096723 | L173: =VLOOKUP($F173,NA_All!$A$5:$J$205,3*($C$6-1)+4) -> 0.12852 | M173: 30 | N173: 100
F174: 151 | G174: =VLOOKUP($F174,P_All!$A$5:$J$205,3*($C$6-1)+2) -> 0.080149 | H174: =VLOOKUP($F174,P_All!$A$5:$J$205,3*($C$6-1)+3) -> 0.090901 | I174: =VLOOKUP($F174,P_All!$A$5:$J$205,3*($C$6-1)+4) -> 0.10139 | J174: =VLOOKUP($F174,NA_All!$A$5:$J$205,3*($C$6-1)+2) -> 0.084908 | K174: =VLOOKUP($F174,NA_All!$A$5:$J$205,3*($C$6-1)+3) -> 0.096677 | L174: =VLOOKUP($F174,NA_All!$A$5:$J$205,3*($C$6-1)+4) -> 0.12831 | M174: 30 | N174: 100
F175: 152 | G175: =VLOOKUP($F175,P_All!$A$5:$J$205,3*($C$6-1)+2) -> 0.080142 | H175: =VLOOKUP($F175,P_All!$A$5:$J$205,3*($C$6-1)+3) -> 0.090894 | I175: =VLOOKUP($F175,P_All!$A$5:$J$205,3*($C$6-1)+4) -> 0.10144 | J175: =VLOOKUP($F175,NA_All!$A$5:$J$205,3*($C$6-1)+2) -> 0.084876 | K175: =VLOOKUP($F175,NA_All!$A$5:$J$205,3*($C$6-1)+3) -> 0.096601 | L175: =VLOOKUP($F175,NA_All!$A$5:$J$205,3*($C$6-1)+4) -> 0.12808 | M175: 30 | N175: 100
F176: 153 | G176: =VLOOKUP($F176,P_All!$A$5:$J$205,3*($C$6-1)+2) -> 0.080134 | H176: =VLOOKUP($F176,P_All!$A$5:$J$205,3*($C$6-1)+3) -> 0.09086 | I176: =VLOOKUP($F176,P_All!$A$5:$J$205,3*($C$6-1)+4) -> 0.10158 | J176: =VLOOKUP($F176,NA_All!$A$5:$J$205,3*($C$6-1)+2) -> 0.084823 | K176: =VLOOKUP($F176,NA_All!$A$5:$J$205,3*($C$6-1)+3) -> 0.096505 | L176: =VLOOKUP($F176,NA_All!$A$5:$J$205,3*($C$6-1)+4) -> 0.1279 | M176: 30 | N176: 100
F177: 154 | G177: =VLOOKUP($F177,P_All!$A$5:$J$205,3*($C$6-1)+2) -> 0.080126 | H177: =VLOOKUP($F177,P_All!$A$5:$J$205,3*($C$6-1)+3) -> 0.090842 | I177: =VLOOKUP($F177,P_All!$A$5:$J$205,3*($C$6-1)+4) -> 0.10166 | J177: =VLOOKUP($F177,NA_All!$A$5:$J$205,3*($C$6-1)+2) -> 0.084774 | K177: =VLOOKUP($F177,NA_All!$A$5:$J$205,3*($C$6-1)+3) -> 0.096398 | L177: =VLOOKUP($F177,NA_All!$A$5:$J$205,3*($C$6-1)+4) -> 0.12773 | M177: 30 | N177: 100
F178: 155 | G178: =VLOOKUP($F178,P_All!$A$5:$J$205,3*($C$6-1)+2) -> 0.080085 | H178: =VLOOKUP($F178,P_All!$A$5:$J$205,3*($C$6-1)+3) -> 0.090799 | I178: =VLOOKUP($F178,P_All!$A$5:$J$205,3*($C$6-1)+4) -> 0.10168 | J178: =VLOOKUP($F178,NA_All!$A$5:$J$205,3*($C$6-1)+2) -> 0.08473 | K178: =VLOOKUP($F178,NA_All!$A$5:$J$205,3*($C$6-1)+3) -> 0.096312 | L178: =VLOOKUP($F178,NA_All!$A$5:$J$205,3*($C$6-1)+4) -> 0.12756 | M178: 30 | N178: 100
F179: 156 | G179: =VLOOKUP($F179,P_All!$A$5:$J$205,3*($C$6-1)+2) -> 0.080041 | H179: =VLOOKUP($F179,P_All!$A$5:$J$205,3*($C$6-1)+3) -> 0.090833 | I179: =VLOOKUP($F179,P_All!$A$5:$J$205,3*($C$6-1)+4) -> 0.10166 | J179: =VLOOKUP($F179,NA_All!$A$5:$J$205,3*($C$6-1)+2) -> 0.08469 | K179: =VLOOKUP($F179,NA_All!$A$5:$J$205,3*($C$6-1)+3) -> 0.096234 | L179: =VLOOKUP($F179,NA_All!$A$5:$J$205,3*($C$6-1)+4) -> 0.12741 | M179: 30 | N179: 100
F180: 157 | G180: =VLOOKUP($F180,P_All!$A$5:$J$205,3*($C$6-1)+2) -> 0.080017 | H180: =VLOOKUP($F180,P_All!$A$5:$J$205,3*($C$6-1)+3) -> 0.090848 | I180: =VLOOKUP($F180,P_All!$A$5:$J$205,3*($C$6-1)+4) -> 0.10161 | J180: =VLOOKUP($F180,NA_All!$A$5:$J$205,3*($C$6-1)+2) -> 0.084655 | K180: =VLOOKUP($F180,NA_All!$A$5:$J$205,3*($C$6-1)+3) -> 0.096157 | L180: =VLOOKUP($F180,NA_All!$A$5:$J$205,3*($C$6-1)+4) -> 0.12728 | M180: 30 | N180: 100
F181: 158 | G181: =VLOOKUP($F181,P_All!$A$5:$J$205,3*($C$6-1)+2) -> 0.080025 | H181: =VLOOKUP($F181,P_All!$A$5:$J$205,3*($C$6-1)+3) -> 0.090815 | I181: =VLOOKUP($F181,P_All!$A$5:$J$205,3*($C$6-1)+4) -> 0.10162 | J181: =VLOOKUP($F181,NA_All!$A$5:$J$205,3*($C$6-1)+2) -> 0.084624 | K181: =VLOOKUP($F181,NA_All!$A$5:$J$205,3*($C$6-1)+3) -> 0.096066 | L181: =VLOOKUP($F181,NA_All!$A$5:$J$205,3*($C$6-1)+4) -> 0.12715 | M181: 30 | N181: 100
F182: 159 | G182: =VLOOKUP($F182,P_All!$A$5:$J$205,3*($C$6-1)+2) -> 0.080029 | H182: =VLOOKUP($F182,P_All!$A$5:$J$205,3*($C$6-1)+3) -> 0.090809 | I182: =VLOOKUP($F182,P_All!$A$5:$J$205,3*($C$6-1)+4) -> 0.10161 | J182: =VLOOKUP($F182,NA_All!$A$5:$J$205,3*($C$6-1)+2) -> 0.084598 | K182: =VLOOKUP($F182,NA_All!$A$5:$J$205,3*($C$6-1)+3) -> 0.095929 | L182: =VLOOKUP($F182,NA_All!$A$5:$J$205,3*($C$6-1)+4) -> 0.12704 | M182: 30 | N182: 100
F183: 160 | G183: =VLOOKUP($F183,P_All!$A$5:$J$205,3*($C$6-1)+2) -> 0.08003 | H183: =VLOOKUP($F183,P_All!$A$5:$J$205,3*($C$6-1)+3) -> 0.090777 | I183: =VLOOKUP($F183,P_All!$A$5:$J$205,3*($C$6-1)+4) -> 0.10166 | J183: =VLOOKUP($F183,NA_All!$A$5:$J$205,3*($C$6-1)+2) -> 0.084577 | K183: =VLOOKUP($F183,NA_All!$A$5:$J$205,3*($C$6-1)+3) -> 0.095836 | L183: =VLOOKUP($F183,NA_All!$A$5:$J$205,3*($C$6-1)+4) -> 0.12683 | M183: 30 | N183: 100
F184: 161 | G184: =VLOOKUP($F184,P_All!$A$5:$J$205,3*($C$6-1)+2) -> 0.08003 | H184: =VLOOKUP($F184,P_All!$A$5:$J$205,3*($C$6-1)+3) -> 0.090768 | I184: =VLOOKUP($F184,P_All!$A$5:$J$205,3*($C$6-1)+4) -> 0.10168 | J184: =VLOOKUP($F184,NA_All!$A$5:$J$205,3*($C$6-1)+2) -> 0.084524 | K184: =VLOOKUP($F184,NA_All!$A$5:$J$205,3*($C$6-1)+3) -> 0.095719 | L184: =VLOOKUP($F184,NA_All!$A$5:$J$205,3*($C$6-1)+4) -> 0.12661 | M184: 30 | N184: 100
F185: 162 | G185: =VLOOKUP($F185,P_All!$A$5:$J$205,3*($C$6-1)+2) -> 0.080029 | H185: =VLOOKUP($F185,P_All!$A$5:$J$205,3*($C$6-1)+3) -> 0.090746 | I185: =VLOOKUP($F185,P_All!$A$5:$J$205,3*($C$6-1)+4) -> 0.10166 | J185: =VLOOKUP($F185,NA_All!$A$5:$J$205,3*($C$6-1)+2) -> 0.084505 | K185: =VLOOKUP($F185,NA_All!$A$5:$J$205,3*($C$6-1)+3) -> 0.095624 | L185: =VLOOKUP($F185,NA_All!$A$5:$J$205,3*($C$6-1)+4) -> 0.12646 | M185: 30 | N185: 100
F186: 163 | G186: =VLOOKUP($F186,P_All!$A$5:$J$205,3*($C$6-1)+2) -> 0.079987 | H186: =VLOOKUP($F186,P_All!$A$5:$J$205,3*($C$6-1)+3) -> 0.090721 | I186: =VLOOKUP($F186,P_All!$A$5:$J$205,3*($C$6-1)+4) -> 0.10163 | J186: =VLOOKUP($F186,NA_All!$A$5:$J$205,3*($C$6-1)+2) -> 0.084496 | K186: =VLOOKUP($F186,NA_All!$A$5:$J$205,3*($C$6-1)+3) -> 0.095522 | L186: =VLOOKUP($F186,NA_All!$A$5:$J$205,3*($C$6-1)+4) -> 0.12633 | M186: 30 | N186: 100
F187: 164 | G187: =VLOOKUP($F187,P_All!$A$5:$J$205,3*($C$6-1)+2) -> 0.079936 | H187: =VLOOKUP($F187,P_All!$A$5:$J$205,3*($C$6-1)+3) -> 0.090683 | I187: =VLOOKUP($F187,P_All!$A$5:$J$205,3*($C$6-1)+4) -> 0.10167 | J187: =VLOOKUP($F187,NA_All!$A$5:$J$205,3*($C$6-1)+2) -> 0.084467 | K187: =VLOOKUP($F187,NA_All!$A$5:$J$205,3*($C$6-1)+3) -> 0.095395 | L187: =VLOOKUP($F187,NA_All!$A$5:$J$205,3*($C$6-1)+4) -> 0.12622 | M187: 30 | N187: 100
F188: 165 | G188: =VLOOKUP($F188,P_All!$A$5:$J$205,3*($C$6-1)+2) -> 0.07986 | H188: =VLOOKUP($F188,P_All!$A$5:$J$205,3*($C$6-1)+3) -> 0.090636 | I188: =VLOOKUP($F188,P_All!$A$5:$J$205,3*($C$6-1)+4) -> 0.10174 | J188: =VLOOKUP($F188,NA_All!$A$5:$J$205,3*($C$6-1)+2) -> 0.084465 | K188: =VLOOKUP($F188,NA_All!$A$5:$J$205,3*($C$6-1)+3) -> 0.09531 | L188: =VLOOKUP($F188,NA_All!$A$5:$J$205,3*($C$6-1)+4) -> 0.12612 | M188: 30 | N188: 100
F189: 166 | G189: =VLOOKUP($F189,P_All!$A$5:$J$205,3*($C$6-1)+2) -> 0.07977 | H189: =VLOOKUP($F189,P_All!$A$5:$J$205,3*($C$6-1)+3) -> 0.090592 | I189: =VLOOKUP($F189,P_All!$A$5:$J$205,3*($C$6-1)+4) -> 0.10181 | J189: =VLOOKUP($F189,NA_All!$A$5:$J$205,3*($C$6-1)+2) -> 0.084444 | K189: =VLOOKUP($F189,NA_All!$A$5:$J$205,3*($C$6-1)+3) -> 0.095224 | L189: =VLOOKUP($F189,NA_All!$A$5:$J$205,3*($C$6-1)+4) -> 0.12594 | M189: 30 | N189: 100
F190: 167 | G190: =VLOOKUP($F190,P_All!$A$5:$J$205,3*($C$6-1)+2) -> 0.079681 | H190: =VLOOKUP($F190,P_All!$A$5:$J$205,3*($C$6-1)+3) -> 0.090586 | I190: =VLOOKUP($F190,P_All!$A$5:$J$205,3*($C$6-1)+4) -> 0.10187 | J190: =VLOOKUP($F190,NA_All!$A$5:$J$205,3*($C$6-1)+2) -> 0.084378 | K190: =VLOOKUP($F190,NA_All!$A$5:$J$205,3*($C$6-1)+3) -> 0.095139 | L190: =VLOOKUP($F190,NA_All!$A$5:$J$205,3*($C$6-1)+4) -> 0.1258 | M190: 30 | N190: 100
F191: 168 | G191: =VLOOKUP($F191,P_All!$A$5:$J$205,3*($C$6-1)+2) -> 0.079593 | H191: =VLOOKUP($F191,P_All!$A$5:$J$205,3*($C$6-1)+3) -> 0.090536 | I191: =VLOOKUP($F191,P_All!$A$5:$J$205,3*($C$6-1)+4) -> 0.10192 | J191: =VLOOKUP($F191,NA_All!$A$5:$J$205,3*($C$6-1)+2) -> 0.084329 | K191: =VLOOKUP($F191,NA_All!$A$5:$J$205,3*($C$6-1)+3) -> 0.095053 | L191: =VLOOKUP($F191,NA_All!$A$5:$J$205,3*($C$6-1)+4) -> 0.12574 | M191: 30 | N191: 100
F192: 169 | G192: =VLOOKUP($F192,P_All!$A$5:$J$205,3*($C$6-1)+2) -> 0.079506 | H192: =VLOOKUP($F192,P_All!$A$5:$J$205,3*($C$6-1)+3) -> 0.090534 | I192: =VLOOKUP($F192,P_All!$A$5:$J$205,3*($C$6-1)+4) -> 0.10192 | J192: =VLOOKUP($F192,NA_All!$A$5:$J$205,3*($C$6-1)+2) -> 0.084287 | K192: =VLOOKUP($F192,NA_All!$A$5:$J$205,3*($C$6-1)+3) -> 0.094968 | L192: =VLOOKUP($F192,NA_All!$A$5:$J$205,3*($C$6-1)+4) -> 0.12566 | M192: 30 | N192: 100
F193: 170 | G193: =VLOOKUP($F193,P_All!$A$5:$J$205,3*($C$6-1)+2) -> 0.079421 | H193: =VLOOKUP($F193,P_All!$A$5:$J$205,3*($C$6-1)+3) -> 0.090509 | I193: =VLOOKUP($F193,P_All!$A$5:$J$205,3*($C$6-1)+4) -> 0.1019 | J193: =VLOOKUP($F193,NA_All!$A$5:$J$205,3*($C$6-1)+2) -> 0.084254 | K193: =VLOOKUP($F193,NA_All!$A$5:$J$205,3*($C$6-1)+3) -> 0.094913 | L193: =VLOOKUP($F193,NA_All!$A$5:$J$205,3*($C$6-1)+4) -> 0.12557 | M193: 30 | N193: 100
F194: 171 | G194: =VLOOKUP($F194,P_All!$A$5:$J$205,3*($C$6-1)+2) -> 0.079365 | H194: =VLOOKUP($F194,P_All!$A$5:$J$205,3*($C$6-1)+3) -> 0.090478 | I194: =VLOOKUP($F194,P_All!$A$5:$J$205,3*($C$6-1)+4) -> 0.10189 | J194: =VLOOKUP($F194,NA_All!$A$5:$J$205,3*($C$6-1)+2) -> 0.084221 | K194: =VLOOKUP($F194,NA_All!$A$5:$J$205,3*($C$6-1)+3) -> 0.094916 | L194: =VLOOKUP($F194,NA_All!$A$5:$J$205,3*($C$6-1)+4) -> 0.12537 | M194: 30 | N194: 100
F195: 172 | G195: =VLOOKUP($F195,P_All!$A$5:$J$205,3*($C$6-1)+2) -> 0.079329 | H195: =VLOOKUP($F195,P_All!$A$5:$J$205,3*($C$6-1)+3) -> 0.090421 | I195: =VLOOKUP($F195,P_All!$A$5:$J$205,3*($C$6-1)+4) -> 0.10194 | J195: =VLOOKUP($F195,NA_All!$A$5:$J$205,3*($C$6-1)+2) -> 0.084188 | K195: =VLOOKUP($F195,NA_All!$A$5:$J$205,3*($C$6-1)+3) -> 0.094876 | L195: =VLOOKUP($F195,NA_All!$A$5:$J$205,3*($C$6-1)+4) -> 0.12508 | M195: 30 | N195: 100
F196: 173 | G196: =VLOOKUP($F196,P_All!$A$5:$J$205,3*($C$6-1)+2) -> 0.079294 | H196: =VLOOKUP($F196,P_All!$A$5:$J$205,3*($C$6-1)+3) -> 0.090403 | I196: =VLOOKUP($F196,P_All!$A$5:$J$205,3*($C$6-1)+4) -> 0.10196 | J196: =VLOOKUP($F196,NA_All!$A$5:$J$205,3*($C$6-1)+2) -> 0.084154 | K196: =VLOOKUP($F196,NA_All!$A$5:$J$205,3*($C$6-1)+3) -> 0.094843 | L196: =VLOOKUP($F196,NA_All!$A$5:$J$205,3*($C$6-1)+4) -> 0.12491 | M196: 30 | N196: 100
F197: 174 | G197: =VLOOKUP($F197,P_All!$A$5:$J$205,3*($C$6-1)+2) -> 0.079258 | H197: =VLOOKUP($F197,P_All!$A$5:$J$205,3*($C$6-1)+3) -> 0.090379 | I197: =VLOOKUP($F197,P_All!$A$5:$J$205,3*($C$6-1)+4) -> 0.10197 | J197: =VLOOKUP($F197,NA_All!$A$5:$J$205,3*($C$6-1)+2) -> 0.084131 | K197: =VLOOKUP($F197,NA_All!$A$5:$J$205,3*($C$6-1)+3) -> 0.094803 | L197: =VLOOKUP($F197,NA_All!$A$5:$J$205,3*($C$6-1)+4) -> 0.12473 | M197: 30 | N197: 100
F198: 175 | G198: =VLOOKUP($F198,P_All!$A$5:$J$205,3*($C$6-1)+2) -> 0.079223 | H198: =VLOOKUP($F198,P_All!$A$5:$J$205,3*($C$6-1)+3) -> 0.090361 | I198: =VLOOKUP($F198,P_All!$A$5:$J$205,3*($C$6-1)+4) -> 0.10196 | J198: =VLOOKUP($F198,NA_All!$A$5:$J$205,3*($C$6-1)+2) -> 0.084111 | K198: =VLOOKUP($F198,NA_All!$A$5:$J$205,3*($C$6-1)+3) -> 0.094768 | L198: =VLOOKUP($F198,NA_All!$A$5:$J$205,3*($C$6-1)+4) -> 0.12453 | M198: 30 | N198: 100
F199: 176 | G199: =VLOOKUP($F199,P_All!$A$5:$J$205,3*($C$6-1)+2) -> 0.079178 | H199: =VLOOKUP($F199,P_All!$A$5:$J$205,3*($C$6-1)+3) -> 0.090361 | I199: =VLOOKUP($F199,P_All!$A$5:$J$205,3*($C$6-1)+4) -> 0.10204 | J199: =VLOOKUP($F199,NA_All!$A$5:$J$205,3*($C$6-1)+2) -> 0.084091 | K199: =VLOOKUP($F199,NA_All!$A$5:$J$205,3*($C$6-1)+3) -> 0.094698 | L199: =VLOOKUP($F199,NA_All!$A$5:$J$205,3*($C$6-1)+4) -> 0.12433 | M199: 30 | N199: 100
F200: 177 | G200: =VLOOKUP($F200,P_All!$A$5:$J$205,3*($C$6-1)+2) -> 0.079121 | H200: =VLOOKUP($F200,P_All!$A$5:$J$205,3*($C$6-1)+3) -> 0.090348 | I200: =VLOOKUP($F200,P_All!$A$5:$J$205,3*($C$6-1)+4) -> 0.10211 | J200: =VLOOKUP($F200,NA_All!$A$5:$J$205,3*($C$6-1)+2) -> 0.084058 | K200: =VLOOKUP($F200,NA_All!$A$5:$J$205,3*($C$6-1)+3) -> 0.094607 | L200: =VLOOKUP($F200,NA_All!$A$5:$J$205,3*($C$6-1)+4) -> 0.12421 | M200: 30 | N200: 100
F201: 178 | G201: =VLOOKUP($F201,P_All!$A$5:$J$205,3*($C$6-1)+2) -> 0.079065 | H201: =VLOOKUP($F201,P_All!$A$5:$J$205,3*($C$6-1)+3) -> 0.090302 | I201: =VLOOKUP($F201,P_All!$A$5:$J$205,3*($C$6-1)+4) -> 0.10217 | J201: =VLOOKUP($F201,NA_All!$A$5:$J$205,3*($C$6-1)+2) -> 0.084025 | K201: =VLOOKUP($F201,NA_All!$A$5:$J$205,3*($C$6-1)+3) -> 0.09451 | L201: =VLOOKUP($F201,NA_All!$A$5:$J$205,3*($C$6-1)+4) -> 0.12417 | M201: 30 | N201: 100
F202: 179 | G202: =VLOOKUP($F202,P_All!$A$5:$J$205,3*($C$6-1)+2) -> 0.079011 | H202: =VLOOKUP($F202,P_All!$A$5:$J$205,3*($C$6-1)+3) -> 0.090257 | I202: =VLOOKUP($F202,P_All!$A$5:$J$205,3*($C$6-1)+4) -> 0.1022 | J202: =VLOOKUP($F202,NA_All!$A$5:$J$205,3*($C$6-1)+2) -> 0.083995 | K202: =VLOOKUP($F202,NA_All!$A$5:$J$205,3*($C$6-1)+3) -> 0.09441 | L202: =VLOOKUP($F202,NA_All!$A$5:$J$205,3*($C$6-1)+4) -> 0.12414 | M202: 30 | N202: 100
F203: 180 | G203: =VLOOKUP($F203,P_All!$A$5:$J$205,3*($C$6-1)+2) -> 0.078962 | H203: =VLOOKUP($F203,P_All!$A$5:$J$205,3*($C$6-1)+3) -> 0.090231 | I203: =VLOOKUP($F203,P_All!$A$5:$J$205,3*($C$6-1)+4) -> 0.1022 | J203: =VLOOKUP($F203,NA_All!$A$5:$J$205,3*($C$6-1)+2) -> 0.083968 | K203: =VLOOKUP($F203,NA_All!$A$5:$J$205,3*($C$6-1)+3) -> 0.094307 | L203: =VLOOKUP($F203,NA_All!$A$5:$J$205,3*($C$6-1)+4) -> 0.12406 | M203: 30 | N203: 100
F204: 181 | G204: =VLOOKUP($F204,P_All!$A$5:$J$205,3*($C$6-1)+2) -> 0.078929 | H204: =VLOOKUP($F204,P_All!$A$5:$J$205,3*($C$6-1)+3) -> 0.090208 | I204: =VLOOKUP($F204,P_All!$A$5:$J$205,3*($C$6-1)+4) -> 0.1022 | J204: =VLOOKUP($F204,NA_All!$A$5:$J$205,3*($C$6-1)+2) -> 0.083944 | K204: =VLOOKUP($F204,NA_All!$A$5:$J$205,3*($C$6-1)+3) -> 0.094208 | L204: =VLOOKUP($F204,NA_All!$A$5:$J$205,3*($C$6-1)+4) -> 0.12394 | M204: 30 | N204: 100
F205: 182 | G205: =VLOOKUP($F205,P_All!$A$5:$J$205,3*($C$6-1)+2) -> 0.078899 | H205: =VLOOKUP($F205,P_All!$A$5:$J$205,3*($C$6-1)+3) -> 0.090209 | I205: =VLOOKUP($F205,P_All!$A$5:$J$205,3*($C$6-1)+4) -> 0.1022 | J205: =VLOOKUP($F205,NA_All!$A$5:$J$205,3*($C$6-1)+2) -> 0.083922 | K205: =VLOOKUP($F205,NA_All!$A$5:$J$205,3*($C$6-1)+3) -> 0.094134 | L205: =VLOOKUP($F205,NA_All!$A$5:$J$205,3*($C$6-1)+4) -> 0.12376 | M205: 30 | N205: 100
F206: 183 | G206: =VLOOKUP($F206,P_All!$A$5:$J$205,3*($C$6-1)+2) -> 0.07887 | H206: =VLOOKUP($F206,P_All!$A$5:$J$205,3*($C$6-1)+3) -> 0.090209 | I206: =VLOOKUP($F206,P_All!$A$5:$J$205,3*($C$6-1)+4) -> 0.1022 | J206: =VLOOKUP($F206,NA_All!$A$5:$J$205,3*($C$6-1)+2) -> 0.083891 | K206: =VLOOKUP($F206,NA_All!$A$5:$J$205,3*($C$6-1)+3) -> 0.094118 | L206: =VLOOKUP($F206,NA_All!$A$5:$J$205,3*($C$6-1)+4) -> 0.12357 | M206: 30 | N206: 100
F207: 184 | G207: =VLOOKUP($F207,P_All!$A$5:$J$205,3*($C$6-1)+2) -> 0.078842 | H207: =VLOOKUP($F207,P_All!$A$5:$J$205,3*($C$6-1)+3) -> 0.090246 | I207: =VLOOKUP($F207,P_All!$A$5:$J$205,3*($C$6-1)+4) -> 0.1022 | J207: =VLOOKUP($F207,NA_All!$A$5:$J$205,3*($C$6-1)+2) -> 0.08384 | K207: =VLOOKUP($F207,NA_All!$A$5:$J$205,3*($C$6-1)+3) -> 0.094037 | L207: =VLOOKUP($F207,NA_All!$A$5:$J$205,3*($C$6-1)+4) -> 0.12339 | M207: 30 | N207: 100
F208: 185 | G208: =VLOOKUP($F208,P_All!$A$5:$J$205,3*($C$6-1)+2) -> 0.078813 | H208: =VLOOKUP($F208,P_All!$A$5:$J$205,3*($C$6-1)+3) -> 0.090258 | I208: =VLOOKUP($F208,P_All!$A$5:$J$205,3*($C$6-1)+4) -> 0.10217 | J208: =VLOOKUP($F208,NA_All!$A$5:$J$205,3*($C$6-1)+2) -> 0.083778 | K208: =VLOOKUP($F208,NA_All!$A$5:$J$205,3*($C$6-1)+3) -> 0.093951 | L208: =VLOOKUP($F208,NA_All!$A$5:$J$205,3*($C$6-1)+4) -> 0.12322 | M208: 30 | N208: 100
F209: 186 | G209: =VLOOKUP($F209,P_All!$A$5:$J$205,3*($C$6-1)+2) -> 0.078785 | H209: =VLOOKUP($F209,P_All!$A$5:$J$205,3*($C$6-1)+3) -> 0.090243 | I209: =VLOOKUP($F209,P_All!$A$5:$J$205,3*($C$6-1)+4) -> 0.10215 | J209: =VLOOKUP($F209,NA_All!$A$5:$J$205,3*($C$6-1)+2) -> 0.083719 | K209: =VLOOKUP($F209,NA_All!$A$5:$J$205,3*($C$6-1)+3) -> 0.093886 | L209: =VLOOKUP($F209,NA_All!$A$5:$J$205,3*($C$6-1)+4) -> 0.12305 | M209: 30 | N209: 100
F210: 187 | G210: =VLOOKUP($F210,P_All!$A$5:$J$205,3*($C$6-1)+2) -> 0.078748 | H210: =VLOOKUP($F210,P_All!$A$5:$J$205,3*($C$6-1)+3) -> 0.090241 | I210: =VLOOKUP($F210,P_All!$A$5:$J$205,3*($C$6-1)+4) -> 0.10213 | J210: =VLOOKUP($F210,NA_All!$A$5:$J$205,3*($C$6-1)+2) -> 0.083667 | K210: =VLOOKUP($F210,NA_All!$A$5:$J$205,3*($C$6-1)+3) -> 0.093827 | L210: =VLOOKUP($F210,NA_All!$A$5:$J$205,3*($C$6-1)+4) -> 0.12288 | M210: 30 | N210: 100
... 12 more rows

Sheet P_All
A1: Values shown for constituent selected on PlotControl tab
B2: Project, North | E2: Project, NorthWest | H2: Project, West
B3: Annual Results at Prop. Bdry | E3: Annual Results at Prop. Bdry | H3: Annual Results at Prop. Bdry
A4: Time | B4: P10 | C4: P50 | D4: P90 | E4: P10 | F4: P50 | G4: P90 | H4: P10 | I4: P50 | J4: P90
A5: 0 | B5: =MAX(OFFSET(P_N_Prop!$C$10,12*$A5,4*(PlotControl!$C$4-1),12,1)) -> 0.10027 | C5: =MAX(OFFSET(P_N_Prop!$D$10,12*$A5,4*(PlotControl!$C$4-1),12,1)) -> 0.11082 | D5: =MAX(OFFSET(P_N_Prop!$E$10,12*$A5,4*(PlotControl!$C$4-1),12,1)) -> 0.11866 | E5: =MAX(OFFSET(P_NW_Prop!$C$10,12*$A5,4*(PlotControl!$C$4-1),12,1)) -> 0.090852 | F5: =MAX(OFFSET(P_NW_Prop!$D$10,12*$A5,4*(PlotControl!$C$4-1),12,1)) -> 0.098506 | G5: =MAX(OFFSET(P_NW_Prop!$E$10,12*$A5,4*(PlotControl!$C$4-1),12,1)) -> 0.10368 | H5: =MAX(OFFSET(P_W_Prop!$C$10,12*$A5,4*(PlotControl!$C$4-1),12,1)) -> 0.089532 | I5: =MAX(OFFSET(P_W_Prop!$D$10,12*$A5,4*(PlotControl!$C$4-1),12,1)) -> 0.099876 | J5: =MAX(OFFSET(P_W_Prop!$E$10,12*$A5,4*(PlotControl!$C$4-1),12,1)) -> 0.10719
A6: 1 | B6: =MAX(OFFSET(P_N_Prop!$C$10,12*$A6,4*(PlotControl!$C$4-1),12,1)) -> 0.10007 | C6: =MAX(OFFSET(P_N_Prop!$D$10,12*$A6,4*(PlotControl!$C$4-1),12,1)) -> 0.11062 | D6: =MAX(OFFSET(P_N_Prop!$E$10,12*$A6,4*(PlotControl!$C$4-1),12,1)) -> 0.11843 | E6: =MAX(OFFSET(P_NW_Prop!$C$10,12*$A6,4*(PlotControl!$C$4-1),12,1)) -> 0.090663 | F6: =MAX(OFFSET(P_NW_Prop!$D$10,12*$A6,4*(PlotControl!$C$4-1),12,1)) -> 0.098363 | G6: =MAX(OFFSET(P_NW_Prop!$E$10,12*$A6,4*(PlotControl!$C$4-1),12,1)) -> 0.10354 | H6: =MAX(OFFSET(P_W_Prop!$C$10,12*$A6,4*(PlotControl!$C$4-1),12,1)) -> 0.089426 | I6: =MAX(OFFSET(P_W_Prop!$D$10,12*$A6,4*(PlotControl!$C$4-1),12,1)) -> 0.099781 | J6: =MAX(OFFSET(P_W_Prop!$E$10,12*$A6,4*(PlotControl!$C$4-1),12,1)) -> 0.10704
A7: 2 | B7: =MAX(OFFSET(P_N_Prop!$C$10,12*$A7,4*(PlotControl!$C$4-1),12,1)) -> 0.099869 | C7: =MAX(OFFSET(P_N_Prop!$D$10,12*$A7,4*(PlotControl!$C$4-1),12,1)) -> 0.11037 | D7: =MAX(OFFSET(P_N_Prop!$E$10,12*$A7,4*(PlotControl!$C$4-1),12,1)) -> 0.11816 | E7: =MAX(OFFSET(P_NW_Prop!$C$10,12*$A7,4*(PlotControl!$C$4-1),12,1)) -> 0.090493 | F7: =MAX(OFFSET(P_NW_Prop!$D$10,12*$A7,4*(PlotControl!$C$4-1),12,1)) -> 0.098189 | G7: =MAX(OFFSET(P_NW_Prop!$E$10,12*$A7,4*(PlotControl!$C$4-1),12,1)) -> 0.10339 | H7: =MAX(OFFSET(P_W_Prop!$C$10,12*$A7,4*(PlotControl!$C$4-1),12,1)) -> 0.089317 | I7: =MAX(OFFSET(P_W_Prop!$D$10,12*$A7,4*(PlotControl!$C$4-1),12,1)) -> 0.099701 | J7: =MAX(OFFSET(P_W_Prop!$E$10,12*$A7,4*(PlotControl!$C$4-1),12,1)) -> 0.10691
A8: 3 | B8: =MAX(OFFSET(P_N_Prop!$C$10,12*$A8,4*(PlotControl!$C$4-1),12,1)) -> 0.099666 | C8: =MAX(OFFSET(P_N_Prop!$D$10,12*$A8,4*(PlotControl!$C$4-1),12,1)) -> 0.11013 | D8: =MAX(OFFSET(P_N_Prop!$E$10,12*$A8,4*(PlotControl!$C$4-1),12,1)) -> 0.11795 | E8: =MAX(OFFSET(P_NW_Prop!$C$10,12*$A8,4*(PlotControl!$C$4-1),12,1)) -> 0.09034 | F8: =MAX(OFFSET(P_NW_Prop!$D$10,12*$A8,4*(PlotControl!$C$4-1),12,1)) -> 0.09804 | G8: =MAX(OFFSET(P_NW_Prop!$E$10,12*$A8,4*(PlotControl!$C$4-1),12,1)) -> 0.10326 | H8: =MAX(OFFSET(P_W_Prop!$C$10,12*$A8,4*(PlotControl!$C$4-1),12,1)) -> 0.089207 | I8: =MAX(OFFSET(P_W_Prop!$D$10,12*$A8,4*(PlotControl!$C$4-1),12,1)) -> 0.09963 | J8: =MAX(OFFSET(P_W_Prop!$E$10,12*$A8,4*(PlotControl!$C$4-1),12,1)) -> 0.10679
A9: 4 | B9: =MAX(OFFSET(P_N_Prop!$C$10,12*$A9,4*(PlotControl!$C$4-1),12,1)) -> 0.099463 | C9: =MAX(OFFSET(P_N_Prop!$D$10,12*$A9,4*(PlotControl!$C$4-1),12,1)) -> 0.10993 | D9: =MAX(OFFSET(P_N_Prop!$E$10,12*$A9,4*(PlotControl!$C$4-1),12,1)) -> 0.11772 | E9: =MAX(OFFSET(P_NW_Prop!$C$10,12*$A9,4*(PlotControl!$C$4-1),12,1)) -> 0.090118 | F9: =MAX(OFFSET(P_NW_Prop!$D$10,12*$A9,4*(PlotControl!$C$4-1),12,1)) -> 0.097905 | G9: =MAX(OFFSET(P_NW_Prop!$E$10,12*$A9,4*(PlotControl!$C$4-1),12,1)) -> 0.10312 | H9: =MAX(OFFSET(P_W_Prop!$C$10,12*$A9,4*(PlotControl!$C$4-1),12,1)) -> 0.0891 | I9: =MAX(OFFSET(P_W_Prop!$D$10,12*$A9,4*(PlotControl!$C$4-1),12,1)) -> 0.099533 | J9: =MAX(OFFSET(P_W_Prop!$E$10,12*$A9,4*(PlotControl!$C$4-1),12,1)) -> 0.10669
A10: 5 | B10: =MAX(OFFSET(P_N_Prop!$C$10,12*$A10,4*(PlotControl!$C$4-1),12,1)) -> 0.09926 | C10: =MAX(OFFSET(P_N_Prop!$D$10,12*$A10,4*(PlotControl!$C$4-1),12,1)) -> 0.10973 | D10: =MAX(OFFSET(P_N_Prop!$E$10,12*$A10,4*(PlotControl!$C$4-1),12,1)) -> 0.11751 | E10: =MAX(OFFSET(P_NW_Prop!$C$10,12*$A10,4*(PlotControl!$C$4-1),12,1)) -> 0.08991 | F10: =MAX(OFFSET(P_NW_Prop!$D$10,12*$A10,4*(PlotControl!$C$4-1),12,1)) -> 0.097759 | G10: =MAX(OFFSET(P_NW_Prop!$E$10,12*$A10,4*(PlotControl!$C$4-1),12,1)) -> 0.103 | H10: =MAX(OFFSET(P_W_Prop!$C$10,12*$A10,4*(PlotControl!$C$4-1),12,1)) -> 0.089003 | I10: =MAX(OFFSET(P_W_Prop!$D$10,12*$A10,4*(PlotControl!$C$4-1),12,1)) -> 0.099429 | J10: =MAX(OFFSET(P_W_Prop!$E$10,12*$A10,4*(PlotControl!$C$4-1),12,1)) -> 0.10661
A11: 6 | B11: =MAX(OFFSET(P_N_Prop!$C$10,12*$A11,4*(PlotControl!$C$4-1),12,1)) -> 0.099057 | C11: =MAX(OFFSET(P_N_Prop!$D$10,12*$A11,4*(PlotControl!$C$4-1),12,1)) -> 0.10954 | D11: =MAX(OFFSET(P_N_Prop!$E$10,12*$A11,4*(PlotControl!$C$4-1),12,1)) -> 0.11732 | E11: =MAX(OFFSET(P_NW_Prop!$C$10,12*$A11,4*(PlotControl!$C$4-1),12,1)) -> 0.089729 | F11: =MAX(OFFSET(P_NW_Prop!$D$10,12*$A11,4*(PlotControl!$C$4-1),12,1)) -> 0.097573 | G11: =MAX(OFFSET(P_NW_Prop!$E$10,12*$A11,4*(PlotControl!$C$4-1),12,1)) -> 0.10288 | H11: =MAX(OFFSET(P_W_Prop!$C$10,12*$A11,4*(PlotControl!$C$4-1),12,1)) -> 0.088907 | I11: =MAX(OFFSET(P_W_Prop!$D$10,12*$A11,4*(PlotControl!$C$4-1),12,1)) -> 0.09928 | J11: =MAX(OFFSET(P_W_Prop!$E$10,12*$A11,4*(PlotControl!$C$4-1),12,1)) -> 0.1065
A12: 7 | B12: =MAX(OFFSET(P_N_Prop!$C$10,12*$A12,4*(PlotControl!$C$4-1),12,1)) -> 0.098873 | C12: =MAX(OFFSET(P_N_Prop!$D$10,12*$A12,4*(PlotControl!$C$4-1),12,1)) -> 0.10936 | D12: =MAX(OFFSET(P_N_Prop!$E$10,12*$A12,4*(PlotControl!$C$4-1),12,1)) -> 0.11715 | E12: =MAX(OFFSET(P_NW_Prop!$C$10,12*$A12,4*(PlotControl!$C$4-1),12,1)) -> 0.089602 | F12: =MAX(OFFSET(P_NW_Prop!$D$10,12*$A12,4*(PlotControl!$C$4-1),12,1)) -> 0.097404 | G12: =MAX(OFFSET(P_NW_Prop!$E$10,12*$A12,4*(PlotControl!$C$4-1),12,1)) -> 0.10277 | H12: =MAX(OFFSET(P_W_Prop!$C$10,12*$A12,4*(PlotControl!$C$4-1),12,1)) -> 0.08881 | I12: =MAX(OFFSET(P_W_Prop!$D$10,12*$A12,4*(PlotControl!$C$4-1),12,1)) -> 0.099106 | J12: =MAX(OFFSET(P_W_Prop!$E$10,12*$A12,4*(PlotControl!$C$4-1),12,1)) -> 0.10639
A13: 8 | B13: =MAX(OFFSET(P_N_Prop!$C$10,12*$A13,4*(PlotControl!$C$4-1),12,1)) -> 0.098734 | C13: =MAX(OFFSET(P_N_Prop!$D$10,12*$A13,4*(PlotControl!$C$4-1),12,1)) -> 0.10918 | D13: =MAX(OFFSET(P_N_Prop!$E$10,12*$A13,4*(PlotControl!$C$4-1),12,1)) -> 0.11698 | E13: =MAX(OFFSET(P_NW_Prop!$C$10,12*$A13,4*(PlotControl!$C$4-1),12,1)) -> 0.089479 | F13: =MAX(OFFSET(P_NW_Prop!$D$10,12*$A13,4*(PlotControl!$C$4-1),12,1)) -> 0.097298 | G13: =MAX(OFFSET(P_NW_Prop!$E$10,12*$A13,4*(PlotControl!$C$4-1),12,1)) -> 0.10264 | H13: =MAX(OFFSET(P_W_Prop!$C$10,12*$A13,4*(PlotControl!$C$4-1),12,1)) -> 0.088698 | I13: =MAX(OFFSET(P_W_Prop!$D$10,12*$A13,4*(PlotControl!$C$4-1),12,1)) -> 0.098964 | J13: =MAX(OFFSET(P_W_Prop!$E$10,12*$A13,4*(PlotControl!$C$4-1),12,1)) -> 0.10628
A14: 9 | B14: =MAX(OFFSET(P_N_Prop!$C$10,12*$A14,4*(PlotControl!$C$4-1),12,1)) -> 0.098594 | C14: =MAX(OFFSET(P_N_Prop!$D$10,12*$A14,4*(PlotControl!$C$4-1),12,1)) -> 0.10901 | D14: =MAX(OFFSET(P_N_Prop!$E$10,12*$A14,4*(PlotControl!$C$4-1),12,1)) -> 0.11682 | E14: =MAX(OFFSET(P_NW_Prop!$C$10,12*$A14,4*(PlotControl!$C$4-1),12,1)) -> 0.089394 | F14: =MAX(OFFSET(P_NW_Prop!$D$10,12*$A14,4*(PlotControl!$C$4-1),12,1)) -> 0.097167 | G14: =MAX(OFFSET(P_NW_Prop!$E$10,12*$A14,4*(PlotControl!$C$4-1),12,1)) -> 0.10254 | H14: =MAX(OFFSET(P_W_Prop!$C$10,12*$A14,4*(PlotControl!$C$4-1),12,1)) -> 0.088598 | I14: =MAX(OFFSET(P_W_Prop!$D$10,12*$A14,4*(PlotControl!$C$4-1),12,1)) -> 0.098812 | J14: =MAX(OFFSET(P_W_Prop!$E$10,12*$A14,4*(PlotControl!$C$4-1),12,1)) -> 0.10618
A15: 10 | B15: =MAX(OFFSET(P_N_Prop!$C$10,12*$A15,4*(PlotControl!$C$4-1),12,1)) -> 0.098454 | C15: =MAX(OFFSET(P_N_Prop!$D$10,12*$A15,4*(PlotControl!$C$4-1),12,1)) -> 0.10885 | D15: =MAX(OFFSET(P_N_Prop!$E$10,12*$A15,4*(PlotControl!$C$4-1),12,1)) -> 0.11664 | E15: =MAX(OFFSET(P_NW_Prop!$C$10,12*$A15,4*(PlotControl!$C$4-1),12,1)) -> 0.089313 | F15: =MAX(OFFSET(P_NW_Prop!$D$10,12*$A15,4*(PlotControl!$C$4-1),12,1)) -> 0.097062 | G15: =MAX(OFFSET(P_NW_Prop!$E$10,12*$A15,4*(PlotControl!$C$4-1),12,1)) -> 0.1024 | H15: =MAX(OFFSET(P_W_Prop!$C$10,12*$A15,4*(PlotControl!$C$4-1),12,1)) -> 0.088501 | I15: =MAX(OFFSET(P_W_Prop!$D$10,12*$A15,4*(PlotControl!$C$4-1),12,1)) -> 0.098669 | J15: =MAX(OFFSET(P_W_Prop!$E$10,12*$A15,4*(PlotControl!$C$4-1),12,1)) -> 0.10607
A16: 11 | B16: =MAX(OFFSET(P_N_Prop!$C$10,12*$A16,4*(PlotControl!$C$4-1),12,1)) -> 0.098274 | C16: =MAX(OFFSET(P_N_Prop!$D$10,12*$A16,4*(PlotControl!$C$4-1),12,1)) -> 0.10869 | D16: =MAX(OFFSET(P_N_Prop!$E$10,12*$A16,4*(PlotControl!$C$4-1),12,1)) -> 0.11646 | E16: =MAX(OFFSET(P_NW_Prop!$C$10,12*$A16,4*(PlotControl!$C$4-1),12,1)) -> 0.089225 | F16: =MAX(OFFSET(P_NW_Prop!$D$10,12*$A16,4*(PlotControl!$C$4-1),12,1)) -> 0.096952 | G16: =MAX(OFFSET(P_NW_Prop!$E$10,12*$A16,4*(PlotControl!$C$4-1),12,1)) -> 0.10225 | H16: =MAX(OFFSET(P_W_Prop!$C$10,12*$A16,4*(PlotControl!$C$4-1),12,1)) -> 0.088392 | I16: =MAX(OFFSET(P_W_Prop!$D$10,12*$A16,4*(PlotControl!$C$4-1),12,1)) -> 0.098525 | J16: =MAX(OFFSET(P_W_Prop!$E$10,12*$A16,4*(PlotControl!$C$4-1),12,1)) -> 0.10596
A17: 12 | B17: =MAX(OFFSET(P_N_Prop!$C$10,12*$A17,4*(PlotControl!$C$4-1),12,1)) -> 0.098047 | C17: =MAX(OFFSET(P_N_Prop!$D$10,12*$A17,4*(PlotControl!$C$4-1),12,1)) -> 0.10849 | D17: =MAX(OFFSET(P_N_Prop!$E$10,12*$A17,4*(PlotControl!$C$4-1),12,1)) -> 0.1163 | E17: =MAX(OFFSET(P_NW_Prop!$C$10,12*$A17,4*(PlotControl!$C$4-1),12,1)) -> 0.089065 | F17: =MAX(OFFSET(P_NW_Prop!$D$10,12*$A17,4*(PlotControl!$C$4-1),12,1)) -> 0.096769 | G17: =MAX(OFFSET(P_NW_Prop!$E$10,12*$A17,4*(PlotControl!$C$4-1),12,1)) -> 0.10211 | H17: =MAX(OFFSET(P_W_Prop!$C$10,12*$A17,4*(PlotControl!$C$4-1),12,1)) -> 0.08829 | I17: =MAX(OFFSET(P_W_Prop!$D$10,12*$A17,4*(PlotControl!$C$4-1),12,1)) -> 0.098387 | J17: =MAX(OFFSET(P_W_Prop!$E$10,12*$A17,4*(PlotControl!$C$4-1),12,1)) -> 0.10586
A18: 13 | B18: =MAX(OFFSET(P_N_Prop!$C$10,12*$A18,4*(PlotControl!$C$4-1),12,1)) -> 0.097817 | C18: =MAX(OFFSET(P_N_Prop!$D$10,12*$A18,4*(PlotControl!$C$4-1),12,1)) -> 0.10829 | D18: =MAX(OFFSET(P_N_Prop!$E$10,12*$A18,4*(PlotControl!$C$4-1),12,1)) -> 0.11613 | E18: =MAX(OFFSET(P_NW_Prop!$C$10,12*$A18,4*(PlotControl!$C$4-1),12,1)) -> 0.088906 | F18: =MAX(OFFSET(P_NW_Prop!$D$10,12*$A18,4*(PlotControl!$C$4-1),12,1)) -> 0.096576 | G18: =MAX(OFFSET(P_NW_Prop!$E$10,12*$A18,4*(PlotControl!$C$4-1),12,1)) -> 0.10197 | H18: =MAX(OFFSET(P_W_Prop!$C$10,12*$A18,4*(PlotControl!$C$4-1),12,1)) -> 0.088197 | I18: =MAX(OFFSET(P_W_Prop!$D$10,12*$A18,4*(PlotControl!$C$4-1),12,1)) -> 0.098257 | J18: =MAX(OFFSET(P_W_Prop!$E$10,12*$A18,4*(PlotControl!$C$4-1),12,1)) -> 0.10572
A19: 14 | B19: =MAX(OFFSET(P_N_Prop!$C$10,12*$A19,4*(PlotControl!$C$4-1),12,1)) -> 0.097582 | C19: =MAX(OFFSET(P_N_Prop!$D$10,12*$A19,4*(PlotControl!$C$4-1),12,1)) -> 0.10805 | D19: =MAX(OFFSET(P_N_Prop!$E$10,12*$A19,4*(PlotControl!$C$4-1),12,1)) -> 0.11596 | E19: =MAX(OFFSET(P_NW_Prop!$C$10,12*$A19,4*(PlotControl!$C$4-1),12,1)) -> 0.088771 | F19: =MAX(OFFSET(P_NW_Prop!$D$10,12*$A19,4*(PlotControl!$C$4-1),12,1)) -> 0.096433 | G19: =MAX(OFFSET(P_NW_Prop!$E$10,12*$A19,4*(PlotControl!$C$4-1),12,1)) -> 0.10184 | H19: =MAX(OFFSET(P_W_Prop!$C$10,12*$A19,4*(PlotControl!$C$4-1),12,1)) -> 0.088104 | I19: =MAX(OFFSET(P_W_Prop!$D$10,12*$A19,4*(PlotControl!$C$4-1),12,1)) -> 0.098116 | J19: =MAX(OFFSET(P_W_Prop!$E$10,12*$A19,4*(PlotControl!$C$4-1),12,1)) -> 0.10557
A20: 15 | B20: =MAX(OFFSET(P_N_Prop!$C$10,12*$A20,4*(PlotControl!$C$4-1),12,1)) -> 0.09732 | C20: =MAX(OFFSET(P_N_Prop!$D$10,12*$A20,4*(PlotControl!$C$4-1),12,1)) -> 0.10785 | D20: =MAX(OFFSET(P_N_Prop!$E$10,12*$A20,4*(PlotControl!$C$4-1),12,1)) -> 0.11565 | E20: =MAX(OFFSET(P_NW_Prop!$C$10,12*$A20,4*(PlotControl!$C$4-1),12,1)) -> 0.088653 | F20: =MAX(OFFSET(P_NW_Prop!$D$10,12*$A20,4*(PlotControl!$C$4-1),12,1)) -> 0.09632 | G20: =MAX(OFFSET(P_NW_Prop!$E$10,12*$A20,4*(PlotControl!$C$4-1),12,1)) -> 0.10172 | H20: =MAX(OFFSET(P_W_Prop!$C$10,12*$A20,4*(PlotControl!$C$4-1),12,1)) -> 0.088 | I20: =MAX(OFFSET(P_W_Prop!$D$10,12*$A20,4*(PlotControl!$C$4-1),12,1)) -> 0.097975 | J20: =MAX(OFFSET(P_W_Prop!$E$10,12*$A20,4*(PlotControl!$C$4-1),12,1)) -> 0.10543
A21: 16 | B21: =MAX(OFFSET(P_N_Prop!$C$10,12*$A21,4*(PlotControl!$C$4-1),12,1)) -> 0.097114 | C21: =MAX(OFFSET(P_N_Prop!$D$10,12*$A21,4*(PlotControl!$C$4-1),12,1)) -> 0.10762 | D21: =MAX(OFFSET(P_N_Prop!$E$10,12*$A21,4*(PlotControl!$C$4-1),12,1)) -> 0.11542 | E21: =MAX(OFFSET(P_NW_Prop!$C$10,12*$A21,4*(PlotControl!$C$4-1),12,1)) -> 0.088526 | F21: =MAX(OFFSET(P_NW_Prop!$D$10,12*$A21,4*(PlotControl!$C$4-1),12,1)) -> 0.096208 | G21: =MAX(OFFSET(P_NW_Prop!$E$10,12*$A21,4*(PlotControl!$C$4-1),12,1)) -> 0.10163 | H21: =MAX(OFFSET(P_W_Prop!$C$10,12*$A21,4*(PlotControl!$C$4-1),12,1)) -> 0.087899 | I21: =MAX(OFFSET(P_W_Prop!$D$10,12*$A21,4*(PlotControl!$C$4-1),12,1)) -> 0.097847 | J21: =MAX(OFFSET(P_W_Prop!$E$10,12*$A21,4*(PlotControl!$C$4-1),12,1)) -> 0.10534
A22: 17 | B22: =MAX(OFFSET(P_N_Prop!$C$10,12*$A22,4*(PlotControl!$C$4-1),12,1)) -> 0.096932 | C22: =MAX(OFFSET(P_N_Prop!$D$10,12*$A22,4*(PlotControl!$C$4-1),12,1)) -> 0.10733 | D22: =MAX(OFFSET(P_N_Prop!$E$10,12*$A22,4*(PlotControl!$C$4-1),12,1)) -> 0.11527 | E22: =MAX(OFFSET(P_NW_Prop!$C$10,12*$A22,4*(PlotControl!$C$4-1),12,1)) -> 0.088381 | F22: =MAX(OFFSET(P_NW_Prop!$D$10,12*$A22,4*(PlotControl!$C$4-1),12,1)) -> 0.096096 | G22: =MAX(OFFSET(P_NW_Prop!$E$10,12*$A22,4*(PlotControl!$C$4-1),12,1)) -> 0.10156 | H22: =MAX(OFFSET(P_W_Prop!$C$10,12*$A22,4*(PlotControl!$C$4-1),12,1)) -> 0.087773 | I22: =MAX(OFFSET(P_W_Prop!$D$10,12*$A22,4*(PlotControl!$C$4-1),12,1)) -> 0.097732 | J22: =MAX(OFFSET(P_W_Prop!$E$10,12*$A22,4*(PlotControl!$C$4-1),12,1)) -> 0.10522
A23: 18 | B23: =MAX(OFFSET(P_N_Prop!$C$10,12*$A23,4*(PlotControl!$C$4-1),12,1)) -> 0.096751 | C23: =MAX(OFFSET(P_N_Prop!$D$10,12*$A23,4*(PlotControl!$C$4-1),12,1)) -> 0.10711 | D23: =MAX(OFFSET(P_N_Prop!$E$10,12*$A23,4*(PlotControl!$C$4-1),12,1)) -> 0.11515 | E23: =MAX(OFFSET(P_NW_Prop!$C$10,12*$A23,4*(PlotControl!$C$4-1),12,1)) -> 0.088253 | F23: =MAX(OFFSET(P_NW_Prop!$D$10,12*$A23,4*(PlotControl!$C$4-1),12,1)) -> 0.095965 | G23: =MAX(OFFSET(P_NW_Prop!$E$10,12*$A23,4*(PlotControl!$C$4-1),12,1)) -> 0.10145 | H23: =MAX(OFFSET(P_W_Prop!$C$10,12*$A23,4*(PlotControl!$C$4-1),12,1)) -> 0.087647 | I23: =MAX(OFFSET(P_W_Prop!$D$10,12*$A23,4*(PlotControl!$C$4-1),12,1)) -> 0.097585 | J23: =MAX(OFFSET(P_W_Prop!$E$10,12*$A23,4*(PlotControl!$C$4-1),12,1)) -> 0.1051
A24: 19 | B24: =MAX(OFFSET(P_N_Prop!$C$10,12*$A24,4*(PlotControl!$C$4-1),12,1)) -> 0.096571 | C24: =MAX(OFFSET(P_N_Prop!$D$10,12*$A24,4*(PlotControl!$C$4-1),12,1)) -> 0.10693 | D24: =MAX(OFFSET(P_N_Prop!$E$10,12*$A24,4*(PlotControl!$C$4-1),12,1)) -> 0.11503 | E24: =MAX(OFFSET(P_NW_Prop!$C$10,12*$A24,4*(PlotControl!$C$4-1),12,1)) -> 0.088166 | F24: =MAX(OFFSET(P_NW_Prop!$D$10,12*$A24,4*(PlotControl!$C$4-1),12,1)) -> 0.095802 | G24: =MAX(OFFSET(P_NW_Prop!$E$10,12*$A24,4*(PlotControl!$C$4-1),12,1)) -> 0.10134 | H24: =MAX(OFFSET(P_W_Prop!$C$10,12*$A24,4*(PlotControl!$C$4-1),12,1)) -> 0.087564 | I24: =MAX(OFFSET(P_W_Prop!$D$10,12*$A24,4*(PlotControl!$C$4-1),12,1)) -> 0.097468 | J24: =MAX(OFFSET(P_W_Prop!$E$10,12*$A24,4*(PlotControl!$C$4-1),12,1)) -> 0.10501
A25: 20 | B25: =MAX(OFFSET(P_N_Prop!$C$10,12*$A25,4*(PlotControl!$C$4-1),12,1)) -> 0.096358 | C25: =MAX(OFFSET(P_N_Prop!$D$10,12*$A25,4*(PlotControl!$C$4-1),12,1)) -> 0.10674 | D25: =MAX(OFFSET(P_N_Prop!$E$10,12*$A25,4*(PlotControl!$C$4-1),12,1)) -> 0.11485 | E25: =MAX(OFFSET(P_NW_Prop!$C$10,12*$A25,4*(PlotControl!$C$4-1),12,1)) -> 0.088071 | F25: =MAX(OFFSET(P_NW_Prop!$D$10,12*$A25,4*(PlotControl!$C$4-1),12,1)) -> 0.095684 | G25: =MAX(OFFSET(P_NW_Prop!$E$10,12*$A25,4*(PlotControl!$C$4-1),12,1)) -> 0.10122 | H25: =MAX(OFFSET(P_W_Prop!$C$10,12*$A25,4*(PlotControl!$C$4-1),12,1)) -> 0.087485 | I25: =MAX(OFFSET(P_W_Prop!$D$10,12*$A25,4*(PlotControl!$C$4-1),12,1)) -> 0.097352 | J25: =MAX(OFFSET(P_W_Prop!$E$10,12*$A25,4*(PlotControl!$C$4-1),12,1)) -> 0.10489
A26: 21 | B26: =MAX(OFFSET(P_N_Prop!$C$10,12*$A26,4*(PlotControl!$C$4-1),12,1)) -> 0.096138 | C26: =MAX(OFFSET(P_N_Prop!$D$10,12*$A26,4*(PlotControl!$C$4-1),12,1)) -> 0.1066 | D26: =MAX(OFFSET(P_N_Prop!$E$10,12*$A26,4*(PlotControl!$C$4-1),12,1)) -> 0.1147 | E26: =MAX(OFFSET(P_NW_Prop!$C$10,12*$A26,4*(PlotControl!$C$4-1),12,1)) -> 0.087991 | F26: =MAX(OFFSET(P_NW_Prop!$D$10,12*$A26,4*(PlotControl!$C$4-1),12,1)) -> 0.095537 | G26: =MAX(OFFSET(P_NW_Prop!$E$10,12*$A26,4*(PlotControl!$C$4-1),12,1)) -> 0.10113 | H26: =MAX(OFFSET(P_W_Prop!$C$10,12*$A26,4*(PlotControl!$C$4-1),12,1)) -> 0.087403 | I26: =MAX(OFFSET(P_W_Prop!$D$10,12*$A26,4*(PlotControl!$C$4-1),12,1)) -> 0.097235 | J26: =MAX(OFFSET(P_W_Prop!$E$10,12*$A26,4*(PlotControl!$C$4-1),12,1)) -> 0.10479
A27: 22 | B27: =MAX(OFFSET(P_N_Prop!$C$10,12*$A27,4*(PlotControl!$C$4-1),12,1)) -> 0.095917 | C27: =MAX(OFFSET(P_N_Prop!$D$10,12*$A27,4*(PlotControl!$C$4-1),12,1)) -> 0.10642 | D27: =MAX(OFFSET(P_N_Prop!$E$10,12*$A27,4*(PlotControl!$C$4-1),12,1)) -> 0.11458 | E27: =MAX(OFFSET(P_NW_Prop!$C$10,12*$A27,4*(PlotControl!$C$4-1),12,1)) -> 0.08791 | F27: =MAX(OFFSET(P_NW_Prop!$D$10,12*$A27,4*(PlotControl!$C$4-1),12,1)) -> 0.095441 | G27: =MAX(OFFSET(P_NW_Prop!$E$10,12*$A27,4*(PlotControl!$C$4-1),12,1)) -> 0.10102 | H27: =MAX(OFFSET(P_W_Prop!$C$10,12*$A27,4*(PlotControl!$C$4-1),12,1)) -> 0.087291 | I27: =MAX(OFFSET(P_W_Prop!$D$10,12*$A27,4*(PlotControl!$C$4-1),12,1)) -> 0.097079 | J27: =MAX(OFFSET(P_W_Prop!$E$10,12*$A27,4*(PlotControl!$C$4-1),12,1)) -> 0.10468
A28: 23 | B28: =MAX(OFFSET(P_N_Prop!$C$10,12*$A28,4*(PlotControl!$C$4-1),12,1)) -> 0.095698 | C28: =MAX(OFFSET(P_N_Prop!$D$10,12*$A28,4*(PlotControl!$C$4-1),12,1)) -> 0.10629 | D28: =MAX(OFFSET(P_N_Prop!$E$10,12*$A28,4*(PlotControl!$C$4-1),12,1)) -> 0.11442 | E28: =MAX(OFFSET(P_NW_Prop!$C$10,12*$A28,4*(PlotControl!$C$4-1),12,1)) -> 0.087791 | F28: =MAX(OFFSET(P_NW_Prop!$D$10,12*$A28,4*(PlotControl!$C$4-1),12,1)) -> 0.095322 | G28: =MAX(OFFSET(P_NW_Prop!$E$10,12*$A28,4*(PlotControl!$C$4-1),12,1)) -> 0.10093 | H28: =MAX(OFFSET(P_W_Prop!$C$10,12*$A28,4*(PlotControl!$C$4-1),12,1)) -> 0.087205 | I28: =MAX(OFFSET(P_W_Prop!$D$10,12*$A28,4*(PlotControl!$C$4-1),12,1)) -> 0.096942 | J28: =MAX(OFFSET(P_W_Prop!$E$10,12*$A28,4*(PlotControl!$C$4-1),12,1)) -> 0.10461
A29: 24 | B29: =MAX(OFFSET(P_N_Prop!$C$10,12*$A29,4*(PlotControl!$C$4-1),12,1)) -> 0.095479 | C29: =MAX(OFFSET(P_N_Prop!$D$10,12*$A29,4*(PlotControl!$C$4-1),12,1)) -> 0.10611 | D29: =MAX(OFFSET(P_N_Prop!$E$10,12*$A29,4*(PlotControl!$C$4-1),12,1)) -> 0.11424 | E29: =MAX(OFFSET(P_NW_Prop!$C$10,12*$A29,4*(PlotControl!$C$4-1),12,1)) -> 0.087662 | F29: =MAX(OFFSET(P_NW_Prop!$D$10,12*$A29,4*(PlotControl!$C$4-1),12,1)) -> 0.095201 | G29: =MAX(OFFSET(P_NW_Prop!$E$10,12*$A29,4*(PlotControl!$C$4-1),12,1)) -> 0.10084 | H29: =MAX(OFFSET(P_W_Prop!$C$10,12*$A29,4*(PlotControl!$C$4-1),12,1)) -> 0.087105 | I29: =MAX(OFFSET(P_W_Prop!$D$10,12*$A29,4*(PlotControl!$C$4-1),12,1)) -> 0.096805 | J29: =MAX(OFFSET(P_W_Prop!$E$10,12*$A29,4*(PlotControl!$C$4-1),12,1)) -> 0.10453
A30: 25 | B30: =MAX(OFFSET(P_N_Prop!$C$10,12*$A30,4*(PlotControl!$C$4-1),12,1)) -> 0.0953 | C30: =MAX(OFFSET(P_N_Prop!$D$10,12*$A30,4*(PlotControl!$C$4-1),12,1)) -> 0.10593 | D30: =MAX(OFFSET(P_N_Prop!$E$10,12*$A30,4*(PlotControl!$C$4-1),12,1)) -> 0.11407 | E30: =MAX(OFFSET(P_NW_Prop!$C$10,12*$A30,4*(PlotControl!$C$4-1),12,1)) -> 0.087531 | F30: =MAX(OFFSET(P_NW_Prop!$D$10,12*$A30,4*(PlotControl!$C$4-1),12,1)) -> 0.095089 | G30: =MAX(OFFSET(P_NW_Prop!$E$10,12*$A30,4*(PlotControl!$C$4-1),12,1)) -> 0.10075 | H30: =MAX(OFFSET(P_W_Prop!$C$10,12*$A30,4*(PlotControl!$C$4-1),12,1)) -> 0.087003 | I30: =MAX(OFFSET(P_W_Prop!$D$10,12*$A30,4*(PlotControl!$C$4-1),12,1)) -> 0.096671 | J30: =MAX(OFFSET(P_W_Prop!$E$10,12*$A30,4*(PlotControl!$C$4-1),12,1)) -> 0.10445
A31: 26 | B31: =MAX(OFFSET(P_N_Prop!$C$10,12*$A31,4*(PlotControl!$C$4-1),12,1)) -> 0.095101 | C31: =MAX(OFFSET(P_N_Prop!$D$10,12*$A31,4*(PlotControl!$C$4-1),12,1)) -> 0.1057 | D31: =MAX(OFFSET(P_N_Prop!$E$10,12*$A31,4*(PlotControl!$C$4-1),12,1)) -> 0.1139 | E31: =MAX(OFFSET(P_NW_Prop!$C$10,12*$A31,4*(PlotControl!$C$4-1),12,1)) -> 0.087419 | F31: =MAX(OFFSET(P_NW_Prop!$D$10,12*$A31,4*(PlotControl!$C$4-1),12,1)) -> 0.094979 | G31: =MAX(OFFSET(P_NW_Prop!$E$10,12*$A31,4*(PlotControl!$C$4-1),12,1)) -> 0.10066 | H31: =MAX(OFFSET(P_W_Prop!$C$10,12*$A31,4*(PlotControl!$C$4-1),12,1)) -> 0.086901 | I31: =MAX(OFFSET(P_W_Prop!$D$10,12*$A31,4*(PlotControl!$C$4-1),12,1)) -> 0.096567 | J31: =MAX(OFFSET(P_W_Prop!$E$10,12*$A31,4*(PlotControl!$C$4-1),12,1)) -> 0.10435
A32: 27 | B32: =MAX(OFFSET(P_N_Prop!$C$10,12*$A32,4*(PlotControl!$C$4-1),12,1)) -> 0.094903 | C32: =MAX(OFFSET(P_N_Prop!$D$10,12*$A32,4*(PlotControl!$C$4-1),12,1)) -> 0.10546 | D32: =MAX(OFFSET(P_N_Prop!$E$10,12*$A32,4*(PlotControl!$C$4-1),12,1)) -> 0.11373 | E32: =MAX(OFFSET(P_NW_Prop!$C$10,12*$A32,4*(PlotControl!$C$4-1),12,1)) -> 0.087229 | F32: =MAX(OFFSET(P_NW_Prop!$D$10,12*$A32,4*(PlotControl!$C$4-1),12,1)) -> 0.094825 | G32: =MAX(OFFSET(P_NW_Prop!$E$10,12*$A32,4*(PlotControl!$C$4-1),12,1)) -> 0.10056 | H32: =MAX(OFFSET(P_W_Prop!$C$10,12*$A32,4*(PlotControl!$C$4-1),12,1)) -> 0.0868 | I32: =MAX(OFFSET(P_W_Prop!$D$10,12*$A32,4*(PlotControl!$C$4-1),12,1)) -> 0.096452 | J32: =MAX(OFFSET(P_W_Prop!$E$10,12*$A32,4*(PlotControl!$C$4-1),12,1)) -> 0.10427
A33: 28 | B33: =MAX(OFFSET(P_N_Prop!$C$10,12*$A33,4*(PlotControl!$C$4-1),12,1)) -> 0.094705 | C33: =MAX(OFFSET(P_N_Prop!$D$10,12*$A33,4*(PlotControl!$C$4-1),12,1)) -> 0.10525 | D33: =MAX(OFFSET(P_N_Prop!$E$10,12*$A33,4*(PlotControl!$C$4-1),12,1)) -> 0.11359 | E33: =MAX(OFFSET(P_NW_Prop!$C$10,12*$A33,4*(PlotControl!$C$4-1),12,1)) -> 0.087086 | F33: =MAX(OFFSET(P_NW_Prop!$D$10,12*$A33,4*(PlotControl!$C$4-1),12,1)) -> 0.094677 | G33: =MAX(OFFSET(P_NW_Prop!$E$10,12*$A33,4*(PlotControl!$C$4-1),12,1)) -> 0.10045 | H33: =MAX(OFFSET(P_W_Prop!$C$10,12*$A33,4*(PlotControl!$C$4-1),12,1)) -> 0.086694 | I33: =MAX(OFFSET(P_W_Prop!$D$10,12*$A33,4*(PlotControl!$C$4-1),12,1)) -> 0.096326 | J33: =MAX(OFFSET(P_W_Prop!$E$10,12*$A33,4*(PlotControl!$C$4-1),12,1)) -> 0.1042
A34: 29 | B34: =MAX(OFFSET(P_N_Prop!$C$10,12*$A34,4*(PlotControl!$C$4-1),12,1)) -> 0.094508 | C34: =MAX(OFFSET(P_N_Prop!$D$10,12*$A34,4*(PlotControl!$C$4-1),12,1)) -> 0.10509 | D34: =MAX(OFFSET(P_N_Prop!$E$10,12*$A34,4*(PlotControl!$C$4-1),12,1)) -> 0.11344 | E34: =MAX(OFFSET(P_NW_Prop!$C$10,12*$A34,4*(PlotControl!$C$4-1),12,1)) -> 0.086932 | F34: =MAX(OFFSET(P_NW_Prop!$D$10,12*$A34,4*(PlotControl!$C$4-1),12,1)) -> 0.094548 | G34: =MAX(OFFSET(P_NW_Prop!$E$10,12*$A34,4*(PlotControl!$C$4-1),12,1)) -> 0.10034 | H34: =MAX(OFFSET(P_W_Prop!$C$10,12*$A34,4*(PlotControl!$C$4-1),12,1)) -> 0.086584 | I34: =MAX(OFFSET(P_W_Prop!$D$10,12*$A34,4*(PlotControl!$C$4-1),12,1)) -> 0.096211 | J34: =MAX(OFFSET(P_W_Prop!$E$10,12*$A34,4*(PlotControl!$C$4-1),12,1)) -> 0.10412
A35: 30 | B35: =MAX(OFFSET(P_N_Prop!$C$10,12*$A35,4*(PlotControl!$C$4-1),12,1)) -> 0.094311 | C35: =MAX(OFFSET(P_N_Prop!$D$10,12*$A35,4*(PlotControl!$C$4-1),12,1)) -> 0.1049 | D35: =MAX(OFFSET(P_N_Prop!$E$10,12*$A35,4*(PlotControl!$C$4-1),12,1)) -> 0.11326 | E35: =MAX(OFFSET(P_NW_Prop!$C$10,12*$A35,4*(PlotControl!$C$4-1),12,1)) -> 0.08677 | F35: =MAX(OFFSET(P_NW_Prop!$D$10,12*$A35,4*(PlotControl!$C$4-1),12,1)) -> 0.094435 | G35: =MAX(OFFSET(P_NW_Prop!$E$10,12*$A35,4*(PlotControl!$C$4-1),12,1)) -> 0.10023 | H35: =MAX(OFFSET(P_W_Prop!$C$10,12*$A35,4*(PlotControl!$C$4-1),12,1)) -> 0.086436 | I35: =MAX(OFFSET(P_W_Prop!$D$10,12*$A35,4*(PlotControl!$C$4-1),12,1)) -> 0.096131 | J35: =MAX(OFFSET(P_W_Prop!$E$10,12*$A35,4*(PlotControl!$C$4-1),12,1)) -> 0.10404
A36: 31 | B36: =MAX(OFFSET(P_N_Prop!$C$10,12*$A36,4*(PlotControl!$C$4-1),12,1)) -> 0.094115 | C36: =MAX(OFFSET(P_N_Prop!$D$10,12*$A36,4*(PlotControl!$C$4-1),12,1)) -> 0.1047 | D36: =MAX(OFFSET(P_N_Prop!$E$10,12*$A36,4*(PlotControl!$C$4-1),12,1)) -> 0.11308 | E36: =MAX(OFFSET(P_NW_Prop!$C$10,12*$A36,4*(PlotControl!$C$4-1),12,1)) -> 0.086608 | F36: =MAX(OFFSET(P_NW_Prop!$D$10,12*$A36,4*(PlotControl!$C$4-1),12,1)) -> 0.094359 | G36: =MAX(OFFSET(P_NW_Prop!$E$10,12*$A36,4*(PlotControl!$C$4-1),12,1)) -> 0.10012 | H36: =MAX(OFFSET(P_W_Prop!$C$10,12*$A36,4*(PlotControl!$C$4-1),12,1)) -> 0.086319 | I36: =MAX(OFFSET(P_W_Prop!$D$10,12*$A36,4*(PlotControl!$C$4-1),12,1)) -> 0.095978 | J36: =MAX(OFFSET(P_W_Prop!$E$10,12*$A36,4*(PlotControl!$C$4-1),12,1)) -> 0.10397
A37: 32 | B37: =MAX(OFFSET(P_N_Prop!$C$10,12*$A37,4*(PlotControl!$C$4-1),12,1)) -> 0.093942 | C37: =MAX(OFFSET(P_N_Prop!$D$10,12*$A37,4*(PlotControl!$C$4-1),12,1)) -> 0.10451 | D37: =MAX(OFFSET(P_N_Prop!$E$10,12*$A37,4*(PlotControl!$C$4-1),12,1)) -> 0.1129 | E37: =MAX(OFFSET(P_NW_Prop!$C$10,12*$A37,4*(PlotControl!$C$4-1),12,1)) -> 0.086446 | F37: =MAX(OFFSET(P_NW_Prop!$D$10,12*$A37,4*(PlotControl!$C$4-1),12,1)) -> 0.094217 | G37: =MAX(OFFSET(P_NW_Prop!$E$10,12*$A37,4*(PlotControl!$C$4-1),12,1)) -> 0.1 | H37: =MAX(OFFSET(P_W_Prop!$C$10,12*$A37,4*(PlotControl!$C$4-1),12,1)) -> 0.086225 | I37: =MAX(OFFSET(P_W_Prop!$D$10,12*$A37,4*(PlotControl!$C$4-1),12,1)) -> 0.095868 | J37: =MAX(OFFSET(P_W_Prop!$E$10,12*$A37,4*(PlotControl!$C$4-1),12,1)) -> 0.10391
A38: 33 | B38: =MAX(OFFSET(P_N_Prop!$C$10,12*$A38,4*(PlotControl!$C$4-1),12,1)) -> 0.093738 | C38: =MAX(OFFSET(P_N_Prop!$D$10,12*$A38,4*(PlotControl!$C$4-1),12,1)) -> 0.10426 | D38: =MAX(OFFSET(P_N_Prop!$E$10,12*$A38,4*(PlotControl!$C$4-1),12,1)) -> 0.11272 | E38: =MAX(OFFSET(P_NW_Prop!$C$10,12*$A38,4*(PlotControl!$C$4-1),12,1)) -> 0.086284 | F38: =MAX(OFFSET(P_NW_Prop!$D$10,12*$A38,4*(PlotControl!$C$4-1),12,1)) -> 0.094106 | G38: =MAX(OFFSET(P_NW_Prop!$E$10,12*$A38,4*(PlotControl!$C$4-1),12,1)) -> 0.099895 | H38: =MAX(OFFSET(P_W_Prop!$C$10,12*$A38,4*(PlotControl!$C$4-1),12,1)) -> 0.086133 | I38: =MAX(OFFSET(P_W_Prop!$D$10,12*$A38,4*(PlotControl!$C$4-1),12,1)) -> 0.095771 | J38: =MAX(OFFSET(P_W_Prop!$E$10,12*$A38,4*(PlotControl!$C$4-1),12,1)) -> 0.10385
A39: 34 | B39: =MAX(OFFSET(P_N_Prop!$C$10,12*$A39,4*(PlotControl!$C$4-1),12,1)) -> 0.093535 | C39: =MAX(OFFSET(P_N_Prop!$D$10,12*$A39,4*(PlotControl!$C$4-1),12,1)) -> 0.10407 | D39: =MAX(OFFSET(P_N_Prop!$E$10,12*$A39,4*(PlotControl!$C$4-1),12,1)) -> 0.11255 | E39: =MAX(OFFSET(P_NW_Prop!$C$10,12*$A39,4*(PlotControl!$C$4-1),12,1)) -> 0.086127 | F39: =MAX(OFFSET(P_NW_Prop!$D$10,12*$A39,4*(PlotControl!$C$4-1),12,1)) -> 0.093994 | G39: =MAX(OFFSET(P_NW_Prop!$E$10,12*$A39,4*(PlotControl!$C$4-1),12,1)) -> 0.0998 | H39: =MAX(OFFSET(P_W_Prop!$C$10,12*$A39,4*(PlotControl!$C$4-1),12,1)) -> 0.086066 | I39: =MAX(OFFSET(P_W_Prop!$D$10,12*$A39,4*(PlotControl!$C$4-1),12,1)) -> 0.095678 | J39: =MAX(OFFSET(P_W_Prop!$E$10,12*$A39,4*(PlotControl!$C$4-1),12,1)) -> 0.10377
A40: 35 | B40: =MAX(OFFSET(P_N_Prop!$C$10,12*$A40,4*(PlotControl!$C$4-1),12,1)) -> 0.093326 | C40: =MAX(OFFSET(P_N_Prop!$D$10,12*$A40,4*(PlotControl!$C$4-1),12,1)) -> 0.10389 | D40: =MAX(OFFSET(P_N_Prop!$E$10,12*$A40,4*(PlotControl!$C$4-1),12,1)) -> 0.11239 | E40: =MAX(OFFSET(P_NW_Prop!$C$10,12*$A40,4*(PlotControl!$C$4-1),12,1)) -> 0.085971 | F40: =MAX(OFFSET(P_NW_Prop!$D$10,12*$A40,4*(PlotControl!$C$4-1),12,1)) -> 0.09389 | G40: =MAX(OFFSET(P_NW_Prop!$E$10,12*$A40,4*(PlotControl!$C$4-1),12,1)) -> 0.099731 | H40: =MAX(OFFSET(P_W_Prop!$C$10,12*$A40,4*(PlotControl!$C$4-1),12,1)) -> 0.085981 | I40: =MAX(OFFSET(P_W_Prop!$D$10,12*$A40,4*(PlotControl!$C$4-1),12,1)) -> 0.095585 | J40: =MAX(OFFSET(P_W_Prop!$E$10,12*$A40,4*(PlotControl!$C$4-1),12,1)) -> 0.10367
A41: 36 | B41: =MAX(OFFSET(P_N_Prop!$C$10,12*$A41,4*(PlotControl!$C$4-1),12,1)) -> 0.093098 | C41: =MAX(OFFSET(P_N_Prop!$D$10,12*$A41,4*(PlotControl!$C$4-1),12,1)) -> 0.10371 | D41: =MAX(OFFSET(P_N_Prop!$E$10,12*$A41,4*(PlotControl!$C$4-1),12,1)) -> 0.11223 | E41: =MAX(OFFSET(P_NW_Prop!$C$10,12*$A41,4*(PlotControl!$C$4-1),12,1)) -> 0.08583 | F41: =MAX(OFFSET(P_NW_Prop!$D$10,12*$A41,4*(PlotControl!$C$4-1),12,1)) -> 0.0938 | G41: =MAX(OFFSET(P_NW_Prop!$E$10,12*$A41,4*(PlotControl!$C$4-1),12,1)) -> 0.099662 | H41: =MAX(OFFSET(P_W_Prop!$C$10,12*$A41,4*(PlotControl!$C$4-1),12,1)) -> 0.085863 | I41: =MAX(OFFSET(P_W_Prop!$D$10,12*$A41,4*(PlotControl!$C$4-1),12,1)) -> 0.095465 | J41: =MAX(OFFSET(P_W_Prop!$E$10,12*$A41,4*(PlotControl!$C$4-1),12,1)) -> 0.10356
A42: 37 | B42: =MAX(OFFSET(P_N_Prop!$C$10,12*$A42,4*(PlotControl!$C$4-1),12,1)) -> 0.092901 | C42: =MAX(OFFSET(P_N_Prop!$D$10,12*$A42,4*(PlotControl!$C$4-1),12,1)) -> 0.10353 | D42: =MAX(OFFSET(P_N_Prop!$E$10,12*$A42,4*(PlotControl!$C$4-1),12,1)) -> 0.11208 | E42: =MAX(OFFSET(P_NW_Prop!$C$10,12*$A42,4*(PlotControl!$C$4-1),12,1)) -> 0.085691 | F42: =MAX(OFFSET(P_NW_Prop!$D$10,12*$A42,4*(PlotControl!$C$4-1),12,1)) -> 0.09371 | G42: =MAX(OFFSET(P_NW_Prop!$E$10,12*$A42,4*(PlotControl!$C$4-1),12,1)) -> 0.099593 | H42: =MAX(OFFSET(P_W_Prop!$C$10,12*$A42,4*(PlotControl!$C$4-1),12,1)) -> 0.085746 | I42: =MAX(OFFSET(P_W_Prop!$D$10,12*$A42,4*(PlotControl!$C$4-1),12,1)) -> 0.095366 | J42: =MAX(OFFSET(P_W_Prop!$E$10,12*$A42,4*(PlotControl!$C$4-1),12,1)) -> 0.10345
A43: 38 | B43: =MAX(OFFSET(P_N_Prop!$C$10,12*$A43,4*(PlotControl!$C$4-1),12,1)) -> 0.092725 | C43: =MAX(OFFSET(P_N_Prop!$D$10,12*$A43,4*(PlotControl!$C$4-1),12,1)) -> 0.10335 | D43: =MAX(OFFSET(P_N_Prop!$E$10,12*$A43,4*(PlotControl!$C$4-1),12,1)) -> 0.11192 | E43: =MAX(OFFSET(P_NW_Prop!$C$10,12*$A43,4*(PlotControl!$C$4-1),12,1)) -> 0.085584 | F43: =MAX(OFFSET(P_NW_Prop!$D$10,12*$A43,4*(PlotControl!$C$4-1),12,1)) -> 0.093568 | G43: =MAX(OFFSET(P_NW_Prop!$E$10,12*$A43,4*(PlotControl!$C$4-1),12,1)) -> 0.099525 | H43: =MAX(OFFSET(P_W_Prop!$C$10,12*$A43,4*(PlotControl!$C$4-1),12,1)) -> 0.085625 | I43: =MAX(OFFSET(P_W_Prop!$D$10,12*$A43,4*(PlotControl!$C$4-1),12,1)) -> 0.09529 | J43: =MAX(OFFSET(P_W_Prop!$E$10,12*$A43,4*(PlotControl!$C$4-1),12,1)) -> 0.10335
A44: 39 | B44: =MAX(OFFSET(P_N_Prop!$C$10,12*$A44,4*(PlotControl!$C$4-1),12,1)) -> 0.092536 | C44: =MAX(OFFSET(P_N_Prop!$D$10,12*$A44,4*(PlotControl!$C$4-1),12,1)) -> 0.10314 | D44: =MAX(OFFSET(P_N_Prop!$E$10,12*$A44,4*(PlotControl!$C$4-1),12,1)) -> 0.11176 | E44: =MAX(OFFSET(P_NW_Prop!$C$10,12*$A44,4*(PlotControl!$C$4-1),12,1)) -> 0.085477 | F44: =MAX(OFFSET(P_NW_Prop!$D$10,12*$A44,4*(PlotControl!$C$4-1),12,1)) -> 0.093464 | G44: =MAX(OFFSET(P_NW_Prop!$E$10,12*$A44,4*(PlotControl!$C$4-1),12,1)) -> 0.09944 | H44: =MAX(OFFSET(P_W_Prop!$C$10,12*$A44,4*(PlotControl!$C$4-1),12,1)) -> 0.085522 | I44: =MAX(OFFSET(P_W_Prop!$D$10,12*$A44,4*(PlotControl!$C$4-1),12,1)) -> 0.095211 | J44: =MAX(OFFSET(P_W_Prop!$E$10,12*$A44,4*(PlotControl!$C$4-1),12,1)) -> 0.10326
A45: 40 | B45: =MAX(OFFSET(P_N_Prop!$C$10,12*$A45,4*(PlotControl!$C$4-1),12,1)) -> 0.092348 | C45: =MAX(OFFSET(P_N_Prop!$D$10,12*$A45,4*(PlotControl!$C$4-1),12,1)) -> 0.10295 | D45: =MAX(OFFSET(P_N_Prop!$E$10,12*$A45,4*(PlotControl!$C$4-1),12,1)) -> 0.1116 | E45: =MAX(OFFSET(P_NW_Prop!$C$10,12*$A45,4*(PlotControl!$C$4-1),12,1)) -> 0.085371 | F45: =MAX(OFFSET(P_NW_Prop!$D$10,12*$A45,4*(PlotControl!$C$4-1),12,1)) -> 0.093375 | G45: =MAX(OFFSET(P_NW_Prop!$E$10,12*$A45,4*(PlotControl!$C$4-1),12,1)) -> 0.099343 | H45: =MAX(OFFSET(P_W_Prop!$C$10,12*$A45,4*(PlotControl!$C$4-1),12,1)) -> 0.085353 | I45: =MAX(OFFSET(P_W_Prop!$D$10,12*$A45,4*(PlotControl!$C$4-1),12,1)) -> 0.095111 | J45: =MAX(OFFSET(P_W_Prop!$E$10,12*$A45,4*(PlotControl!$C$4-1),12,1)) -> 0.10317
A46: 41 | B46: =MAX(OFFSET(P_N_Prop!$C$10,12*$A46,4*(PlotControl!$C$4-1),12,1)) -> 0.092157 | C46: =MAX(OFFSET(P_N_Prop!$D$10,12*$A46,4*(PlotControl!$C$4-1),12,1)) -> 0.10277 | D46: =MAX(OFFSET(P_N_Prop!$E$10,12*$A46,4*(PlotControl!$C$4-1),12,1)) -> 0.11145 | E46: =MAX(OFFSET(P_NW_Prop!$C$10,12*$A46,4*(PlotControl!$C$4-1),12,1)) -> 0.085264 | F46: =MAX(OFFSET(P_NW_Prop!$D$10,12*$A46,4*(PlotControl!$C$4-1),12,1)) -> 0.093274 | G46: =MAX(OFFSET(P_NW_Prop!$E$10,12*$A46,4*(PlotControl!$C$4-1),12,1)) -> 0.099231 | H46: =MAX(OFFSET(P_W_Prop!$C$10,12*$A46,4*(PlotControl!$C$4-1),12,1)) -> 0.085226 | I46: =MAX(OFFSET(P_W_Prop!$D$10,12*$A46,4*(PlotControl!$C$4-1),12,1)) -> 0.095012 | J46: =MAX(OFFSET(P_W_Prop!$E$10,12*$A46,4*(PlotControl!$C$4-1),12,1)) -> 0.10307
A47: 42 | B47: =MAX(OFFSET(P_N_Prop!$C$10,12*$A47,4*(PlotControl!$C$4-1),12,1)) -> 0.091965 | C47: =MAX(OFFSET(P_N_Prop!$D$10,12*$A47,4*(PlotControl!$C$4-1),12,1)) -> 0.10258 | D47: =MAX(OFFSET(P_N_Prop!$E$10,12*$A47,4*(PlotControl!$C$4-1),12,1)) -> 0.1113 | E47: =MAX(OFFSET(P_NW_Prop!$C$10,12*$A47,4*(PlotControl!$C$4-1),12,1)) -> 0.085158 | F47: =MAX(OFFSET(P_NW_Prop!$D$10,12*$A47,4*(PlotControl!$C$4-1),12,1)) -> 0.093161 | G47: =MAX(OFFSET(P_NW_Prop!$E$10,12*$A47,4*(PlotControl!$C$4-1),12,1)) -> 0.09912 | H47: =MAX(OFFSET(P_W_Prop!$C$10,12*$A47,4*(PlotControl!$C$4-1),12,1)) -> 0.085109 | I47: =MAX(OFFSET(P_W_Prop!$D$10,12*$A47,4*(PlotControl!$C$4-1),12,1)) -> 0.094912 | J47: =MAX(OFFSET(P_W_Prop!$E$10,12*$A47,4*(PlotControl!$C$4-1),12,1)) -> 0.10294
A48: 43 | B48: =MAX(OFFSET(P_N_Prop!$C$10,12*$A48,4*(PlotControl!$C$4-1),12,1)) -> 0.091774 | C48: =MAX(OFFSET(P_N_Prop!$D$10,12*$A48,4*(PlotControl!$C$4-1),12,1)) -> 0.1024 | D48: =MAX(OFFSET(P_N_Prop!$E$10,12*$A48,4*(PlotControl!$C$4-1),12,1)) -> 0.11114 | E48: =MAX(OFFSET(P_NW_Prop!$C$10,12*$A48,4*(PlotControl!$C$4-1),12,1)) -> 0.085032 | F48: =MAX(OFFSET(P_NW_Prop!$D$10,12*$A48,4*(PlotControl!$C$4-1),12,1)) -> 0.093091 | G48: =MAX(OFFSET(P_NW_Prop!$E$10,12*$A48,4*(PlotControl!$C$4-1),12,1)) -> 0.099021 | H48: =MAX(OFFSET(P_W_Prop!$C$10,12*$A48,4*(PlotControl!$C$4-1),12,1)) -> 0.085014 | I48: =MAX(OFFSET(P_W_Prop!$D$10,12*$A48,4*(PlotControl!$C$4-1),12,1)) -> 0.094813 | J48: =MAX(OFFSET(P_W_Prop!$E$10,12*$A48,4*(PlotControl!$C$4-1),12,1)) -> 0.10281
A49: 44 | B49: =MAX(OFFSET(P_N_Prop!$C$10,12*$A49,4*(PlotControl!$C$4-1),12,1)) -> 0.091621 | C49: =MAX(OFFSET(P_N_Prop!$D$10,12*$A49,4*(PlotControl!$C$4-1),12,1)) -> 0.10221 | D49: =MAX(OFFSET(P_N_Prop!$E$10,12*$A49,4*(PlotControl!$C$4-1),12,1)) -> 0.11099 | E49: =MAX(OFFSET(P_NW_Prop!$C$10,12*$A49,4*(PlotControl!$C$4-1),12,1)) -> 0.084897 | F49: =MAX(OFFSET(P_NW_Prop!$D$10,12*$A49,4*(PlotControl!$C$4-1),12,1)) -> 0.092967 | G49: =MAX(OFFSET(P_NW_Prop!$E$10,12*$A49,4*(PlotControl!$C$4-1),12,1)) -> 0.098937 | H49: =MAX(OFFSET(P_W_Prop!$C$10,12*$A49,4*(PlotControl!$C$4-1),12,1)) -> 0.084924 | I49: =MAX(OFFSET(P_W_Prop!$D$10,12*$A49,4*(PlotControl!$C$4-1),12,1)) -> 0.094683 | J49: =MAX(OFFSET(P_W_Prop!$E$10,12*$A49,4*(PlotControl!$C$4-1),12,1)) -> 0.1027
A50: 45 | B50: =MAX(OFFSET(P_N_Prop!$C$10,12*$A50,4*(PlotControl!$C$4-1),12,1)) -> 0.091482 | C50: =MAX(OFFSET(P_N_Prop!$D$10,12*$A50,4*(PlotControl!$C$4-1),12,1)) -> 0.10203 | D50: =MAX(OFFSET(P_N_Prop!$E$10,12*$A50,4*(PlotControl!$C$4-1),12,1)) -> 0.11083 | E50: =MAX(OFFSET(P_NW_Prop!$C$10,12*$A50,4*(PlotControl!$C$4-1),12,1)) -> 0.084763 | F50: =MAX(OFFSET(P_NW_Prop!$D$10,12*$A50,4*(PlotControl!$C$4-1),12,1)) -> 0.092835 | G50: =MAX(OFFSET(P_NW_Prop!$E$10,12*$A50,4*(PlotControl!$C$4-1),12,1)) -> 0.098863 | H50: =MAX(OFFSET(P_W_Prop!$C$10,12*$A50,4*(PlotControl!$C$4-1),12,1)) -> 0.084834 | I50: =MAX(OFFSET(P_W_Prop!$D$10,12*$A50,4*(PlotControl!$C$4-1),12,1)) -> 0.094598 | J50: =MAX(OFFSET(P_W_Prop!$E$10,12*$A50,4*(PlotControl!$C$4-1),12,1)) -> 0.10262
A51: 46 | B51: =MAX(OFFSET(P_N_Prop!$C$10,12*$A51,4*(PlotControl!$C$4-1),12,1)) -> 0.091342 | C51: =MAX(OFFSET(P_N_Prop!$D$10,12*$A51,4*(PlotControl!$C$4-1),12,1)) -> 0.10186 | D51: =MAX(OFFSET(P_N_Prop!$E$10,12*$A51,4*(PlotControl!$C$4-1),12,1)) -> 0.11065 | E51: =MAX(OFFSET(P_NW_Prop!$C$10,12*$A51,4*(PlotControl!$C$4-1),12,1)) -> 0.084629 | F51: =MAX(OFFSET(P_NW_Prop!$D$10,12*$A51,4*(PlotControl!$C$4-1),12,1)) -> 0.092665 | G51: =MAX(OFFSET(P_NW_Prop!$E$10,12*$A51,4*(PlotControl!$C$4-1),12,1)) -> 0.098786 | H51: =MAX(OFFSET(P_W_Prop!$C$10,12*$A51,4*(PlotControl!$C$4-1),12,1)) -> 0.084744 | I51: =MAX(OFFSET(P_W_Prop!$D$10,12*$A51,4*(PlotControl!$C$4-1),12,1)) -> 0.094501 | J51: =MAX(OFFSET(P_W_Prop!$E$10,12*$A51,4*(PlotControl!$C$4-1),12,1)) -> 0.10254
A52: 47 | B52: =MAX(OFFSET(P_N_Prop!$C$10,12*$A52,4*(PlotControl!$C$4-1),12,1)) -> 0.091162 | C52: =MAX(OFFSET(P_N_Prop!$D$10,12*$A52,4*(PlotControl!$C$4-1),12,1)) -> 0.10169 | D52: =MAX(OFFSET(P_N_Prop!$E$10,12*$A52,4*(PlotControl!$C$4-1),12,1)) -> 0.11046 | E52: =MAX(OFFSET(P_NW_Prop!$C$10,12*$A52,4*(PlotControl!$C$4-1),12,1)) -> 0.084496 | F52: =MAX(OFFSET(P_NW_Prop!$D$10,12*$A52,4*(PlotControl!$C$4-1),12,1)) -> 0.092552 | G52: =MAX(OFFSET(P_NW_Prop!$E$10,12*$A52,4*(PlotControl!$C$4-1),12,1)) -> 0.098707 | H52: =MAX(OFFSET(P_W_Prop!$C$10,12*$A52,4*(PlotControl!$C$4-1),12,1)) -> 0.084641 | I52: =MAX(OFFSET(P_W_Prop!$D$10,12*$A52,4*(PlotControl!$C$4-1),12,1)) -> 0.094372 | J52: =MAX(OFFSET(P_W_Prop!$E$10,12*$A52,4*(PlotControl!$C$4-1),12,1)) -> 0.10247
A53: 48 | B53: =MAX(OFFSET(P_N_Prop!$C$10,12*$A53,4*(PlotControl!$C$4-1),12,1)) -> 0.090979 | C53: =MAX(OFFSET(P_N_Prop!$D$10,12*$A53,4*(PlotControl!$C$4-1),12,1)) -> 0.1015 | D53: =MAX(OFFSET(P_N_Prop!$E$10,12*$A53,4*(PlotControl!$C$4-1),12,1)) -> 0.11028 | E53: =MAX(OFFSET(P_NW_Prop!$C$10,12*$A53,4*(PlotControl!$C$4-1),12,1)) -> 0.084385 | F53: =MAX(OFFSET(P_NW_Prop!$D$10,12*$A53,4*(PlotControl!$C$4-1),12,1)) -> 0.092462 | G53: =MAX(OFFSET(P_NW_Prop!$E$10,12*$A53,4*(PlotControl!$C$4-1),12,1)) -> 0.098628 | H53: =MAX(OFFSET(P_W_Prop!$C$10,12*$A53,4*(PlotControl!$C$4-1),12,1)) -> 0.084534 | I53: =MAX(OFFSET(P_W_Prop!$D$10,12*$A53,4*(PlotControl!$C$4-1),12,1)) -> 0.094268 | J53: =MAX(OFFSET(P_W_Prop!$E$10,12*$A53,4*(PlotControl!$C$4-1),12,1)) -> 0.10239
A54: 49 | B54: =MAX(OFFSET(P_N_Prop!$C$10,12*$A54,4*(PlotControl!$C$4-1),12,1)) -> 0.090796 | C54: =MAX(OFFSET(P_N_Prop!$D$10,12*$A54,4*(PlotControl!$C$4-1),12,1)) -> 0.10133 | D54: =MAX(OFFSET(P_N_Prop!$E$10,12*$A54,4*(PlotControl!$C$4-1),12,1)) -> 0.11011 | E54: =MAX(OFFSET(P_NW_Prop!$C$10,12*$A54,4*(PlotControl!$C$4-1),12,1)) -> 0.084286 | F54: =MAX(OFFSET(P_NW_Prop!$D$10,12*$A54,4*(PlotControl!$C$4-1),12,1)) -> 0.092357 | G54: =MAX(OFFSET(P_NW_Prop!$E$10,12*$A54,4*(PlotControl!$C$4-1),12,1)) -> 0.098549 | H54: =MAX(OFFSET(P_W_Prop!$C$10,12*$A54,4*(PlotControl!$C$4-1),12,1)) -> 0.084426 | I54: =MAX(OFFSET(P_W_Prop!$D$10,12*$A54,4*(PlotControl!$C$4-1),12,1)) -> 0.09417 | J54: =MAX(OFFSET(P_W_Prop!$E$10,12*$A54,4*(PlotControl!$C$4-1),12,1)) -> 0.1023
A55: 50 | B55: =MAX(OFFSET(P_N_Prop!$C$10,12*$A55,4*(PlotControl!$C$4-1),12,1)) -> 0.090614 | C55: =MAX(OFFSET(P_N_Prop!$D$10,12*$A55,4*(PlotControl!$C$4-1),12,1)) -> 0.10117 | D55: =MAX(OFFSET(P_N_Prop!$E$10,12*$A55,4*(PlotControl!$C$4-1),12,1)) -> 0.10996 | E55: =MAX(OFFSET(P_NW_Prop!$C$10,12*$A55,4*(PlotControl!$C$4-1),12,1)) -> 0.084184 | F55: =MAX(OFFSET(P_NW_Prop!$D$10,12*$A55,4*(PlotControl!$C$4-1),12,1)) -> 0.092226 | G55: =MAX(OFFSET(P_NW_Prop!$E$10,12*$A55,4*(PlotControl!$C$4-1),12,1)) -> 0.098471 | H55: =MAX(OFFSET(P_W_Prop!$C$10,12*$A55,4*(PlotControl!$C$4-1),12,1)) -> 0.084319 | I55: =MAX(OFFSET(P_W_Prop!$D$10,12*$A55,4*(PlotControl!$C$4-1),12,1)) -> 0.09406 | J55: =MAX(OFFSET(P_W_Prop!$E$10,12*$A55,4*(PlotControl!$C$4-1),12,1)) -> 0.1022
A56: 51 | B56: =MAX(OFFSET(P_N_Prop!$C$10,12*$A56,4*(PlotControl!$C$4-1),12,1)) -> 0.090423 | C56: =MAX(OFFSET(P_N_Prop!$D$10,12*$A56,4*(PlotControl!$C$4-1),12,1)) -> 0.101 | D56: =MAX(OFFSET(P_N_Prop!$E$10,12*$A56,4*(PlotControl!$C$4-1),12,1)) -> 0.10982 | E56: =MAX(OFFSET(P_NW_Prop!$C$10,12*$A56,4*(PlotControl!$C$4-1),12,1)) -> 0.084045 | F56: =MAX(OFFSET(P_NW_Prop!$D$10,12*$A56,4*(PlotControl!$C$4-1),12,1)) -> 0.092096 | G56: =MAX(OFFSET(P_NW_Prop!$E$10,12*$A56,4*(PlotControl!$C$4-1),12,1)) -> 0.098393 | H56: =MAX(OFFSET(P_W_Prop!$C$10,12*$A56,4*(PlotControl!$C$4-1),12,1)) -> 0.084212 | I56: =MAX(OFFSET(P_W_Prop!$D$10,12*$A56,4*(PlotControl!$C$4-1),12,1)) -> 0.09395 | J56: =MAX(OFFSET(P_W_Prop!$E$10,12*$A56,4*(PlotControl!$C$4-1),12,1)) -> 0.10209
A57: 52 | B57: =MAX(OFFSET(P_N_Prop!$C$10,12*$A57,4*(PlotControl!$C$4-1),12,1)) -> 0.090207 | C57: =MAX(OFFSET(P_N_Prop!$D$10,12*$A57,4*(PlotControl!$C$4-1),12,1)) -> 0.10084 | D57: =MAX(OFFSET(P_N_Prop!$E$10,12*$A57,4*(PlotControl!$C$4-1),12,1)) -> 0.10968 | E57: =MAX(OFFSET(P_NW_Prop!$C$10,12*$A57,4*(PlotControl!$C$4-1),12,1)) -> 0.083916 | F57: =MAX(OFFSET(P_NW_Prop!$D$10,12*$A57,4*(PlotControl!$C$4-1),12,1)) -> 0.091987 | G57: =MAX(OFFSET(P_NW_Prop!$E$10,12*$A57,4*(PlotControl!$C$4-1),12,1)) -> 0.098316 | H57: =MAX(OFFSET(P_W_Prop!$C$10,12*$A57,4*(PlotControl!$C$4-1),12,1)) -> 0.084128 | I57: =MAX(OFFSET(P_W_Prop!$D$10,12*$A57,4*(PlotControl!$C$4-1),12,1)) -> 0.093793 | J57: =MAX(OFFSET(P_W_Prop!$E$10,12*$A57,4*(PlotControl!$C$4-1),12,1)) -> 0.10199
A58: 53 | B58: =MAX(OFFSET(P_N_Prop!$C$10,12*$A58,4*(PlotControl!$C$4-1),12,1)) -> 0.089992 | C58: =MAX(OFFSET(P_N_Prop!$D$10,12*$A58,4*(PlotControl!$C$4-1),12,1)) -> 0.10067 | D58: =MAX(OFFSET(P_N_Prop!$E$10,12*$A58,4*(PlotControl!$C$4-1),12,1)) -> 0.10956 | E58: =MAX(OFFSET(P_NW_Prop!$C$10,12*$A58,4*(PlotControl!$C$4-1),12,1)) -> 0.083845 | F58: =MAX(OFFSET(P_NW_Prop!$D$10,12*$A58,4*(PlotControl!$C$4-1),12,1)) -> 0.091873 | G58: =MAX(OFFSET(P_NW_Prop!$E$10,12*$A58,4*(PlotControl!$C$4-1),12,1)) -> 0.098238 | H58: =MAX(OFFSET(P_W_Prop!$C$10,12*$A58,4*(PlotControl!$C$4-1),12,1)) -> 0.084047 | I58: =MAX(OFFSET(P_W_Prop!$D$10,12*$A58,4*(PlotControl!$C$4-1),12,1)) -> 0.093663 | J58: =MAX(OFFSET(P_W_Prop!$E$10,12*$A58,4*(PlotControl!$C$4-1),12,1)) -> 0.10189
A59: 54 | B59: =MAX(OFFSET(P_N_Prop!$C$10,12*$A59,4*(PlotControl!$C$4-1),12,1)) -> 0.089729 | C59: =MAX(OFFSET(P_N_Prop!$D$10,12*$A59,4*(PlotControl!$C$4-1),12,1)) -> 0.10051 | D59: =MAX(OFFSET(P_N_Prop!$E$10,12*$A59,4*(PlotControl!$C$4-1),12,1)) -> 0.10942 | E59: =MAX(OFFSET(P_NW_Prop!$C$10,12*$A59,4*(PlotControl!$C$4-1),12,1)) -> 0.083756 | F59: =MAX(OFFSET(P_NW_Prop!$D$10,12*$A59,4*(PlotControl!$C$4-1),12,1)) -> 0.091751 | G59: =MAX(OFFSET(P_NW_Prop!$E$10,12*$A59,4*(PlotControl!$C$4-1),12,1)) -> 0.098143 | H59: =MAX(OFFSET(P_W_Prop!$C$10,12*$A59,4*(PlotControl!$C$4-1),12,1)) -> 0.083934 | I59: =MAX(OFFSET(P_W_Prop!$D$10,12*$A59,4*(PlotControl!$C$4-1),12,1)) -> 0.093553 | J59: =MAX(OFFSET(P_W_Prop!$E$10,12*$A59,4*(PlotControl!$C$4-1),12,1)) -> 0.10178
A60: 55 | B60: =MAX(OFFSET(P_N_Prop!$C$10,12*$A60,4*(PlotControl!$C$4-1),12,1)) -> 0.089494 | C60: =MAX(OFFSET(P_N_Prop!$D$10,12*$A60,4*(PlotControl!$C$4-1),12,1)) -> 0.10033 | D60: =MAX(OFFSET(P_N_Prop!$E$10,12*$A60,4*(PlotControl!$C$4-1),12,1)) -> 0.1093 | E60: =MAX(OFFSET(P_NW_Prop!$C$10,12*$A60,4*(PlotControl!$C$4-1),12,1)) -> 0.083643 | F60: =MAX(OFFSET(P_NW_Prop!$D$10,12*$A60,4*(PlotControl!$C$4-1),12,1)) -> 0.091626 | G60: =MAX(OFFSET(P_NW_Prop!$E$10,12*$A60,4*(PlotControl!$C$4-1),12,1)) -> 0.098049 | H60: =MAX(OFFSET(P_W_Prop!$C$10,12*$A60,4*(PlotControl!$C$4-1),12,1)) -> 0.083771 | I60: =MAX(OFFSET(P_W_Prop!$D$10,12*$A60,4*(PlotControl!$C$4-1),12,1)) -> 0.093473 | J60: =MAX(OFFSET(P_W_Prop!$E$10,12*$A60,4*(PlotControl!$C$4-1),12,1)) -> 0.10168
A61: 56 | B61: =MAX(OFFSET(P_N_Prop!$C$10,12*$A61,4*(PlotControl!$C$4-1),12,1)) -> 0.089261 | C61: =MAX(OFFSET(P_N_Prop!$D$10,12*$A61,4*(PlotControl!$C$4-1),12,1)) -> 0.10013 | D61: =MAX(OFFSET(P_N_Prop!$E$10,12*$A61,4*(PlotControl!$C$4-1),12,1)) -> 0.10916 | E61: =MAX(OFFSET(P_NW_Prop!$C$10,12*$A61,4*(PlotControl!$C$4-1),12,1)) -> 0.083496 | F61: =MAX(OFFSET(P_NW_Prop!$D$10,12*$A61,4*(PlotControl!$C$4-1),12,1)) -> 0.091506 | G61: =MAX(OFFSET(P_NW_Prop!$E$10,12*$A61,4*(PlotControl!$C$4-1),12,1)) -> 0.097955 | H61: =MAX(OFFSET(P_W_Prop!$C$10,12*$A61,4*(PlotControl!$C$4-1),12,1)) -> 0.083639 | I61: =MAX(OFFSET(P_W_Prop!$D$10,12*$A61,4*(PlotControl!$C$4-1),12,1)) -> 0.093388 | J61: =MAX(OFFSET(P_W_Prop!$E$10,12*$A61,4*(PlotControl!$C$4-1),12,1)) -> 0.10158
A62: 57 | B62: =MAX(OFFSET(P_N_Prop!$C$10,12*$A62,4*(PlotControl!$C$4-1),12,1)) -> 0.089118 | C62: =MAX(OFFSET(P_N_Prop!$D$10,12*$A62,4*(PlotControl!$C$4-1),12,1)) -> 0.099984 | D62: =MAX(OFFSET(P_N_Prop!$E$10,12*$A62,4*(PlotControl!$C$4-1),12,1)) -> 0.10901 | E62: =MAX(OFFSET(P_NW_Prop!$C$10,12*$A62,4*(PlotControl!$C$4-1),12,1)) -> 0.083364 | F62: =MAX(OFFSET(P_NW_Prop!$D$10,12*$A62,4*(PlotControl!$C$4-1),12,1)) -> 0.091386 | G62: =MAX(OFFSET(P_NW_Prop!$E$10,12*$A62,4*(PlotControl!$C$4-1),12,1)) -> 0.097862 | H62: =MAX(OFFSET(P_W_Prop!$C$10,12*$A62,4*(PlotControl!$C$4-1),12,1)) -> 0.083525 | I62: =MAX(OFFSET(P_W_Prop!$D$10,12*$A62,4*(PlotControl!$C$4-1),12,1)) -> 0.093297 | J62: =MAX(OFFSET(P_W_Prop!$E$10,12*$A62,4*(PlotControl!$C$4-1),12,1)) -> 0.10148
A63: 58 | B63: =MAX(OFFSET(P_N_Prop!$C$10,12*$A63,4*(PlotControl!$C$4-1),12,1)) -> 0.088994 | C63: =MAX(OFFSET(P_N_Prop!$D$10,12*$A63,4*(PlotControl!$C$4-1),12,1)) -> 0.099841 | D63: =MAX(OFFSET(P_N_Prop!$E$10,12*$A63,4*(PlotControl!$C$4-1),12,1)) -> 0.10886 | E63: =MAX(OFFSET(P_NW_Prop!$C$10,12*$A63,4*(PlotControl!$C$4-1),12,1)) -> 0.083233 | F63: =MAX(OFFSET(P_NW_Prop!$D$10,12*$A63,4*(PlotControl!$C$4-1),12,1)) -> 0.091254 | G63: =MAX(OFFSET(P_NW_Prop!$E$10,12*$A63,4*(PlotControl!$C$4-1),12,1)) -> 0.09777 | H63: =MAX(OFFSET(P_W_Prop!$C$10,12*$A63,4*(PlotControl!$C$4-1),12,1)) -> 0.083437 | I63: =MAX(OFFSET(P_W_Prop!$D$10,12*$A63,4*(PlotControl!$C$4-1),12,1)) -> 0.093189 | J63: =MAX(OFFSET(P_W_Prop!$E$10,12*$A63,4*(PlotControl!$C$4-1),12,1)) -> 0.1014
A64: 59 | B64: =MAX(OFFSET(P_N_Prop!$C$10,12*$A64,4*(PlotControl!$C$4-1),12,1)) -> 0.088871 | C64: =MAX(OFFSET(P_N_Prop!$D$10,12*$A64,4*(PlotControl!$C$4-1),12,1)) -> 0.099657 | D64: =MAX(OFFSET(P_N_Prop!$E$10,12*$A64,4*(PlotControl!$C$4-1),12,1)) -> 0.10872 | E64: =MAX(OFFSET(P_NW_Prop!$C$10,12*$A64,4*(PlotControl!$C$4-1),12,1)) -> 0.08314 | F64: =MAX(OFFSET(P_NW_Prop!$D$10,12*$A64,4*(PlotControl!$C$4-1),12,1)) -> 0.09112 | G64: =MAX(OFFSET(P_NW_Prop!$E$10,12*$A64,4*(PlotControl!$C$4-1),12,1)) -> 0.097682 | H64: =MAX(OFFSET(P_W_Prop!$C$10,12*$A64,4*(PlotControl!$C$4-1),12,1)) -> 0.083301 | I64: =MAX(OFFSET(P_W_Prop!$D$10,12*$A64,4*(PlotControl!$C$4-1),12,1)) -> 0.093069 | J64: =MAX(OFFSET(P_W_Prop!$E$10,12*$A64,4*(PlotControl!$C$4-1),12,1)) -> 0.10131
A65: 60 | B65: =MAX(OFFSET(P_N_Prop!$C$10,12*$A65,4*(PlotControl!$C$4-1),12,1)) -> 0.088718 | C65: =MAX(OFFSET(P_N_Prop!$D$10,12*$A65,4*(PlotControl!$C$4-1),12,1)) -> 0.099477 | D65: =MAX(OFFSET(P_N_Prop!$E$10,12*$A65,4*(PlotControl!$C$4-1),12,1)) -> 0.10859 | E65: =MAX(OFFSET(P_NW_Prop!$C$10,12*$A65,4*(PlotControl!$C$4-1),12,1)) -> 0.083047 | F65: =MAX(OFFSET(P_NW_Prop!$D$10,12*$A65,4*(PlotControl!$C$4-1),12,1)) -> 0.091003 | G65: =MAX(OFFSET(P_NW_Prop!$E$10,12*$A65,4*(PlotControl!$C$4-1),12,1)) -> 0.097595 | H65: =MAX(OFFSET(P_W_Prop!$C$10,12*$A65,4*(PlotControl!$C$4-1),12,1)) -> 0.083158 | I65: =MAX(OFFSET(P_W_Prop!$D$10,12*$A65,4*(PlotControl!$C$4-1),12,1)) -> 0.092949 | J65: =MAX(OFFSET(P_W_Prop!$E$10,12*$A65,4*(PlotControl!$C$4-1),12,1)) -> 0.10124
A66: 61 | B66: =MAX(OFFSET(P_N_Prop!$C$10,12*$A66,4*(PlotControl!$C$4-1),12,1)) -> 0.088552 | C66: =MAX(OFFSET(P_N_Prop!$D$10,12*$A66,4*(PlotControl!$C$4-1),12,1)) -> 0.099288 | D66: =MAX(OFFSET(P_N_Prop!$E$10,12*$A66,4*(PlotControl!$C$4-1),12,1)) -> 0.10846 | E66: =MAX(OFFSET(P_NW_Prop!$C$10,12*$A66,4*(PlotControl!$C$4-1),12,1)) -> 0.08293 | F66: =MAX(OFFSET(P_NW_Prop!$D$10,12*$A66,4*(PlotControl!$C$4-1),12,1)) -> 0.090901 | G66: =MAX(OFFSET(P_NW_Prop!$E$10,12*$A66,4*(PlotControl!$C$4-1),12,1)) -> 0.097514 | H66: =MAX(OFFSET(P_W_Prop!$C$10,12*$A66,4*(PlotControl!$C$4-1),12,1)) -> 0.083016 | I66: =MAX(OFFSET(P_W_Prop!$D$10,12*$A66,4*(PlotControl!$C$4-1),12,1)) -> 0.092829 | J66: =MAX(OFFSET(P_W_Prop!$E$10,12*$A66,4*(PlotControl!$C$4-1),12,1)) -> 0.10118
A67: 62 | B67: =MAX(OFFSET(P_N_Prop!$C$10,12*$A67,4*(PlotControl!$C$4-1),12,1)) -> 0.088369 | C67: =MAX(OFFSET(P_N_Prop!$D$10,12*$A67,4*(PlotControl!$C$4-1),12,1)) -> 0.099107 | D67: =MAX(OFFSET(P_N_Prop!$E$10,12*$A67,4*(PlotControl!$C$4-1),12,1)) -> 0.10833 | E67: =MAX(OFFSET(P_NW_Prop!$C$10,12*$A67,4*(PlotControl!$C$4-1),12,1)) -> 0.082814 | F67: =MAX(OFFSET(P_NW_Prop!$D$10,12*$A67,4*(PlotControl!$C$4-1),12,1)) -> 0.090785 | G67: =MAX(OFFSET(P_NW_Prop!$E$10,12*$A67,4*(PlotControl!$C$4-1),12,1)) -> 0.097435 | H67: =MAX(OFFSET(P_W_Prop!$C$10,12*$A67,4*(PlotControl!$C$4-1),12,1)) -> 0.082887 | I67: =MAX(OFFSET(P_W_Prop!$D$10,12*$A67,4*(PlotControl!$C$4-1),12,1)) -> 0.092726 | J67: =MAX(OFFSET(P_W_Prop!$E$10,12*$A67,4*(PlotControl!$C$4-1),12,1)) -> 0.10112
A68: 63 | B68: =MAX(OFFSET(P_N_Prop!$C$10,12*$A68,4*(PlotControl!$C$4-1),12,1)) -> 0.088171 | C68: =MAX(OFFSET(P_N_Prop!$D$10,12*$A68,4*(PlotControl!$C$4-1),12,1)) -> 0.098955 | D68: =MAX(OFFSET(P_N_Prop!$E$10,12*$A68,4*(PlotControl!$C$4-1),12,1)) -> 0.1082 | E68: =MAX(OFFSET(P_NW_Prop!$C$10,12*$A68,4*(PlotControl!$C$4-1),12,1)) -> 0.082698 | F68: =MAX(OFFSET(P_NW_Prop!$D$10,12*$A68,4*(PlotControl!$C$4-1),12,1)) -> 0.090666 | G68: =MAX(OFFSET(P_NW_Prop!$E$10,12*$A68,4*(PlotControl!$C$4-1),12,1)) -> 0.097352 | H68: =MAX(OFFSET(P_W_Prop!$C$10,12*$A68,4*(PlotControl!$C$4-1),12,1)) -> 0.082763 | I68: =MAX(OFFSET(P_W_Prop!$D$10,12*$A68,4*(PlotControl!$C$4-1),12,1)) -> 0.092638 | J68: =MAX(OFFSET(P_W_Prop!$E$10,12*$A68,4*(PlotControl!$C$4-1),12,1)) -> 0.10106
A69: 64 | B69: =MAX(OFFSET(P_N_Prop!$C$10,12*$A69,4*(PlotControl!$C$4-1),12,1)) -> 0.088008 | C69: =MAX(OFFSET(P_N_Prop!$D$10,12*$A69,4*(PlotControl!$C$4-1),12,1)) -> 0.098775 | D69: =MAX(OFFSET(P_N_Prop!$E$10,12*$A69,4*(PlotControl!$C$4-1),12,1)) -> 0.10808 | E69: =MAX(OFFSET(P_NW_Prop!$C$10,12*$A69,4*(PlotControl!$C$4-1),12,1)) -> 0.082583 | F69: =MAX(OFFSET(P_NW_Prop!$D$10,12*$A69,4*(PlotControl!$C$4-1),12,1)) -> 0.090553 | G69: =MAX(OFFSET(P_NW_Prop!$E$10,12*$A69,4*(PlotControl!$C$4-1),12,1)) -> 0.097269 | H69: =MAX(OFFSET(P_W_Prop!$C$10,12*$A69,4*(PlotControl!$C$4-1),12,1)) -> 0.082634 | I69: =MAX(OFFSET(P_W_Prop!$D$10,12*$A69,4*(PlotControl!$C$4-1),12,1)) -> 0.092525 | J69: =MAX(OFFSET(P_W_Prop!$E$10,12*$A69,4*(PlotControl!$C$4-1),12,1)) -> 0.10098
A70: 65 | B70: =MAX(OFFSET(P_N_Prop!$C$10,12*$A70,4*(PlotControl!$C$4-1),12,1)) -> 0.087851 | C70: =MAX(OFFSET(P_N_Prop!$D$10,12*$A70,4*(PlotControl!$C$4-1),12,1)) -> 0.098631 | D70: =MAX(OFFSET(P_N_Prop!$E$10,12*$A70,4*(PlotControl!$C$4-1),12,1)) -> 0.10798 | E70: =MAX(OFFSET(P_NW_Prop!$C$10,12*$A70,4*(PlotControl!$C$4-1),12,1)) -> 0.082446 | F70: =MAX(OFFSET(P_NW_Prop!$D$10,12*$A70,4*(PlotControl!$C$4-1),12,1)) -> 0.090455 | G70: =MAX(OFFSET(P_NW_Prop!$E$10,12*$A70,4*(PlotControl!$C$4-1),12,1)) -> 0.097187 | H70: =MAX(OFFSET(P_W_Prop!$C$10,12*$A70,4*(PlotControl!$C$4-1),12,1)) -> 0.082492 | I70: =MAX(OFFSET(P_W_Prop!$D$10,12*$A70,4*(PlotControl!$C$4-1),12,1)) -> 0.092443 | J70: =MAX(OFFSET(P_W_Prop!$E$10,12*$A70,4*(PlotControl!$C$4-1),12,1)) -> 0.10089
A71: 66 | B71: =MAX(OFFSET(P_N_Prop!$C$10,12*$A71,4*(PlotControl!$C$4-1),12,1)) -> 0.087694 | C71: =MAX(OFFSET(P_N_Prop!$D$10,12*$A71,4*(PlotControl!$C$4-1),12,1)) -> 0.098465 | D71: =MAX(OFFSET(P_N_Prop!$E$10,12*$A71,4*(PlotControl!$C$4-1),12,1)) -> 0.10787 | E71: =MAX(OFFSET(P_NW_Prop!$C$10,12*$A71,4*(PlotControl!$C$4-1),12,1)) -> 0.082302 | F71: =MAX(OFFSET(P_NW_Prop!$D$10,12*$A71,4*(PlotControl!$C$4-1),12,1)) -> 0.090354 | G71: =MAX(OFFSET(P_NW_Prop!$E$10,12*$A71,4*(PlotControl!$C$4-1),12,1)) -> 0.097107 | H71: =MAX(OFFSET(P_W_Prop!$C$10,12*$A71,4*(PlotControl!$C$4-1),12,1)) -> 0.08236 | I71: =MAX(OFFSET(P_W_Prop!$D$10,12*$A71,4*(PlotControl!$C$4-1),12,1)) -> 0.092337 | J71: =MAX(OFFSET(P_W_Prop!$E$10,12*$A71,4*(PlotControl!$C$4-1),12,1)) -> 0.1008
A72: 67 | B72: =MAX(OFFSET(P_N_Prop!$C$10,12*$A72,4*(PlotControl!$C$4-1),12,1)) -> 0.087503 | C72: =MAX(OFFSET(P_N_Prop!$D$10,12*$A72,4*(PlotControl!$C$4-1),12,1)) -> 0.0983 | D72: =MAX(OFFSET(P_N_Prop!$E$10,12*$A72,4*(PlotControl!$C$4-1),12,1)) -> 0.10776 | E72: =MAX(OFFSET(P_NW_Prop!$C$10,12*$A72,4*(PlotControl!$C$4-1),12,1)) -> 0.08216 | F72: =MAX(OFFSET(P_NW_Prop!$D$10,12*$A72,4*(PlotControl!$C$4-1),12,1)) -> 0.090252 | G72: =MAX(OFFSET(P_NW_Prop!$E$10,12*$A72,4*(PlotControl!$C$4-1),12,1)) -> 0.097031 | H72: =MAX(OFFSET(P_W_Prop!$C$10,12*$A72,4*(PlotControl!$C$4-1),12,1)) -> 0.082262 | I72: =MAX(OFFSET(P_W_Prop!$D$10,12*$A72,4*(PlotControl!$C$4-1),12,1)) -> 0.092239 | J72: =MAX(OFFSET(P_W_Prop!$E$10,12*$A72,4*(PlotControl!$C$4-1),12,1)) -> 0.10071
A73: 68 | B73: =MAX(OFFSET(P_N_Prop!$C$10,12*$A73,4*(PlotControl!$C$4-1),12,1)) -> 0.087306 | C73: =MAX(OFFSET(P_N_Prop!$D$10,12*$A73,4*(PlotControl!$C$4-1),12,1)) -> 0.098122 | D73: =MAX(OFFSET(P_N_Prop!$E$10,12*$A73,4*(PlotControl!$C$4-1),12,1)) -> 0.10764 | E73: =MAX(OFFSET(P_NW_Prop!$C$10,12*$A73,4*(PlotControl!$C$4-1),12,1)) -> 0.082018 | F73: =MAX(OFFSET(P_NW_Prop!$D$10,12*$A73,4*(PlotControl!$C$4-1),12,1)) -> 0.090159 | G73: =MAX(OFFSET(P_NW_Prop!$E$10,12*$A73,4*(PlotControl!$C$4-1),12,1)) -> 0.096954 | H73: =MAX(OFFSET(P_W_Prop!$C$10,12*$A73,4*(PlotControl!$C$4-1),12,1)) -> 0.082164 | I73: =MAX(OFFSET(P_W_Prop!$D$10,12*$A73,4*(PlotControl!$C$4-1),12,1)) -> 0.09215 | J73: =MAX(OFFSET(P_W_Prop!$E$10,12*$A73,4*(PlotControl!$C$4-1),12,1)) -> 0.10063
A74: 69 | B74: =MAX(OFFSET(P_N_Prop!$C$10,12*$A74,4*(PlotControl!$C$4-1),12,1)) -> 0.087111 | C74: =MAX(OFFSET(P_N_Prop!$D$10,12*$A74,4*(PlotControl!$C$4-1),12,1)) -> 0.097937 | D74: =MAX(OFFSET(P_N_Prop!$E$10,12*$A74,4*(PlotControl!$C$4-1),12,1)) -> 0.10751 | E74: =MAX(OFFSET(P_NW_Prop!$C$10,12*$A74,4*(PlotControl!$C$4-1),12,1)) -> 0.081896 | F74: =MAX(OFFSET(P_NW_Prop!$D$10,12*$A74,4*(PlotControl!$C$4-1),12,1)) -> 0.090066 | G74: =MAX(OFFSET(P_NW_Prop!$E$10,12*$A74,4*(PlotControl!$C$4-1),12,1)) -> 0.096881 | H74: =MAX(OFFSET(P_W_Prop!$C$10,12*$A74,4*(PlotControl!$C$4-1),12,1)) -> 0.082066 | I74: =MAX(OFFSET(P_W_Prop!$D$10,12*$A74,4*(PlotControl!$C$4-1),12,1)) -> 0.092047 | J74: =MAX(OFFSET(P_W_Prop!$E$10,12*$A74,4*(PlotControl!$C$4-1),12,1)) -> 0.10057
A75: 70 | B75: =MAX(OFFSET(P_N_Prop!$C$10,12*$A75,4*(PlotControl!$C$4-1),12,1)) -> 0.086917 | C75: =MAX(OFFSET(P_N_Prop!$D$10,12*$A75,4*(PlotControl!$C$4-1),12,1)) -> 0.097773 | D75: =MAX(OFFSET(P_N_Prop!$E$10,12*$A75,4*(PlotControl!$C$4-1),12,1)) -> 0.10739 | E75: =MAX(OFFSET(P_NW_Prop!$C$10,12*$A75,4*(PlotControl!$C$4-1),12,1)) -> 0.08178 | F75: =MAX(OFFSET(P_NW_Prop!$D$10,12*$A75,4*(PlotControl!$C$4-1),12,1)) -> 0.089966 | G75: =MAX(OFFSET(P_NW_Prop!$E$10,12*$A75,4*(PlotControl!$C$4-1),12,1)) -> 0.096814 | H75: =MAX(OFFSET(P_W_Prop!$C$10,12*$A75,4*(PlotControl!$C$4-1),12,1)) -> 0.081961 | I75: =MAX(OFFSET(P_W_Prop!$D$10,12*$A75,4*(PlotControl!$C$4-1),12,1)) -> 0.091925 | J75: =MAX(OFFSET(P_W_Prop!$E$10,12*$A75,4*(PlotControl!$C$4-1),12,1)) -> 0.10051
A76: 71 | B76: =MAX(OFFSET(P_N_Prop!$C$10,12*$A76,4*(PlotControl!$C$4-1),12,1)) -> 0.086728 | C76: =MAX(OFFSET(P_N_Prop!$D$10,12*$A76,4*(PlotControl!$C$4-1),12,1)) -> 0.097591 | D76: =MAX(OFFSET(P_N_Prop!$E$10,12*$A76,4*(PlotControl!$C$4-1),12,1)) -> 0.10723 | E76: =MAX(OFFSET(P_NW_Prop!$C$10,12*$A76,4*(PlotControl!$C$4-1),12,1)) -> 0.081672 | F76: =MAX(OFFSET(P_NW_Prop!$D$10,12*$A76,4*(PlotControl!$C$4-1),12,1)) -> 0.089848 | G76: =MAX(OFFSET(P_NW_Prop!$E$10,12*$A76,4*(PlotControl!$C$4-1),12,1)) -> 0.096747 | H76: =MAX(OFFSET(P_W_Prop!$C$10,12*$A76,4*(PlotControl!$C$4-1),12,1)) -> 0.081806 | I76: =MAX(OFFSET(P_W_Prop!$D$10,12*$A76,4*(PlotControl!$C$4-1),12,1)) -> 0.091807 | J76: =MAX(OFFSET(P_W_Prop!$E$10,12*$A76,4*(PlotControl!$C$4-1),12,1)) -> 0.10045
A77: 72 | B77: =MAX(OFFSET(P_N_Prop!$C$10,12*$A77,4*(PlotControl!$C$4-1),12,1)) -> 0.08655 | C77: =MAX(OFFSET(P_N_Prop!$D$10,12*$A77,4*(PlotControl!$C$4-1),12,1)) -> 0.097456 | D77: =MAX(OFFSET(P_N_Prop!$E$10,12*$A77,4*(PlotControl!$C$4-1),12,1)) -> 0.10708 | E77: =MAX(OFFSET(P_NW_Prop!$C$10,12*$A77,4*(PlotControl!$C$4-1),12,1)) -> 0.081587 | F77: =MAX(OFFSET(P_NW_Prop!$D$10,12*$A77,4*(PlotControl!$C$4-1),12,1)) -> 0.089748 | G77: =MAX(OFFSET(P_NW_Prop!$E$10,12*$A77,4*(PlotControl!$C$4-1),12,1)) -> 0.096681 | H77: =MAX(OFFSET(P_W_Prop!$C$10,12*$A77,4*(PlotControl!$C$4-1),12,1)) -> 0.08166 | I77: =MAX(OFFSET(P_W_Prop!$D$10,12*$A77,4*(PlotControl!$C$4-1),12,1)) -> 0.091712 | J77: =MAX(OFFSET(P_W_Prop!$E$10,12*$A77,4*(PlotControl!$C$4-1),12,1)) -> 0.10038
A78: 73 | B78: =MAX(OFFSET(P_N_Prop!$C$10,12*$A78,4*(PlotControl!$C$4-1),12,1)) -> 0.086389 | C78: =MAX(OFFSET(P_N_Prop!$D$10,12*$A78,4*(PlotControl!$C$4-1),12,1)) -> 0.097304 | D78: =MAX(OFFSET(P_N_Prop!$E$10,12*$A78,4*(PlotControl!$C$4-1),12,1)) -> 0.10693 | E78: =MAX(OFFSET(P_NW_Prop!$C$10,12*$A78,4*(PlotControl!$C$4-1),12,1)) -> 0.081502 | F78: =MAX(OFFSET(P_NW_Prop!$D$10,12*$A78,4*(PlotControl!$C$4-1),12,1)) -> 0.089649 | G78: =MAX(OFFSET(P_NW_Prop!$E$10,12*$A78,4*(PlotControl!$C$4-1),12,1)) -> 0.096617 | H78: =MAX(OFFSET(P_W_Prop!$C$10,12*$A78,4*(PlotControl!$C$4-1),12,1)) -> 0.081559 | I78: =MAX(OFFSET(P_W_Prop!$D$10,12*$A78,4*(PlotControl!$C$4-1),12,1)) -> 0.091602 | J78: =MAX(OFFSET(P_W_Prop!$E$10,12*$A78,4*(PlotControl!$C$4-1),12,1)) -> 0.10032
A79: 74 | B79: =MAX(OFFSET(P_N_Prop!$C$10,12*$A79,4*(PlotControl!$C$4-1),12,1)) -> 0.086247 | C79: =MAX(OFFSET(P_N_Prop!$D$10,12*$A79,4*(PlotControl!$C$4-1),12,1)) -> 0.097149 | D79: =MAX(OFFSET(P_N_Prop!$E$10,12*$A79,4*(PlotControl!$C$4-1),12,1)) -> 0.10679 | E79: =MAX(OFFSET(P_NW_Prop!$C$10,12*$A79,4*(PlotControl!$C$4-1),12,1)) -> 0.081417 | F79: =MAX(OFFSET(P_NW_Prop!$D$10,12*$A79,4*(PlotControl!$C$4-1),12,1)) -> 0.089551 | G79: =MAX(OFFSET(P_NW_Prop!$E$10,12*$A79,4*(PlotControl!$C$4-1),12,1)) -> 0.096563 | H79: =MAX(OFFSET(P_W_Prop!$C$10,12*$A79,4*(PlotControl!$C$4-1),12,1)) -> 0.081458 | I79: =MAX(OFFSET(P_W_Prop!$D$10,12*$A79,4*(PlotControl!$C$4-1),12,1)) -> 0.091497 | J79: =MAX(OFFSET(P_W_Prop!$E$10,12*$A79,4*(PlotControl!$C$4-1),12,1)) -> 0.10026
A80: 75 | B80: =MAX(OFFSET(P_N_Prop!$C$10,12*$A80,4*(PlotControl!$C$4-1),12,1)) -> 0.086123 | C80: =MAX(OFFSET(P_N_Prop!$D$10,12*$A80,4*(PlotControl!$C$4-1),12,1)) -> 0.097001 | D80: =MAX(OFFSET(P_N_Prop!$E$10,12*$A80,4*(PlotControl!$C$4-1),12,1)) -> 0.10667 | E80: =MAX(OFFSET(P_NW_Prop!$C$10,12*$A80,4*(PlotControl!$C$4-1),12,1)) -> 0.081331 | F80: =MAX(OFFSET(P_NW_Prop!$D$10,12*$A80,4*(PlotControl!$C$4-1),12,1)) -> 0.089453 | G80: =MAX(OFFSET(P_NW_Prop!$E$10,12*$A80,4*(PlotControl!$C$4-1),12,1)) -> 0.096506 | H80: =MAX(OFFSET(P_W_Prop!$C$10,12*$A80,4*(PlotControl!$C$4-1),12,1)) -> 0.081357 | I80: =MAX(OFFSET(P_W_Prop!$D$10,12*$A80,4*(PlotControl!$C$4-1),12,1)) -> 0.091381 | J80: =MAX(OFFSET(P_W_Prop!$E$10,12*$A80,4*(PlotControl!$C$4-1),12,1)) -> 0.10018
A81: 76 | B81: =MAX(OFFSET(P_N_Prop!$C$10,12*$A81,4*(PlotControl!$C$4-1),12,1)) -> 0.086 | C81: =MAX(OFFSET(P_N_Prop!$D$10,12*$A81,4*(PlotControl!$C$4-1),12,1)) -> 0.09687 | D81: =MAX(OFFSET(P_N_Prop!$E$10,12*$A81,4*(PlotControl!$C$4-1),12,1)) -> 0.10657 | E81: =MAX(OFFSET(P_NW_Prop!$C$10,12*$A81,4*(PlotControl!$C$4-1),12,1)) -> 0.081225 | F81: =MAX(OFFSET(P_NW_Prop!$D$10,12*$A81,4*(PlotControl!$C$4-1),12,1)) -> 0.089361 | G81: =MAX(OFFSET(P_NW_Prop!$E$10,12*$A81,4*(PlotControl!$C$4-1),12,1)) -> 0.096432 | H81: =MAX(OFFSET(P_W_Prop!$C$10,12*$A81,4*(PlotControl!$C$4-1),12,1)) -> 0.081256 | I81: =MAX(OFFSET(P_W_Prop!$D$10,12*$A81,4*(PlotControl!$C$4-1),12,1)) -> 0.091254 | J81: =MAX(OFFSET(P_W_Prop!$E$10,12*$A81,4*(PlotControl!$C$4-1),12,1)) -> 0.10009
A82: 77 | B82: =MAX(OFFSET(P_N_Prop!$C$10,12*$A82,4*(PlotControl!$C$4-1),12,1)) -> 0.085874 | C82: =MAX(OFFSET(P_N_Prop!$D$10,12*$A82,4*(PlotControl!$C$4-1),12,1)) -> 0.096719 | D82: =MAX(OFFSET(P_N_Prop!$E$10,12*$A82,4*(PlotControl!$C$4-1),12,1)) -> 0.10647 | E82: =MAX(OFFSET(P_NW_Prop!$C$10,12*$A82,4*(PlotControl!$C$4-1),12,1)) -> 0.08112 | F82: =MAX(OFFSET(P_NW_Prop!$D$10,12*$A82,4*(PlotControl!$C$4-1),12,1)) -> 0.089262 | G82: =MAX(OFFSET(P_NW_Prop!$E$10,12*$A82,4*(PlotControl!$C$4-1),12,1)) -> 0.096354 | H82: =MAX(OFFSET(P_W_Prop!$C$10,12*$A82,4*(PlotControl!$C$4-1),12,1)) -> 0.081162 | I82: =MAX(OFFSET(P_W_Prop!$D$10,12*$A82,4*(PlotControl!$C$4-1),12,1)) -> 0.091136 | J82: =MAX(OFFSET(P_W_Prop!$E$10,12*$A82,4*(PlotControl!$C$4-1),12,1)) -> 0.10001
A83: 78 | B83: =MAX(OFFSET(P_N_Prop!$C$10,12*$A83,4*(PlotControl!$C$4-1),12,1)) -> 0.085746 | C83: =MAX(OFFSET(P_N_Prop!$D$10,12*$A83,4*(PlotControl!$C$4-1),12,1)) -> 0.096579 | D83: =MAX(OFFSET(P_N_Prop!$E$10,12*$A83,4*(PlotControl!$C$4-1),12,1)) -> 0.10636 | E83: =MAX(OFFSET(P_NW_Prop!$C$10,12*$A83,4*(PlotControl!$C$4-1),12,1)) -> 0.081015 | F83: =MAX(OFFSET(P_NW_Prop!$D$10,12*$A83,4*(PlotControl!$C$4-1),12,1)) -> 0.089149 | G83: =MAX(OFFSET(P_NW_Prop!$E$10,12*$A83,4*(PlotControl!$C$4-1),12,1)) -> 0.096278 | H83: =MAX(OFFSET(P_W_Prop!$C$10,12*$A83,4*(PlotControl!$C$4-1),12,1)) -> 0.081102 | I83: =MAX(OFFSET(P_W_Prop!$D$10,12*$A83,4*(PlotControl!$C$4-1),12,1)) -> 0.091048 | J83: =MAX(OFFSET(P_W_Prop!$E$10,12*$A83,4*(PlotControl!$C$4-1),12,1)) -> 0.09992
A84: 79 | B84: =MAX(OFFSET(P_N_Prop!$C$10,12*$A84,4*(PlotControl!$C$4-1),12,1)) -> 0.08562 | C84: =MAX(OFFSET(P_N_Prop!$D$10,12*$A84,4*(PlotControl!$C$4-1),12,1)) -> 0.096418 | D84: =MAX(OFFSET(P_N_Prop!$E$10,12*$A84,4*(PlotControl!$C$4-1),12,1)) -> 0.10626 | E84: =MAX(OFFSET(P_NW_Prop!$C$10,12*$A84,4*(PlotControl!$C$4-1),12,1)) -> 0.08091 | F84: =MAX(OFFSET(P_NW_Prop!$D$10,12*$A84,4*(PlotControl!$C$4-1),12,1)) -> 0.089043 | G84: =MAX(OFFSET(P_NW_Prop!$E$10,12*$A84,4*(PlotControl!$C$4-1),12,1)) -> 0.096208 | H84: =MAX(OFFSET(P_W_Prop!$C$10,12*$A84,4*(PlotControl!$C$4-1),12,1)) -> 0.081042 | I84: =MAX(OFFSET(P_W_Prop!$D$10,12*$A84,4*(PlotControl!$C$4-1),12,1)) -> 0.090935 | J84: =MAX(OFFSET(P_W_Prop!$E$10,12*$A84,4*(PlotControl!$C$4-1),12,1)) -> 0.099834
A85: 80 | B85: =MAX(OFFSET(P_N_Prop!$C$10,12*$A85,4*(PlotControl!$C$4-1),12,1)) -> 0.085494 | C85: =MAX(OFFSET(P_N_Prop!$D$10,12*$A85,4*(PlotControl!$C$4-1),12,1)) -> 0.096262 | D85: =MAX(OFFSET(P_N_Prop!$E$10,12*$A85,4*(PlotControl!$C$4-1),12,1)) -> 0.10615 | E85: =MAX(OFFSET(P_NW_Prop!$C$10,12*$A85,4*(PlotControl!$C$4-1),12,1)) -> 0.080809 | F85: =MAX(OFFSET(P_NW_Prop!$D$10,12*$A85,4*(PlotControl!$C$4-1),12,1)) -> 0.088946 | G85: =MAX(OFFSET(P_NW_Prop!$E$10,12*$A85,4*(PlotControl!$C$4-1),12,1)) -> 0.096134 | H85: =MAX(OFFSET(P_W_Prop!$C$10,12*$A85,4*(PlotControl!$C$4-1),12,1)) -> 0.080982 | I85: =MAX(OFFSET(P_W_Prop!$D$10,12*$A85,4*(PlotControl!$C$4-1),12,1)) -> 0.090826 | J85: =MAX(OFFSET(P_W_Prop!$E$10,12*$A85,4*(PlotControl!$C$4-1),12,1)) -> 0.099748
A86: 81 | B86: =MAX(OFFSET(P_N_Prop!$C$10,12*$A86,4*(PlotControl!$C$4-1),12,1)) -> 0.085367 | C86: =MAX(OFFSET(P_N_Prop!$D$10,12*$A86,4*(PlotControl!$C$4-1),12,1)) -> 0.096113 | D86: =MAX(OFFSET(P_N_Prop!$E$10,12*$A86,4*(PlotControl!$C$4-1),12,1)) -> 0.10602 | E86: =MAX(OFFSET(P_NW_Prop!$C$10,12*$A86,4*(PlotControl!$C$4-1),12,1)) -> 0.080719 | F86: =MAX(OFFSET(P_NW_Prop!$D$10,12*$A86,4*(PlotControl!$C$4-1),12,1)) -> 0.088857 | G86: =MAX(OFFSET(P_NW_Prop!$E$10,12*$A86,4*(PlotControl!$C$4-1),12,1)) -> 0.096053 | H86: =MAX(OFFSET(P_W_Prop!$C$10,12*$A86,4*(PlotControl!$C$4-1),12,1)) -> 0.080916 | I86: =MAX(OFFSET(P_W_Prop!$D$10,12*$A86,4*(PlotControl!$C$4-1),12,1)) -> 0.090727 | J86: =MAX(OFFSET(P_W_Prop!$E$10,12*$A86,4*(PlotControl!$C$4-1),12,1)) -> 0.099662
A87: 82 | B87: =MAX(OFFSET(P_N_Prop!$C$10,12*$A87,4*(PlotControl!$C$4-1),12,1)) -> 0.085212 | C87: =MAX(OFFSET(P_N_Prop!$D$10,12*$A87,4*(PlotControl!$C$4-1),12,1)) -> 0.095976 | D87: =MAX(OFFSET(P_N_Prop!$E$10,12*$A87,4*(PlotControl!$C$4-1),12,1)) -> 0.1059 | E87: =MAX(OFFSET(P_NW_Prop!$C$10,12*$A87,4*(PlotControl!$C$4-1),12,1)) -> 0.080599 | F87: =MAX(OFFSET(P_NW_Prop!$D$10,12*$A87,4*(PlotControl!$C$4-1),12,1)) -> 0.088776 | G87: =MAX(OFFSET(P_NW_Prop!$E$10,12*$A87,4*(PlotControl!$C$4-1),12,1)) -> 0.095974 | H87: =MAX(OFFSET(P_W_Prop!$C$10,12*$A87,4*(PlotControl!$C$4-1),12,1)) -> 0.080839 | I87: =MAX(OFFSET(P_W_Prop!$D$10,12*$A87,4*(PlotControl!$C$4-1),12,1)) -> 0.090628 | J87: =MAX(OFFSET(P_W_Prop!$E$10,12*$A87,4*(PlotControl!$C$4-1),12,1)) -> 0.099578
A88: 83 | B88: =MAX(OFFSET(P_N_Prop!$C$10,12*$A88,4*(PlotControl!$C$4-1),12,1)) -> 0.085058 | C88: =MAX(OFFSET(P_N_Prop!$D$10,12*$A88,4*(PlotControl!$C$4-1),12,1)) -> 0.095844 | D88: =MAX(OFFSET(P_N_Prop!$E$10,12*$A88,4*(PlotControl!$C$4-1),12,1)) -> 0.1058 | E88: =MAX(OFFSET(P_NW_Prop!$C$10,12*$A88,4*(PlotControl!$C$4-1),12,1)) -> 0.080478 | F88: =MAX(OFFSET(P_NW_Prop!$D$10,12*$A88,4*(PlotControl!$C$4-1),12,1)) -> 0.088685 | G88: =MAX(OFFSET(P_NW_Prop!$E$10,12*$A88,4*(PlotControl!$C$4-1),12,1)) -> 0.095905 | H88: =MAX(OFFSET(P_W_Prop!$C$10,12*$A88,4*(PlotControl!$C$4-1),12,1)) -> 0.080761 | I88: =MAX(OFFSET(P_W_Prop!$D$10,12*$A88,4*(PlotControl!$C$4-1),12,1)) -> 0.090533 | J88: =MAX(OFFSET(P_W_Prop!$E$10,12*$A88,4*(PlotControl!$C$4-1),12,1)) -> 0.099495
A89: 84 | B89: =MAX(OFFSET(P_N_Prop!$C$10,12*$A89,4*(PlotControl!$C$4-1),12,1)) -> 0.084906 | C89: =MAX(OFFSET(P_N_Prop!$D$10,12*$A89,4*(PlotControl!$C$4-1),12,1)) -> 0.095714 | D89: =MAX(OFFSET(P_N_Prop!$E$10,12*$A89,4*(PlotControl!$C$4-1),12,1)) -> 0.10569 | E89: =MAX(OFFSET(P_NW_Prop!$C$10,12*$A89,4*(PlotControl!$C$4-1),12,1)) -> 0.080353 | F89: =MAX(OFFSET(P_NW_Prop!$D$10,12*$A89,4*(PlotControl!$C$4-1),12,1)) -> 0.088603 | G89: =MAX(OFFSET(P_NW_Prop!$E$10,12*$A89,4*(PlotControl!$C$4-1),12,1)) -> 0.09584 | H89: =MAX(OFFSET(P_W_Prop!$C$10,12*$A89,4*(PlotControl!$C$4-1),12,1)) -> 0.080653 | I89: =MAX(OFFSET(P_W_Prop!$D$10,12*$A89,4*(PlotControl!$C$4-1),12,1)) -> 0.090434 | J89: =MAX(OFFSET(P_W_Prop!$E$10,12*$A89,4*(PlotControl!$C$4-1),12,1)) -> 0.099393
A90: 85 | B90: =MAX(OFFSET(P_N_Prop!$C$10,12*$A90,4*(PlotControl!$C$4-1),12,1)) -> 0.084762 | C90: =MAX(OFFSET(P_N_Prop!$D$10,12*$A90,4*(PlotControl!$C$4-1),12,1)) -> 0.095583 | D90: =MAX(OFFSET(P_N_Prop!$E$10,12*$A90,4*(PlotControl!$C$4-1),12,1)) -> 0.10556 | E90: =MAX(OFFSET(P_NW_Prop!$C$10,12*$A90,4*(PlotControl!$C$4-1),12,1)) -> 0.080225 | F90: =MAX(OFFSET(P_NW_Prop!$D$10,12*$A90,4*(PlotControl!$C$4-1),12,1)) -> 0.088525 | G90: =MAX(OFFSET(P_NW_Prop!$E$10,12*$A90,4*(PlotControl!$C$4-1),12,1)) -> 0.095777 | H90: =MAX(OFFSET(P_W_Prop!$C$10,12*$A90,4*(PlotControl!$C$4-1),12,1)) -> 0.080512 | I90: =MAX(OFFSET(P_W_Prop!$D$10,12*$A90,4*(PlotControl!$C$4-1),12,1)) -> 0.090326 | J90: =MAX(OFFSET(P_W_Prop!$E$10,12*$A90,4*(PlotControl!$C$4-1),12,1)) -> 0.09929
A91: 86 | B91: =MAX(OFFSET(P_N_Prop!$C$10,12*$A91,4*(PlotControl!$C$4-1),12,1)) -> 0.08464 | C91: =MAX(OFFSET(P_N_Prop!$D$10,12*$A91,4*(PlotControl!$C$4-1),12,1)) -> 0.095444 | D91: =MAX(OFFSET(P_N_Prop!$E$10,12*$A91,4*(PlotControl!$C$4-1),12,1)) -> 0.10543 | E91: =MAX(OFFSET(P_NW_Prop!$C$10,12*$A91,4*(PlotControl!$C$4-1),12,1)) -> 0.080095 | F91: =MAX(OFFSET(P_NW_Prop!$D$10,12*$A91,4*(PlotControl!$C$4-1),12,1)) -> 0.088436 | G91: =MAX(OFFSET(P_NW_Prop!$E$10,12*$A91,4*(PlotControl!$C$4-1),12,1)) -> 0.095711 | H91: =MAX(OFFSET(P_W_Prop!$C$10,12*$A91,4*(PlotControl!$C$4-1),12,1)) -> 0.080345 | I91: =MAX(OFFSET(P_W_Prop!$D$10,12*$A91,4*(PlotControl!$C$4-1),12,1)) -> 0.090224 | J91: =MAX(OFFSET(P_W_Prop!$E$10,12*$A91,4*(PlotControl!$C$4-1),12,1)) -> 0.099193
A92: 87 | B92: =MAX(OFFSET(P_N_Prop!$C$10,12*$A92,4*(PlotControl!$C$4-1),12,1)) -> 0.08452 | C92: =MAX(OFFSET(P_N_Prop!$D$10,12*$A92,4*(PlotControl!$C$4-1),12,1)) -> 0.095287 | D92: =MAX(OFFSET(P_N_Prop!$E$10,12*$A92,4*(PlotControl!$C$4-1),12,1)) -> 0.1053 | E92: =MAX(OFFSET(P_NW_Prop!$C$10,12*$A92,4*(PlotControl!$C$4-1),12,1)) -> 0.079967 | F92: =MAX(OFFSET(P_NW_Prop!$D$10,12*$A92,4*(PlotControl!$C$4-1),12,1)) -> 0.088348 | G92: =MAX(OFFSET(P_NW_Prop!$E$10,12*$A92,4*(PlotControl!$C$4-1),12,1)) -> 0.095635 | H92: =MAX(OFFSET(P_W_Prop!$C$10,12*$A92,4*(PlotControl!$C$4-1),12,1)) -> 0.080217 | I92: =MAX(OFFSET(P_W_Prop!$D$10,12*$A92,4*(PlotControl!$C$4-1),12,1)) -> 0.090117 | J92: =MAX(OFFSET(P_W_Prop!$E$10,12*$A92,4*(PlotControl!$C$4-1),12,1)) -> 0.099098
A93: 88 | B93: =MAX(OFFSET(P_N_Prop!$C$10,12*$A93,4*(PlotControl!$C$4-1),12,1)) -> 0.0844 | C93: =MAX(OFFSET(P_N_Prop!$D$10,12*$A93,4*(PlotControl!$C$4-1),12,1)) -> 0.09513 | D93: =MAX(OFFSET(P_N_Prop!$E$10,12*$A93,4*(PlotControl!$C$4-1),12,1)) -> 0.10517 | E93: =MAX(OFFSET(P_NW_Prop!$C$10,12*$A93,4*(PlotControl!$C$4-1),12,1)) -> 0.07984 | F93: =MAX(OFFSET(P_NW_Prop!$D$10,12*$A93,4*(PlotControl!$C$4-1),12,1)) -> 0.088248 | G93: =MAX(OFFSET(P_NW_Prop!$E$10,12*$A93,4*(PlotControl!$C$4-1),12,1)) -> 0.095559 | H93: =MAX(OFFSET(P_W_Prop!$C$10,12*$A93,4*(PlotControl!$C$4-1),12,1)) -> 0.080101 | I93: =MAX(OFFSET(P_W_Prop!$D$10,12*$A93,4*(PlotControl!$C$4-1),12,1)) -> 0.090017 | J93: =MAX(OFFSET(P_W_Prop!$E$10,12*$A93,4*(PlotControl!$C$4-1),12,1)) -> 0.099003
A94: 89 | B94: =MAX(OFFSET(P_N_Prop!$C$10,12*$A94,4*(PlotControl!$C$4-1),12,1)) -> 0.084282 | C94: =MAX(OFFSET(P_N_Prop!$D$10,12*$A94,4*(PlotControl!$C$4-1),12,1)) -> 0.094985 | D94: =MAX(OFFSET(P_N_Prop!$E$10,12*$A94,4*(PlotControl!$C$4-1),12,1)) -> 0.10504 | E94: =MAX(OFFSET(P_NW_Prop!$C$10,12*$A94,4*(PlotControl!$C$4-1),12,1)) -> 0.079714 | F94: =MAX(OFFSET(P_NW_Prop!$D$10,12*$A94,4*(PlotControl!$C$4-1),12,1)) -> 0.088147 | G94: =MAX(OFFSET(P_NW_Prop!$E$10,12*$A94,4*(PlotControl!$C$4-1),12,1)) -> 0.095483 | H94: =MAX(OFFSET(P_W_Prop!$C$10,12*$A94,4*(PlotControl!$C$4-1),12,1)) -> 0.080004 | I94: =MAX(OFFSET(P_W_Prop!$D$10,12*$A94,4*(PlotControl!$C$4-1),12,1)) -> 0.089921 | J94: =MAX(OFFSET(P_W_Prop!$E$10,12*$A94,4*(PlotControl!$C$4-1),12,1)) -> 0.098911
A95: 90 | B95: =MAX(OFFSET(P_N_Prop!$C$10,12*$A95,4*(PlotControl!$C$4-1),12,1)) -> 0.084164 | C95: =MAX(OFFSET(P_N_Prop!$D$10,12*$A95,4*(PlotControl!$C$4-1),12,1)) -> 0.094842 | D95: =MAX(OFFSET(P_N_Prop!$E$10,12*$A95,4*(PlotControl!$C$4-1),12,1)) -> 0.10491 | E95: =MAX(OFFSET(P_NW_Prop!$C$10,12*$A95,4*(PlotControl!$C$4-1),12,1)) -> 0.07959 | F95: =MAX(OFFSET(P_NW_Prop!$D$10,12*$A95,4*(PlotControl!$C$4-1),12,1)) -> 0.088046 | G95: =MAX(OFFSET(P_NW_Prop!$E$10,12*$A95,4*(PlotControl!$C$4-1),12,1)) -> 0.095408 | H95: =MAX(OFFSET(P_W_Prop!$C$10,12*$A95,4*(PlotControl!$C$4-1),12,1)) -> 0.079925 | I95: =MAX(OFFSET(P_W_Prop!$D$10,12*$A95,4*(PlotControl!$C$4-1),12,1)) -> 0.089838 | J95: =MAX(OFFSET(P_W_Prop!$E$10,12*$A95,4*(PlotControl!$C$4-1),12,1)) -> 0.09883
A96: 91 | B96: =MAX(OFFSET(P_N_Prop!$C$10,12*$A96,4*(PlotControl!$C$4-1),12,1)) -> 0.084047 | C96: =MAX(OFFSET(P_N_Prop!$D$10,12*$A96,4*(PlotControl!$C$4-1),12,1)) -> 0.094792 | D96: =MAX(OFFSET(P_N_Prop!$E$10,12*$A96,4*(PlotControl!$C$4-1),12,1)) -> 0.10478 | E96: =MAX(OFFSET(P_NW_Prop!$C$10,12*$A96,4*(PlotControl!$C$4-1),12,1)) -> 0.079473 | F96: =MAX(OFFSET(P_NW_Prop!$D$10,12*$A96,4*(PlotControl!$C$4-1),12,1)) -> 0.087946 | G96: =MAX(OFFSET(P_NW_Prop!$E$10,12*$A96,4*(PlotControl!$C$4-1),12,1)) -> 0.095347 | H96: =MAX(OFFSET(P_W_Prop!$C$10,12*$A96,4*(PlotControl!$C$4-1),12,1)) -> 0.079826 | I96: =MAX(OFFSET(P_W_Prop!$D$10,12*$A96,4*(PlotControl!$C$4-1),12,1)) -> 0.089751 | J96: =MAX(OFFSET(P_W_Prop!$E$10,12*$A96,4*(PlotControl!$C$4-1),12,1)) -> 0.098749
A97: 92 | B97: =MAX(OFFSET(P_N_Prop!$C$10,12*$A97,4*(PlotControl!$C$4-1),12,1)) -> 0.083984 | C97: =MAX(OFFSET(P_N_Prop!$D$10,12*$A97,4*(PlotControl!$C$4-1),12,1)) -> 0.094702 | D97: =MAX(OFFSET(P_N_Prop!$E$10,12*$A97,4*(PlotControl!$C$4-1),12,1)) -> 0.10467 | E97: =MAX(OFFSET(P_NW_Prop!$C$10,12*$A97,4*(PlotControl!$C$4-1),12,1)) -> 0.07938 | F97: =MAX(OFFSET(P_NW_Prop!$D$10,12*$A97,4*(PlotControl!$C$4-1),12,1)) -> 0.087857 | G97: =MAX(OFFSET(P_NW_Prop!$E$10,12*$A97,4*(PlotControl!$C$4-1),12,1)) -> 0.095341 | H97: =MAX(OFFSET(P_W_Prop!$C$10,12*$A97,4*(PlotControl!$C$4-1),12,1)) -> 0.079723 | I97: =MAX(OFFSET(P_W_Prop!$D$10,12*$A97,4*(PlotControl!$C$4-1),12,1)) -> 0.089659 | J97: =MAX(OFFSET(P_W_Prop!$E$10,12*$A97,4*(PlotControl!$C$4-1),12,1)) -> 0.098686
A98: 93 | B98: =MAX(OFFSET(P_N_Prop!$C$10,12*$A98,4*(PlotControl!$C$4-1),12,1)) -> 0.083907 | C98: =MAX(OFFSET(P_N_Prop!$D$10,12*$A98,4*(PlotControl!$C$4-1),12,1)) -> 0.0946 | D98: =MAX(OFFSET(P_N_Prop!$E$10,12*$A98,4*(PlotControl!$C$4-1),12,1)) -> 0.10457 | E98: =MAX(OFFSET(P_NW_Prop!$C$10,12*$A98,4*(PlotControl!$C$4-1),12,1)) -> 0.079288 | F98: =MAX(OFFSET(P_NW_Prop!$D$10,12*$A98,4*(PlotControl!$C$4-1),12,1)) -> 0.087768 | G98: =MAX(OFFSET(P_NW_Prop!$E$10,12*$A98,4*(PlotControl!$C$4-1),12,1)) -> 0.095269 | H98: =MAX(OFFSET(P_W_Prop!$C$10,12*$A98,4*(PlotControl!$C$4-1),12,1)) -> 0.079621 | I98: =MAX(OFFSET(P_W_Prop!$D$10,12*$A98,4*(PlotControl!$C$4-1),12,1)) -> 0.089567 | J98: =MAX(OFFSET(P_W_Prop!$E$10,12*$A98,4*(PlotControl!$C$4-1),12,1)) -> 0.098628
A99: 94 | B99: =MAX(OFFSET(P_N_Prop!$C$10,12*$A99,4*(PlotControl!$C$4-1),12,1)) -> 0.083766 | C99: =MAX(OFFSET(P_N_Prop!$D$10,12*$A99,4*(PlotControl!$C$4-1),12,1)) -> 0.094527 | D99: =MAX(OFFSET(P_N_Prop!$E$10,12*$A99,4*(PlotControl!$C$4-1),12,1)) -> 0.10446 | E99: =MAX(OFFSET(P_NW_Prop!$C$10,12*$A99,4*(PlotControl!$C$4-1),12,1)) -> 0.079196 | F99: =MAX(OFFSET(P_NW_Prop!$D$10,12*$A99,4*(PlotControl!$C$4-1),12,1)) -> 0.087681 | G99: =MAX(OFFSET(P_NW_Prop!$E$10,12*$A99,4*(PlotControl!$C$4-1),12,1)) -> 0.095196 | H99: =MAX(OFFSET(P_W_Prop!$C$10,12*$A99,4*(PlotControl!$C$4-1),12,1)) -> 0.079519 | I99: =MAX(OFFSET(P_W_Prop!$D$10,12*$A99,4*(PlotControl!$C$4-1),12,1)) -> 0.089475 | J99: =MAX(OFFSET(P_W_Prop!$E$10,12*$A99,4*(PlotControl!$C$4-1),12,1)) -> 0.098542
A100: 95 | B100: =MAX(OFFSET(P_N_Prop!$C$10,12*$A100,4*(PlotControl!$C$4-1),12,1)) -> 0.083628 | C100: =MAX(OFFSET(P_N_Prop!$D$10,12*$A100,4*(PlotControl!$C$4-1),12,1)) -> 0.094464 | D100: =MAX(OFFSET(P_N_Prop!$E$10,12*$A100,4*(PlotControl!$C$4-1),12,1)) -> 0.10436 | E100: =MAX(OFFSET(P_NW_Prop!$C$10,12*$A100,4*(PlotControl!$C$4-1),12,1)) -> 0.079105 | F100: =MAX(OFFSET(P_NW_Prop!$D$10,12*$A100,4*(PlotControl!$C$4-1),12,1)) -> 0.087593 | G100: =MAX(OFFSET(P_NW_Prop!$E$10,12*$A100,4*(PlotControl!$C$4-1),12,1)) -> 0.095045 | H100: =MAX(OFFSET(P_W_Prop!$C$10,12*$A100,4*(PlotControl!$C$4-1),12,1)) -> 0.079418 | I100: =MAX(OFFSET(P_W_Prop!$D$10,12*$A100,4*(PlotControl!$C$4-1),12,1)) -> 0.089383 | J100: =MAX(OFFSET(P_W_Prop!$E$10,12*$A100,4*(PlotControl!$C$4-1),12,1)) -> 0.098455
A101: 96 | B101: =MAX(OFFSET(P_N_Prop!$C$10,12*$A101,4*(PlotControl!$C$4-1),12,1)) -> 0.083494 | C101: =MAX(OFFSET(P_N_Prop!$D$10,12*$A101,4*(PlotControl!$C$4-1),12,1)) -> 0.094376 | D101: =MAX(OFFSET(P_N_Prop!$E$10,12*$A101,4*(PlotControl!$C$4-1),12,1)) -> 0.10425 | E101: =MAX(OFFSET(P_NW_Prop!$C$10,12*$A101,4*(PlotControl!$C$4-1),12,1)) -> 0.07902 | F101: =MAX(OFFSET(P_NW_Prop!$D$10,12*$A101,4*(PlotControl!$C$4-1),12,1)) -> 0.087507 | G101: =MAX(OFFSET(P_NW_Prop!$E$10,12*$A101,4*(PlotControl!$C$4-1),12,1)) -> 0.094996 | H101: =MAX(OFFSET(P_W_Prop!$C$10,12*$A101,4*(PlotControl!$C$4-1),12,1)) -> 0.079317 | I101: =MAX(OFFSET(P_W_Prop!$D$10,12*$A101,4*(PlotControl!$C$4-1),12,1)) -> 0.089292 | J101: =MAX(OFFSET(P_W_Prop!$E$10,12*$A101,4*(PlotControl!$C$4-1),12,1)) -> 0.098368
A102: 97 | B102: =MAX(OFFSET(P_N_Prop!$C$10,12*$A102,4*(PlotControl!$C$4-1),12,1)) -> 0.083437 | C102: =MAX(OFFSET(P_N_Prop!$D$10,12*$A102,4*(PlotControl!$C$4-1),12,1)) -> 0.094265 | D102: =MAX(OFFSET(P_N_Prop!$E$10,12*$A102,4*(PlotControl!$C$4-1),12,1)) -> 0.10416 | E102: =MAX(OFFSET(P_NW_Prop!$C$10,12*$A102,4*(PlotControl!$C$4-1),12,1)) -> 0.07894 | F102: =MAX(OFFSET(P_NW_Prop!$D$10,12*$A102,4*(PlotControl!$C$4-1),12,1)) -> 0.087429 | G102: =MAX(OFFSET(P_NW_Prop!$E$10,12*$A102,4*(PlotControl!$C$4-1),12,1)) -> 0.094948 | H102: =MAX(OFFSET(P_W_Prop!$C$10,12*$A102,4*(PlotControl!$C$4-1),12,1)) -> 0.079218 | I102: =MAX(OFFSET(P_W_Prop!$D$10,12*$A102,4*(PlotControl!$C$4-1),12,1)) -> 0.0892 | J102: =MAX(OFFSET(P_W_Prop!$E$10,12*$A102,4*(PlotControl!$C$4-1),12,1)) -> 0.098281
A103: 98 | B103: =MAX(OFFSET(P_N_Prop!$C$10,12*$A103,4*(PlotControl!$C$4-1),12,1)) -> 0.083314 | C103: =MAX(OFFSET(P_N_Prop!$D$10,12*$A103,4*(PlotControl!$C$4-1),12,1)) -> 0.094167 | D103: =MAX(OFFSET(P_N_Prop!$E$10,12*$A103,4*(PlotControl!$C$4-1),12,1)) -> 0.10418 | E103: =MAX(OFFSET(P_NW_Prop!$C$10,12*$A103,4*(PlotControl!$C$4-1),12,1)) -> 0.078861 | F103: =MAX(OFFSET(P_NW_Prop!$D$10,12*$A103,4*(PlotControl!$C$4-1),12,1)) -> 0.087364 | G103: =MAX(OFFSET(P_NW_Prop!$E$10,12*$A103,4*(PlotControl!$C$4-1),12,1)) -> 0.0949 | H103: =MAX(OFFSET(P_W_Prop!$C$10,12*$A103,4*(PlotControl!$C$4-1),12,1)) -> 0.079119 | I103: =MAX(OFFSET(P_W_Prop!$D$10,12*$A103,4*(PlotControl!$C$4-1),12,1)) -> 0.08912 | J103: =MAX(OFFSET(P_W_Prop!$E$10,12*$A103,4*(PlotControl!$C$4-1),12,1)) -> 0.098194
A104: 99 | B104: =MAX(OFFSET(P_N_Prop!$C$10,12*$A104,4*(PlotControl!$C$4-1),12,1)) -> 0.08318 | C104: =MAX(OFFSET(P_N_Prop!$D$10,12*$A104,4*(PlotControl!$C$4-1),12,1)) -> 0.094048 | D104: =MAX(OFFSET(P_N_Prop!$E$10,12*$A104,4*(PlotControl!$C$4-1),12,1)) -> 0.10412 | E104: =MAX(OFFSET(P_NW_Prop!$C$10,12*$A104,4*(PlotControl!$C$4-1),12,1)) -> 0.078781 | F104: =MAX(OFFSET(P_NW_Prop!$D$10,12*$A104,4*(PlotControl!$C$4-1),12,1)) -> 0.0873 | G104: =MAX(OFFSET(P_NW_Prop!$E$10,12*$A104,4*(PlotControl!$C$4-1),12,1)) -> 0.09484 | H104: =MAX(OFFSET(P_W_Prop!$C$10,12*$A104,4*(PlotControl!$C$4-1),12,1)) -> 0.079016 | I104: =MAX(OFFSET(P_W_Prop!$D$10,12*$A104,4*(PlotControl!$C$4-1),12,1)) -> 0.089034 | J104: =MAX(OFFSET(P_W_Prop!$E$10,12*$A104,4*(PlotControl!$C$4-1),12,1)) -> 0.098112
A105: 100 | B105: =MAX(OFFSET(P_N_Prop!$C$10,12*$A105,4*(PlotControl!$C$4-1),12,1)) -> 0.083048 | C105: =MAX(OFFSET(P_N_Prop!$D$10,12*$A105,4*(PlotControl!$C$4-1),12,1)) -> 0.093957 | D105: =MAX(OFFSET(P_N_Prop!$E$10,12*$A105,4*(PlotControl!$C$4-1),12,1)) -> 0.10408 | E105: =MAX(OFFSET(P_NW_Prop!$C$10,12*$A105,4*(PlotControl!$C$4-1),12,1)) -> 0.078703 | F105: =MAX(OFFSET(P_NW_Prop!$D$10,12*$A105,4*(PlotControl!$C$4-1),12,1)) -> 0.087222 | G105: =MAX(OFFSET(P_NW_Prop!$E$10,12*$A105,4*(PlotControl!$C$4-1),12,1)) -> 0.09477 | H105: =MAX(OFFSET(P_W_Prop!$C$10,12*$A105,4*(PlotControl!$C$4-1),12,1)) -> 0.078903 | I105: =MAX(OFFSET(P_W_Prop!$D$10,12*$A105,4*(PlotControl!$C$4-1),12,1)) -> 0.088949 | J105: =MAX(OFFSET(P_W_Prop!$E$10,12*$A105,4*(PlotControl!$C$4-1),12,1)) -> 0.098033
A106: 101 | B106: =MAX(OFFSET(P_N_Prop!$C$10,12*$A106,4*(PlotControl!$C$4-1),12,1)) -> 0.082917 | C106: =MAX(OFFSET(P_N_Prop!$D$10,12*$A106,4*(PlotControl!$C$4-1),12,1)) -> 0.093832 | D106: =MAX(OFFSET(P_N_Prop!$E$10,12*$A106,4*(PlotControl!$C$4-1),12,1)) -> 0.10398 | E106: =MAX(OFFSET(P_NW_Prop!$C$10,12*$A106,4*(PlotControl!$C$4-1),12,1)) -> 0.078625 | F106: =MAX(OFFSET(P_NW_Prop!$D$10,12*$A106,4*(PlotControl!$C$4-1),12,1)) -> 0.087146 | G106: =MAX(OFFSET(P_NW_Prop!$E$10,12*$A106,4*(PlotControl!$C$4-1),12,1)) -> 0.0947 | H106: =MAX(OFFSET(P_W_Prop!$C$10,12*$A106,4*(PlotControl!$C$4-1),12,1)) -> 0.078791 | I106: =MAX(OFFSET(P_W_Prop!$D$10,12*$A106,4*(PlotControl!$C$4-1),12,1)) -> 0.088852 | J106: =MAX(OFFSET(P_W_Prop!$E$10,12*$A106,4*(PlotControl!$C$4-1),12,1)) -> 0.09795
A107: 102 | B107: =MAX(OFFSET(P_N_Prop!$C$10,12*$A107,4*(PlotControl!$C$4-1),12,1)) -> 0.08279 | C107: =MAX(OFFSET(P_N_Prop!$D$10,12*$A107,4*(PlotControl!$C$4-1),12,1)) -> 0.093718 | D107: =MAX(OFFSET(P_N_Prop!$E$10,12*$A107,4*(PlotControl!$C$4-1),12,1)) -> 0.10387 | E107: =MAX(OFFSET(P_NW_Prop!$C$10,12*$A107,4*(PlotControl!$C$4-1),12,1)) -> 0.078547 | F107: =MAX(OFFSET(P_NW_Prop!$D$10,12*$A107,4*(PlotControl!$C$4-1),12,1)) -> 0.08708 | G107: =MAX(OFFSET(P_NW_Prop!$E$10,12*$A107,4*(PlotControl!$C$4-1),12,1)) -> 0.09464 | H107: =MAX(OFFSET(P_W_Prop!$C$10,12*$A107,4*(PlotControl!$C$4-1),12,1)) -> 0.078679 | I107: =MAX(OFFSET(P_W_Prop!$D$10,12*$A107,4*(PlotControl!$C$4-1),12,1)) -> 0.08875 | J107: =MAX(OFFSET(P_W_Prop!$E$10,12*$A107,4*(PlotControl!$C$4-1),12,1)) -> 0.097862
A108: 103 | B108: =MAX(OFFSET(P_N_Prop!$C$10,12*$A108,4*(PlotControl!$C$4-1),12,1)) -> 0.082677 | C108: =MAX(OFFSET(P_N_Prop!$D$10,12*$A108,4*(PlotControl!$C$4-1),12,1)) -> 0.093627 | D108: =MAX(OFFSET(P_N_Prop!$E$10,12*$A108,4*(PlotControl!$C$4-1),12,1)) -> 0.10377 | E108: =MAX(OFFSET(P_NW_Prop!$C$10,12*$A108,4*(PlotControl!$C$4-1),12,1)) -> 0.078469 | F108: =MAX(OFFSET(P_NW_Prop!$D$10,12*$A108,4*(PlotControl!$C$4-1),12,1)) -> 0.087043 | G108: =MAX(OFFSET(P_NW_Prop!$E$10,12*$A108,4*(PlotControl!$C$4-1),12,1)) -> 0.094578 | H108: =MAX(OFFSET(P_W_Prop!$C$10,12*$A108,4*(PlotControl!$C$4-1),12,1)) -> 0.07858 | I108: =MAX(OFFSET(P_W_Prop!$D$10,12*$A108,4*(PlotControl!$C$4-1),12,1)) -> 0.088667 | J108: =MAX(OFFSET(P_W_Prop!$E$10,12*$A108,4*(PlotControl!$C$4-1),12,1)) -> 0.097774
A109: 104 | B109: =MAX(OFFSET(P_N_Prop!$C$10,12*$A109,4*(PlotControl!$C$4-1),12,1)) -> 0.082599 | C109: =MAX(OFFSET(P_N_Prop!$D$10,12*$A109,4*(PlotControl!$C$4-1),12,1)) -> 0.093547 | D109: =MAX(OFFSET(P_N_Prop!$E$10,12*$A109,4*(PlotControl!$C$4-1),12,1)) -> 0.10366 | E109: =MAX(OFFSET(P_NW_Prop!$C$10,12*$A109,4*(PlotControl!$C$4-1),12,1)) -> 0.078369 | F109: =MAX(OFFSET(P_NW_Prop!$D$10,12*$A109,4*(PlotControl!$C$4-1),12,1)) -> 0.086999 | G109: =MAX(OFFSET(P_NW_Prop!$E$10,12*$A109,4*(PlotControl!$C$4-1),12,1)) -> 0.094528 | H109: =MAX(OFFSET(P_W_Prop!$C$10,12*$A109,4*(PlotControl!$C$4-1),12,1)) -> 0.078487 | I109: =MAX(OFFSET(P_W_Prop!$D$10,12*$A109,4*(PlotControl!$C$4-1),12,1)) -> 0.088583 | J109: =MAX(OFFSET(P_W_Prop!$E$10,12*$A109,4*(PlotControl!$C$4-1),12,1)) -> 0.097686
A110: 105 | B110: =MAX(OFFSET(P_N_Prop!$C$10,12*$A110,4*(PlotControl!$C$4-1),12,1)) -> 0.082529 | C110: =MAX(OFFSET(P_N_Prop!$D$10,12*$A110,4*(PlotControl!$C$4-1),12,1)) -> 0.093468 | D110: =MAX(OFFSET(P_N_Prop!$E$10,12*$A110,4*(PlotControl!$C$4-1),12,1)) -> 0.10355 | E110: =MAX(OFFSET(P_NW_Prop!$C$10,12*$A110,4*(PlotControl!$C$4-1),12,1)) -> 0.078267 | F110: =MAX(OFFSET(P_NW_Prop!$D$10,12*$A110,4*(PlotControl!$C$4-1),12,1)) -> 0.086927 | G110: =MAX(OFFSET(P_NW_Prop!$E$10,12*$A110,4*(PlotControl!$C$4-1),12,1)) -> 0.094478 | H110: =MAX(OFFSET(P_W_Prop!$C$10,12*$A110,4*(PlotControl!$C$4-1),12,1)) -> 0.078393 | I110: =MAX(OFFSET(P_W_Prop!$D$10,12*$A110,4*(PlotControl!$C$4-1),12,1)) -> 0.088501 | J110: =MAX(OFFSET(P_W_Prop!$E$10,12*$A110,4*(PlotControl!$C$4-1),12,1)) -> 0.097599
A111: 106 | B111: =MAX(OFFSET(P_N_Prop!$C$10,12*$A111,4*(PlotControl!$C$4-1),12,1)) -> 0.082458 | C111: =MAX(OFFSET(P_N_Prop!$D$10,12*$A111,4*(PlotControl!$C$4-1),12,1)) -> 0.093437 | D111: =MAX(OFFSET(P_N_Prop!$E$10,12*$A111,4*(PlotControl!$C$4-1),12,1)) -> 0.10349 | E111: =MAX(OFFSET(P_NW_Prop!$C$10,12*$A111,4*(PlotControl!$C$4-1),12,1)) -> 0.078166 | F111: =MAX(OFFSET(P_NW_Prop!$D$10,12*$A111,4*(PlotControl!$C$4-1),12,1)) -> 0.086856 | G111: =MAX(OFFSET(P_NW_Prop!$E$10,12*$A111,4*(PlotControl!$C$4-1),12,1)) -> 0.094413 | H111: =MAX(OFFSET(P_W_Prop!$C$10,12*$A111,4*(PlotControl!$C$4-1),12,1)) -> 0.078275 | I111: =MAX(OFFSET(P_W_Prop!$D$10,12*$A111,4*(PlotControl!$C$4-1),12,1)) -> 0.088419 | J111: =MAX(OFFSET(P_W_Prop!$E$10,12*$A111,4*(PlotControl!$C$4-1),12,1)) -> 0.097512
A112: 107 | B112: =MAX(OFFSET(P_N_Prop!$C$10,12*$A112,4*(PlotControl!$C$4-1),12,1)) -> 0.082344 | C112: =MAX(OFFSET(P_N_Prop!$D$10,12*$A112,4*(PlotControl!$C$4-1),12,1)) -> 0.093322 | D112: =MAX(OFFSET(P_N_Prop!$E$10,12*$A112,4*(PlotControl!$C$4-1),12,1)) -> 0.10338 | E112: =MAX(OFFSET(P_NW_Prop!$C$10,12*$A112,4*(PlotControl!$C$4-1),12,1)) -> 0.078066 | F112: =MAX(OFFSET(P_NW_Prop!$D$10,12*$A112,4*(PlotControl!$C$4-1),12,1)) -> 0.086786 | G112: =MAX(OFFSET(P_NW_Prop!$E$10,12*$A112,4*(PlotControl!$C$4-1),12,1)) -> 0.094377 | H112: =MAX(OFFSET(P_W_Prop!$C$10,12*$A112,4*(PlotControl!$C$4-1),12,1)) -> 0.078158 | I112: =MAX(OFFSET(P_W_Prop!$D$10,12*$A112,4*(PlotControl!$C$4-1),12,1)) -> 0.088344 | J112: =MAX(OFFSET(P_W_Prop!$E$10,12*$A112,4*(PlotControl!$C$4-1),12,1)) -> 0.097425
A113: 108 | B113: =MAX(OFFSET(P_N_Prop!$C$10,12*$A113,4*(PlotControl!$C$4-1),12,1)) -> 0.082231 | C113: =MAX(OFFSET(P_N_Prop!$D$10,12*$A113,4*(PlotControl!$C$4-1),12,1)) -> 0.093225 | D113: =MAX(OFFSET(P_N_Prop!$E$10,12*$A113,4*(PlotControl!$C$4-1),12,1)) -> 0.10326 | E113: =MAX(OFFSET(P_NW_Prop!$C$10,12*$A113,4*(PlotControl!$C$4-1),12,1)) -> 0.077966 | F113: =MAX(OFFSET(P_NW_Prop!$D$10,12*$A113,4*(PlotControl!$C$4-1),12,1)) -> 0.086655 | G113: =MAX(OFFSET(P_NW_Prop!$E$10,12*$A113,4*(PlotControl!$C$4-1),12,1)) -> 0.094344 | H113: =MAX(OFFSET(P_W_Prop!$C$10,12*$A113,4*(PlotControl!$C$4-1),12,1)) -> 0.07806 | I113: =MAX(OFFSET(P_W_Prop!$D$10,12*$A113,4*(PlotControl!$C$4-1),12,1)) -> 0.088265 | J113: =MAX(OFFSET(P_W_Prop!$E$10,12*$A113,4*(PlotControl!$C$4-1),12,1)) -> 0.097338
A114: 109 | B114: =MAX(OFFSET(P_N_Prop!$C$10,12*$A114,4*(PlotControl!$C$4-1),12,1)) -> 0.082127 | C114: =MAX(OFFSET(P_N_Prop!$D$10,12*$A114,4*(PlotControl!$C$4-1),12,1)) -> 0.093175 | D114: =MAX(OFFSET(P_N_Prop!$E$10,12*$A114,4*(PlotControl!$C$4-1),12,1)) -> 0.10316 | E114: =MAX(OFFSET(P_NW_Prop!$C$10,12*$A114,4*(PlotControl!$C$4-1),12,1)) -> 0.077873 | F114: =MAX(OFFSET(P_NW_Prop!$D$10,12*$A114,4*(PlotControl!$C$4-1),12,1)) -> 0.086599 | G114: =MAX(OFFSET(P_NW_Prop!$E$10,12*$A114,4*(PlotControl!$C$4-1),12,1)) -> 0.094271 | H114: =MAX(OFFSET(P_W_Prop!$C$10,12*$A114,4*(PlotControl!$C$4-1),12,1)) -> 0.077961 | I114: =MAX(OFFSET(P_W_Prop!$D$10,12*$A114,4*(PlotControl!$C$4-1),12,1)) -> 0.08818 | J114: =MAX(OFFSET(P_W_Prop!$E$10,12*$A114,4*(PlotControl!$C$4-1),12,1)) -> 0.097258
A115: 110 | B115: =MAX(OFFSET(P_N_Prop!$C$10,12*$A115,4*(PlotControl!$C$4-1),12,1)) -> 0.082037 | C115: =MAX(OFFSET(P_N_Prop!$D$10,12*$A115,4*(PlotControl!$C$4-1),12,1)) -> 0.093104 | D115: =MAX(OFFSET(P_N_Prop!$E$10,12*$A115,4*(PlotControl!$C$4-1),12,1)) -> 0.10309 | E115: =MAX(OFFSET(P_NW_Prop!$C$10,12*$A115,4*(PlotControl!$C$4-1),12,1)) -> 0.07778 | F115: =MAX(OFFSET(P_NW_Prop!$D$10,12*$A115,4*(PlotControl!$C$4-1),12,1)) -> 0.086571 | G115: =MAX(OFFSET(P_NW_Prop!$E$10,12*$A115,4*(PlotControl!$C$4-1),12,1)) -> 0.094199 | H115: =MAX(OFFSET(P_W_Prop!$C$10,12*$A115,4*(PlotControl!$C$4-1),12,1)) -> 0.077863 | I115: =MAX(OFFSET(P_W_Prop!$D$10,12*$A115,4*(PlotControl!$C$4-1),12,1)) -> 0.088093 | J115: =MAX(OFFSET(P_W_Prop!$E$10,12*$A115,4*(PlotControl!$C$4-1),12,1)) -> 0.097177
A116: 111 | B116: =MAX(OFFSET(P_N_Prop!$C$10,12*$A116,4*(PlotControl!$C$4-1),12,1)) -> 0.081948 | C116: =MAX(OFFSET(P_N_Prop!$D$10,12*$A116,4*(PlotControl!$C$4-1),12,1)) -> 0.092972 | D116: =MAX(OFFSET(P_N_Prop!$E$10,12*$A116,4*(PlotControl!$C$4-1),12,1)) -> 0.10303 | E116: =MAX(OFFSET(P_NW_Prop!$C$10,12*$A116,4*(PlotControl!$C$4-1),12,1)) -> 0.07769 | F116: =MAX(OFFSET(P_NW_Prop!$D$10,12*$A116,4*(PlotControl!$C$4-1),12,1)) -> 0.086503 | G116: =MAX(OFFSET(P_NW_Prop!$E$10,12*$A116,4*(PlotControl!$C$4-1),12,1)) -> 0.094127 | H116: =MAX(OFFSET(P_W_Prop!$C$10,12*$A116,4*(PlotControl!$C$4-1),12,1)) -> 0.077766 | I116: =MAX(OFFSET(P_W_Prop!$D$10,12*$A116,4*(PlotControl!$C$4-1),12,1)) -> 0.08801 | J116: =MAX(OFFSET(P_W_Prop!$E$10,12*$A116,4*(PlotControl!$C$4-1),12,1)) -> 0.097097
A117: 112 | B117: =MAX(OFFSET(P_N_Prop!$C$10,12*$A117,4*(PlotControl!$C$4-1),12,1)) -> 0.081862 | C117: =MAX(OFFSET(P_N_Prop!$D$10,12*$A117,4*(PlotControl!$C$4-1),12,1)) -> 0.092892 | D117: =MAX(OFFSET(P_N_Prop!$E$10,12*$A117,4*(PlotControl!$C$4-1),12,1)) -> 0.10292 | E117: =MAX(OFFSET(P_NW_Prop!$C$10,12*$A117,4*(PlotControl!$C$4-1),12,1)) -> 0.077605 | F117: =MAX(OFFSET(P_NW_Prop!$D$10,12*$A117,4*(PlotControl!$C$4-1),12,1)) -> 0.086443 | G117: =MAX(OFFSET(P_NW_Prop!$E$10,12*$A117,4*(PlotControl!$C$4-1),12,1)) -> 0.094054 | H117: =MAX(OFFSET(P_W_Prop!$C$10,12*$A117,4*(PlotControl!$C$4-1),12,1)) -> 0.077669 | I117: =MAX(OFFSET(P_W_Prop!$D$10,12*$A117,4*(PlotControl!$C$4-1),12,1)) -> 0.087935 | J117: =MAX(OFFSET(P_W_Prop!$E$10,12*$A117,4*(PlotControl!$C$4-1),12,1)) -> 0.097017
A118: 113 | B118: =MAX(OFFSET(P_N_Prop!$C$10,12*$A118,4*(PlotControl!$C$4-1),12,1)) -> 0.081777 | C118: =MAX(OFFSET(P_N_Prop!$D$10,12*$A118,4*(PlotControl!$C$4-1),12,1)) -> 0.092785 | D118: =MAX(OFFSET(P_N_Prop!$E$10,12*$A118,4*(PlotControl!$C$4-1),12,1)) -> 0.10282 | E118: =MAX(OFFSET(P_NW_Prop!$C$10,12*$A118,4*(PlotControl!$C$4-1),12,1)) -> 0.077522 | F118: =MAX(OFFSET(P_NW_Prop!$D$10,12*$A118,4*(PlotControl!$C$4-1),12,1)) -> 0.086379 | G118: =MAX(OFFSET(P_NW_Prop!$E$10,12*$A118,4*(PlotControl!$C$4-1),12,1)) -> 0.093981 | H118: =MAX(OFFSET(P_W_Prop!$C$10,12*$A118,4*(PlotControl!$C$4-1),12,1)) -> 0.077572 | I118: =MAX(OFFSET(P_W_Prop!$D$10,12*$A118,4*(PlotControl!$C$4-1),12,1)) -> 0.087883 | J118: =MAX(OFFSET(P_W_Prop!$E$10,12*$A118,4*(PlotControl!$C$4-1),12,1)) -> 0.096937
A119: 114 | B119: =MAX(OFFSET(P_N_Prop!$C$10,12*$A119,4*(PlotControl!$C$4-1),12,1)) -> 0.081722 | C119: =MAX(OFFSET(P_N_Prop!$D$10,12*$A119,4*(PlotControl!$C$4-1),12,1)) -> 0.092698 | D119: =MAX(OFFSET(P_N_Prop!$E$10,12*$A119,4*(PlotControl!$C$4-1),12,1)) -> 0.10272 | E119: =MAX(OFFSET(P_NW_Prop!$C$10,12*$A119,4*(PlotControl!$C$4-1),12,1)) -> 0.077439 | F119: =MAX(OFFSET(P_NW_Prop!$D$10,12*$A119,4*(PlotControl!$C$4-1),12,1)) -> 0.086287 | G119: =MAX(OFFSET(P_NW_Prop!$E$10,12*$A119,4*(PlotControl!$C$4-1),12,1)) -> 0.093906 | H119: =MAX(OFFSET(P_W_Prop!$C$10,12*$A119,4*(PlotControl!$C$4-1),12,1)) -> 0.077475 | I119: =MAX(OFFSET(P_W_Prop!$D$10,12*$A119,4*(PlotControl!$C$4-1),12,1)) -> 0.087795 | J119: =MAX(OFFSET(P_W_Prop!$E$10,12*$A119,4*(PlotControl!$C$4-1),12,1)) -> 0.096858
A120: 115 | B120: =MAX(OFFSET(P_N_Prop!$C$10,12*$A120,4*(PlotControl!$C$4-1),12,1)) -> 0.081637 | C120: =MAX(OFFSET(P_N_Prop!$D$10,12*$A120,4*(PlotControl!$C$4-1),12,1)) -> 0.092686 | D120: =MAX(OFFSET(P_N_Prop!$E$10,12*$A120,4*(PlotControl!$C$4-1),12,1)) -> 0.10264 | E120: =MAX(OFFSET(P_NW_Prop!$C$10,12*$A120,4*(PlotControl!$C$4-1),12,1)) -> 0.077357 | F120: =MAX(OFFSET(P_NW_Prop!$D$10,12*$A120,4*(PlotControl!$C$4-1),12,1)) -> 0.086231 | G120: =MAX(OFFSET(P_NW_Prop!$E$10,12*$A120,4*(PlotControl!$C$4-1),12,1)) -> 0.093839 | H120: =MAX(OFFSET(P_W_Prop!$C$10,12*$A120,4*(PlotControl!$C$4-1),12,1)) -> 0.077379 | I120: =MAX(OFFSET(P_W_Prop!$D$10,12*$A120,4*(PlotControl!$C$4-1),12,1)) -> 0.087701 | J120: =MAX(OFFSET(P_W_Prop!$E$10,12*$A120,4*(PlotControl!$C$4-1),12,1)) -> 0.096812
A121: 116 | B121: =MAX(OFFSET(P_N_Prop!$C$10,12*$A121,4*(PlotControl!$C$4-1),12,1)) -> 0.081538 | C121: =MAX(OFFSET(P_N_Prop!$D$10,12*$A121,4*(PlotControl!$C$4-1),12,1)) -> 0.092611 | D121: =MAX(OFFSET(P_N_Prop!$E$10,12*$A121,4*(PlotControl!$C$4-1),12,1)) -> 0.10256 | E121: =MAX(OFFSET(P_NW_Prop!$C$10,12*$A121,4*(PlotControl!$C$4-1),12,1)) -> 0.077275 | F121: =MAX(OFFSET(P_NW_Prop!$D$10,12*$A121,4*(PlotControl!$C$4-1),12,1)) -> 0.086154 | G121: =MAX(OFFSET(P_NW_Prop!$E$10,12*$A121,4*(PlotControl!$C$4-1),12,1)) -> 0.093773 | H121: =MAX(OFFSET(P_W_Prop!$C$10,12*$A121,4*(PlotControl!$C$4-1),12,1)) -> 0.07729 | I121: =MAX(OFFSET(P_W_Prop!$D$10,12*$A121,4*(PlotControl!$C$4-1),12,1)) -> 0.087606 | J121: =MAX(OFFSET(P_W_Prop!$E$10,12*$A121,4*(PlotControl!$C$4-1),12,1)) -> 0.096769
A122: 117 | B122: =MAX(OFFSET(P_N_Prop!$C$10,12*$A122,4*(PlotControl!$C$4-1),12,1)) -> 0.08144 | C122: =MAX(OFFSET(P_N_Prop!$D$10,12*$A122,4*(PlotControl!$C$4-1),12,1)) -> 0.092526 | D122: =MAX(OFFSET(P_N_Prop!$E$10,12*$A122,4*(PlotControl!$C$4-1),12,1)) -> 0.10248 | E122: =MAX(OFFSET(P_NW_Prop!$C$10,12*$A122,4*(PlotControl!$C$4-1),12,1)) -> 0.077194 | F122: =MAX(OFFSET(P_NW_Prop!$D$10,12*$A122,4*(PlotControl!$C$4-1),12,1)) -> 0.086109 | G122: =MAX(OFFSET(P_NW_Prop!$E$10,12*$A122,4*(PlotControl!$C$4-1),12,1)) -> 0.093725 | H122: =MAX(OFFSET(P_W_Prop!$C$10,12*$A122,4*(PlotControl!$C$4-1),12,1)) -> 0.077211 | I122: =MAX(OFFSET(P_W_Prop!$D$10,12*$A122,4*(PlotControl!$C$4-1),12,1)) -> 0.087506 | J122: =MAX(OFFSET(P_W_Prop!$E$10,12*$A122,4*(PlotControl!$C$4-1),12,1)) -> 0.096726
A123: 118 | B123: =MAX(OFFSET(P_N_Prop!$C$10,12*$A123,4*(PlotControl!$C$4-1),12,1)) -> 0.081358 | C123: =MAX(OFFSET(P_N_Prop!$D$10,12*$A123,4*(PlotControl!$C$4-1),12,1)) -> 0.092414 | D123: =MAX(OFFSET(P_N_Prop!$E$10,12*$A123,4*(PlotControl!$C$4-1),12,1)) -> 0.10241 | E123: =MAX(OFFSET(P_NW_Prop!$C$10,12*$A123,4*(PlotControl!$C$4-1),12,1)) -> 0.077113 | F123: =MAX(OFFSET(P_NW_Prop!$D$10,12*$A123,4*(PlotControl!$C$4-1),12,1)) -> 0.086085 | G123: =MAX(OFFSET(P_NW_Prop!$E$10,12*$A123,4*(PlotControl!$C$4-1),12,1)) -> 0.093676 | H123: =MAX(OFFSET(P_W_Prop!$C$10,12*$A123,4*(PlotControl!$C$4-1),12,1)) -> 0.077132 | I123: =MAX(OFFSET(P_W_Prop!$D$10,12*$A123,4*(PlotControl!$C$4-1),12,1)) -> 0.087406 | J123: =MAX(OFFSET(P_W_Prop!$E$10,12*$A123,4*(PlotControl!$C$4-1),12,1)) -> 0.096679
A124: 119 | B124: =MAX(OFFSET(P_N_Prop!$C$10,12*$A124,4*(PlotControl!$C$4-1),12,1)) -> 0.081281 | C124: =MAX(OFFSET(P_N_Prop!$D$10,12*$A124,4*(PlotControl!$C$4-1),12,1)) -> 0.092351 | D124: =MAX(OFFSET(P_N_Prop!$E$10,12*$A124,4*(PlotControl!$C$4-1),12,1)) -> 0.10234 | E124: =MAX(OFFSET(P_NW_Prop!$C$10,12*$A124,4*(PlotControl!$C$4-1),12,1)) -> 0.07705 | F124: =MAX(OFFSET(P_NW_Prop!$D$10,12*$A124,4*(PlotControl!$C$4-1),12,1)) -> 0.086035 | G124: =MAX(OFFSET(P_NW_Prop!$E$10,12*$A124,4*(PlotControl!$C$4-1),12,1)) -> 0.093628 | H124: =MAX(OFFSET(P_W_Prop!$C$10,12*$A124,4*(PlotControl!$C$4-1),12,1)) -> 0.077054 | I124: =MAX(OFFSET(P_W_Prop!$D$10,12*$A124,4*(PlotControl!$C$4-1),12,1)) -> 0.087308 | J124: =MAX(OFFSET(P_W_Prop!$E$10,12*$A124,4*(PlotControl!$C$4-1),12,1)) -> 0.096615
A125: 120 | B125: =MAX(OFFSET(P_N_Prop!$C$10,12*$A125,4*(PlotControl!$C$4-1),12,1)) -> 0.081209 | C125: =MAX(OFFSET(P_N_Prop!$D$10,12*$A125,4*(PlotControl!$C$4-1),12,1)) -> 0.092301 | D125: =MAX(OFFSET(P_N_Prop!$E$10,12*$A125,4*(PlotControl!$C$4-1),12,1)) -> 0.10229 | E125: =MAX(OFFSET(P_NW_Prop!$C$10,12*$A125,4*(PlotControl!$C$4-1),12,1)) -> 0.077027 | F125: =MAX(OFFSET(P_NW_Prop!$D$10,12*$A125,4*(PlotControl!$C$4-1),12,1)) -> 0.085954 | G125: =MAX(OFFSET(P_NW_Prop!$E$10,12*$A125,4*(PlotControl!$C$4-1),12,1)) -> 0.093581 | H125: =MAX(OFFSET(P_W_Prop!$C$10,12*$A125,4*(PlotControl!$C$4-1),12,1)) -> 0.076976 | I125: =MAX(OFFSET(P_W_Prop!$D$10,12*$A125,4*(PlotControl!$C$4-1),12,1)) -> 0.087221 | J125: =MAX(OFFSET(P_W_Prop!$E$10,12*$A125,4*(PlotControl!$C$4-1),12,1)) -> 0.096538
A126: 121 | B126: =MAX(OFFSET(P_N_Prop!$C$10,12*$A126,4*(PlotControl!$C$4-1),12,1)) -> 0.081141 | C126: =MAX(OFFSET(P_N_Prop!$D$10,12*$A126,4*(PlotControl!$C$4-1),12,1)) -> 0.092206 | D126: =MAX(OFFSET(P_N_Prop!$E$10,12*$A126,4*(PlotControl!$C$4-1),12,1)) -> 0.10227 | E126: =MAX(OFFSET(P_NW_Prop!$C$10,12*$A126,4*(PlotControl!$C$4-1),12,1)) -> 0.07698 | F126: =MAX(OFFSET(P_NW_Prop!$D$10,12*$A126,4*(PlotControl!$C$4-1),12,1)) -> 0.085879 | G126: =MAX(OFFSET(P_NW_Prop!$E$10,12*$A126,4*(PlotControl!$C$4-1),12,1)) -> 0.093606 | H126: =MAX(OFFSET(P_W_Prop!$C$10,12*$A126,4*(PlotControl!$C$4-1),12,1)) -> 0.076898 | I126: =MAX(OFFSET(P_W_Prop!$D$10,12*$A126,4*(PlotControl!$C$4-1),12,1)) -> 0.087145 | J126: =MAX(OFFSET(P_W_Prop!$E$10,12*$A126,4*(PlotControl!$C$4-1),12,1)) -> 0.096454
A127: 122 | B127: =MAX(OFFSET(P_N_Prop!$C$10,12*$A127,4*(PlotControl!$C$4-1),12,1)) -> 0.081076 | C127: =MAX(OFFSET(P_N_Prop!$D$10,12*$A127,4*(PlotControl!$C$4-1),12,1)) -> 0.092153 | D127: =MAX(OFFSET(P_N_Prop!$E$10,12*$A127,4*(PlotControl!$C$4-1),12,1)) -> 0.1022 | E127: =MAX(OFFSET(P_NW_Prop!$C$10,12*$A127,4*(PlotControl!$C$4-1),12,1)) -> 0.07681 | F127: =MAX(OFFSET(P_NW_Prop!$D$10,12*$A127,4*(PlotControl!$C$4-1),12,1)) -> 0.085797 | G127: =MAX(OFFSET(P_NW_Prop!$E$10,12*$A127,4*(PlotControl!$C$4-1),12,1)) -> 0.093626 | H127: =MAX(OFFSET(P_W_Prop!$C$10,12*$A127,4*(PlotControl!$C$4-1),12,1)) -> 0.076803 | I127: =MAX(OFFSET(P_W_Prop!$D$10,12*$A127,4*(PlotControl!$C$4-1),12,1)) -> 0.087065 | J127: =MAX(OFFSET(P_W_Prop!$E$10,12*$A127,4*(PlotControl!$C$4-1),12,1)) -> 0.09637
A128: 123 | B128: =MAX(OFFSET(P_N_Prop!$C$10,12*$A128,4*(PlotControl!$C$4-1),12,1)) -> 0.081021 | C128: =MAX(OFFSET(P_N_Prop!$D$10,12*$A128,4*(PlotControl!$C$4-1),12,1)) -> 0.092113 | D128: =MAX(OFFSET(P_N_Prop!$E$10,12*$A128,4*(PlotControl!$C$4-1),12,1)) -> 0.10218 | E128: =MAX(OFFSET(P_NW_Prop!$C$10,12*$A128,4*(PlotControl!$C$4-1),12,1)) -> 0.076715 | F128: =MAX(OFFSET(P_NW_Prop!$D$10,12*$A128,4*(PlotControl!$C$4-1),12,1)) -> 0.085716 | G128: =MAX(OFFSET(P_NW_Prop!$E$10,12*$A128,4*(PlotControl!$C$4-1),12,1)) -> 0.093615 | H128: =MAX(OFFSET(P_W_Prop!$C$10,12*$A128,4*(PlotControl!$C$4-1),12,1)) -> 0.076701 | I128: =MAX(OFFSET(P_W_Prop!$D$10,12*$A128,4*(PlotControl!$C$4-1),12,1)) -> 0.086979 | J128: =MAX(OFFSET(P_W_Prop!$E$10,12*$A128,4*(PlotControl!$C$4-1),12,1)) -> 0.096287
A129: 124 | B129: =MAX(OFFSET(P_N_Prop!$C$10,12*$A129,4*(PlotControl!$C$4-1),12,1)) -> 0.080967 | C129: =MAX(OFFSET(P_N_Prop!$D$10,12*$A129,4*(PlotControl!$C$4-1),12,1)) -> 0.092018 | D129: =MAX(OFFSET(P_N_Prop!$E$10,12*$A129,4*(PlotControl!$C$4-1),12,1)) -> 0.10213 | E129: =MAX(OFFSET(P_NW_Prop!$C$10,12*$A129,4*(PlotControl!$C$4-1),12,1)) -> 0.076645 | F129: =MAX(OFFSET(P_NW_Prop!$D$10,12*$A129,4*(PlotControl!$C$4-1),12,1)) -> 0.085631 | G129: =MAX(OFFSET(P_NW_Prop!$E$10,12*$A129,4*(PlotControl!$C$4-1),12,1)) -> 0.093573 | H129: =MAX(OFFSET(P_W_Prop!$C$10,12*$A129,4*(PlotControl!$C$4-1),12,1)) -> 0.076597 | I129: =MAX(OFFSET(P_W_Prop!$D$10,12*$A129,4*(PlotControl!$C$4-1),12,1)) -> 0.086893 | J129: =MAX(OFFSET(P_W_Prop!$E$10,12*$A129,4*(PlotControl!$C$4-1),12,1)) -> 0.096291
A130: 125 | B130: =MAX(OFFSET(P_N_Prop!$C$10,12*$A130,4*(PlotControl!$C$4-1),12,1)) -> 0.080906 | C130: =MAX(OFFSET(P_N_Prop!$D$10,12*$A130,4*(PlotControl!$C$4-1),12,1)) -> 0.091946 | D130: =MAX(OFFSET(P_N_Prop!$E$10,12*$A130,4*(PlotControl!$C$4-1),12,1)) -> 0.10207 | E130: =MAX(OFFSET(P_NW_Prop!$C$10,12*$A130,4*(PlotControl!$C$4-1),12,1)) -> 0.076575 | F130: =MAX(OFFSET(P_NW_Prop!$D$10,12*$A130,4*(PlotControl!$C$4-1),12,1)) -> 0.085559 | G130: =MAX(OFFSET(P_NW_Prop!$E$10,12*$A130,4*(PlotControl!$C$4-1),12,1)) -> 0.09351 | H130: =MAX(OFFSET(P_W_Prop!$C$10,12*$A130,4*(PlotControl!$C$4-1),12,1)) -> 0.076495 | I130: =MAX(OFFSET(P_W_Prop!$D$10,12*$A130,4*(PlotControl!$C$4-1),12,1)) -> 0.086807 | J130: =MAX(OFFSET(P_W_Prop!$E$10,12*$A130,4*(PlotControl!$C$4-1),12,1)) -> 0.096236
A131: 126 | B131: =MAX(OFFSET(P_N_Prop!$C$10,12*$A131,4*(PlotControl!$C$4-1),12,1)) -> 0.080863 | C131: =MAX(OFFSET(P_N_Prop!$D$10,12*$A131,4*(PlotControl!$C$4-1),12,1)) -> 0.091913 | D131: =MAX(OFFSET(P_N_Prop!$E$10,12*$A131,4*(PlotControl!$C$4-1),12,1)) -> 0.10198 | E131: =MAX(OFFSET(P_NW_Prop!$C$10,12*$A131,4*(PlotControl!$C$4-1),12,1)) -> 0.076497 | F131: =MAX(OFFSET(P_NW_Prop!$D$10,12*$A131,4*(PlotControl!$C$4-1),12,1)) -> 0.08548 | G131: =MAX(OFFSET(P_NW_Prop!$E$10,12*$A131,4*(PlotControl!$C$4-1),12,1)) -> 0.093448 | H131: =MAX(OFFSET(P_W_Prop!$C$10,12*$A131,4*(PlotControl!$C$4-1),12,1)) -> 0.076392 | I131: =MAX(OFFSET(P_W_Prop!$D$10,12*$A131,4*(PlotControl!$C$4-1),12,1)) -> 0.08672 | J131: =MAX(OFFSET(P_W_Prop!$E$10,12*$A131,4*(PlotControl!$C$4-1),12,1)) -> 0.096174
A132: 127 | B132: =MAX(OFFSET(P_N_Prop!$C$10,12*$A132,4*(PlotControl!$C$4-1),12,1)) -> 0.080825 | C132: =MAX(OFFSET(P_N_Prop!$D$10,12*$A132,4*(PlotControl!$C$4-1),12,1)) -> 0.091825 | D132: =MAX(OFFSET(P_N_Prop!$E$10,12*$A132,4*(PlotControl!$C$4-1),12,1)) -> 0.10189 | E132: =MAX(OFFSET(P_NW_Prop!$C$10,12*$A132,4*(PlotControl!$C$4-1),12,1)) -> 0.076418 | F132: =MAX(OFFSET(P_NW_Prop!$D$10,12*$A132,4*(PlotControl!$C$4-1),12,1)) -> 0.08542 | G132: =MAX(OFFSET(P_NW_Prop!$E$10,12*$A132,4*(PlotControl!$C$4-1),12,1)) -> 0.093378 | H132: =MAX(OFFSET(P_W_Prop!$C$10,12*$A132,4*(PlotControl!$C$4-1),12,1)) -> 0.07629 | I132: =MAX(OFFSET(P_W_Prop!$D$10,12*$A132,4*(PlotControl!$C$4-1),12,1)) -> 0.086632 | J132: =MAX(OFFSET(P_W_Prop!$E$10,12*$A132,4*(PlotControl!$C$4-1),12,1)) -> 0.096113
A133: 128 | B133: =MAX(OFFSET(P_N_Prop!$C$10,12*$A133,4*(PlotControl!$C$4-1),12,1)) -> 0.080766 | C133: =MAX(OFFSET(P_N_Prop!$D$10,12*$A133,4*(PlotControl!$C$4-1),12,1)) -> 0.091742 | D133: =MAX(OFFSET(P_N_Prop!$E$10,12*$A133,4*(PlotControl!$C$4-1),12,1)) -> 0.10182 | E133: =MAX(OFFSET(P_NW_Prop!$C$10,12*$A133,4*(PlotControl!$C$4-1),12,1)) -> 0.076316 | F133: =MAX(OFFSET(P_NW_Prop!$D$10,12*$A133,4*(PlotControl!$C$4-1),12,1)) -> 0.085426 | G133: =MAX(OFFSET(P_NW_Prop!$E$10,12*$A133,4*(PlotControl!$C$4-1),12,1)) -> 0.093328 | H133: =MAX(OFFSET(P_W_Prop!$C$10,12*$A133,4*(PlotControl!$C$4-1),12,1)) -> 0.076189 | I133: =MAX(OFFSET(P_W_Prop!$D$10,12*$A133,4*(PlotControl!$C$4-1),12,1)) -> 0.086545 | J133: =MAX(OFFSET(P_W_Prop!$E$10,12*$A133,4*(PlotControl!$C$4-1),12,1)) -> 0.09604
A134: 129 | B134: =MAX(OFFSET(P_N_Prop!$C$10,12*$A134,4*(PlotControl!$C$4-1),12,1)) -> 0.080728 | C134: =MAX(OFFSET(P_N_Prop!$D$10,12*$A134,4*(PlotControl!$C$4-1),12,1)) -> 0.09166 | D134: =MAX(OFFSET(P_N_Prop!$E$10,12*$A134,4*(PlotControl!$C$4-1),12,1)) -> 0.10181 | E134: =MAX(OFFSET(P_NW_Prop!$C$10,12*$A134,4*(PlotControl!$C$4-1),12,1)) -> 0.076173 | F134: =MAX(OFFSET(P_NW_Prop!$D$10,12*$A134,4*(PlotControl!$C$4-1),12,1)) -> 0.085414 | G134: =MAX(OFFSET(P_NW_Prop!$E$10,12*$A134,4*(PlotControl!$C$4-1),12,1)) -> 0.09328 | H134: =MAX(OFFSET(P_W_Prop!$C$10,12*$A134,4*(PlotControl!$C$4-1),12,1)) -> 0.076106 | I134: =MAX(OFFSET(P_W_Prop!$D$10,12*$A134,4*(PlotControl!$C$4-1),12,1)) -> 0.086467 | J134: =MAX(OFFSET(P_W_Prop!$E$10,12*$A134,4*(PlotControl!$C$4-1),12,1)) -> 0.095961
A135: 130 | B135: =MAX(OFFSET(P_N_Prop!$C$10,12*$A135,4*(PlotControl!$C$4-1),12,1)) -> 0.080715 | C135: =MAX(OFFSET(P_N_Prop!$D$10,12*$A135,4*(PlotControl!$C$4-1),12,1)) -> 0.091627 | D135: =MAX(OFFSET(P_N_Prop!$E$10,12*$A135,4*(PlotControl!$C$4-1),12,1)) -> 0.10175 | E135: =MAX(OFFSET(P_NW_Prop!$C$10,12*$A135,4*(PlotControl!$C$4-1),12,1)) -> 0.076071 | F135: =MAX(OFFSET(P_NW_Prop!$D$10,12*$A135,4*(PlotControl!$C$4-1),12,1)) -> 0.085362 | G135: =MAX(OFFSET(P_NW_Prop!$E$10,12*$A135,4*(PlotControl!$C$4-1),12,1)) -> 0.093232 | H135: =MAX(OFFSET(P_W_Prop!$C$10,12*$A135,4*(PlotControl!$C$4-1),12,1)) -> 0.076044 | I135: =MAX(OFFSET(P_W_Prop!$D$10,12*$A135,4*(PlotControl!$C$4-1),12,1)) -> 0.086407 | J135: =MAX(OFFSET(P_W_Prop!$E$10,12*$A135,4*(PlotControl!$C$4-1),12,1)) -> 0.095882
A136: 131 | B136: =MAX(OFFSET(P_N_Prop!$C$10,12*$A136,4*(PlotControl!$C$4-1),12,1)) -> 0.080657 | C136: =MAX(OFFSET(P_N_Prop!$D$10,12*$A136,4*(PlotControl!$C$4-1),12,1)) -> 0.091649 | D136: =MAX(OFFSET(P_N_Prop!$E$10,12*$A136,4*(PlotControl!$C$4-1),12,1)) -> 0.10167 | E136: =MAX(OFFSET(P_NW_Prop!$C$10,12*$A136,4*(PlotControl!$C$4-1),12,1)) -> 0.075984 | F136: =MAX(OFFSET(P_NW_Prop!$D$10,12*$A136,4*(PlotControl!$C$4-1),12,1)) -> 0.085276 | G136: =MAX(OFFSET(P_NW_Prop!$E$10,12*$A136,4*(PlotControl!$C$4-1),12,1)) -> 0.093183 | H136: =MAX(OFFSET(P_W_Prop!$C$10,12*$A136,4*(PlotControl!$C$4-1),12,1)) -> 0.076037 | I136: =MAX(OFFSET(P_W_Prop!$D$10,12*$A136,4*(PlotControl!$C$4-1),12,1)) -> 0.086325 | J136: =MAX(OFFSET(P_W_Prop!$E$10,12*$A136,4*(PlotControl!$C$4-1),12,1)) -> 0.095804
A137: 132 | B137: =MAX(OFFSET(P_N_Prop!$C$10,12*$A137,4*(PlotControl!$C$4-1),12,1)) -> 0.08059 | C137: =MAX(OFFSET(P_N_Prop!$D$10,12*$A137,4*(PlotControl!$C$4-1),12,1)) -> 0.091633 | D137: =MAX(OFFSET(P_N_Prop!$E$10,12*$A137,4*(PlotControl!$C$4-1),12,1)) -> 0.10164 | E137: =MAX(OFFSET(P_NW_Prop!$C$10,12*$A137,4*(PlotControl!$C$4-1),12,1)) -> 0.075878 | F137: =MAX(OFFSET(P_NW_Prop!$D$10,12*$A137,4*(PlotControl!$C$4-1),12,1)) -> 0.08525 | G137: =MAX(OFFSET(P_NW_Prop!$E$10,12*$A137,4*(PlotControl!$C$4-1),12,1)) -> 0.093136 | H137: =MAX(OFFSET(P_W_Prop!$C$10,12*$A137,4*(PlotControl!$C$4-1),12,1)) -> 0.076009 | I137: =MAX(OFFSET(P_W_Prop!$D$10,12*$A137,4*(PlotControl!$C$4-1),12,1)) -> 0.086243 | J137: =MAX(OFFSET(P_W_Prop!$E$10,12*$A137,4*(PlotControl!$C$4-1),12,1)) -> 0.095726
A138: 133 | B138: =MAX(OFFSET(P_N_Prop!$C$10,12*$A138,4*(PlotControl!$C$4-1),12,1)) -> 0.080547 | C138: =MAX(OFFSET(P_N_Prop!$D$10,12*$A138,4*(PlotControl!$C$4-1),12,1)) -> 0.091582 | D138: =MAX(OFFSET(P_N_Prop!$E$10,12*$A138,4*(PlotControl!$C$4-1),12,1)) -> 0.10165 | E138: =MAX(OFFSET(P_NW_Prop!$C$10,12*$A138,4*(PlotControl!$C$4-1),12,1)) -> 0.075769 | F138: =MAX(OFFSET(P_NW_Prop!$D$10,12*$A138,4*(PlotControl!$C$4-1),12,1)) -> 0.08518 | G138: =MAX(OFFSET(P_NW_Prop!$E$10,12*$A138,4*(PlotControl!$C$4-1),12,1)) -> 0.093088 | H138: =MAX(OFFSET(P_W_Prop!$C$10,12*$A138,4*(PlotControl!$C$4-1),12,1)) -> 0.075923 | I138: =MAX(OFFSET(P_W_Prop!$D$10,12*$A138,4*(PlotControl!$C$4-1),12,1)) -> 0.086162 | J138: =MAX(OFFSET(P_W_Prop!$E$10,12*$A138,4*(PlotControl!$C$4-1),12,1)) -> 0.095649
A139: 134 | B139: =MAX(OFFSET(P_N_Prop!$C$10,12*$A139,4*(PlotControl!$C$4-1),12,1)) -> 0.080513 | C139: =MAX(OFFSET(P_N_Prop!$D$10,12*$A139,4*(PlotControl!$C$4-1),12,1)) -> 0.091529 | D139: =MAX(OFFSET(P_N_Prop!$E$10,12*$A139,4*(PlotControl!$C$4-1),12,1)) -> 0.10158 | E139: =MAX(OFFSET(P_NW_Prop!$C$10,12*$A139,4*(PlotControl!$C$4-1),12,1)) -> 0.075675 | F139: =MAX(OFFSET(P_NW_Prop!$D$10,12*$A139,4*(PlotControl!$C$4-1),12,1)) -> 0.085159 | G139: =MAX(OFFSET(P_NW_Prop!$E$10,12*$A139,4*(PlotControl!$C$4-1),12,1)) -> 0.093085 | H139: =MAX(OFFSET(P_W_Prop!$C$10,12*$A139,4*(PlotControl!$C$4-1),12,1)) -> 0.075836 | I139: =MAX(OFFSET(P_W_Prop!$D$10,12*$A139,4*(PlotControl!$C$4-1),12,1)) -> 0.086081 | J139: =MAX(OFFSET(P_W_Prop!$E$10,12*$A139,4*(PlotControl!$C$4-1),12,1)) -> 0.095571
A140: 135 | B140: =MAX(OFFSET(P_N_Prop!$C$10,12*$A140,4*(PlotControl!$C$4-1),12,1)) -> 0.080501 | C140: =MAX(OFFSET(P_N_Prop!$D$10,12*$A140,4*(PlotControl!$C$4-1),12,1)) -> 0.091486 | D140: =MAX(OFFSET(P_N_Prop!$E$10,12*$A140,4*(PlotControl!$C$4-1),12,1)) -> 0.10148 | E140: =MAX(OFFSET(P_NW_Prop!$C$10,12*$A140,4*(PlotControl!$C$4-1),12,1)) -> 0.075583 | F140: =MAX(OFFSET(P_NW_Prop!$D$10,12*$A140,4*(PlotControl!$C$4-1),12,1)) -> 0.085085 | G140: =MAX(OFFSET(P_NW_Prop!$E$10,12*$A140,4*(PlotControl!$C$4-1),12,1)) -> 0.093086 | H140: =MAX(OFFSET(P_W_Prop!$C$10,12*$A140,4*(PlotControl!$C$4-1),12,1)) -> 0.07575 | I140: =MAX(OFFSET(P_W_Prop!$D$10,12*$A140,4*(PlotControl!$C$4-1),12,1)) -> 0.086 | J140: =MAX(OFFSET(P_W_Prop!$E$10,12*$A140,4*(PlotControl!$C$4-1),12,1)) -> 0.095494
A141: 136 | B141: =MAX(OFFSET(P_N_Prop!$C$10,12*$A141,4*(PlotControl!$C$4-1),12,1)) -> 0.080511 | C141: =MAX(OFFSET(P_N_Prop!$D$10,12*$A141,4*(PlotControl!$C$4-1),12,1)) -> 0.091425 | D141: =MAX(OFFSET(P_N_Prop!$E$10,12*$A141,4*(PlotControl!$C$4-1),12,1)) -> 0.10139 | E141: =MAX(OFFSET(P_NW_Prop!$C$10,12*$A141,4*(PlotControl!$C$4-1),12,1)) -> 0.075516 | F141: =MAX(OFFSET(P_NW_Prop!$D$10,12*$A141,4*(PlotControl!$C$4-1),12,1)) -> 0.08502 | G141: =MAX(OFFSET(P_NW_Prop!$E$10,12*$A141,4*(PlotControl!$C$4-1),12,1)) -> 0.093047 | H141: =MAX(OFFSET(P_W_Prop!$C$10,12*$A141,4*(PlotControl!$C$4-1),12,1)) -> 0.075655 | I141: =MAX(OFFSET(P_W_Prop!$D$10,12*$A141,4*(PlotControl!$C$4-1),12,1)) -> 0.08592 | J141: =MAX(OFFSET(P_W_Prop!$E$10,12*$A141,4*(PlotControl!$C$4-1),12,1)) -> 0.09543
A142: 137 | B142: =MAX(OFFSET(P_N_Prop!$C$10,12*$A142,4*(PlotControl!$C$4-1),12,1)) -> 0.080515 | C142: =MAX(OFFSET(P_N_Prop!$D$10,12*$A142,4*(PlotControl!$C$4-1),12,1)) -> 0.091429 | D142: =MAX(OFFSET(P_N_Prop!$E$10,12*$A142,4*(PlotControl!$C$4-1),12,1)) -> 0.1013 | E142: =MAX(OFFSET(P_NW_Prop!$C$10,12*$A142,4*(PlotControl!$C$4-1),12,1)) -> 0.07548 | F142: =MAX(OFFSET(P_NW_Prop!$D$10,12*$A142,4*(PlotControl!$C$4-1),12,1)) -> 0.084938 | G142: =MAX(OFFSET(P_NW_Prop!$E$10,12*$A142,4*(PlotControl!$C$4-1),12,1)) -> 0.093008 | H142: =MAX(OFFSET(P_W_Prop!$C$10,12*$A142,4*(PlotControl!$C$4-1),12,1)) -> 0.075543 | I142: =MAX(OFFSET(P_W_Prop!$D$10,12*$A142,4*(PlotControl!$C$4-1),12,1)) -> 0.08585 | J142: =MAX(OFFSET(P_W_Prop!$E$10,12*$A142,4*(PlotControl!$C$4-1),12,1)) -> 0.095366
A143: 138 | B143: =MAX(OFFSET(P_N_Prop!$C$10,12*$A143,4*(PlotControl!$C$4-1),12,1)) -> 0.080479 | C143: =MAX(OFFSET(P_N_Prop!$D$10,12*$A143,4*(PlotControl!$C$4-1),12,1)) -> 0.091419 | D143: =MAX(OFFSET(P_N_Prop!$E$10,12*$A143,4*(PlotControl!$C$4-1),12,1)) -> 0.10121 | E143: =MAX(OFFSET(P_NW_Prop!$C$10,12*$A143,4*(PlotControl!$C$4-1),12,1)) -> 0.075381 | F143: =MAX(OFFSET(P_NW_Prop!$D$10,12*$A143,4*(PlotControl!$C$4-1),12,1)) -> 0.084847 | G143: =MAX(OFFSET(P_NW_Prop!$E$10,12*$A143,4*(PlotControl!$C$4-1),12,1)) -> 0.09296 | H143: =MAX(OFFSET(P_W_Prop!$C$10,12*$A143,4*(PlotControl!$C$4-1),12,1)) -> 0.075446 | I143: =MAX(OFFSET(P_W_Prop!$D$10,12*$A143,4*(PlotControl!$C$4-1),12,1)) -> 0.085782 | J143: =MAX(OFFSET(P_W_Prop!$E$10,12*$A143,4*(PlotControl!$C$4-1),12,1)) -> 0.095303
A144: 139 | B144: =MAX(OFFSET(P_N_Prop!$C$10,12*$A144,4*(PlotControl!$C$4-1),12,1)) -> 0.080423 | C144: =MAX(OFFSET(P_N_Prop!$D$10,12*$A144,4*(PlotControl!$C$4-1),12,1)) -> 0.091323 | D144: =MAX(OFFSET(P_N_Prop!$E$10,12*$A144,4*(PlotControl!$C$4-1),12,1)) -> 0.10114 | E144: =MAX(OFFSET(P_NW_Prop!$C$10,12*$A144,4*(PlotControl!$C$4-1),12,1)) -> 0.075287 | F144: =MAX(OFFSET(P_NW_Prop!$D$10,12*$A144,4*(PlotControl!$C$4-1),12,1)) -> 0.084769 | G144: =MAX(OFFSET(P_NW_Prop!$E$10,12*$A144,4*(PlotControl!$C$4-1),12,1)) -> 0.092918 | H144: =MAX(OFFSET(P_W_Prop!$C$10,12*$A144,4*(PlotControl!$C$4-1),12,1)) -> 0.075371 | I144: =MAX(OFFSET(P_W_Prop!$D$10,12*$A144,4*(PlotControl!$C$4-1),12,1)) -> 0.085725 | J144: =MAX(OFFSET(P_W_Prop!$E$10,12*$A144,4*(PlotControl!$C$4-1),12,1)) -> 0.09524
A145: 140 | B145: =MAX(OFFSET(P_N_Prop!$C$10,12*$A145,4*(PlotControl!$C$4-1),12,1)) -> 0.080409 | C145: =MAX(OFFSET(P_N_Prop!$D$10,12*$A145,4*(PlotControl!$C$4-1),12,1)) -> 0.091244 | D145: =MAX(OFFSET(P_N_Prop!$E$10,12*$A145,4*(PlotControl!$C$4-1),12,1)) -> 0.10107 | E145: =MAX(OFFSET(P_NW_Prop!$C$10,12*$A145,4*(PlotControl!$C$4-1),12,1)) -> 0.075198 | F145: =MAX(OFFSET(P_NW_Prop!$D$10,12*$A145,4*(PlotControl!$C$4-1),12,1)) -> 0.084749 | G145: =MAX(OFFSET(P_NW_Prop!$E$10,12*$A145,4*(PlotControl!$C$4-1),12,1)) -> 0.092895 | H145: =MAX(OFFSET(P_W_Prop!$C$10,12*$A145,4*(PlotControl!$C$4-1),12,1)) -> 0.075295 | I145: =MAX(OFFSET(P_W_Prop!$D$10,12*$A145,4*(PlotControl!$C$4-1),12,1)) -> 0.085675 | J145: =MAX(OFFSET(P_W_Prop!$E$10,12*$A145,4*(PlotControl!$C$4-1),12,1)) -> 0.095177
A146: 141 | B146: =MAX(OFFSET(P_N_Prop!$C$10,12*$A146,4*(PlotControl!$C$4-1),12,1)) -> 0.080388 | C146: =MAX(OFFSET(P_N_Prop!$D$10,12*$A146,4*(PlotControl!$C$4-1),12,1)) -> 0.091192 | D146: =MAX(OFFSET(P_N_Prop!$E$10,12*$A146,4*(PlotControl!$C$4-1),12,1)) -> 0.10101 | E146: =MAX(OFFSET(P_NW_Prop!$C$10,12*$A146,4*(PlotControl!$C$4-1),12,1)) -> 0.075017 | F146: =MAX(OFFSET(P_NW_Prop!$D$10,12*$A146,4*(PlotControl!$C$4-1),12,1)) -> 0.084733 | G146: =MAX(OFFSET(P_NW_Prop!$E$10,12*$A146,4*(PlotControl!$C$4-1),12,1)) -> 0.092861 | H146: =MAX(OFFSET(P_W_Prop!$C$10,12*$A146,4*(PlotControl!$C$4-1),12,1)) -> 0.075231 | I146: =MAX(OFFSET(P_W_Prop!$D$10,12*$A146,4*(PlotControl!$C$4-1),12,1)) -> 0.085626 | J146: =MAX(OFFSET(P_W_Prop!$E$10,12*$A146,4*(PlotControl!$C$4-1),12,1)) -> 0.095114
A147: 142 | B147: =MAX(OFFSET(P_N_Prop!$C$10,12*$A147,4*(PlotControl!$C$4-1),12,1)) -> 0.08035 | C147: =MAX(OFFSET(P_N_Prop!$D$10,12*$A147,4*(PlotControl!$C$4-1),12,1)) -> 0.091142 | D147: =MAX(OFFSET(P_N_Prop!$E$10,12*$A147,4*(PlotControl!$C$4-1),12,1)) -> 0.10101 | E147: =MAX(OFFSET(P_NW_Prop!$C$10,12*$A147,4*(PlotControl!$C$4-1),12,1)) -> 0.074889 | F147: =MAX(OFFSET(P_NW_Prop!$D$10,12*$A147,4*(PlotControl!$C$4-1),12,1)) -> 0.084773 | G147: =MAX(OFFSET(P_NW_Prop!$E$10,12*$A147,4*(PlotControl!$C$4-1),12,1)) -> 0.092799 | H147: =MAX(OFFSET(P_W_Prop!$C$10,12*$A147,4*(PlotControl!$C$4-1),12,1)) -> 0.075156 | I147: =MAX(OFFSET(P_W_Prop!$D$10,12*$A147,4*(PlotControl!$C$4-1),12,1)) -> 0.085577 | J147: =MAX(OFFSET(P_W_Prop!$E$10,12*$A147,4*(PlotControl!$C$4-1),12,1)) -> 0.095052
A148: 143 | B148: =MAX(OFFSET(P_N_Prop!$C$10,12*$A148,4*(PlotControl!$C$4-1),12,1)) -> 0.08032 | C148: =MAX(OFFSET(P_N_Prop!$D$10,12*$A148,4*(PlotControl!$C$4-1),12,1)) -> 0.091118 | D148: =MAX(OFFSET(P_N_Prop!$E$10,12*$A148,4*(PlotControl!$C$4-1),12,1)) -> 0.10107 | E148: =MAX(OFFSET(P_NW_Prop!$C$10,12*$A148,4*(PlotControl!$C$4-1),12,1)) -> 0.074796 | F148: =MAX(OFFSET(P_NW_Prop!$D$10,12*$A148,4*(PlotControl!$C$4-1),12,1)) -> 0.084739 | G148: =MAX(OFFSET(P_NW_Prop!$E$10,12*$A148,4*(PlotControl!$C$4-1),12,1)) -> 0.092751 | H148: =MAX(OFFSET(P_W_Prop!$C$10,12*$A148,4*(PlotControl!$C$4-1),12,1)) -> 0.075081 | I148: =MAX(OFFSET(P_W_Prop!$D$10,12*$A148,4*(PlotControl!$C$4-1),12,1)) -> 0.085528 | J148: =MAX(OFFSET(P_W_Prop!$E$10,12*$A148,4*(PlotControl!$C$4-1),12,1)) -> 0.09499
A149: 144 | B149: =MAX(OFFSET(P_N_Prop!$C$10,12*$A149,4*(PlotControl!$C$4-1),12,1)) -> 0.080309 | C149: =MAX(OFFSET(P_N_Prop!$D$10,12*$A149,4*(PlotControl!$C$4-1),12,1)) -> 0.091098 | D149: =MAX(OFFSET(P_N_Prop!$E$10,12*$A149,4*(PlotControl!$C$4-1),12,1)) -> 0.10112 | E149: =MAX(OFFSET(P_NW_Prop!$C$10,12*$A149,4*(PlotControl!$C$4-1),12,1)) -> 0.074729 | F149: =MAX(OFFSET(P_NW_Prop!$D$10,12*$A149,4*(PlotControl!$C$4-1),12,1)) -> 0.084689 | G149: =MAX(OFFSET(P_NW_Prop!$E$10,12*$A149,4*(PlotControl!$C$4-1),12,1)) -> 0.09273 | H149: =MAX(OFFSET(P_W_Prop!$C$10,12*$A149,4*(PlotControl!$C$4-1),12,1)) -> 0.075 | I149: =MAX(OFFSET(P_W_Prop!$D$10,12*$A149,4*(PlotControl!$C$4-1),12,1)) -> 0.085485 | J149: =MAX(OFFSET(P_W_Prop!$E$10,12*$A149,4*(PlotControl!$C$4-1),12,1)) -> 0.094928
A150: 145 | B150: =MAX(OFFSET(P_N_Prop!$C$10,12*$A150,4*(PlotControl!$C$4-1),12,1)) -> 0.0803 | C150: =MAX(OFFSET(P_N_Prop!$D$10,12*$A150,4*(PlotControl!$C$4-1),12,1)) -> 0.091105 | D150: =MAX(OFFSET(P_N_Prop!$E$10,12*$A150,4*(PlotControl!$C$4-1),12,1)) -> 0.10118 | E150: =MAX(OFFSET(P_NW_Prop!$C$10,12*$A150,4*(PlotControl!$C$4-1),12,1)) -> 0.074675 | F150: =MAX(OFFSET(P_NW_Prop!$D$10,12*$A150,4*(PlotControl!$C$4-1),12,1)) -> 0.084679 | G150: =MAX(OFFSET(P_NW_Prop!$E$10,12*$A150,4*(PlotControl!$C$4-1),12,1)) -> 0.092713 | H150: =MAX(OFFSET(P_W_Prop!$C$10,12*$A150,4*(PlotControl!$C$4-1),12,1)) -> 0.074916 | I150: =MAX(OFFSET(P_W_Prop!$D$10,12*$A150,4*(PlotControl!$C$4-1),12,1)) -> 0.085437 | J150: =MAX(OFFSET(P_W_Prop!$E$10,12*$A150,4*(PlotControl!$C$4-1),12,1)) -> 0.094936
A151: 146 | B151: =MAX(OFFSET(P_N_Prop!$C$10,12*$A151,4*(PlotControl!$C$4-1),12,1)) -> 0.080267 | C151: =MAX(OFFSET(P_N_Prop!$D$10,12*$A151,4*(PlotControl!$C$4-1),12,1)) -> 0.091071 | D151: =MAX(OFFSET(P_N_Prop!$E$10,12*$A151,4*(PlotControl!$C$4-1),12,1)) -> 0.10123 | E151: =MAX(OFFSET(P_NW_Prop!$C$10,12*$A151,4*(PlotControl!$C$4-1),12,1)) -> 0.074624 | F151: =MAX(OFFSET(P_NW_Prop!$D$10,12*$A151,4*(PlotControl!$C$4-1),12,1)) -> 0.08465 | G151: =MAX(OFFSET(P_NW_Prop!$E$10,12*$A151,4*(PlotControl!$C$4-1),12,1)) -> 0.092697 | H151: =MAX(OFFSET(P_W_Prop!$C$10,12*$A151,4*(PlotControl!$C$4-1),12,1)) -> 0.074833 | I151: =MAX(OFFSET(P_W_Prop!$D$10,12*$A151,4*(PlotControl!$C$4-1),12,1)) -> 0.08538 | J151: =MAX(OFFSET(P_W_Prop!$E$10,12*$A151,4*(PlotControl!$C$4-1),12,1)) -> 0.09488
A152: 147 | B152: =MAX(OFFSET(P_N_Prop!$C$10,12*$A152,4*(PlotControl!$C$4-1),12,1)) -> 0.080229 | C152: =MAX(OFFSET(P_N_Prop!$D$10,12*$A152,4*(PlotControl!$C$4-1),12,1)) -> 0.091012 | D152: =MAX(OFFSET(P_N_Prop!$E$10,12*$A152,4*(PlotControl!$C$4-1),12,1)) -> 0.1013 | E152: =MAX(OFFSET(P_NW_Prop!$C$10,12*$A152,4*(PlotControl!$C$4-1),12,1)) -> 0.074562 | F152: =MAX(OFFSET(P_NW_Prop!$D$10,12*$A152,4*(PlotControl!$C$4-1),12,1)) -> 0.084588 | G152: =MAX(OFFSET(P_NW_Prop!$E$10,12*$A152,4*(PlotControl!$C$4-1),12,1)) -> 0.092682 | H152: =MAX(OFFSET(P_W_Prop!$C$10,12*$A152,4*(PlotControl!$C$4-1),12,1)) -> 0.07475 | I152: =MAX(OFFSET(P_W_Prop!$D$10,12*$A152,4*(PlotControl!$C$4-1),12,1)) -> 0.085308 | J152: =MAX(OFFSET(P_W_Prop!$E$10,12*$A152,4*(PlotControl!$C$4-1),12,1)) -> 0.094745
A153: 148 | B153: =MAX(OFFSET(P_N_Prop!$C$10,12*$A153,4*(PlotControl!$C$4-1),12,1)) -> 0.080191 | C153: =MAX(OFFSET(P_N_Prop!$D$10,12*$A153,4*(PlotControl!$C$4-1),12,1)) -> 0.091005 | D153: =MAX(OFFSET(P_N_Prop!$E$10,12*$A153,4*(PlotControl!$C$4-1),12,1)) -> 0.10138 | E153: =MAX(OFFSET(P_NW_Prop!$C$10,12*$A153,4*(PlotControl!$C$4-1),12,1)) -> 0.074483 | F153: =MAX(OFFSET(P_NW_Prop!$D$10,12*$A153,4*(PlotControl!$C$4-1),12,1)) -> 0.084535 | G153: =MAX(OFFSET(P_NW_Prop!$E$10,12*$A153,4*(PlotControl!$C$4-1),12,1)) -> 0.092669 | H153: =MAX(OFFSET(P_W_Prop!$C$10,12*$A153,4*(PlotControl!$C$4-1),12,1)) -> 0.074668 | I153: =MAX(OFFSET(P_W_Prop!$D$10,12*$A153,4*(PlotControl!$C$4-1),12,1)) -> 0.085238 | J153: =MAX(OFFSET(P_W_Prop!$E$10,12*$A153,4*(PlotControl!$C$4-1),12,1)) -> 0.094684
A154: 149 | B154: =MAX(OFFSET(P_N_Prop!$C$10,12*$A154,4*(PlotControl!$C$4-1),12,1)) -> 0.080163 | C154: =MAX(OFFSET(P_N_Prop!$D$10,12*$A154,4*(PlotControl!$C$4-1),12,1)) -> 0.090959 | D154: =MAX(OFFSET(P_N_Prop!$E$10,12*$A154,4*(PlotControl!$C$4-1),12,1)) -> 0.10137 | E154: =MAX(OFFSET(P_NW_Prop!$C$10,12*$A154,4*(PlotControl!$C$4-1),12,1)) -> 0.074305 | F154: =MAX(OFFSET(P_NW_Prop!$D$10,12*$A154,4*(PlotControl!$C$4-1),12,1)) -> 0.084484 | G154: =MAX(OFFSET(P_NW_Prop!$E$10,12*$A154,4*(PlotControl!$C$4-1),12,1)) -> 0.092727 | H154: =MAX(OFFSET(P_W_Prop!$C$10,12*$A154,4*(PlotControl!$C$4-1),12,1)) -> 0.074586 | I154: =MAX(OFFSET(P_W_Prop!$D$10,12*$A154,4*(PlotControl!$C$4-1),12,1)) -> 0.085168 | J154: =MAX(OFFSET(P_W_Prop!$E$10,12*$A154,4*(PlotControl!$C$4-1),12,1)) -> 0.094624
A155: 150 | B155: =MAX(OFFSET(P_N_Prop!$C$10,12*$A155,4*(PlotControl!$C$4-1),12,1)) -> 0.080156 | C155: =MAX(OFFSET(P_N_Prop!$D$10,12*$A155,4*(PlotControl!$C$4-1),12,1)) -> 0.090931 | D155: =MAX(OFFSET(P_N_Prop!$E$10,12*$A155,4*(PlotControl!$C$4-1),12,1)) -> 0.10135 | E155: =MAX(OFFSET(P_NW_Prop!$C$10,12*$A155,4*(PlotControl!$C$4-1),12,1)) -> 0.074227 | F155: =MAX(OFFSET(P_NW_Prop!$D$10,12*$A155,4*(PlotControl!$C$4-1),12,1)) -> 0.084426 | G155: =MAX(OFFSET(P_NW_Prop!$E$10,12*$A155,4*(PlotControl!$C$4-1),12,1)) -> 0.092745 | H155: =MAX(OFFSET(P_W_Prop!$C$10,12*$A155,4*(PlotControl!$C$4-1),12,1)) -> 0.074511 | I155: =MAX(OFFSET(P_W_Prop!$D$10,12*$A155,4*(PlotControl!$C$4-1),12,1)) -> 0.085099 | J155: =MAX(OFFSET(P_W_Prop!$E$10,12*$A155,4*(PlotControl!$C$4-1),12,1)) -> 0.094564
A156: 151 | B156: =MAX(OFFSET(P_N_Prop!$C$10,12*$A156,4*(PlotControl!$C$4-1),12,1)) -> 0.080149 | C156: =MAX(OFFSET(P_N_Prop!$D$10,12*$A156,4*(PlotControl!$C$4-1),12,1)) -> 0.090901 | D156: =MAX(OFFSET(P_N_Prop!$E$10,12*$A156,4*(PlotControl!$C$4-1),12,1)) -> 0.10139 | E156: =MAX(OFFSET(P_NW_Prop!$C$10,12*$A156,4*(PlotControl!$C$4-1),12,1)) -> 0.07424 | F156: =MAX(OFFSET(P_NW_Prop!$D$10,12*$A156,4*(PlotControl!$C$4-1),12,1)) -> 0.084377 | G156: =MAX(OFFSET(P_NW_Prop!$E$10,12*$A156,4*(PlotControl!$C$4-1),12,1)) -> 0.09278 | H156: =MAX(OFFSET(P_W_Prop!$C$10,12*$A156,4*(PlotControl!$C$4-1),12,1)) -> 0.074444 | I156: =MAX(OFFSET(P_W_Prop!$D$10,12*$A156,4*(PlotControl!$C$4-1),12,1)) -> 0.085029 | J156: =MAX(OFFSET(P_W_Prop!$E$10,12*$A156,4*(PlotControl!$C$4-1),12,1)) -> 0.094504
A157: 152 | B157: =MAX(OFFSET(P_N_Prop!$C$10,12*$A157,4*(PlotControl!$C$4-1),12,1)) -> 0.080142 | C157: =MAX(OFFSET(P_N_Prop!$D$10,12*$A157,4*(PlotControl!$C$4-1),12,1)) -> 0.090894 | D157: =MAX(OFFSET(P_N_Prop!$E$10,12*$A157,4*(PlotControl!$C$4-1),12,1)) -> 0.10144 | E157: =MAX(OFFSET(P_NW_Prop!$C$10,12*$A157,4*(PlotControl!$C$4-1),12,1)) -> 0.074285 | F157: =MAX(OFFSET(P_NW_Prop!$D$10,12*$A157,4*(PlotControl!$C$4-1),12,1)) -> 0.084293 | G157: =MAX(OFFSET(P_NW_Prop!$E$10,12*$A157,4*(PlotControl!$C$4-1),12,1)) -> 0.092829 | H157: =MAX(OFFSET(P_W_Prop!$C$10,12*$A157,4*(PlotControl!$C$4-1),12,1)) -> 0.074366 | I157: =MAX(OFFSET(P_W_Prop!$D$10,12*$A157,4*(PlotControl!$C$4-1),12,1)) -> 0.084966 | J157: =MAX(OFFSET(P_W_Prop!$E$10,12*$A157,4*(PlotControl!$C$4-1),12,1)) -> 0.094445
A158: 153 | B158: =MAX(OFFSET(P_N_Prop!$C$10,12*$A158,4*(PlotControl!$C$4-1),12,1)) -> 0.080134 | C158: =MAX(OFFSET(P_N_Prop!$D$10,12*$A158,4*(PlotControl!$C$4-1),12,1)) -> 0.09086 | D158: =MAX(OFFSET(P_N_Prop!$E$10,12*$A158,4*(PlotControl!$C$4-1),12,1)) -> 0.10158 | E158: =MAX(OFFSET(P_NW_Prop!$C$10,12*$A158,4*(PlotControl!$C$4-1),12,1)) -> 0.074269 | F158: =MAX(OFFSET(P_NW_Prop!$D$10,12*$A158,4*(PlotControl!$C$4-1),12,1)) -> 0.084195 | G158: =MAX(OFFSET(P_NW_Prop!$E$10,12*$A158,4*(PlotControl!$C$4-1),12,1)) -> 0.092919 | H158: =MAX(OFFSET(P_W_Prop!$C$10,12*$A158,4*(PlotControl!$C$4-1),12,1)) -> 0.074277 | I158: =MAX(OFFSET(P_W_Prop!$D$10,12*$A158,4*(PlotControl!$C$4-1),12,1)) -> 0.084895 | J158: =MAX(OFFSET(P_W_Prop!$E$10,12*$A158,4*(PlotControl!$C$4-1),12,1)) -> 0.094385
A159: 154 | B159: =MAX(OFFSET(P_N_Prop!$C$10,12*$A159,4*(PlotControl!$C$4-1),12,1)) -> 0.080126 | C159: =MAX(OFFSET(P_N_Prop!$D$10,12*$A159,4*(PlotControl!$C$4-1),12,1)) -> 0.090842 | D159: =MAX(OFFSET(P_N_Prop!$E$10,12*$A159,4*(PlotControl!$C$4-1),12,1)) -> 0.10166 | E159: =MAX(OFFSET(P_NW_Prop!$C$10,12*$A159,4*(PlotControl!$C$4-1),12,1)) -> 0.07415 | F159: =MAX(OFFSET(P_NW_Prop!$D$10,12*$A159,4*(PlotControl!$C$4-1),12,1)) -> 0.08408 | G159: =MAX(OFFSET(P_NW_Prop!$E$10,12*$A159,4*(PlotControl!$C$4-1),12,1)) -> 0.092943 | H159: =MAX(OFFSET(P_W_Prop!$C$10,12*$A159,4*(PlotControl!$C$4-1),12,1)) -> 0.074188 | I159: =MAX(OFFSET(P_W_Prop!$D$10,12*$A159,4*(PlotControl!$C$4-1),12,1)) -> 0.084821 | J159: =MAX(OFFSET(P_W_Prop!$E$10,12*$A159,4*(PlotControl!$C$4-1),12,1)) -> 0.094327
A160: 155 | B160: =MAX(OFFSET(P_N_Prop!$C$10,12*$A160,4*(PlotControl!$C$4-1),12,1)) -> 0.080085 | C160: =MAX(OFFSET(P_N_Prop!$D$10,12*$A160,4*(PlotControl!$C$4-1),12,1)) -> 0.090799 | D160: =MAX(OFFSET(P_N_Prop!$E$10,12*$A160,4*(PlotControl!$C$4-1),12,1)) -> 0.10168 | E160: =MAX(OFFSET(P_NW_Prop!$C$10,12*$A160,4*(PlotControl!$C$4-1),12,1)) -> 0.07411 | F160: =MAX(OFFSET(P_NW_Prop!$D$10,12*$A160,4*(PlotControl!$C$4-1),12,1)) -> 0.084045 | G160: =MAX(OFFSET(P_NW_Prop!$E$10,12*$A160,4*(PlotControl!$C$4-1),12,1)) -> 0.092903 | H160: =MAX(OFFSET(P_W_Prop!$C$10,12*$A160,4*(PlotControl!$C$4-1),12,1)) -> 0.074106 | I160: =MAX(OFFSET(P_W_Prop!$D$10,12*$A160,4*(PlotControl!$C$4-1),12,1)) -> 0.084763 | J160: =MAX(OFFSET(P_W_Prop!$E$10,12*$A160,4*(PlotControl!$C$4-1),12,1)) -> 0.094268
A161: 156 | B161: =MAX(OFFSET(P_N_Prop!$C$10,12*$A161,4*(PlotControl!$C$4-1),12,1)) -> 0.080041 | C161: =MAX(OFFSET(P_N_Prop!$D$10,12*$A161,4*(PlotControl!$C$4-1),12,1)) -> 0.090833 | D161: =MAX(OFFSET(P_N_Prop!$E$10,12*$A161,4*(PlotControl!$C$4-1),12,1)) -> 0.10166 | E161: =MAX(OFFSET(P_NW_Prop!$C$10,12*$A161,4*(PlotControl!$C$4-1),12,1)) -> 0.074086 | F161: =MAX(OFFSET(P_NW_Prop!$D$10,12*$A161,4*(PlotControl!$C$4-1),12,1)) -> 0.084045 | G161: =MAX(OFFSET(P_NW_Prop!$E$10,12*$A161,4*(PlotControl!$C$4-1),12,1)) -> 0.092884 | H161: =MAX(OFFSET(P_W_Prop!$C$10,12*$A161,4*(PlotControl!$C$4-1),12,1)) -> 0.074023 | I161: =MAX(OFFSET(P_W_Prop!$D$10,12*$A161,4*(PlotControl!$C$4-1),12,1)) -> 0.084705 | J161: =MAX(OFFSET(P_W_Prop!$E$10,12*$A161,4*(PlotControl!$C$4-1),12,1)) -> 0.094248
A162: 157 | B162: =MAX(OFFSET(P_N_Prop!$C$10,12*$A162,4*(PlotControl!$C$4-1),12,1)) -> 0.080017 | C162: =MAX(OFFSET(P_N_Prop!$D$10,12*$A162,4*(PlotControl!$C$4-1),12,1)) -> 0.090848 | D162: =MAX(OFFSET(P_N_Prop!$E$10,12*$A162,4*(PlotControl!$C$4-1),12,1)) -> 0.10161 | E162: =MAX(OFFSET(P_NW_Prop!$C$10,12*$A162,4*(PlotControl!$C$4-1),12,1)) -> 0.074022 | F162: =MAX(OFFSET(P_NW_Prop!$D$10,12*$A162,4*(PlotControl!$C$4-1),12,1)) -> 0.084016 | G162: =MAX(OFFSET(P_NW_Prop!$E$10,12*$A162,4*(PlotControl!$C$4-1),12,1)) -> 0.092878 | H162: =MAX(OFFSET(P_W_Prop!$C$10,12*$A162,4*(PlotControl!$C$4-1),12,1)) -> 0.073939 | I162: =MAX(OFFSET(P_W_Prop!$D$10,12*$A162,4*(PlotControl!$C$4-1),12,1)) -> 0.084644 | J162: =MAX(OFFSET(P_W_Prop!$E$10,12*$A162,4*(PlotControl!$C$4-1),12,1)) -> 0.094294
A163: 158 | B163: =MAX(OFFSET(P_N_Prop!$C$10,12*$A163,4*(PlotControl!$C$4-1),12,1)) -> 0.080025 | C163: =MAX(OFFSET(P_N_Prop!$D$10,12*$A163,4*(PlotControl!$C$4-1),12,1)) -> 0.090815 | D163: =MAX(OFFSET(P_N_Prop!$E$10,12*$A163,4*(PlotControl!$C$4-1),12,1)) -> 0.10162 | E163: =MAX(OFFSET(P_NW_Prop!$C$10,12*$A163,4*(PlotControl!$C$4-1),12,1)) -> 0.073952 | F163: =MAX(OFFSET(P_NW_Prop!$D$10,12*$A163,4*(PlotControl!$C$4-1),12,1)) -> 0.083948 | G163: =MAX(OFFSET(P_NW_Prop!$E$10,12*$A163,4*(PlotControl!$C$4-1),12,1)) -> 0.092872 | H163: =MAX(OFFSET(P_W_Prop!$C$10,12*$A163,4*(PlotControl!$C$4-1),12,1)) -> 0.073856 | I163: =MAX(OFFSET(P_W_Prop!$D$10,12*$A163,4*(PlotControl!$C$4-1),12,1)) -> 0.084584 | J163: =MAX(OFFSET(P_W_Prop!$E$10,12*$A163,4*(PlotControl!$C$4-1),12,1)) -> 0.094295
A164: 159 | B164: =MAX(OFFSET(P_N_Prop!$C$10,12*$A164,4*(PlotControl!$C$4-1),12,1)) -> 0.080029 | C164: =MAX(OFFSET(P_N_Prop!$D$10,12*$A164,4*(PlotControl!$C$4-1),12,1)) -> 0.090809 | D164: =MAX(OFFSET(P_N_Prop!$E$10,12*$A164,4*(PlotControl!$C$4-1),12,1)) -> 0.10161 | E164: =MAX(OFFSET(P_NW_Prop!$C$10,12*$A164,4*(PlotControl!$C$4-1),12,1)) -> 0.073883 | F164: =MAX(OFFSET(P_NW_Prop!$D$10,12*$A164,4*(PlotControl!$C$4-1),12,1)) -> 0.083881 | G164: =MAX(OFFSET(P_NW_Prop!$E$10,12*$A164,4*(PlotControl!$C$4-1),12,1)) -> 0.092863 | H164: =MAX(OFFSET(P_W_Prop!$C$10,12*$A164,4*(PlotControl!$C$4-1),12,1)) -> 0.073773 | I164: =MAX(OFFSET(P_W_Prop!$D$10,12*$A164,4*(PlotControl!$C$4-1),12,1)) -> 0.084524 | J164: =MAX(OFFSET(P_W_Prop!$E$10,12*$A164,4*(PlotControl!$C$4-1),12,1)) -> 0.094241
A165: 160 | B165: =MAX(OFFSET(P_N_Prop!$C$10,12*$A165,4*(PlotControl!$C$4-1),12,1)) -> 0.08003 | C165: =MAX(OFFSET(P_N_Prop!$D$10,12*$A165,4*(PlotControl!$C$4-1),12,1)) -> 0.090777 | D165: =MAX(OFFSET(P_N_Prop!$E$10,12*$A165,4*(PlotControl!$C$4-1),12,1)) -> 0.10166 | E165: =MAX(OFFSET(P_NW_Prop!$C$10,12*$A165,4*(PlotControl!$C$4-1),12,1)) -> 0.073814 | F165: =MAX(OFFSET(P_NW_Prop!$D$10,12*$A165,4*(PlotControl!$C$4-1),12,1)) -> 0.083814 | G165: =MAX(OFFSET(P_NW_Prop!$E$10,12*$A165,4*(PlotControl!$C$4-1),12,1)) -> 0.092813 | H165: =MAX(OFFSET(P_W_Prop!$C$10,12*$A165,4*(PlotControl!$C$4-1),12,1)) -> 0.073689 | I165: =MAX(OFFSET(P_W_Prop!$D$10,12*$A165,4*(PlotControl!$C$4-1),12,1)) -> 0.084464 | J165: =MAX(OFFSET(P_W_Prop!$E$10,12*$A165,4*(PlotControl!$C$4-1),12,1)) -> 0.094187
A166: 161 | B166: =MAX(OFFSET(P_N_Prop!$C$10,12*$A166,4*(PlotControl!$C$4-1),12,1)) -> 0.08003 | C166: =MAX(OFFSET(P_N_Prop!$D$10,12*$A166,4*(PlotControl!$C$4-1),12,1)) -> 0.090768 | D166: =MAX(OFFSET(P_N_Prop!$E$10,12*$A166,4*(PlotControl!$C$4-1),12,1)) -> 0.10168 | E166: =MAX(OFFSET(P_NW_Prop!$C$10,12*$A166,4*(PlotControl!$C$4-1),12,1)) -> 0.073726 | F166: =MAX(OFFSET(P_NW_Prop!$D$10,12*$A166,4*(PlotControl!$C$4-1),12,1)) -> 0.0838 | G166: =MAX(OFFSET(P_NW_Prop!$E$10,12*$A166,4*(PlotControl!$C$4-1),12,1)) -> 0.092763 | H166: =MAX(OFFSET(P_W_Prop!$C$10,12*$A166,4*(PlotControl!$C$4-1),12,1)) -> 0.073605 | I166: =MAX(OFFSET(P_W_Prop!$D$10,12*$A166,4*(PlotControl!$C$4-1),12,1)) -> 0.084424 | J166: =MAX(OFFSET(P_W_Prop!$E$10,12*$A166,4*(PlotControl!$C$4-1),12,1)) -> 0.094133
A167: 162 | B167: =MAX(OFFSET(P_N_Prop!$C$10,12*$A167,4*(PlotControl!$C$4-1),12,1)) -> 0.080029 | C167: =MAX(OFFSET(P_N_Prop!$D$10,12*$A167,4*(PlotControl!$C$4-1),12,1)) -> 0.090746 | D167: =MAX(OFFSET(P_N_Prop!$E$10,12*$A167,4*(PlotControl!$C$4-1),12,1)) -> 0.10166 | E167: =MAX(OFFSET(P_NW_Prop!$C$10,12*$A167,4*(PlotControl!$C$4-1),12,1)) -> 0.073563 | F167: =MAX(OFFSET(P_NW_Prop!$D$10,12*$A167,4*(PlotControl!$C$4-1),12,1)) -> 0.083751 | G167: =MAX(OFFSET(P_NW_Prop!$E$10,12*$A167,4*(PlotControl!$C$4-1),12,1)) -> 0.0928 | H167: =MAX(OFFSET(P_W_Prop!$C$10,12*$A167,4*(PlotControl!$C$4-1),12,1)) -> 0.073526 | I167: =MAX(OFFSET(P_W_Prop!$D$10,12*$A167,4*(PlotControl!$C$4-1),12,1)) -> 0.084398 | J167: =MAX(OFFSET(P_W_Prop!$E$10,12*$A167,4*(PlotControl!$C$4-1),12,1)) -> 0.09408
A168: 163 | B168: =MAX(OFFSET(P_N_Prop!$C$10,12*$A168,4*(PlotControl!$C$4-1),12,1)) -> 0.079987 | C168: =MAX(OFFSET(P_N_Prop!$D$10,12*$A168,4*(PlotControl!$C$4-1),12,1)) -> 0.090721 | D168: =MAX(OFFSET(P_N_Prop!$E$10,12*$A168,4*(PlotControl!$C$4-1),12,1)) -> 0.10163 | E168: =MAX(OFFSET(P_NW_Prop!$C$10,12*$A168,4*(PlotControl!$C$4-1),12,1)) -> 0.073426 | F168: =MAX(OFFSET(P_NW_Prop!$D$10,12*$A168,4*(PlotControl!$C$4-1),12,1)) -> 0.083661 | G168: =MAX(OFFSET(P_NW_Prop!$E$10,12*$A168,4*(PlotControl!$C$4-1),12,1)) -> 0.092832 | H168: =MAX(OFFSET(P_W_Prop!$C$10,12*$A168,4*(PlotControl!$C$4-1),12,1)) -> 0.073456 | I168: =MAX(OFFSET(P_W_Prop!$D$10,12*$A168,4*(PlotControl!$C$4-1),12,1)) -> 0.084347 | J168: =MAX(OFFSET(P_W_Prop!$E$10,12*$A168,4*(PlotControl!$C$4-1),12,1)) -> 0.094026
A169: 164 | B169: =MAX(OFFSET(P_N_Prop!$C$10,12*$A169,4*(PlotControl!$C$4-1),12,1)) -> 0.079936 | C169: =MAX(OFFSET(P_N_Prop!$D$10,12*$A169,4*(PlotControl!$C$4-1),12,1)) -> 0.090683 | D169: =MAX(OFFSET(P_N_Prop!$E$10,12*$A169,4*(PlotControl!$C$4-1),12,1)) -> 0.10167 | E169: =MAX(OFFSET(P_NW_Prop!$C$10,12*$A169,4*(PlotControl!$C$4-1),12,1)) -> 0.073361 | F169: =MAX(OFFSET(P_NW_Prop!$D$10,12*$A169,4*(PlotControl!$C$4-1),12,1)) -> 0.083612 | G169: =MAX(OFFSET(P_NW_Prop!$E$10,12*$A169,4*(PlotControl!$C$4-1),12,1)) -> 0.092881 | H169: =MAX(OFFSET(P_W_Prop!$C$10,12*$A169,4*(PlotControl!$C$4-1),12,1)) -> 0.073386 | I169: =MAX(OFFSET(P_W_Prop!$D$10,12*$A169,4*(PlotControl!$C$4-1),12,1)) -> 0.084295 | J169: =MAX(OFFSET(P_W_Prop!$E$10,12*$A169,4*(PlotControl!$C$4-1),12,1)) -> 0.094003
A170: 165 | B170: =MAX(OFFSET(P_N_Prop!$C$10,12*$A170,4*(PlotControl!$C$4-1),12,1)) -> 0.07986 | C170: =MAX(OFFSET(P_N_Prop!$D$10,12*$A170,4*(PlotControl!$C$4-1),12,1)) -> 0.090636 | D170: =MAX(OFFSET(P_N_Prop!$E$10,12*$A170,4*(PlotControl!$C$4-1),12,1)) -> 0.10174 | E170: =MAX(OFFSET(P_NW_Prop!$C$10,12*$A170,4*(PlotControl!$C$4-1),12,1)) -> 0.073209 | F170: =MAX(OFFSET(P_NW_Prop!$D$10,12*$A170,4*(PlotControl!$C$4-1),12,1)) -> 0.083532 | G170: =MAX(OFFSET(P_NW_Prop!$E$10,12*$A170,4*(PlotControl!$C$4-1),12,1)) -> 0.092892 | H170: =MAX(OFFSET(P_W_Prop!$C$10,12*$A170,4*(PlotControl!$C$4-1),12,1)) -> 0.073318 | I170: =MAX(OFFSET(P_W_Prop!$D$10,12*$A170,4*(PlotControl!$C$4-1),12,1)) -> 0.084244 | J170: =MAX(OFFSET(P_W_Prop!$E$10,12*$A170,4*(PlotControl!$C$4-1),12,1)) -> 0.09399
A171: 166 | B171: =MAX(OFFSET(P_N_Prop!$C$10,12*$A171,4*(PlotControl!$C$4-1),12,1)) -> 0.07977 | C171: =MAX(OFFSET(P_N_Prop!$D$10,12*$A171,4*(PlotControl!$C$4-1),12,1)) -> 0.090592 | D171: =MAX(OFFSET(P_N_Prop!$E$10,12*$A171,4*(PlotControl!$C$4-1),12,1)) -> 0.10181 | E171: =MAX(OFFSET(P_NW_Prop!$C$10,12*$A171,4*(PlotControl!$C$4-1),12,1)) -> 0.073035 | F171: =MAX(OFFSET(P_NW_Prop!$D$10,12*$A171,4*(PlotControl!$C$4-1),12,1)) -> 0.083443 | G171: =MAX(OFFSET(P_NW_Prop!$E$10,12*$A171,4*(PlotControl!$C$4-1),12,1)) -> 0.092875 | H171: =MAX(OFFSET(P_W_Prop!$C$10,12*$A171,4*(PlotControl!$C$4-1),12,1)) -> 0.073308 | I171: =MAX(OFFSET(P_W_Prop!$D$10,12*$A171,4*(PlotControl!$C$4-1),12,1)) -> 0.08417 | J171: =MAX(OFFSET(P_W_Prop!$E$10,12*$A171,4*(PlotControl!$C$4-1),12,1)) -> 0.093938
A172: 167 | B172: =MAX(OFFSET(P_N_Prop!$C$10,12*$A172,4*(PlotControl!$C$4-1),12,1)) -> 0.079681 | C172: =MAX(OFFSET(P_N_Prop!$D$10,12*$A172,4*(PlotControl!$C$4-1),12,1)) -> 0.090586 | D172: =MAX(OFFSET(P_N_Prop!$E$10,12*$A172,4*(PlotControl!$C$4-1),12,1)) -> 0.10187 | E172: =MAX(OFFSET(P_NW_Prop!$C$10,12*$A172,4*(PlotControl!$C$4-1),12,1)) -> 0.072857 | F172: =MAX(OFFSET(P_NW_Prop!$D$10,12*$A172,4*(PlotControl!$C$4-1),12,1)) -> 0.083343 | G172: =MAX(OFFSET(P_NW_Prop!$E$10,12*$A172,4*(PlotControl!$C$4-1),12,1)) -> 0.092869 | H172: =MAX(OFFSET(P_W_Prop!$C$10,12*$A172,4*(PlotControl!$C$4-1),12,1)) -> 0.073297 | I172: =MAX(OFFSET(P_W_Prop!$D$10,12*$A172,4*(PlotControl!$C$4-1),12,1)) -> 0.084098 | J172: =MAX(OFFSET(P_W_Prop!$E$10,12*$A172,4*(PlotControl!$C$4-1),12,1)) -> 0.093886
A173: 168 | B173: =MAX(OFFSET(P_N_Prop!$C$10,12*$A173,4*(PlotControl!$C$4-1),12,1)) -> 0.079593 | C173: =MAX(OFFSET(P_N_Prop!$D$10,12*$A173,4*(PlotControl!$C$4-1),12,1)) -> 0.090536 | D173: =MAX(OFFSET(P_N_Prop!$E$10,12*$A173,4*(PlotControl!$C$4-1),12,1)) -> 0.10192 | E173: =MAX(OFFSET(P_NW_Prop!$C$10,12*$A173,4*(PlotControl!$C$4-1),12,1)) -> 0.072595 | F173: =MAX(OFFSET(P_NW_Prop!$D$10,12*$A173,4*(PlotControl!$C$4-1),12,1)) -> 0.083241 | G173: =MAX(OFFSET(P_NW_Prop!$E$10,12*$A173,4*(PlotControl!$C$4-1),12,1)) -> 0.09299 | H173: =MAX(OFFSET(P_W_Prop!$C$10,12*$A173,4*(PlotControl!$C$4-1),12,1)) -> 0.073232 | I173: =MAX(OFFSET(P_W_Prop!$D$10,12*$A173,4*(PlotControl!$C$4-1),12,1)) -> 0.084067 | J173: =MAX(OFFSET(P_W_Prop!$E$10,12*$A173,4*(PlotControl!$C$4-1),12,1)) -> 0.093834
A174: 169 | B174: =MAX(OFFSET(P_N_Prop!$C$10,12*$A174,4*(PlotControl!$C$4-1),12,1)) -> 0.079506 | C174: =MAX(OFFSET(P_N_Prop!$D$10,12*$A174,4*(PlotControl!$C$4-1),12,1)) -> 0.090534 | D174: =MAX(OFFSET(P_N_Prop!$E$10,12*$A174,4*(PlotControl!$C$4-1),12,1)) -> 0.10192 | E174: =MAX(OFFSET(P_NW_Prop!$C$10,12*$A174,4*(PlotControl!$C$4-1),12,1)) -> 0.072415 | F174: =MAX(OFFSET(P_NW_Prop!$D$10,12*$A174,4*(PlotControl!$C$4-1),12,1)) -> 0.083207 | G174: =MAX(OFFSET(P_NW_Prop!$E$10,12*$A174,4*(PlotControl!$C$4-1),12,1)) -> 0.093035 | H174: =MAX(OFFSET(P_W_Prop!$C$10,12*$A174,4*(PlotControl!$C$4-1),12,1)) -> 0.073168 | I174: =MAX(OFFSET(P_W_Prop!$D$10,12*$A174,4*(PlotControl!$C$4-1),12,1)) -> 0.084023 | J174: =MAX(OFFSET(P_W_Prop!$E$10,12*$A174,4*(PlotControl!$C$4-1),12,1)) -> 0.093782
A175: 170 | B175: =MAX(OFFSET(P_N_Prop!$C$10,12*$A175,4*(PlotControl!$C$4-1),12,1)) -> 0.079421 | C175: =MAX(OFFSET(P_N_Prop!$D$10,12*$A175,4*(PlotControl!$C$4-1),12,1)) -> 0.090509 | D175: =MAX(OFFSET(P_N_Prop!$E$10,12*$A175,4*(PlotControl!$C$4-1),12,1)) -> 0.1019 | E175: =MAX(OFFSET(P_NW_Prop!$C$10,12*$A175,4*(PlotControl!$C$4-1),12,1)) -> 0.072273 | F175: =MAX(OFFSET(P_NW_Prop!$D$10,12*$A175,4*(PlotControl!$C$4-1),12,1)) -> 0.083204 | G175: =MAX(OFFSET(P_NW_Prop!$E$10,12*$A175,4*(PlotControl!$C$4-1),12,1)) -> 0.093224 | H175: =MAX(OFFSET(P_W_Prop!$C$10,12*$A175,4*(PlotControl!$C$4-1),12,1)) -> 0.073105 | I175: =MAX(OFFSET(P_W_Prop!$D$10,12*$A175,4*(PlotControl!$C$4-1),12,1)) -> 0.083944 | J175: =MAX(OFFSET(P_W_Prop!$E$10,12*$A175,4*(PlotControl!$C$4-1),12,1)) -> 0.093731
A176: 171 | B176: =MAX(OFFSET(P_N_Prop!$C$10,12*$A176,4*(PlotControl!$C$4-1),12,1)) -> 0.079365 | C176: =MAX(OFFSET(P_N_Prop!$D$10,12*$A176,4*(PlotControl!$C$4-1),12,1)) -> 0.090478 | D176: =MAX(OFFSET(P_N_Prop!$E$10,12*$A176,4*(PlotControl!$C$4-1),12,1)) -> 0.10189 | E176: =MAX(OFFSET(P_NW_Prop!$C$10,12*$A176,4*(PlotControl!$C$4-1),12,1)) -> 0.072207 | F176: =MAX(OFFSET(P_NW_Prop!$D$10,12*$A176,4*(PlotControl!$C$4-1),12,1)) -> 0.08316 | G176: =MAX(OFFSET(P_NW_Prop!$E$10,12*$A176,4*(PlotControl!$C$4-1),12,1)) -> 0.093319 | H176: =MAX(OFFSET(P_W_Prop!$C$10,12*$A176,4*(PlotControl!$C$4-1),12,1)) -> 0.073042 | I176: =MAX(OFFSET(P_W_Prop!$D$10,12*$A176,4*(PlotControl!$C$4-1),12,1)) -> 0.083863 | J176: =MAX(OFFSET(P_W_Prop!$E$10,12*$A176,4*(PlotControl!$C$4-1),12,1)) -> 0.093679
A177: 172 | B177: =MAX(OFFSET(P_N_Prop!$C$10,12*$A177,4*(PlotControl!$C$4-1),12,1)) -> 0.079329 | C177: =MAX(OFFSET(P_N_Prop!$D$10,12*$A177,4*(PlotControl!$C$4-1),12,1)) -> 0.090421 | D177: =MAX(OFFSET(P_N_Prop!$E$10,12*$A177,4*(PlotControl!$C$4-1),12,1)) -> 0.10194 | E177: =MAX(OFFSET(P_NW_Prop!$C$10,12*$A177,4*(PlotControl!$C$4-1),12,1)) -> 0.072141 | F177: =MAX(OFFSET(P_NW_Prop!$D$10,12*$A177,4*(PlotControl!$C$4-1),12,1)) -> 0.083115 | G177: =MAX(OFFSET(P_NW_Prop!$E$10,12*$A177,4*(PlotControl!$C$4-1),12,1)) -> 0.093327 | H177: =MAX(OFFSET(P_W_Prop!$C$10,12*$A177,4*(PlotControl!$C$4-1),12,1)) -> 0.072952 | I177: =MAX(OFFSET(P_W_Prop!$D$10,12*$A177,4*(PlotControl!$C$4-1),12,1)) -> 0.083805 | J177: =MAX(OFFSET(P_W_Prop!$E$10,12*$A177,4*(PlotControl!$C$4-1),12,1)) -> 0.093628
A178: 173 | B178: =MAX(OFFSET(P_N_Prop!$C$10,12*$A178,4*(PlotControl!$C$4-1),12,1)) -> 0.079294 | C178: =MAX(OFFSET(P_N_Prop!$D$10,12*$A178,4*(PlotControl!$C$4-1),12,1)) -> 0.090403 | D178: =MAX(OFFSET(P_N_Prop!$E$10,12*$A178,4*(PlotControl!$C$4-1),12,1)) -> 0.10196 | E178: =MAX(OFFSET(P_NW_Prop!$C$10,12*$A178,4*(PlotControl!$C$4-1),12,1)) -> 0.072076 | F178: =MAX(OFFSET(P_NW_Prop!$D$10,12*$A178,4*(PlotControl!$C$4-1),12,1)) -> 0.083081 | G178: =MAX(OFFSET(P_NW_Prop!$E$10,12*$A178,4*(PlotControl!$C$4-1),12,1)) -> 0.093292 | H178: =MAX(OFFSET(P_W_Prop!$C$10,12*$A178,4*(PlotControl!$C$4-1),12,1)) -> 0.07288 | I178: =MAX(OFFSET(P_W_Prop!$D$10,12*$A178,4*(PlotControl!$C$4-1),12,1)) -> 0.083748 | J178: =MAX(OFFSET(P_W_Prop!$E$10,12*$A178,4*(PlotControl!$C$4-1),12,1)) -> 0.093576
A179: 174 | B179: =MAX(OFFSET(P_N_Prop!$C$10,12*$A179,4*(PlotControl!$C$4-1),12,1)) -> 0.079258 | C179: =MAX(OFFSET(P_N_Prop!$D$10,12*$A179,4*(PlotControl!$C$4-1),12,1)) -> 0.090379 | D179: =MAX(OFFSET(P_N_Prop!$E$10,12*$A179,4*(PlotControl!$C$4-1),12,1)) -> 0.10197 | E179: =MAX(OFFSET(P_NW_Prop!$C$10,12*$A179,4*(PlotControl!$C$4-1),12,1)) -> 0.07201 | F179: =MAX(OFFSET(P_NW_Prop!$D$10,12*$A179,4*(PlotControl!$C$4-1),12,1)) -> 0.083057 | G179: =MAX(OFFSET(P_NW_Prop!$E$10,12*$A179,4*(PlotControl!$C$4-1),12,1)) -> 0.09334 | H179: =MAX(OFFSET(P_W_Prop!$C$10,12*$A179,4*(PlotControl!$C$4-1),12,1)) -> 0.072838 | I179: =MAX(OFFSET(P_W_Prop!$D$10,12*$A179,4*(PlotControl!$C$4-1),12,1)) -> 0.083691 | J179: =MAX(OFFSET(P_W_Prop!$E$10,12*$A179,4*(PlotControl!$C$4-1),12,1)) -> 0.093525
A180: 175 | B180: =MAX(OFFSET(P_N_Prop!$C$10,12*$A180,4*(PlotControl!$C$4-1),12,1)) -> 0.079223 | C180: =MAX(OFFSET(P_N_Prop!$D$10,12*$A180,4*(PlotControl!$C$4-1),12,1)) -> 0.090361 | D180: =MAX(OFFSET(P_N_Prop!$E$10,12*$A180,4*(PlotControl!$C$4-1),12,1)) -> 0.10196 | E180: =MAX(OFFSET(P_NW_Prop!$C$10,12*$A180,4*(PlotControl!$C$4-1),12,1)) -> 0.071954 | F180: =MAX(OFFSET(P_NW_Prop!$D$10,12*$A180,4*(PlotControl!$C$4-1),12,1)) -> 0.083024 | G180: =MAX(OFFSET(P_NW_Prop!$E$10,12*$A180,4*(PlotControl!$C$4-1),12,1)) -> 0.093389 | H180: =MAX(OFFSET(P_W_Prop!$C$10,12*$A180,4*(PlotControl!$C$4-1),12,1)) -> 0.072794 | I180: =MAX(OFFSET(P_W_Prop!$D$10,12*$A180,4*(PlotControl!$C$4-1),12,1)) -> 0.083634 | J180: =MAX(OFFSET(P_W_Prop!$E$10,12*$A180,4*(PlotControl!$C$4-1),12,1)) -> 0.093464
A181: 176 | B181: =MAX(OFFSET(P_N_Prop!$C$10,12*$A181,4*(PlotControl!$C$4-1),12,1)) -> 0.079178 | C181: =MAX(OFFSET(P_N_Prop!$D$10,12*$A181,4*(PlotControl!$C$4-1),12,1)) -> 0.090361 | D181: =MAX(OFFSET(P_N_Prop!$E$10,12*$A181,4*(PlotControl!$C$4-1),12,1)) -> 0.10204 | E181: =MAX(OFFSET(P_NW_Prop!$C$10,12*$A181,4*(PlotControl!$C$4-1),12,1)) -> 0.071925 | F181: =MAX(OFFSET(P_NW_Prop!$D$10,12*$A181,4*(PlotControl!$C$4-1),12,1)) -> 0.082991 | G181: =MAX(OFFSET(P_NW_Prop!$E$10,12*$A181,4*(PlotControl!$C$4-1),12,1)) -> 0.093356 | H181: =MAX(OFFSET(P_W_Prop!$C$10,12*$A181,4*(PlotControl!$C$4-1),12,1)) -> 0.072733 | I181: =MAX(OFFSET(P_W_Prop!$D$10,12*$A181,4*(PlotControl!$C$4-1),12,1)) -> 0.083581 | J181: =MAX(OFFSET(P_W_Prop!$E$10,12*$A181,4*(PlotControl!$C$4-1),12,1)) -> 0.093402
A182: 177 | B182: =MAX(OFFSET(P_N_Prop!$C$10,12*$A182,4*(PlotControl!$C$4-1),12,1)) -> 0.079121 | C182: =MAX(OFFSET(P_N_Prop!$D$10,12*$A182,4*(PlotControl!$C$4-1),12,1)) -> 0.090348 | D182: =MAX(OFFSET(P_N_Prop!$E$10,12*$A182,4*(PlotControl!$C$4-1),12,1)) -> 0.10211 | E182: =MAX(OFFSET(P_NW_Prop!$C$10,12*$A182,4*(PlotControl!$C$4-1),12,1)) -> 0.071896 | F182: =MAX(OFFSET(P_NW_Prop!$D$10,12*$A182,4*(PlotControl!$C$4-1),12,1)) -> 0.082891 | G182: =MAX(OFFSET(P_NW_Prop!$E$10,12*$A182,4*(PlotControl!$C$4-1),12,1)) -> 0.093312 | H182: =MAX(OFFSET(P_W_Prop!$C$10,12*$A182,4*(PlotControl!$C$4-1),12,1)) -> 0.072673 | I182: =MAX(OFFSET(P_W_Prop!$D$10,12*$A182,4*(PlotControl!$C$4-1),12,1)) -> 0.083521 | J182: =MAX(OFFSET(P_W_Prop!$E$10,12*$A182,4*(PlotControl!$C$4-1),12,1)) -> 0.09334
A183: 178 | B183: =MAX(OFFSET(P_N_Prop!$C$10,12*$A183,4*(PlotControl!$C$4-1),12,1)) -> 0.079065 | C183: =MAX(OFFSET(P_N_Prop!$D$10,12*$A183,4*(PlotControl!$C$4-1),12,1)) -> 0.090302 | D183: =MAX(OFFSET(P_N_Prop!$E$10,12*$A183,4*(PlotControl!$C$4-1),12,1)) -> 0.10217 | E183: =MAX(OFFSET(P_NW_Prop!$C$10,12*$A183,4*(PlotControl!$C$4-1),12,1)) -> 0.071845 | F183: =MAX(OFFSET(P_NW_Prop!$D$10,12*$A183,4*(PlotControl!$C$4-1),12,1)) -> 0.082768 | G183: =MAX(OFFSET(P_NW_Prop!$E$10,12*$A183,4*(PlotControl!$C$4-1),12,1)) -> 0.09331 | H183: =MAX(OFFSET(P_W_Prop!$C$10,12*$A183,4*(PlotControl!$C$4-1),12,1)) -> 0.072613 | I183: =MAX(OFFSET(P_W_Prop!$D$10,12*$A183,4*(PlotControl!$C$4-1),12,1)) -> 0.083464 | J183: =MAX(OFFSET(P_W_Prop!$E$10,12*$A183,4*(PlotControl!$C$4-1),12,1)) -> 0.093278
A184: 179 | B184: =MAX(OFFSET(P_N_Prop!$C$10,12*$A184,4*(PlotControl!$C$4-1),12,1)) -> 0.079011 | C184: =MAX(OFFSET(P_N_Prop!$D$10,12*$A184,4*(PlotControl!$C$4-1),12,1)) -> 0.090257 | D184: =MAX(OFFSET(P_N_Prop!$E$10,12*$A184,4*(PlotControl!$C$4-1),12,1)) -> 0.1022 | E184: =MAX(OFFSET(P_NW_Prop!$C$10,12*$A184,4*(PlotControl!$C$4-1),12,1)) -> 0.071758 | F184: =MAX(OFFSET(P_NW_Prop!$D$10,12*$A184,4*(PlotControl!$C$4-1),12,1)) -> 0.082651 | G184: =MAX(OFFSET(P_NW_Prop!$E$10,12*$A184,4*(PlotControl!$C$4-1),12,1)) -> 0.093392 | H184: =MAX(OFFSET(P_W_Prop!$C$10,12*$A184,4*(PlotControl!$C$4-1),12,1)) -> 0.072553 | I184: =MAX(OFFSET(P_W_Prop!$D$10,12*$A184,4*(PlotControl!$C$4-1),12,1)) -> 0.083439 | J184: =MAX(OFFSET(P_W_Prop!$E$10,12*$A184,4*(PlotControl!$C$4-1),12,1)) -> 0.093216
A185: 180 | B185: =MAX(OFFSET(P_N_Prop!$C$10,12*$A185,4*(PlotControl!$C$4-1),12,1)) -> 0.078962 | C185: =MAX(OFFSET(P_N_Prop!$D$10,12*$A185,4*(PlotControl!$C$4-1),12,1)) -> 0.090231 | D185: =MAX(OFFSET(P_N_Prop!$E$10,12*$A185,4*(PlotControl!$C$4-1),12,1)) -> 0.1022 | E185: =MAX(OFFSET(P_NW_Prop!$C$10,12*$A185,4*(PlotControl!$C$4-1),12,1)) -> 0.071728 | F185: =MAX(OFFSET(P_NW_Prop!$D$10,12*$A185,4*(PlotControl!$C$4-1),12,1)) -> 0.082599 | G185: =MAX(OFFSET(P_NW_Prop!$E$10,12*$A185,4*(PlotControl!$C$4-1),12,1)) -> 0.093393 | H185: =MAX(OFFSET(P_W_Prop!$C$10,12*$A185,4*(PlotControl!$C$4-1),12,1)) -> 0.07249 | I185: =MAX(OFFSET(P_W_Prop!$D$10,12*$A185,4*(PlotControl!$C$4-1),12,1)) -> 0.083368 | J185: =MAX(OFFSET(P_W_Prop!$E$10,12*$A185,4*(PlotControl!$C$4-1),12,1)) -> 0.093155
A186: 181 | B186: =MAX(OFFSET(P_N_Prop!$C$10,12*$A186,4*(PlotControl!$C$4-1),12,1)) -> 0.078929 | C186: =MAX(OFFSET(P_N_Prop!$D$10,12*$A186,4*(PlotControl!$C$4-1),12,1)) -> 0.090208 | D186: =MAX(OFFSET(P_N_Prop!$E$10,12*$A186,4*(PlotControl!$C$4-1),12,1)) -> 0.1022 | E186: =MAX(OFFSET(P_NW_Prop!$C$10,12*$A186,4*(PlotControl!$C$4-1),12,1)) -> 0.071695 | F186: =MAX(OFFSET(P_NW_Prop!$D$10,12*$A186,4*(PlotControl!$C$4-1),12,1)) -> 0.082516 | G186: =MAX(OFFSET(P_NW_Prop!$E$10,12*$A186,4*(PlotControl!$C$4-1),12,1)) -> 0.093357 | H186: =MAX(OFFSET(P_W_Prop!$C$10,12*$A186,4*(PlotControl!$C$4-1),12,1)) -> 0.072423 | I186: =MAX(OFFSET(P_W_Prop!$D$10,12*$A186,4*(PlotControl!$C$4-1),12,1)) -> 0.083361 | J186: =MAX(OFFSET(P_W_Prop!$E$10,12*$A186,4*(PlotControl!$C$4-1),12,1)) -> 0.093093
A187: 182 | B187: =MAX(OFFSET(P_N_Prop!$C$10,12*$A187,4*(PlotControl!$C$4-1),12,1)) -> 0.078899 | C187: =MAX(OFFSET(P_N_Prop!$D$10,12*$A187,4*(PlotControl!$C$4-1),12,1)) -> 0.090209 | D187: =MAX(OFFSET(P_N_Prop!$E$10,12*$A187,4*(PlotControl!$C$4-1),12,1)) -> 0.1022 | E187: =MAX(OFFSET(P_NW_Prop!$C$10,12*$A187,4*(PlotControl!$C$4-1),12,1)) -> 0.071597 | F187: =MAX(OFFSET(P_NW_Prop!$D$10,12*$A187,4*(PlotControl!$C$4-1),12,1)) -> 0.082411 | G187: =MAX(OFFSET(P_NW_Prop!$E$10,12*$A187,4*(PlotControl!$C$4-1),12,1)) -> 0.093387 | H187: =MAX(OFFSET(P_W_Prop!$C$10,12*$A187,4*(PlotControl!$C$4-1),12,1)) -> 0.072356 | I187: =MAX(OFFSET(P_W_Prop!$D$10,12*$A187,4*(PlotControl!$C$4-1),12,1)) -> 0.083328 | J187: =MAX(OFFSET(P_W_Prop!$E$10,12*$A187,4*(PlotControl!$C$4-1),12,1)) -> 0.093032
A188: 183 | B188: =MAX(OFFSET(P_N_Prop!$C$10,12*$A188,4*(PlotControl!$C$4-1),12,1)) -> 0.07887 | C188: =MAX(OFFSET(P_N_Prop!$D$10,12*$A188,4*(PlotControl!$C$4-1),12,1)) -> 0.090209 | D188: =MAX(OFFSET(P_N_Prop!$E$10,12*$A188,4*(PlotControl!$C$4-1),12,1)) -> 0.1022 | E188: =MAX(OFFSET(P_NW_Prop!$C$10,12*$A188,4*(PlotControl!$C$4-1),12,1)) -> 0.071553 | F188: =MAX(OFFSET(P_NW_Prop!$D$10,12*$A188,4*(PlotControl!$C$4-1),12,1)) -> 0.08225 | G188: =MAX(OFFSET(P_NW_Prop!$E$10,12*$A188,4*(PlotControl!$C$4-1),12,1)) -> 0.093487 | H188: =MAX(OFFSET(P_W_Prop!$C$10,12*$A188,4*(PlotControl!$C$4-1),12,1)) -> 0.07229 | I188: =MAX(OFFSET(P_W_Prop!$D$10,12*$A188,4*(PlotControl!$C$4-1),12,1)) -> 0.083283 | J188: =MAX(OFFSET(P_W_Prop!$E$10,12*$A188,4*(PlotControl!$C$4-1),12,1)) -> 0.092986
A189: 184 | B189: =MAX(OFFSET(P_N_Prop!$C$10,12*$A189,4*(PlotControl!$C$4-1),12,1)) -> 0.078842 | C189: =MAX(OFFSET(P_N_Prop!$D$10,12*$A189,4*(PlotControl!$C$4-1),12,1)) -> 0.090246 | D189: =MAX(OFFSET(P_N_Prop!$E$10,12*$A189,4*(PlotControl!$C$4-1),12,1)) -> 0.1022 | E189: =MAX(OFFSET(P_NW_Prop!$C$10,12*$A189,4*(PlotControl!$C$4-1),12,1)) -> 0.07151 | F189: =MAX(OFFSET(P_NW_Prop!$D$10,12*$A189,4*(PlotControl!$C$4-1),12,1)) -> 0.082198 | G189: =MAX(OFFSET(P_NW_Prop!$E$10,12*$A189,4*(PlotControl!$C$4-1),12,1)) -> 0.093634 | H189: =MAX(OFFSET(P_W_Prop!$C$10,12*$A189,4*(PlotControl!$C$4-1),12,1)) -> 0.072224 | I189: =MAX(OFFSET(P_W_Prop!$D$10,12*$A189,4*(PlotControl!$C$4-1),12,1)) -> 0.083229 | J189: =MAX(OFFSET(P_W_Prop!$E$10,12*$A189,4*(PlotControl!$C$4-1),12,1)) -> 0.093009
A190: 185 | B190: =MAX(OFFSET(P_N_Prop!$C$10,12*$A190,4*(PlotControl!$C$4-1),12,1)) -> 0.078813 | C190: =MAX(OFFSET(P_N_Prop!$D$10,12*$A190,4*(PlotControl!$C$4-1),12,1)) -> 0.090258 | D190: =MAX(OFFSET(P_N_Prop!$E$10,12*$A190,4*(PlotControl!$C$4-1),12,1)) -> 0.10217 | E190: =MAX(OFFSET(P_NW_Prop!$C$10,12*$A190,4*(PlotControl!$C$4-1),12,1)) -> 0.071464 | F190: =MAX(OFFSET(P_NW_Prop!$D$10,12*$A190,4*(PlotControl!$C$4-1),12,1)) -> 0.08218 | G190: =MAX(OFFSET(P_NW_Prop!$E$10,12*$A190,4*(PlotControl!$C$4-1),12,1)) -> 0.093746 | H190: =MAX(OFFSET(P_W_Prop!$C$10,12*$A190,4*(PlotControl!$C$4-1),12,1)) -> 0.072158 | I190: =MAX(OFFSET(P_W_Prop!$D$10,12*$A190,4*(PlotControl!$C$4-1),12,1)) -> 0.083169 | J190: =MAX(OFFSET(P_W_Prop!$E$10,12*$A190,4*(PlotControl!$C$4-1),12,1)) -> 0.092962
A191: 186 | B191: =MAX(OFFSET(P_N_Prop!$C$10,12*$A191,4*(PlotControl!$C$4-1),12,1)) -> 0.078785 | C191: =MAX(OFFSET(P_N_Prop!$D$10,12*$A191,4*(PlotControl!$C$4-1),12,1)) -> 0.090243 | D191: =MAX(OFFSET(P_N_Prop!$E$10,12*$A191,4*(PlotControl!$C$4-1),12,1)) -> 0.10215 | E191: =MAX(OFFSET(P_NW_Prop!$C$10,12*$A191,4*(PlotControl!$C$4-1),12,1)) -> 0.071341 | F191: =MAX(OFFSET(P_NW_Prop!$D$10,12*$A191,4*(PlotControl!$C$4-1),12,1)) -> 0.082192 | G191: =MAX(OFFSET(P_NW_Prop!$E$10,12*$A191,4*(PlotControl!$C$4-1),12,1)) -> 0.093773 | H191: =MAX(OFFSET(P_W_Prop!$C$10,12*$A191,4*(PlotControl!$C$4-1),12,1)) -> 0.072092 | I191: =MAX(OFFSET(P_W_Prop!$D$10,12*$A191,4*(PlotControl!$C$4-1),12,1)) -> 0.083093 | J191: =MAX(OFFSET(P_W_Prop!$E$10,12*$A191,4*(PlotControl!$C$4-1),12,1)) -> 0.09291
A192: 187 | B192: =MAX(OFFSET(P_N_Prop!$C$10,12*$A192,4*(PlotControl!$C$4-1),12,1)) -> 0.078748 | C192: =MAX(OFFSET(P_N_Prop!$D$10,12*$A192,4*(PlotControl!$C$4-1),12,1)) -> 0.090241 | D192: =MAX(OFFSET(P_N_Prop!$E$10,12*$A192,4*(PlotControl!$C$4-1),12,1)) -> 0.10213 | E192: =MAX(OFFSET(P_NW_Prop!$C$10,12*$A192,4*(PlotControl!$C$4-1),12,1)) -> 0.071233 | F192: =MAX(OFFSET(P_NW_Prop!$D$10,12*$A192,4*(PlotControl!$C$4-1),12,1)) -> 0.08213 | G192: =MAX(OFFSET(P_NW_Prop!$E$10,12*$A192,4*(PlotControl!$C$4-1),12,1)) -> 0.093877 | H192: =MAX(OFFSET(P_W_Prop!$C$10,12*$A192,4*(PlotControl!$C$4-1),12,1)) -> 0.072026 | I192: =MAX(OFFSET(P_W_Prop!$D$10,12*$A192,4*(PlotControl!$C$4-1),12,1)) -> 0.083064 | J192: =MAX(OFFSET(P_W_Prop!$E$10,12*$A192,4*(PlotControl!$C$4-1),12,1)) -> 0.093045
A193: 188 | B193: =MAX(OFFSET(P_N_Prop!$C$10,12*$A193,4*(PlotControl!$C$4-1),12,1)) -> 0.078703 | C193: =MAX(OFFSET(P_N_Prop!$D$10,12*$A193,4*(PlotControl!$C$4-1),12,1)) -> 0.090249 | D193: =MAX(OFFSET(P_N_Prop!$E$10,12*$A193,4*(PlotControl!$C$4-1),12,1)) -> 0.10209 | E193: =MAX(OFFSET(P_NW_Prop!$C$10,12*$A193,4*(PlotControl!$C$4-1),12,1)) -> 0.071193 | F193: =MAX(OFFSET(P_NW_Prop!$D$10,12*$A193,4*(PlotControl!$C$4-1),12,1)) -> 0.082156 | G193: =MAX(OFFSET(P_NW_Prop!$E$10,12*$A193,4*(PlotControl!$C$4-1),12,1)) -> 0.094014 | H193: =MAX(OFFSET(P_W_Prop!$C$10,12*$A193,4*(PlotControl!$C$4-1),12,1)) -> 0.071926 | I193: =MAX(OFFSET(P_W_Prop!$D$10,12*$A193,4*(PlotControl!$C$4-1),12,1)) -> 0.082982 | J193: =MAX(OFFSET(P_W_Prop!$E$10,12*$A193,4*(PlotControl!$C$4-1),12,1)) -> 0.093018
A194: 189 | B194: =MAX(OFFSET(P_N_Prop!$C$10,12*$A194,4*(PlotControl!$C$4-1),12,1)) -> 0.078675 | C194: =MAX(OFFSET(P_N_Prop!$D$10,12*$A194,4*(PlotControl!$C$4-1),12,1)) -> 0.090224 | D194: =MAX(OFFSET(P_N_Prop!$E$10,12*$A194,4*(PlotControl!$C$4-1),12,1)) -> 0.1021 | E194: =MAX(OFFSET(P_NW_Prop!$C$10,12*$A194,4*(PlotControl!$C$4-1),12,1)) -> 0.071159 | F194: =MAX(OFFSET(P_NW_Prop!$D$10,12*$A194,4*(PlotControl!$C$4-1),12,1)) -> 0.082155 | G194: =MAX(OFFSET(P_NW_Prop!$E$10,12*$A194,4*(PlotControl!$C$4-1),12,1)) -> 0.094164 | H194: =MAX(OFFSET(P_W_Prop!$C$10,12*$A194,4*(PlotControl!$C$4-1),12,1)) -> 0.07183 | I194: =MAX(OFFSET(P_W_Prop!$D$10,12*$A194,4*(PlotControl!$C$4-1),12,1)) -> 0.082919 | J194: =MAX(OFFSET(P_W_Prop!$E$10,12*$A194,4*(PlotControl!$C$4-1),12,1)) -> 0.092964
A195: 190 | B195: =MAX(OFFSET(P_N_Prop!$C$10,12*$A195,4*(PlotControl!$C$4-1),12,1)) -> 0.078644 | C195: =MAX(OFFSET(P_N_Prop!$D$10,12*$A195,4*(PlotControl!$C$4-1),12,1)) -> 0.090247 | D195: =MAX(OFFSET(P_N_Prop!$E$10,12*$A195,4*(PlotControl!$C$4-1),12,1)) -> 0.10214 | E195: =MAX(OFFSET(P_NW_Prop!$C$10,12*$A195,4*(PlotControl!$C$4-1),12,1)) -> 0.071127 | F195: =MAX(OFFSET(P_NW_Prop!$D$10,12*$A195,4*(PlotControl!$C$4-1),12,1)) -> 0.08208 | G195: =MAX(OFFSET(P_NW_Prop!$E$10,12*$A195,4*(PlotControl!$C$4-1),12,1)) -> 0.094316 | H195: =MAX(OFFSET(P_W_Prop!$C$10,12*$A195,4*(PlotControl!$C$4-1),12,1)) -> 0.071781 | I195: =MAX(OFFSET(P_W_Prop!$D$10,12*$A195,4*(PlotControl!$C$4-1),12,1)) -> 0.082855 | J195: =MAX(OFFSET(P_W_Prop!$E$10,12*$A195,4*(PlotControl!$C$4-1),12,1)) -> 0.09291
A196: 191 | B196: =MAX(OFFSET(P_N_Prop!$C$10,12*$A196,4*(PlotControl!$C$4-1),12,1)) -> 0.078603 | C196: =MAX(OFFSET(P_N_Prop!$D$10,12*$A196,4*(PlotControl!$C$4-1),12,1)) -> 0.09027 | D196: =MAX(OFFSET(P_N_Prop!$E$10,12*$A196,4*(PlotControl!$C$4-1),12,1)) -> 0.10221 | E196: =MAX(OFFSET(P_NW_Prop!$C$10,12*$A196,4*(PlotControl!$C$4-1),12,1)) -> 0.071078 | F196: =MAX(OFFSET(P_NW_Prop!$D$10,12*$A196,4*(PlotControl!$C$4-1),12,1)) -> 0.082001 | G196: =MAX(OFFSET(P_NW_Prop!$E$10,12*$A196,4*(PlotControl!$C$4-1),12,1)) -> 0.094469 | H196: =MAX(OFFSET(P_W_Prop!$C$10,12*$A196,4*(PlotControl!$C$4-1),12,1)) -> 0.071751 | I196: =MAX(OFFSET(P_W_Prop!$D$10,12*$A196,4*(PlotControl!$C$4-1),12,1)) -> 0.08279 | J196: =MAX(OFFSET(P_W_Prop!$E$10,12*$A196,4*(PlotControl!$C$4-1),12,1)) -> 0.092856
A197: 192 | B197: =MAX(OFFSET(P_N_Prop!$C$10,12*$A197,4*(PlotControl!$C$4-1),12,1)) -> 0.07857 | C197: =MAX(OFFSET(P_N_Prop!$D$10,12*$A197,4*(PlotControl!$C$4-1),12,1)) -> 0.090282 | D197: =MAX(OFFSET(P_N_Prop!$E$10,12*$A197,4*(PlotControl!$C$4-1),12,1)) -> 0.10229 | E197: =MAX(OFFSET(P_NW_Prop!$C$10,12*$A197,4*(PlotControl!$C$4-1),12,1)) -> 0.071029 | F197: =MAX(OFFSET(P_NW_Prop!$D$10,12*$A197,4*(PlotControl!$C$4-1),12,1)) -> 0.081931 | G197: =MAX(OFFSET(P_NW_Prop!$E$10,12*$A197,4*(PlotControl!$C$4-1),12,1)) -> 0.094663 | H197: =MAX(OFFSET(P_W_Prop!$C$10,12*$A197,4*(PlotControl!$C$4-1),12,1)) -> 0.071751 | I197: =MAX(OFFSET(P_W_Prop!$D$10,12*$A197,4*(PlotControl!$C$4-1),12,1)) -> 0.082755 | J197: =MAX(OFFSET(P_W_Prop!$E$10,12*$A197,4*(PlotControl!$C$4-1),12,1)) -> 0.092802
A198: 193 | B198: =MAX(OFFSET(P_N_Prop!$C$10,12*$A198,4*(PlotControl!$C$4-1),12,1)) -> 0.078539 | C198: =MAX(OFFSET(P_N_Prop!$D$10,12*$A198,4*(PlotControl!$C$4-1),12,1)) -> 0.090278 | D198: =MAX(OFFSET(P_N_Prop!$E$10,12*$A198,4*(PlotControl!$C$4-1),12,1)) -> 0.10231 | E198: =MAX(OFFSET(P_NW_Prop!$C$10,12*$A198,4*(PlotControl!$C$4-1),12,1)) -> 0.070947 | F198: =MAX(OFFSET(P_NW_Prop!$D$10,12*$A198,4*(PlotControl!$C$4-1),12,1)) -> 0.081882 | G198: =MAX(OFFSET(P_NW_Prop!$E$10,12*$A198,4*(PlotControl!$C$4-1),12,1)) -> 0.094885 | H198: =MAX(OFFSET(P_W_Prop!$C$10,12*$A198,4*(PlotControl!$C$4-1),12,1)) -> 0.071736 | I198: =MAX(OFFSET(P_W_Prop!$D$10,12*$A198,4*(PlotControl!$C$4-1),12,1)) -> 0.082781 | J198: =MAX(OFFSET(P_W_Prop!$E$10,12*$A198,4*(PlotControl!$C$4-1),12,1)) -> 0.092747
A199: 194 | B199: =MAX(OFFSET(P_N_Prop!$C$10,12*$A199,4*(PlotControl!$C$4-1),12,1)) -> 0.078508 | C199: =MAX(OFFSET(P_N_Prop!$D$10,12*$A199,4*(PlotControl!$C$4-1),12,1)) -> 0.090271 | D199: =MAX(OFFSET(P_N_Prop!$E$10,12*$A199,4*(PlotControl!$C$4-1),12,1)) -> 0.10227 | E199: =MAX(OFFSET(P_NW_Prop!$C$10,12*$A199,4*(PlotControl!$C$4-1),12,1)) -> 0.070831 | F199: =MAX(OFFSET(P_NW_Prop!$D$10,12*$A199,4*(PlotControl!$C$4-1),12,1)) -> 0.081804 | G199: =MAX(OFFSET(P_NW_Prop!$E$10,12*$A199,4*(PlotControl!$C$4-1),12,1)) -> 0.09497 | H199: =MAX(OFFSET(P_W_Prop!$C$10,12*$A199,4*(PlotControl!$C$4-1),12,1)) -> 0.07169 | I199: =MAX(OFFSET(P_W_Prop!$D$10,12*$A199,4*(PlotControl!$C$4-1),12,1)) -> 0.082771 | J199: =MAX(OFFSET(P_W_Prop!$E$10,12*$A199,4*(PlotControl!$C$4-1),12,1)) -> 0.092693
A200: 195 | B200: =MAX(OFFSET(P_N_Prop!$C$10,12*$A200,4*(PlotControl!$C$4-1),12,1)) -> 0.078488 | C200: =MAX(OFFSET(P_N_Prop!$D$10,12*$A200,4*(PlotControl!$C$4-1),12,1)) -> 0.090303 | D200: =MAX(OFFSET(P_N_Prop!$E$10,12*$A200,4*(PlotControl!$C$4-1),12,1)) -> 0.10226 | E200: =MAX(OFFSET(P_NW_Prop!$C$10,12*$A200,4*(PlotControl!$C$4-1),12,1)) -> 0.070783 | F200: =MAX(OFFSET(P_NW_Prop!$D$10,12*$A200,4*(PlotControl!$C$4-1),12,1)) -> 0.081736 | G200: =MAX(OFFSET(P_NW_Prop!$E$10,12*$A200,4*(PlotControl!$C$4-1),12,1)) -> 0.09508 | H200: =MAX(OFFSET(P_W_Prop!$C$10,12*$A200,4*(PlotControl!$C$4-1),12,1)) -> 0.071665 | I200: =MAX(OFFSET(P_W_Prop!$D$10,12*$A200,4*(PlotControl!$C$4-1),12,1)) -> 0.082714 | J200: =MAX(OFFSET(P_W_Prop!$E$10,12*$A200,4*(PlotControl!$C$4-1),12,1)) -> 0.092638
... 5 more rows

Sheet NA_All
A1: Values shown for constituent selected on PlotControl tab
B2: Existing, North | E2: Existing, NorthWest | H2: Existing, West
B3: Annual No-Action Results | E3: Annual No-Action Results | H3: Annual No-Action Results
A4: Time | B4: P10 | C4: P50 | D4: P90 | E4: P10 | F4: P50 | G4: P90 | H4: P10 | I4: P50 | J4: P90
A5: 0 | B5: =MAX(OFFSET(NA_N_Prop!$C$10,12*$A5,4*(PlotControl!$C$4-1),12,1)) -> 0.10027 | C5: =MAX(OFFSET(NA_N_Prop!$D$10,12*$A5,4*(PlotControl!$C$4-1),12,1)) -> 0.11082 | D5: =MAX(OFFSET(NA_N_Prop!$E$10,12*$A5,4*(PlotControl!$C$4-1),12,1)) -> 0.11866 | E5: =MAX(OFFSET(NA_NW_Prop!$C$10,12*$A5,4*(PlotControl!$C$4-1),12,1)) -> 0.090852 | F5: =MAX(OFFSET(NA_NW_Prop!$D$10,12*$A5,4*(PlotControl!$C$4-1),12,1)) -> 0.098506 | G5: =MAX(OFFSET(NA_NW_Prop!$E$10,12*$A5,4*(PlotControl!$C$4-1),12,1)) -> 0.10368 | H5: =MAX(OFFSET(NA_W_Prop!$C$10,12*$A5,4*(PlotControl!$C$4-1),12,1)) -> 0.089532 | I5: =MAX(OFFSET(NA_W_Prop!$D$10,12*$A5,4*(PlotControl!$C$4-1),12,1)) -> 0.099876 | J5: =MAX(OFFSET(NA_W_Prop!$E$10,12*$A5,4*(PlotControl!$C$4-1),12,1)) -> 0.10719
A6: 1 | B6: =MAX(OFFSET(NA_N_Prop!$C$10,12*$A6,4*(PlotControl!$C$4-1),12,1)) -> 0.10027 | C6: =MAX(OFFSET(NA_N_Prop!$D$10,12*$A6,4*(PlotControl!$C$4-1),12,1)) -> 0.11082 | D6: =MAX(OFFSET(NA_N_Prop!$E$10,12*$A6,4*(PlotControl!$C$4-1),12,1)) -> 0.11866 | E6: =MAX(OFFSET(NA_NW_Prop!$C$10,12*$A6,4*(PlotControl!$C$4-1),12,1)) -> 0.090852 | F6: =MAX(OFFSET(NA_NW_Prop!$D$10,12*$A6,4*(PlotControl!$C$4-1),12,1)) -> 0.098506 | G6: =MAX(OFFSET(NA_NW_Prop!$E$10,12*$A6,4*(PlotControl!$C$4-1),12,1)) -> 0.10368 | H6: =MAX(OFFSET(NA_W_Prop!$C$10,12*$A6,4*(PlotControl!$C$4-1),12,1)) -> 0.089532 | I6: =MAX(OFFSET(NA_W_Prop!$D$10,12*$A6,4*(PlotControl!$C$4-1),12,1)) -> 0.099876 | J6: =MAX(OFFSET(NA_W_Prop!$E$10,12*$A6,4*(PlotControl!$C$4-1),12,1)) -> 0.10719
A7: 2 | B7: =MAX(OFFSET(NA_N_Prop!$C$10,12*$A7,4*(PlotControl!$C$4-1),12,1)) -> 0.10027 | C7: =MAX(OFFSET(NA_N_Prop!$D$10,12*$A7,4*(PlotControl!$C$4-1),12,1)) -> 0.11082 | D7: =MAX(OFFSET(NA_N_Prop!$E$10,12*$A7,4*(PlotControl!$C$4-1),12,1)) -> 0.11866 | E7: =MAX(OFFSET(NA_NW_Prop!$C$10,12*$A7,4*(PlotControl!$C$4-1),12,1)) -> 0.090852 | F7: =MAX(OFFSET(NA_NW_Prop!$D$10,12*$A7,4*(PlotControl!$C$4-1),12,1)) -> 0.098506 | G7: =MAX(OFFSET(NA_NW_Prop!$E$10,12*$A7,4*(PlotControl!$C$4-1),12,1)) -> 0.10368 | H7: =MAX(OFFSET(NA_W_Prop!$C$10,12*$A7,4*(PlotControl!$C$4-1),12,1)) -> 0.089532 | I7: =MAX(OFFSET(NA_W_Prop!$D$10,12*$A7,4*(PlotControl!$C$4-1),12,1)) -> 0.099876 | J7: =MAX(OFFSET(NA_W_Prop!$E$10,12*$A7,4*(PlotControl!$C$4-1),12,1)) -> 0.10719
A8: 3 | B8: =MAX(OFFSET(NA_N_Prop!$C$10,12*$A8,4*(PlotControl!$C$4-1),12,1)) -> 0.10027 | C8: =MAX(OFFSET(NA_N_Prop!$D$10,12*$A8,4*(PlotControl!$C$4-1),12,1)) -> 0.11082 | D8: =MAX(OFFSET(NA_N_Prop!$E$10,12*$A8,4*(PlotControl!$C$4-1),12,1)) -> 0.11866 | E8: =MAX(OFFSET(NA_NW_Prop!$C$10,12*$A8,4*(PlotControl!$C$4-1),12,1)) -> 0.090852 | F8: =MAX(OFFSET(NA_NW_Prop!$D$10,12*$A8,4*(PlotControl!$C$4-1),12,1)) -> 0.098506 | G8: =MAX(OFFSET(NA_NW_Prop!$E$10,12*$A8,4*(PlotControl!$C$4-1),12,1)) -> 0.10368 | H8: =MAX(OFFSET(NA_W_Prop!$C$10,12*$A8,4*(PlotControl!$C$4-1),12,1)) -> 0.089532 | I8: =MAX(OFFSET(NA_W_Prop!$D$10,12*$A8,4*(PlotControl!$C$4-1),12,1)) -> 0.099876 | J8: =MAX(OFFSET(NA_W_Prop!$E$10,12*$A8,4*(PlotControl!$C$4-1),12,1)) -> 0.10719
A9: 4 | B9: =MAX(OFFSET(NA_N_Prop!$C$10,12*$A9,4*(PlotControl!$C$4-1),12,1)) -> 0.10027 | C9: =MAX(OFFSET(NA_N_Prop!$D$10,12*$A9,4*(PlotControl!$C$4-1),12,1)) -> 0.11082 | D9: =MAX(OFFSET(NA_N_Prop!$E$10,12*$A9,4*(PlotControl!$C$4-1),12,1)) -> 0.11866 | E9: =MAX(OFFSET(NA_NW_Prop!$C$10,12*$A9,4*(PlotControl!$C$4-1),12,1)) -> 0.090852 | F9: =MAX(OFFSET(NA_NW_Prop!$D$10,12*$A9,4*(PlotControl!$C$4-1),12,1)) -> 0.098506 | G9: =MAX(OFFSET(NA_NW_Prop!$E$10,12*$A9,4*(PlotControl!$C$4-1),12,1)) -> 0.10368 | H9: =MAX(OFFSET(NA_W_Prop!$C$10,12*$A9,4*(PlotControl!$C$4-1),12,1)) -> 0.089532 | I9: =MAX(OFFSET(NA_W_Prop!$D$10,12*$A9,4*(PlotControl!$C$4-1),12,1)) -> 0.099876 | J9: =MAX(OFFSET(NA_W_Prop!$E$10,12*$A9,4*(PlotControl!$C$4-1),12,1)) -> 0.10719
A10: 5 | B10: =MAX(OFFSET(NA_N_Prop!$C$10,12*$A10,4*(PlotControl!$C$4-1),12,1)) -> 0.10027 | C10: =MAX(OFFSET(NA_N_Prop!$D$10,12*$A10,4*(PlotControl!$C$4-1),12,1)) -> 0.11082 | D10: =MAX(OFFSET(NA_N_Prop!$E$10,12*$A10,4*(PlotControl!$C$4-1),12,1)) -> 0.11866 | E10: =MAX(OFFSET(NA_NW_Prop!$C$10,12*$A10,4*(PlotControl!$C$4-1),12,1)) -> 0.090852 | F10: =MAX(OFFSET(NA_NW_Prop!$D$10,12*$A10,4*(PlotControl!$C$4-1),12,1)) -> 0.098506 | G10: =MAX(OFFSET(NA_NW_Prop!$E$10,12*$A10,4*(PlotControl!$C$4-1),12,1)) -> 0.10368 | H10: =MAX(OFFSET(NA_W_Prop!$C$10,12*$A10,4*(PlotControl!$C$4-1),12,1)) -> 0.089532 | I10: =MAX(OFFSET(NA_W_Prop!$D$10,12*$A10,4*(PlotControl!$C$4-1),12,1)) -> 0.099876 | J10: =MAX(OFFSET(NA_W_Prop!$E$10,12*$A10,4*(PlotControl!$C$4-1),12,1)) -> 0.10719
A11: 6 | B11: =MAX(OFFSET(NA_N_Prop!$C$10,12*$A11,4*(PlotControl!$C$4-1),12,1)) -> 0.10027 | C11: =MAX(OFFSET(NA_N_Prop!$D$10,12*$A11,4*(PlotControl!$C$4-1),12,1)) -> 0.11082 | D11: =MAX(OFFSET(NA_N_Prop!$E$10,12*$A11,4*(PlotControl!$C$4-1),12,1)) -> 0.11866 | E11: =MAX(OFFSET(NA_NW_Prop!$C$10,12*$A11,4*(PlotControl!$C$4-1),12,1)) -> 0.090852 | F11: =MAX(OFFSET(NA_NW_Prop!$D$10,12*$A11,4*(PlotControl!$C$4-1),12,1)) -> 0.098506 | G11: =MAX(OFFSET(NA_NW_Prop!$E$10,12*$A11,4*(PlotControl!$C$4-1),12,1)) -> 0.10368 | H11: =MAX(OFFSET(NA_W_Prop!$C$10,12*$A11,4*(PlotControl!$C$4-1),12,1)) -> 0.089532 | I11: =MAX(OFFSET(NA_W_Prop!$D$10,12*$A11,4*(PlotControl!$C$4-1),12,1)) -> 0.099876 | J11: =MAX(OFFSET(NA_W_Prop!$E$10,12*$A11,4*(PlotControl!$C$4-1),12,1)) -> 0.10719
A12: 7 | B12: =MAX(OFFSET(NA_N_Prop!$C$10,12*$A12,4*(PlotControl!$C$4-1),12,1)) -> 0.10027 | C12: =MAX(OFFSET(NA_N_Prop!$D$10,12*$A12,4*(PlotControl!$C$4-1),12,1)) -> 0.11082 | D12: =MAX(OFFSET(NA_N_Prop!$E$10,12*$A12,4*(PlotControl!$C$4-1),12,1)) -> 0.11866 | E12: =MAX(OFFSET(NA_NW_Prop!$C$10,12*$A12,4*(PlotControl!$C$4-1),12,1)) -> 0.090852 | F12: =MAX(OFFSET(NA_NW_Prop!$D$10,12*$A12,4*(PlotControl!$C$4-1),12,1)) -> 0.098506 | G12: =MAX(OFFSET(NA_NW_Prop!$E$10,12*$A12,4*(PlotControl!$C$4-1),12,1)) -> 0.10368 | H12: =MAX(OFFSET(NA_W_Prop!$C$10,12*$A12,4*(PlotControl!$C$4-1),12,1)) -> 0.089532 | I12: =MAX(OFFSET(NA_W_Prop!$D$10,12*$A12,4*(PlotControl!$C$4-1),12,1)) -> 0.099876 | J12: =MAX(OFFSET(NA_W_Prop!$E$10,12*$A12,4*(PlotControl!$C$4-1),12,1)) -> 0.10719
A13: 8 | B13: =MAX(OFFSET(NA_N_Prop!$C$10,12*$A13,4*(PlotControl!$C$4-1),12,1)) -> 0.10027 | C13: =MAX(OFFSET(NA_N_Prop!$D$10,12*$A13,4*(PlotControl!$C$4-1),12,1)) -> 0.11082 | D13: =MAX(OFFSET(NA_N_Prop!$E$10,12*$A13,4*(PlotControl!$C$4-1),12,1)) -> 0.11866 | E13: =MAX(OFFSET(NA_NW_Prop!$C$10,12*$A13,4*(PlotControl!$C$4-1),12,1)) -> 0.090852 | F13: =MAX(OFFSET(NA_NW_Prop!$D$10,12*$A13,4*(PlotControl!$C$4-1),12,1)) -> 0.098506 | G13: =MAX(OFFSET(NA_NW_Prop!$E$10,12*$A13,4*(PlotControl!$C$4-1),12,1)) -> 0.10368 | H13: =MAX(OFFSET(NA_W_Prop!$C$10,12*$A13,4*(PlotControl!$C$4-1),12,1)) -> 0.089532 | I13: =MAX(OFFSET(NA_W_Prop!$D$10,12*$A13,4*(PlotControl!$C$4-1),12,1)) -> 0.099876 | J13: =MAX(OFFSET(NA_W_Prop!$E$10,12*$A13,4*(PlotControl!$C$4-1),12,1)) -> 0.10719
A14: 9 | B14: =MAX(OFFSET(NA_N_Prop!$C$10,12*$A14,4*(PlotControl!$C$4-1),12,1)) -> 0.10027 | C14: =MAX(OFFSET(NA_N_Prop!$D$10,12*$A14,4*(PlotControl!$C$4-1),12,1)) -> 0.11082 | D14: =MAX(OFFSET(NA_N_Prop!$E$10,12*$A14,4*(PlotControl!$C$4-1),12,1)) -> 0.11866 | E14: =MAX(OFFSET(NA_NW_Prop!$C$10,12*$A14,4*(PlotControl!$C$4-1),12,1)) -> 0.090852 | F14: =MAX(OFFSET(NA_NW_Prop!$D$10,12*$A14,4*(PlotControl!$C$4-1),12,1)) -> 0.098506 | G14: =MAX(OFFSET(NA_NW_Prop!$E$10,12*$A14,4*(PlotControl!$C$4-1),12,1)) -> 0.10368 | H14: =MAX(OFFSET(NA_W_Prop!$C$10,12*$A14,4*(PlotControl!$C$4-1),12,1)) -> 0.089532 | I14: =MAX(OFFSET(NA_W_Prop!$D$10,12*$A14,4*(PlotControl!$C$4-1),12,1)) -> 0.099876 | J14: =MAX(OFFSET(NA_W_Prop!$E$10,12*$A14,4*(PlotControl!$C$4-1),12,1)) -> 0.10719
A15: 10 | B15: =MAX(OFFSET(NA_N_Prop!$C$10,12*$A15,4*(PlotControl!$C$4-1),12,1)) -> 0.10027 | C15: =MAX(OFFSET(NA_N_Prop!$D$10,12*$A15,4*(PlotControl!$C$4-1),12,1)) -> 0.11082 | D15: =MAX(OFFSET(NA_N_Prop!$E$10,12*$A15,4*(PlotControl!$C$4-1),12,1)) -> 0.11866 | E15: =MAX(OFFSET(NA_NW_Prop!$C$10,12*$A15,4*(PlotControl!$C$4-1),12,1)) -> 0.090852 | F15: =MAX(OFFSET(NA_NW_Prop!$D$10,12*$A15,4*(PlotControl!$C$4-1),12,1)) -> 0.098506 | G15: =MAX(OFFSET(NA_NW_Prop!$E$10,12*$A15,4*(PlotControl!$C$4-1),12,1)) -> 0.10368 | H15: =MAX(OFFSET(NA_W_Prop!$C$10,12*$A15,4*(PlotControl!$C$4-1),12,1)) -> 0.089532 | I15: =MAX(OFFSET(NA_W_Prop!$D$10,12*$A15,4*(PlotControl!$C$4-1),12,1)) -> 0.099876 | J15: =MAX(OFFSET(NA_W_Prop!$E$10,12*$A15,4*(PlotControl!$C$4-1),12,1)) -> 0.10719
A16: 11 | B16: =MAX(OFFSET(NA_N_Prop!$C$10,12*$A16,4*(PlotControl!$C$4-1),12,1)) -> 0.10027 | C16: =MAX(OFFSET(NA_N_Prop!$D$10,12*$A16,4*(PlotControl!$C$4-1),12,1)) -> 0.11082 | D16: =MAX(OFFSET(NA_N_Prop!$E$10,12*$A16,4*(PlotControl!$C$4-1),12,1)) -> 0.11866 | E16: =MAX(OFFSET(NA_NW_Prop!$C$10,12*$A16,4*(PlotControl!$C$4-1),12,1)) -> 0.090852 | F16: =MAX(OFFSET(NA_NW_Prop!$D$10,12*$A16,4*(PlotControl!$C$4-1),12,1)) -> 0.098506 | G16: =MAX(OFFSET(NA_NW_Prop!$E$10,12*$A16,4*(PlotControl!$C$4-1),12,1)) -> 0.10368 | H16: =MAX(OFFSET(NA_W_Prop!$C$10,12*$A16,4*(PlotControl!$C$4-1),12,1)) -> 0.089532 | I16: =MAX(OFFSET(NA_W_Prop!$D$10,12*$A16,4*(PlotControl!$C$4-1),12,1)) -> 0.099876 | J16: =MAX(OFFSET(NA_W_Prop!$E$10,12*$A16,4*(PlotControl!$C$4-1),12,1)) -> 0.10719
A17: 12 | B17: =MAX(OFFSET(NA_N_Prop!$C$10,12*$A17,4*(PlotControl!$C$4-1),12,1)) -> 0.10027 | C17: =MAX(OFFSET(NA_N_Prop!$D$10,12*$A17,4*(PlotControl!$C$4-1),12,1)) -> 0.11082 | D17: =MAX(OFFSET(NA_N_Prop!$E$10,12*$A17,4*(PlotControl!$C$4-1),12,1)) -> 0.11866 | E17: =MAX(OFFSET(NA_NW_Prop!$C$10,12*$A17,4*(PlotControl!$C$4-1),12,1)) -> 0.090852 | F17: =MAX(OFFSET(NA_NW_Prop!$D$10,12*$A17,4*(PlotControl!$C$4-1),12,1)) -> 0.098505 | G17: =MAX(OFFSET(NA_NW_Prop!$E$10,12*$A17,4*(PlotControl!$C$4-1),12,1)) -> 0.10368 | H17: =MAX(OFFSET(NA_W_Prop!$C$10,12*$A17,4*(PlotControl!$C$4-1),12,1)) -> 0.089532 | I17: =MAX(OFFSET(NA_W_Prop!$D$10,12*$A17,4*(PlotControl!$C$4-1),12,1)) -> 0.099876 | J17: =MAX(OFFSET(NA_W_Prop!$E$10,12*$A17,4*(PlotControl!$C$4-1),12,1)) -> 0.10719
A18: 13 | B18: =MAX(OFFSET(NA_N_Prop!$C$10,12*$A18,4*(PlotControl!$C$4-1),12,1)) -> 0.10027 | C18: =MAX(OFFSET(NA_N_Prop!$D$10,12*$A18,4*(PlotControl!$C$4-1),12,1)) -> 0.11082 | D18: =MAX(OFFSET(NA_N_Prop!$E$10,12*$A18,4*(PlotControl!$C$4-1),12,1)) -> 0.11866 | E18: =MAX(OFFSET(NA_NW_Prop!$C$10,12*$A18,4*(PlotControl!$C$4-1),12,1)) -> 0.090852 | F18: =MAX(OFFSET(NA_NW_Prop!$D$10,12*$A18,4*(PlotControl!$C$4-1),12,1)) -> 0.098505 | G18: =MAX(OFFSET(NA_NW_Prop!$E$10,12*$A18,4*(PlotControl!$C$4-1),12,1)) -> 0.1036 | H18: =MAX(OFFSET(NA_W_Prop!$C$10,12*$A18,4*(PlotControl!$C$4-1),12,1)) -> 0.089532 | I18: =MAX(OFFSET(NA_W_Prop!$D$10,12*$A18,4*(PlotControl!$C$4-1),12,1)) -> 0.099876 | J18: =MAX(OFFSET(NA_W_Prop!$E$10,12*$A18,4*(PlotControl!$C$4-1),12,1)) -> 0.10719
A19: 14 | B19: =MAX(OFFSET(NA_N_Prop!$C$10,12*$A19,4*(PlotControl!$C$4-1),12,1)) -> 0.10027 | C19: =MAX(OFFSET(NA_N_Prop!$D$10,12*$A19,4*(PlotControl!$C$4-1),12,1)) -> 0.11082 | D19: =MAX(OFFSET(NA_N_Prop!$E$10,12*$A19,4*(PlotControl!$C$4-1),12,1)) -> 0.11866 | E19: =MAX(OFFSET(NA_NW_Prop!$C$10,12*$A19,4*(PlotControl!$C$4-1),12,1)) -> 0.090852 | F19: =MAX(OFFSET(NA_NW_Prop!$D$10,12*$A19,4*(PlotControl!$C$4-1),12,1)) -> 0.098502 | G19: =MAX(OFFSET(NA_NW_Prop!$E$10,12*$A19,4*(PlotControl!$C$4-1),12,1)) -> 0.1036 | H19: =MAX(OFFSET(NA_W_Prop!$C$10,12*$A19,4*(PlotControl!$C$4-1),12,1)) -> 0.089532 | I19: =MAX(OFFSET(NA_W_Prop!$D$10,12*$A19,4*(PlotControl!$C$4-1),12,1)) -> 0.099876 | J19: =MAX(OFFSET(NA_W_Prop!$E$10,12*$A19,4*(PlotControl!$C$4-1),12,1)) -> 0.10719
A20: 15 | B20: =MAX(OFFSET(NA_N_Prop!$C$10,12*$A20,4*(PlotControl!$C$4-1),12,1)) -> 0.10027 | C20: =MAX(OFFSET(NA_N_Prop!$D$10,12*$A20,4*(PlotControl!$C$4-1),12,1)) -> 0.11082 | D20: =MAX(OFFSET(NA_N_Prop!$E$10,12*$A20,4*(PlotControl!$C$4-1),12,1)) -> 0.11866 | E20: =MAX(OFFSET(NA_NW_Prop!$C$10,12*$A20,4*(PlotControl!$C$4-1),12,1)) -> 0.090852 | F20: =MAX(OFFSET(NA_NW_Prop!$D$10,12*$A20,4*(PlotControl!$C$4-1),12,1)) -> 0.098496 | G20: =MAX(OFFSET(NA_NW_Prop!$E$10,12*$A20,4*(PlotControl!$C$4-1),12,1)) -> 0.10359 | H20: =MAX(OFFSET(NA_W_Prop!$C$10,12*$A20,4*(PlotControl!$C$4-1),12,1)) -> 0.089532 | I20: =MAX(OFFSET(NA_W_Prop!$D$10,12*$A20,4*(PlotControl!$C$4-1),12,1)) -> 0.099876 | J20: =MAX(OFFSET(NA_W_Prop!$E$10,12*$A20,4*(PlotControl!$C$4-1),12,1)) -> 0.10719
A21: 16 | B21: =MAX(OFFSET(NA_N_Prop!$C$10,12*$A21,4*(PlotControl!$C$4-1),12,1)) -> 0.10027 | C21: =MAX(OFFSET(NA_N_Prop!$D$10,12*$A21,4*(PlotControl!$C$4-1),12,1)) -> 0.11082 | D21: =MAX(OFFSET(NA_N_Prop!$E$10,12*$A21,4*(PlotControl!$C$4-1),12,1)) -> 0.11866 | E21: =MAX(OFFSET(NA_NW_Prop!$C$10,12*$A21,4*(PlotControl!$C$4-1),12,1)) -> 0.090852 | F21: =MAX(OFFSET(NA_NW_Prop!$D$10,12*$A21,4*(PlotControl!$C$4-1),12,1)) -> 0.098486 | G21: =MAX(OFFSET(NA_NW_Prop!$E$10,12*$A21,4*(PlotControl!$C$4-1),12,1)) -> 0.10357 | H21: =MAX(OFFSET(NA_W_Prop!$C$10,12*$A21,4*(PlotControl!$C$4-1),12,1)) -> 0.089532 | I21: =MAX(OFFSET(NA_W_Prop!$D$10,12*$A21,4*(PlotControl!$C$4-1),12,1)) -> 0.099876 | J21: =MAX(OFFSET(NA_W_Prop!$E$10,12*$A21,4*(PlotControl!$C$4-1),12,1)) -> 0.10719
A22: 17 | B22: =MAX(OFFSET(NA_N_Prop!$C$10,12*$A22,4*(PlotControl!$C$4-1),12,1)) -> 0.10027 | C22: =MAX(OFFSET(NA_N_Prop!$D$10,12*$A22,4*(PlotControl!$C$4-1),12,1)) -> 0.11082 | D22: =MAX(OFFSET(NA_N_Prop!$E$10,12*$A22,4*(PlotControl!$C$4-1),12,1)) -> 0.11866 | E22: =MAX(OFFSET(NA_NW_Prop!$C$10,12*$A22,4*(PlotControl!$C$4-1),12,1)) -> 0.090852 | F22: =MAX(OFFSET(NA_NW_Prop!$D$10,12*$A22,4*(PlotControl!$C$4-1),12,1)) -> 0.098486 | G22: =MAX(OFFSET(NA_NW_Prop!$E$10,12*$A22,4*(PlotControl!$C$4-1),12,1)) -> 0.1035 | H22: =MAX(OFFSET(NA_W_Prop!$C$10,12*$A22,4*(PlotControl!$C$4-1),12,1)) -> 0.089532 | I22: =MAX(OFFSET(NA_W_Prop!$D$10,12*$A22,4*(PlotControl!$C$4-1),12,1)) -> 0.099876 | J22: =MAX(OFFSET(NA_W_Prop!$E$10,12*$A22,4*(PlotControl!$C$4-1),12,1)) -> 0.10719
A23: 18 | B23: =MAX(OFFSET(NA_N_Prop!$C$10,12*$A23,4*(PlotControl!$C$4-1),12,1)) -> 0.10027 | C23: =MAX(OFFSET(NA_N_Prop!$D$10,12*$A23,4*(PlotControl!$C$4-1),12,1)) -> 0.11082 | D23: =MAX(OFFSET(NA_N_Prop!$E$10,12*$A23,4*(PlotControl!$C$4-1),12,1)) -> 0.11862 | E23: =MAX(OFFSET(NA_NW_Prop!$C$10,12*$A23,4*(PlotControl!$C$4-1),12,1)) -> 0.090851 | F23: =MAX(OFFSET(NA_NW_Prop!$D$10,12*$A23,4*(PlotControl!$C$4-1),12,1)) -> 0.098486 | G23: =MAX(OFFSET(NA_NW_Prop!$E$10,12*$A23,4*(PlotControl!$C$4-1),12,1)) -> 0.1033 | H23: =MAX(OFFSET(NA_W_Prop!$C$10,12*$A23,4*(PlotControl!$C$4-1),12,1)) -> 0.089532 | I23: =MAX(OFFSET(NA_W_Prop!$D$10,12*$A23,4*(PlotControl!$C$4-1),12,1)) -> 0.099876 | J23: =MAX(OFFSET(NA_W_Prop!$E$10,12*$A23,4*(PlotControl!$C$4-1),12,1)) -> 0.10719
A24: 19 | B24: =MAX(OFFSET(NA_N_Prop!$C$10,12*$A24,4*(PlotControl!$C$4-1),12,1)) -> 0.10027 | C24: =MAX(OFFSET(NA_N_Prop!$D$10,12*$A24,4*(PlotControl!$C$4-1),12,1)) -> 0.11082 | D24: =MAX(OFFSET(NA_N_Prop!$E$10,12*$A24,4*(PlotControl!$C$4-1),12,1)) -> 0.11843 | E24: =MAX(OFFSET(NA_NW_Prop!$C$10,12*$A24,4*(PlotControl!$C$4-1),12,1)) -> 0.090851 | F24: =MAX(OFFSET(NA_NW_Prop!$D$10,12*$A24,4*(PlotControl!$C$4-1),12,1)) -> 0.098436 | G24: =MAX(OFFSET(NA_NW_Prop!$E$10,12*$A24,4*(PlotControl!$C$4-1),12,1)) -> 0.10325 | H24: =MAX(OFFSET(NA_W_Prop!$C$10,12*$A24,4*(PlotControl!$C$4-1),12,1)) -> 0.089532 | I24: =MAX(OFFSET(NA_W_Prop!$D$10,12*$A24,4*(PlotControl!$C$4-1),12,1)) -> 0.099876 | J24: =MAX(OFFSET(NA_W_Prop!$E$10,12*$A24,4*(PlotControl!$C$4-1),12,1)) -> 0.10719
A25: 20 | B25: =MAX(OFFSET(NA_N_Prop!$C$10,12*$A25,4*(PlotControl!$C$4-1),12,1)) -> 0.10027 | C25: =MAX(OFFSET(NA_N_Prop!$D$10,12*$A25,4*(PlotControl!$C$4-1),12,1)) -> 0.11082 | D25: =MAX(OFFSET(NA_N_Prop!$E$10,12*$A25,4*(PlotControl!$C$4-1),12,1)) -> 0.1184 | E25: =MAX(OFFSET(NA_NW_Prop!$C$10,12*$A25,4*(PlotControl!$C$4-1),12,1)) -> 0.09085 | F25: =MAX(OFFSET(NA_NW_Prop!$D$10,12*$A25,4*(PlotControl!$C$4-1),12,1)) -> 0.098255 | G25: =MAX(OFFSET(NA_NW_Prop!$E$10,12*$A25,4*(PlotControl!$C$4-1),12,1)) -> 0.10324 | H25: =MAX(OFFSET(NA_W_Prop!$C$10,12*$A25,4*(PlotControl!$C$4-1),12,1)) -> 0.089532 | I25: =MAX(OFFSET(NA_W_Prop!$D$10,12*$A25,4*(PlotControl!$C$4-1),12,1)) -> 0.099876 | J25: =MAX(OFFSET(NA_W_Prop!$E$10,12*$A25,4*(PlotControl!$C$4-1),12,1)) -> 0.10719
A26: 21 | B26: =MAX(OFFSET(NA_N_Prop!$C$10,12*$A26,4*(PlotControl!$C$4-1),12,1)) -> 0.10027 | C26: =MAX(OFFSET(NA_N_Prop!$D$10,12*$A26,4*(PlotControl!$C$4-1),12,1)) -> 0.11082 | D26: =MAX(OFFSET(NA_N_Prop!$E$10,12*$A26,4*(PlotControl!$C$4-1),12,1)) -> 0.11835 | E26: =MAX(OFFSET(NA_NW_Prop!$C$10,12*$A26,4*(PlotControl!$C$4-1),12,1)) -> 0.090822 | F26: =MAX(OFFSET(NA_NW_Prop!$D$10,12*$A26,4*(PlotControl!$C$4-1),12,1)) -> 0.098201 | G26: =MAX(OFFSET(NA_NW_Prop!$E$10,12*$A26,4*(PlotControl!$C$4-1),12,1)) -> 0.10317 | H26: =MAX(OFFSET(NA_W_Prop!$C$10,12*$A26,4*(PlotControl!$C$4-1),12,1)) -> 0.089532 | I26: =MAX(OFFSET(NA_W_Prop!$D$10,12*$A26,4*(PlotControl!$C$4-1),12,1)) -> 0.099876 | J26: =MAX(OFFSET(NA_W_Prop!$E$10,12*$A26,4*(PlotControl!$C$4-1),12,1)) -> 0.10719
A27: 22 | B27: =MAX(OFFSET(NA_N_Prop!$C$10,12*$A27,4*(PlotControl!$C$4-1),12,1)) -> 0.10027 | C27: =MAX(OFFSET(NA_N_Prop!$D$10,12*$A27,4*(PlotControl!$C$4-1),12,1)) -> 0.11082 | D27: =MAX(OFFSET(NA_N_Prop!$E$10,12*$A27,4*(PlotControl!$C$4-1),12,1)) -> 0.1183 | E27: =MAX(OFFSET(NA_NW_Prop!$C$10,12*$A27,4*(PlotControl!$C$4-1),12,1)) -> 0.090786 | F27: =MAX(OFFSET(NA_NW_Prop!$D$10,12*$A27,4*(PlotControl!$C$4-1),12,1)) -> 0.098145 | G27: =MAX(OFFSET(NA_NW_Prop!$E$10,12*$A27,4*(PlotControl!$C$4-1),12,1)) -> 0.10314 | H27: =MAX(OFFSET(NA_W_Prop!$C$10,12*$A27,4*(PlotControl!$C$4-1),12,1)) -> 0.089532 | I27: =MAX(OFFSET(NA_W_Prop!$D$10,12*$A27,4*(PlotControl!$C$4-1),12,1)) -> 0.099876 | J27: =MAX(OFFSET(NA_W_Prop!$E$10,12*$A27,4*(PlotControl!$C$4-1),12,1)) -> 0.10719
A28: 23 | B28: =MAX(OFFSET(NA_N_Prop!$C$10,12*$A28,4*(PlotControl!$C$4-1),12,1)) -> 0.10027 | C28: =MAX(OFFSET(NA_N_Prop!$D$10,12*$A28,4*(PlotControl!$C$4-1),12,1)) -> 0.11081 | D28: =MAX(OFFSET(NA_N_Prop!$E$10,12*$A28,4*(PlotControl!$C$4-1),12,1)) -> 0.11827 | E28: =MAX(OFFSET(NA_NW_Prop!$C$10,12*$A28,4*(PlotControl!$C$4-1),12,1)) -> 0.090707 | F28: =MAX(OFFSET(NA_NW_Prop!$D$10,12*$A28,4*(PlotControl!$C$4-1),12,1)) -> 0.098031 | G28: =MAX(OFFSET(NA_NW_Prop!$E$10,12*$A28,4*(PlotControl!$C$4-1),12,1)) -> 0.10307 | H28: =MAX(OFFSET(NA_W_Prop!$C$10,12*$A28,4*(PlotControl!$C$4-1),12,1)) -> 0.089532 | I28: =MAX(OFFSET(NA_W_Prop!$D$10,12*$A28,4*(PlotControl!$C$4-1),12,1)) -> 0.099876 | J28: =MAX(OFFSET(NA_W_Prop!$E$10,12*$A28,4*(PlotControl!$C$4-1),12,1)) -> 0.10718
A29: 24 | B29: =MAX(OFFSET(NA_N_Prop!$C$10,12*$A29,4*(PlotControl!$C$4-1),12,1)) -> 0.10027 | C29: =MAX(OFFSET(NA_N_Prop!$D$10,12*$A29,4*(PlotControl!$C$4-1),12,1)) -> 0.11079 | D29: =MAX(OFFSET(NA_N_Prop!$E$10,12*$A29,4*(PlotControl!$C$4-1),12,1)) -> 0.11819 | E29: =MAX(OFFSET(NA_NW_Prop!$C$10,12*$A29,4*(PlotControl!$C$4-1),12,1)) -> 0.090702 | F29: =MAX(OFFSET(NA_NW_Prop!$D$10,12*$A29,4*(PlotControl!$C$4-1),12,1)) -> 0.097904 | G29: =MAX(OFFSET(NA_NW_Prop!$E$10,12*$A29,4*(PlotControl!$C$4-1),12,1)) -> 0.1029 | H29: =MAX(OFFSET(NA_W_Prop!$C$10,12*$A29,4*(PlotControl!$C$4-1),12,1)) -> 0.089532 | I29: =MAX(OFFSET(NA_W_Prop!$D$10,12*$A29,4*(PlotControl!$C$4-1),12,1)) -> 0.099876 | J29: =MAX(OFFSET(NA_W_Prop!$E$10,12*$A29,4*(PlotControl!$C$4-1),12,1)) -> 0.10717
A30: 25 | B30: =MAX(OFFSET(NA_N_Prop!$C$10,12*$A30,4*(PlotControl!$C$4-1),12,1)) -> 0.10027 | C30: =MAX(OFFSET(NA_N_Prop!$D$10,12*$A30,4*(PlotControl!$C$4-1),12,1)) -> 0.11071 | D30: =MAX(OFFSET(NA_N_Prop!$E$10,12*$A30,4*(PlotControl!$C$4-1),12,1)) -> 0.11815 | E30: =MAX(OFFSET(NA_NW_Prop!$C$10,12*$A30,4*(PlotControl!$C$4-1),12,1)) -> 0.090689 | F30: =MAX(OFFSET(NA_NW_Prop!$D$10,12*$A30,4*(PlotControl!$C$4-1),12,1)) -> 0.097767 | G30: =MAX(OFFSET(NA_NW_Prop!$E$10,12*$A30,4*(PlotControl!$C$4-1),12,1)) -> 0.10273 | H30: =MAX(OFFSET(NA_W_Prop!$C$10,12*$A30,4*(PlotControl!$C$4-1),12,1)) -> 0.089532 | I30: =MAX(OFFSET(NA_W_Prop!$D$10,12*$A30,4*(PlotControl!$C$4-1),12,1)) -> 0.099876 | J30: =MAX(OFFSET(NA_W_Prop!$E$10,12*$A30,4*(PlotControl!$C$4-1),12,1)) -> 0.10717
A31: 26 | B31: =MAX(OFFSET(NA_N_Prop!$C$10,12*$A31,4*(PlotControl!$C$4-1),12,1)) -> 0.10027 | C31: =MAX(OFFSET(NA_N_Prop!$D$10,12*$A31,4*(PlotControl!$C$4-1),12,1)) -> 0.11068 | D31: =MAX(OFFSET(NA_N_Prop!$E$10,12*$A31,4*(PlotControl!$C$4-1),12,1)) -> 0.11805 | E31: =MAX(OFFSET(NA_NW_Prop!$C$10,12*$A31,4*(PlotControl!$C$4-1),12,1)) -> 0.090602 | F31: =MAX(OFFSET(NA_NW_Prop!$D$10,12*$A31,4*(PlotControl!$C$4-1),12,1)) -> 0.097655 | G31: =MAX(OFFSET(NA_NW_Prop!$E$10,12*$A31,4*(PlotControl!$C$4-1),12,1)) -> 0.10261 | H31: =MAX(OFFSET(NA_W_Prop!$C$10,12*$A31,4*(PlotControl!$C$4-1),12,1)) -> 0.089532 | I31: =MAX(OFFSET(NA_W_Prop!$D$10,12*$A31,4*(PlotControl!$C$4-1),12,1)) -> 0.099876 | J31: =MAX(OFFSET(NA_W_Prop!$E$10,12*$A31,4*(PlotControl!$C$4-1),12,1)) -> 0.10709
A32: 27 | B32: =MAX(OFFSET(NA_N_Prop!$C$10,12*$A32,4*(PlotControl!$C$4-1),12,1)) -> 0.10027 | C32: =MAX(OFFSET(NA_N_Prop!$D$10,12*$A32,4*(PlotControl!$C$4-1),12,1)) -> 0.11058 | D32: =MAX(OFFSET(NA_N_Prop!$E$10,12*$A32,4*(PlotControl!$C$4-1),12,1)) -> 0.11801 | E32: =MAX(OFFSET(NA_NW_Prop!$C$10,12*$A32,4*(PlotControl!$C$4-1),12,1)) -> 0.090593 | F32: =MAX(OFFSET(NA_NW_Prop!$D$10,12*$A32,4*(PlotControl!$C$4-1),12,1)) -> 0.09751 | G32: =MAX(OFFSET(NA_NW_Prop!$E$10,12*$A32,4*(PlotControl!$C$4-1),12,1)) -> 0.1025 | H32: =MAX(OFFSET(NA_W_Prop!$C$10,12*$A32,4*(PlotControl!$C$4-1),12,1)) -> 0.089532 | I32: =MAX(OFFSET(NA_W_Prop!$D$10,12*$A32,4*(PlotControl!$C$4-1),12,1)) -> 0.099836 | J32: =MAX(OFFSET(NA_W_Prop!$E$10,12*$A32,4*(PlotControl!$C$4-1),12,1)) -> 0.10708
A33: 28 | B33: =MAX(OFFSET(NA_N_Prop!$C$10,12*$A33,4*(PlotControl!$C$4-1),12,1)) -> 0.10027 | C33: =MAX(OFFSET(NA_N_Prop!$D$10,12*$A33,4*(PlotControl!$C$4-1),12,1)) -> 0.1106 | D33: =MAX(OFFSET(NA_N_Prop!$E$10,12*$A33,4*(PlotControl!$C$4-1),12,1)) -> 0.11793 | E33: =MAX(OFFSET(NA_NW_Prop!$C$10,12*$A33,4*(PlotControl!$C$4-1),12,1)) -> 0.090374 | F33: =MAX(OFFSET(NA_NW_Prop!$D$10,12*$A33,4*(PlotControl!$C$4-1),12,1)) -> 0.097354 | G33: =MAX(OFFSET(NA_NW_Prop!$E$10,12*$A33,4*(PlotControl!$C$4-1),12,1)) -> 0.10231 | H33: =MAX(OFFSET(NA_W_Prop!$C$10,12*$A33,4*(PlotControl!$C$4-1),12,1)) -> 0.089532 | I33: =MAX(OFFSET(NA_W_Prop!$D$10,12*$A33,4*(PlotControl!$C$4-1),12,1)) -> 0.099836 | J33: =MAX(OFFSET(NA_W_Prop!$E$10,12*$A33,4*(PlotControl!$C$4-1),12,1)) -> 0.10708
A34: 29 | B34: =MAX(OFFSET(NA_N_Prop!$C$10,12*$A34,4*(PlotControl!$C$4-1),12,1)) -> 0.10027 | C34: =MAX(OFFSET(NA_N_Prop!$D$10,12*$A34,4*(PlotControl!$C$4-1),12,1)) -> 0.11055 | D34: =MAX(OFFSET(NA_N_Prop!$E$10,12*$A34,4*(PlotControl!$C$4-1),12,1)) -> 0.1179 | E34: =MAX(OFFSET(NA_NW_Prop!$C$10,12*$A34,4*(PlotControl!$C$4-1),12,1)) -> 0.09034 | F34: =MAX(OFFSET(NA_NW_Prop!$D$10,12*$A34,4*(PlotControl!$C$4-1),12,1)) -> 0.097195 | G34: =MAX(OFFSET(NA_NW_Prop!$E$10,12*$A34,4*(PlotControl!$C$4-1),12,1)) -> 0.10219 | H34: =MAX(OFFSET(NA_W_Prop!$C$10,12*$A34,4*(PlotControl!$C$4-1),12,1)) -> 0.089532 | I34: =MAX(OFFSET(NA_W_Prop!$D$10,12*$A34,4*(PlotControl!$C$4-1),12,1)) -> 0.099836 | J34: =MAX(OFFSET(NA_W_Prop!$E$10,12*$A34,4*(PlotControl!$C$4-1),12,1)) -> 0.10707
A35: 30 | B35: =MAX(OFFSET(NA_N_Prop!$C$10,12*$A35,4*(PlotControl!$C$4-1),12,1)) -> 0.10027 | C35: =MAX(OFFSET(NA_N_Prop!$D$10,12*$A35,4*(PlotControl!$C$4-1),12,1)) -> 0.11053 | D35: =MAX(OFFSET(NA_N_Prop!$E$10,12*$A35,4*(PlotControl!$C$4-1),12,1)) -> 0.11788 | E35: =MAX(OFFSET(NA_NW_Prop!$C$10,12*$A35,4*(PlotControl!$C$4-1),12,1)) -> 0.090273 | F35: =MAX(OFFSET(NA_NW_Prop!$D$10,12*$A35,4*(PlotControl!$C$4-1),12,1)) -> 0.097011 | G35: =MAX(OFFSET(NA_NW_Prop!$E$10,12*$A35,4*(PlotControl!$C$4-1),12,1)) -> 0.10216 | H35: =MAX(OFFSET(NA_W_Prop!$C$10,12*$A35,4*(PlotControl!$C$4-1),12,1)) -> 0.089532 | I35: =MAX(OFFSET(NA_W_Prop!$D$10,12*$A35,4*(PlotControl!$C$4-1),12,1)) -> 0.099836 | J35: =MAX(OFFSET(NA_W_Prop!$E$10,12*$A35,4*(PlotControl!$C$4-1),12,1)) -> 0.10707
A36: 31 | B36: =MAX(OFFSET(NA_N_Prop!$C$10,12*$A36,4*(PlotControl!$C$4-1),12,1)) -> 0.10027 | C36: =MAX(OFFSET(NA_N_Prop!$D$10,12*$A36,4*(PlotControl!$C$4-1),12,1)) -> 0.11048 | D36: =MAX(OFFSET(NA_N_Prop!$E$10,12*$A36,4*(PlotControl!$C$4-1),12,1)) -> 0.11783 | E36: =MAX(OFFSET(NA_NW_Prop!$C$10,12*$A36,4*(PlotControl!$C$4-1),12,1)) -> 0.090149 | F36: =MAX(OFFSET(NA_NW_Prop!$D$10,12*$A36,4*(PlotControl!$C$4-1),12,1)) -> 0.096928 | G36: =MAX(OFFSET(NA_NW_Prop!$E$10,12*$A36,4*(PlotControl!$C$4-1),12,1)) -> 0.10193 | H36: =MAX(OFFSET(NA_W_Prop!$C$10,12*$A36,4*(PlotControl!$C$4-1),12,1)) -> 0.089532 | I36: =MAX(OFFSET(NA_W_Prop!$D$10,12*$A36,4*(PlotControl!$C$4-1),12,1)) -> 0.099836 | J36: =MAX(OFFSET(NA_W_Prop!$E$10,12*$A36,4*(PlotControl!$C$4-1),12,1)) -> 0.10701
A37: 32 | B37: =MAX(OFFSET(NA_N_Prop!$C$10,12*$A37,4*(PlotControl!$C$4-1),12,1)) -> 0.10027 | C37: =MAX(OFFSET(NA_N_Prop!$D$10,12*$A37,4*(PlotControl!$C$4-1),12,1)) -> 0.11041 | D37: =MAX(OFFSET(NA_N_Prop!$E$10,12*$A37,4*(PlotControl!$C$4-1),12,1)) -> 0.11778 | E37: =MAX(OFFSET(NA_NW_Prop!$C$10,12*$A37,4*(PlotControl!$C$4-1),12,1)) -> 0.090042 | F37: =MAX(OFFSET(NA_NW_Prop!$D$10,12*$A37,4*(PlotControl!$C$4-1),12,1)) -> 0.09682 | G37: =MAX(OFFSET(NA_NW_Prop!$E$10,12*$A37,4*(PlotControl!$C$4-1),12,1)) -> 0.10176 | H37: =MAX(OFFSET(NA_W_Prop!$C$10,12*$A37,4*(PlotControl!$C$4-1),12,1)) -> 0.089532 | I37: =MAX(OFFSET(NA_W_Prop!$D$10,12*$A37,4*(PlotControl!$C$4-1),12,1)) -> 0.099836 | J37: =MAX(OFFSET(NA_W_Prop!$E$10,12*$A37,4*(PlotControl!$C$4-1),12,1)) -> 0.10698
A38: 33 | B38: =MAX(OFFSET(NA_N_Prop!$C$10,12*$A38,4*(PlotControl!$C$4-1),12,1)) -> 0.10026 | C38: =MAX(OFFSET(NA_N_Prop!$D$10,12*$A38,4*(PlotControl!$C$4-1),12,1)) -> 0.1103 | D38: =MAX(OFFSET(NA_N_Prop!$E$10,12*$A38,4*(PlotControl!$C$4-1),12,1)) -> 0.11775 | E38: =MAX(OFFSET(NA_NW_Prop!$C$10,12*$A38,4*(PlotControl!$C$4-1),12,1)) -> 0.089693 | F38: =MAX(OFFSET(NA_NW_Prop!$D$10,12*$A38,4*(PlotControl!$C$4-1),12,1)) -> 0.096755 | G38: =MAX(OFFSET(NA_NW_Prop!$E$10,12*$A38,4*(PlotControl!$C$4-1),12,1)) -> 0.10165 | H38: =MAX(OFFSET(NA_W_Prop!$C$10,12*$A38,4*(PlotControl!$C$4-1),12,1)) -> 0.089532 | I38: =MAX(OFFSET(NA_W_Prop!$D$10,12*$A38,4*(PlotControl!$C$4-1),12,1)) -> 0.099765 | J38: =MAX(OFFSET(NA_W_Prop!$E$10,12*$A38,4*(PlotControl!$C$4-1),12,1)) -> 0.10697
A39: 34 | B39: =MAX(OFFSET(NA_N_Prop!$C$10,12*$A39,4*(PlotControl!$C$4-1),12,1)) -> 0.10007 | C39: =MAX(OFFSET(NA_N_Prop!$D$10,12*$A39,4*(PlotControl!$C$4-1),12,1)) -> 0.11012 | D39: =MAX(OFFSET(NA_N_Prop!$E$10,12*$A39,4*(PlotControl!$C$4-1),12,1)) -> 0.11767 | E39: =MAX(OFFSET(NA_NW_Prop!$C$10,12*$A39,4*(PlotControl!$C$4-1),12,1)) -> 0.089385 | F39: =MAX(OFFSET(NA_NW_Prop!$D$10,12*$A39,4*(PlotControl!$C$4-1),12,1)) -> 0.096709 | G39: =MAX(OFFSET(NA_NW_Prop!$E$10,12*$A39,4*(PlotControl!$C$4-1),12,1)) -> 0.10145 | H39: =MAX(OFFSET(NA_W_Prop!$C$10,12*$A39,4*(PlotControl!$C$4-1),12,1)) -> 0.089532 | I39: =MAX(OFFSET(NA_W_Prop!$D$10,12*$A39,4*(PlotControl!$C$4-1),12,1)) -> 0.099757 | J39: =MAX(OFFSET(NA_W_Prop!$E$10,12*$A39,4*(PlotControl!$C$4-1),12,1)) -> 0.10695
A40: 35 | B40: =MAX(OFFSET(NA_N_Prop!$C$10,12*$A40,4*(PlotControl!$C$4-1),12,1)) -> 0.09978 | C40: =MAX(OFFSET(NA_N_Prop!$D$10,12*$A40,4*(PlotControl!$C$4-1),12,1)) -> 0.10991 | D40: =MAX(OFFSET(NA_N_Prop!$E$10,12*$A40,4*(PlotControl!$C$4-1),12,1)) -> 0.11765 | E40: =MAX(OFFSET(NA_NW_Prop!$C$10,12*$A40,4*(PlotControl!$C$4-1),12,1)) -> 0.089273 | F40: =MAX(OFFSET(NA_NW_Prop!$D$10,12*$A40,4*(PlotControl!$C$4-1),12,1)) -> 0.096512 | G40: =MAX(OFFSET(NA_NW_Prop!$E$10,12*$A40,4*(PlotControl!$C$4-1),12,1)) -> 0.1013 | H40: =MAX(OFFSET(NA_W_Prop!$C$10,12*$A40,4*(PlotControl!$C$4-1),12,1)) -> 0.089532 | I40: =MAX(OFFSET(NA_W_Prop!$D$10,12*$A40,4*(PlotControl!$C$4-1),12,1)) -> 0.099757 | J40: =MAX(OFFSET(NA_W_Prop!$E$10,12*$A40,4*(PlotControl!$C$4-1),12,1)) -> 0.10684
A41: 36 | B41: =MAX(OFFSET(NA_N_Prop!$C$10,12*$A41,4*(PlotControl!$C$4-1),12,1)) -> 0.099751 | C41: =MAX(OFFSET(NA_N_Prop!$D$10,12*$A41,4*(PlotControl!$C$4-1),12,1)) -> 0.10975 | D41: =MAX(OFFSET(NA_N_Prop!$E$10,12*$A41,4*(PlotControl!$C$4-1),12,1)) -> 0.11762 | E41: =MAX(OFFSET(NA_NW_Prop!$C$10,12*$A41,4*(PlotControl!$C$4-1),12,1)) -> 0.089086 | F41: =MAX(OFFSET(NA_NW_Prop!$D$10,12*$A41,4*(PlotControl!$C$4-1),12,1)) -> 0.096283 | G41: =MAX(OFFSET(NA_NW_Prop!$E$10,12*$A41,4*(PlotControl!$C$4-1),12,1)) -> 0.10128 | H41: =MAX(OFFSET(NA_W_Prop!$C$10,12*$A41,4*(PlotControl!$C$4-1),12,1)) -> 0.089532 | I41: =MAX(OFFSET(NA_W_Prop!$D$10,12*$A41,4*(PlotControl!$C$4-1),12,1)) -> 0.099658 | J41: =MAX(OFFSET(NA_W_Prop!$E$10,12*$A41,4*(PlotControl!$C$4-1),12,1)) -> 0.10672
A42: 37 | B42: =MAX(OFFSET(NA_N_Prop!$C$10,12*$A42,4*(PlotControl!$C$4-1),12,1)) -> 0.099752 | C42: =MAX(OFFSET(NA_N_Prop!$D$10,12*$A42,4*(PlotControl!$C$4-1),12,1)) -> 0.10964 | D42: =MAX(OFFSET(NA_N_Prop!$E$10,12*$A42,4*(PlotControl!$C$4-1),12,1)) -> 0.11752 | E42: =MAX(OFFSET(NA_NW_Prop!$C$10,12*$A42,4*(PlotControl!$C$4-1),12,1)) -> 0.088804 | F42: =MAX(OFFSET(NA_NW_Prop!$D$10,12*$A42,4*(PlotControl!$C$4-1),12,1)) -> 0.096151 | G42: =MAX(OFFSET(NA_NW_Prop!$E$10,12*$A42,4*(PlotControl!$C$4-1),12,1)) -> 0.10129 | H42: =MAX(OFFSET(NA_W_Prop!$C$10,12*$A42,4*(PlotControl!$C$4-1),12,1)) -> 0.089398 | I42: =MAX(OFFSET(NA_W_Prop!$D$10,12*$A42,4*(PlotControl!$C$4-1),12,1)) -> 0.099632 | J42: =MAX(OFFSET(NA_W_Prop!$E$10,12*$A42,4*(PlotControl!$C$4-1),12,1)) -> 0.10666
A43: 38 | B43: =MAX(OFFSET(NA_N_Prop!$C$10,12*$A43,4*(PlotControl!$C$4-1),12,1)) -> 0.099485 | C43: =MAX(OFFSET(NA_N_Prop!$D$10,12*$A43,4*(PlotControl!$C$4-1),12,1)) -> 0.10949 | D43: =MAX(OFFSET(NA_N_Prop!$E$10,12*$A43,4*(PlotControl!$C$4-1),12,1)) -> 0.11756 | E43: =MAX(OFFSET(NA_NW_Prop!$C$10,12*$A43,4*(PlotControl!$C$4-1),12,1)) -> 0.088321 | F43: =MAX(OFFSET(NA_NW_Prop!$D$10,12*$A43,4*(PlotControl!$C$4-1),12,1)) -> 0.096005 | G43: =MAX(OFFSET(NA_NW_Prop!$E$10,12*$A43,4*(PlotControl!$C$4-1),12,1)) -> 0.10134 | H43: =MAX(OFFSET(NA_W_Prop!$C$10,12*$A43,4*(PlotControl!$C$4-1),12,1)) -> 0.089398 | I43: =MAX(OFFSET(NA_W_Prop!$D$10,12*$A43,4*(PlotControl!$C$4-1),12,1)) -> 0.099471 | J43: =MAX(OFFSET(NA_W_Prop!$E$10,12*$A43,4*(PlotControl!$C$4-1),12,1)) -> 0.10659
A44: 39 | B44: =MAX(OFFSET(NA_N_Prop!$C$10,12*$A44,4*(PlotControl!$C$4-1),12,1)) -> 0.099332 | C44: =MAX(OFFSET(NA_N_Prop!$D$10,12*$A44,4*(PlotControl!$C$4-1),12,1)) -> 0.10939 | D44: =MAX(OFFSET(NA_N_Prop!$E$10,12*$A44,4*(PlotControl!$C$4-1),12,1)) -> 0.11755 | E44: =MAX(OFFSET(NA_NW_Prop!$C$10,12*$A44,4*(PlotControl!$C$4-1),12,1)) -> 0.087875 | F44: =MAX(OFFSET(NA_NW_Prop!$D$10,12*$A44,4*(PlotControl!$C$4-1),12,1)) -> 0.095759 | G44: =MAX(OFFSET(NA_NW_Prop!$E$10,12*$A44,4*(PlotControl!$C$4-1),12,1)) -> 0.10123 | H44: =MAX(OFFSET(NA_W_Prop!$C$10,12*$A44,4*(PlotControl!$C$4-1),12,1)) -> 0.089305 | I44: =MAX(OFFSET(NA_W_Prop!$D$10,12*$A44,4*(PlotControl!$C$4-1),12,1)) -> 0.099371 | J44: =MAX(OFFSET(NA_W_Prop!$E$10,12*$A44,4*(PlotControl!$C$4-1),12,1)) -> 0.10652
A45: 40 | B45: =MAX(OFFSET(NA_N_Prop!$C$10,12*$A45,4*(PlotControl!$C$4-1),12,1)) -> 0.099332 | C45: =MAX(OFFSET(NA_N_Prop!$D$10,12*$A45,4*(PlotControl!$C$4-1),12,1)) -> 0.10927 | D45: =MAX(OFFSET(NA_N_Prop!$E$10,12*$A45,4*(PlotControl!$C$4-1),12,1)) -> 0.11754 | E45: =MAX(OFFSET(NA_NW_Prop!$C$10,12*$A45,4*(PlotControl!$C$4-1),12,1)) -> 0.087496 | F45: =MAX(OFFSET(NA_NW_Prop!$D$10,12*$A45,4*(PlotControl!$C$4-1),12,1)) -> 0.095602 | G45: =MAX(OFFSET(NA_NW_Prop!$E$10,12*$A45,4*(PlotControl!$C$4-1),12,1)) -> 0.10107 | H45: =MAX(OFFSET(NA_W_Prop!$C$10,12*$A45,4*(PlotControl!$C$4-1),12,1)) -> 0.089305 | I45: =MAX(OFFSET(NA_W_Prop!$D$10,12*$A45,4*(PlotControl!$C$4-1),12,1)) -> 0.099288 | J45: =MAX(OFFSET(NA_W_Prop!$E$10,12*$A45,4*(PlotControl!$C$4-1),12,1)) -> 0.10645
A46: 41 | B46: =MAX(OFFSET(NA_N_Prop!$C$10,12*$A46,4*(PlotControl!$C$4-1),12,1)) -> 0.099328 | C46: =MAX(OFFSET(NA_N_Prop!$D$10,12*$A46,4*(PlotControl!$C$4-1),12,1)) -> 0.10922 | D46: =MAX(OFFSET(NA_N_Prop!$E$10,12*$A46,4*(PlotControl!$C$4-1),12,1)) -> 0.11751 | E46: =MAX(OFFSET(NA_NW_Prop!$C$10,12*$A46,4*(PlotControl!$C$4-1),12,1)) -> 0.087201 | F46: =MAX(OFFSET(NA_NW_Prop!$D$10,12*$A46,4*(PlotControl!$C$4-1),12,1)) -> 0.095449 | G46: =MAX(OFFSET(NA_NW_Prop!$E$10,12*$A46,4*(PlotControl!$C$4-1),12,1)) -> 0.10159 | H46: =MAX(OFFSET(NA_W_Prop!$C$10,12*$A46,4*(PlotControl!$C$4-1),12,1)) -> 0.089262 | I46: =MAX(OFFSET(NA_W_Prop!$D$10,12*$A46,4*(PlotControl!$C$4-1),12,1)) -> 0.09918 | J46: =MAX(OFFSET(NA_W_Prop!$E$10,12*$A46,4*(PlotControl!$C$4-1),12,1)) -> 0.10633
A47: 42 | B47: =MAX(OFFSET(NA_N_Prop!$C$10,12*$A47,4*(PlotControl!$C$4-1),12,1)) -> 0.099071 | C47: =MAX(OFFSET(NA_N_Prop!$D$10,12*$A47,4*(PlotControl!$C$4-1),12,1)) -> 0.1092 | D47: =MAX(OFFSET(NA_N_Prop!$E$10,12*$A47,4*(PlotControl!$C$4-1),12,1)) -> 0.11748 | E47: =MAX(OFFSET(NA_NW_Prop!$C$10,12*$A47,4*(PlotControl!$C$4-1),12,1)) -> 0.086764 | F47: =MAX(OFFSET(NA_NW_Prop!$D$10,12*$A47,4*(PlotControl!$C$4-1),12,1)) -> 0.095114 | G47: =MAX(OFFSET(NA_NW_Prop!$E$10,12*$A47,4*(PlotControl!$C$4-1),12,1)) -> 0.10194 | H47: =MAX(OFFSET(NA_W_Prop!$C$10,12*$A47,4*(PlotControl!$C$4-1),12,1)) -> 0.089262 | I47: =MAX(OFFSET(NA_W_Prop!$D$10,12*$A47,4*(PlotControl!$C$4-1),12,1)) -> 0.099142 | J47: =MAX(OFFSET(NA_W_Prop!$E$10,12*$A47,4*(PlotControl!$C$4-1),12,1)) -> 0.10642
A48: 43 | B48: =MAX(OFFSET(NA_N_Prop!$C$10,12*$A48,4*(PlotControl!$C$4-1),12,1)) -> 0.099033 | C48: =MAX(OFFSET(NA_N_Prop!$D$10,12*$A48,4*(PlotControl!$C$4-1),12,1)) -> 0.10917 | D48: =MAX(OFFSET(NA_N_Prop!$E$10,12*$A48,4*(PlotControl!$C$4-1),12,1)) -> 0.11762 | E48: =MAX(OFFSET(NA_NW_Prop!$C$10,12*$A48,4*(PlotControl!$C$4-1),12,1)) -> 0.086538 | F48: =MAX(OFFSET(NA_NW_Prop!$D$10,12*$A48,4*(PlotControl!$C$4-1),12,1)) -> 0.094809 | G48: =MAX(OFFSET(NA_NW_Prop!$E$10,12*$A48,4*(PlotControl!$C$4-1),12,1)) -> 0.10206 | H48: =MAX(OFFSET(NA_W_Prop!$C$10,12*$A48,4*(PlotControl!$C$4-1),12,1)) -> 0.089261 | I48: =MAX(OFFSET(NA_W_Prop!$D$10,12*$A48,4*(PlotControl!$C$4-1),12,1)) -> 0.098959 | J48: =MAX(OFFSET(NA_W_Prop!$E$10,12*$A48,4*(PlotControl!$C$4-1),12,1)) -> 0.1064
A49: 44 | B49: =MAX(OFFSET(NA_N_Prop!$C$10,12*$A49,4*(PlotControl!$C$4-1),12,1)) -> 0.098955 | C49: =MAX(OFFSET(NA_N_Prop!$D$10,12*$A49,4*(PlotControl!$C$4-1),12,1)) -> 0.10907 | D49: =MAX(OFFSET(NA_N_Prop!$E$10,12*$A49,4*(PlotControl!$C$4-1),12,1)) -> 0.11759 | E49: =MAX(OFFSET(NA_NW_Prop!$C$10,12*$A49,4*(PlotControl!$C$4-1),12,1)) -> 0.085922 | F49: =MAX(OFFSET(NA_NW_Prop!$D$10,12*$A49,4*(PlotControl!$C$4-1),12,1)) -> 0.094596 | G49: =MAX(OFFSET(NA_NW_Prop!$E$10,12*$A49,4*(PlotControl!$C$4-1),12,1)) -> 0.10235 | H49: =MAX(OFFSET(NA_W_Prop!$C$10,12*$A49,4*(PlotControl!$C$4-1),12,1)) -> 0.089163 | I49: =MAX(OFFSET(NA_W_Prop!$D$10,12*$A49,4*(PlotControl!$C$4-1),12,1)) -> 0.09881 | J49: =MAX(OFFSET(NA_W_Prop!$E$10,12*$A49,4*(PlotControl!$C$4-1),12,1)) -> 0.10635
A50: 45 | B50: =MAX(OFFSET(NA_N_Prop!$C$10,12*$A50,4*(PlotControl!$C$4-1),12,1)) -> 0.098739 | C50: =MAX(OFFSET(NA_N_Prop!$D$10,12*$A50,4*(PlotControl!$C$4-1),12,1)) -> 0.10885 | D50: =MAX(OFFSET(NA_N_Prop!$E$10,12*$A50,4*(PlotControl!$C$4-1),12,1)) -> 0.11791 | E50: =MAX(OFFSET(NA_NW_Prop!$C$10,12*$A50,4*(PlotControl!$C$4-1),12,1)) -> 0.084989 | F50: =MAX(OFFSET(NA_NW_Prop!$D$10,12*$A50,4*(PlotControl!$C$4-1),12,1)) -> 0.094249 | G50: =MAX(OFFSET(NA_NW_Prop!$E$10,12*$A50,4*(PlotControl!$C$4-1),12,1)) -> 0.10308 | H50: =MAX(OFFSET(NA_W_Prop!$C$10,12*$A50,4*(PlotControl!$C$4-1),12,1)) -> 0.089093 | I50: =MAX(OFFSET(NA_W_Prop!$D$10,12*$A50,4*(PlotControl!$C$4-1),12,1)) -> 0.098695 | J50: =MAX(OFFSET(NA_W_Prop!$E$10,12*$A50,4*(PlotControl!$C$4-1),12,1)) -> 0.10628
A51: 46 | B51: =MAX(OFFSET(NA_N_Prop!$C$10,12*$A51,4*(PlotControl!$C$4-1),12,1)) -> 0.098545 | C51: =MAX(OFFSET(NA_N_Prop!$D$10,12*$A51,4*(PlotControl!$C$4-1),12,1)) -> 0.10865 | D51: =MAX(OFFSET(NA_N_Prop!$E$10,12*$A51,4*(PlotControl!$C$4-1),12,1)) -> 0.11803 | E51: =MAX(OFFSET(NA_NW_Prop!$C$10,12*$A51,4*(PlotControl!$C$4-1),12,1)) -> 0.084245 | F51: =MAX(OFFSET(NA_NW_Prop!$D$10,12*$A51,4*(PlotControl!$C$4-1),12,1)) -> 0.094111 | G51: =MAX(OFFSET(NA_NW_Prop!$E$10,12*$A51,4*(PlotControl!$C$4-1),12,1)) -> 0.10384 | H51: =MAX(OFFSET(NA_W_Prop!$C$10,12*$A51,4*(PlotControl!$C$4-1),12,1)) -> 0.089075 | I51: =MAX(OFFSET(NA_W_Prop!$D$10,12*$A51,4*(PlotControl!$C$4-1),12,1)) -> 0.098655 | J51: =MAX(OFFSET(NA_W_Prop!$E$10,12*$A51,4*(PlotControl!$C$4-1),12,1)) -> 0.1061
A52: 47 | B52: =MAX(OFFSET(NA_N_Prop!$C$10,12*$A52,4*(PlotControl!$C$4-1),12,1)) -> 0.098228 | C52: =MAX(OFFSET(NA_N_Prop!$D$10,12*$A52,4*(PlotControl!$C$4-1),12,1)) -> 0.10848 | D52: =MAX(OFFSET(NA_N_Prop!$E$10,12*$A52,4*(PlotControl!$C$4-1),12,1)) -> 0.11802 | E52: =MAX(OFFSET(NA_NW_Prop!$C$10,12*$A52,4*(PlotControl!$C$4-1),12,1)) -> 0.083492 | F52: =MAX(OFFSET(NA_NW_Prop!$D$10,12*$A52,4*(PlotControl!$C$4-1),12,1)) -> 0.093862 | G52: =MAX(OFFSET(NA_NW_Prop!$E$10,12*$A52,4*(PlotControl!$C$4-1),12,1)) -> 0.10433 | H52: =MAX(OFFSET(NA_W_Prop!$C$10,12*$A52,4*(PlotControl!$C$4-1),12,1)) -> 0.088914 | I52: =MAX(OFFSET(NA_W_Prop!$D$10,12*$A52,4*(PlotControl!$C$4-1),12,1)) -> 0.098576 | J52: =MAX(OFFSET(NA_W_Prop!$E$10,12*$A52,4*(PlotControl!$C$4-1),12,1)) -> 0.1061
A53: 48 | B53: =MAX(OFFSET(NA_N_Prop!$C$10,12*$A53,4*(PlotControl!$C$4-1),12,1)) -> 0.097835 | C53: =MAX(OFFSET(NA_N_Prop!$D$10,12*$A53,4*(PlotControl!$C$4-1),12,1)) -> 0.10824 | D53: =MAX(OFFSET(NA_N_Prop!$E$10,12*$A53,4*(PlotControl!$C$4-1),12,1)) -> 0.11859 | E53: =MAX(OFFSET(NA_NW_Prop!$C$10,12*$A53,4*(PlotControl!$C$4-1),12,1)) -> 0.082529 | F53: =MAX(OFFSET(NA_NW_Prop!$D$10,12*$A53,4*(PlotControl!$C$4-1),12,1)) -> 0.093742 | G53: =MAX(OFFSET(NA_NW_Prop!$E$10,12*$A53,4*(PlotControl!$C$4-1),12,1)) -> 0.10578 | H53: =MAX(OFFSET(NA_W_Prop!$C$10,12*$A53,4*(PlotControl!$C$4-1),12,1)) -> 0.08879 | I53: =MAX(OFFSET(NA_W_Prop!$D$10,12*$A53,4*(PlotControl!$C$4-1),12,1)) -> 0.098523 | J53: =MAX(OFFSET(NA_W_Prop!$E$10,12*$A53,4*(PlotControl!$C$4-1),12,1)) -> 0.10609
A54: 49 | B54: =MAX(OFFSET(NA_N_Prop!$C$10,12*$A54,4*(PlotControl!$C$4-1),12,1)) -> 0.097685 | C54: =MAX(OFFSET(NA_N_Prop!$D$10,12*$A54,4*(PlotControl!$C$4-1),12,1)) -> 0.10805 | D54: =MAX(OFFSET(NA_N_Prop!$E$10,12*$A54,4*(PlotControl!$C$4-1),12,1)) -> 0.11908 | E54: =MAX(OFFSET(NA_NW_Prop!$C$10,12*$A54,4*(PlotControl!$C$4-1),12,1)) -> 0.081579 | F54: =MAX(OFFSET(NA_NW_Prop!$D$10,12*$A54,4*(PlotControl!$C$4-1),12,1)) -> 0.093469 | G54: =MAX(OFFSET(NA_NW_Prop!$E$10,12*$A54,4*(PlotControl!$C$4-1),12,1)) -> 0.10765 | H54: =MAX(OFFSET(NA_W_Prop!$C$10,12*$A54,4*(PlotControl!$C$4-1),12,1)) -> 0.088628 | I54: =MAX(OFFSET(NA_W_Prop!$D$10,12*$A54,4*(PlotControl!$C$4-1),12,1)) -> 0.098444 | J54: =MAX(OFFSET(NA_W_Prop!$E$10,12*$A54,4*(PlotControl!$C$4-1),12,1)) -> 0.10632
A55: 50 | B55: =MAX(OFFSET(NA_N_Prop!$C$10,12*$A55,4*(PlotControl!$C$4-1),12,1)) -> 0.097582 | C55: =MAX(OFFSET(NA_N_Prop!$D$10,12*$A55,4*(PlotControl!$C$4-1),12,1)) -> 0.10783 | D55: =MAX(OFFSET(NA_N_Prop!$E$10,12*$A55,4*(PlotControl!$C$4-1),12,1)) -> 0.11953 | E55: =MAX(OFFSET(NA_NW_Prop!$C$10,12*$A55,4*(PlotControl!$C$4-1),12,1)) -> 0.080695 | F55: =MAX(OFFSET(NA_NW_Prop!$D$10,12*$A55,4*(PlotControl!$C$4-1),12,1)) -> 0.093255 | G55: =MAX(OFFSET(NA_NW_Prop!$E$10,12*$A55,4*(PlotControl!$C$4-1),12,1)) -> 0.10858 | H55: =MAX(OFFSET(NA_W_Prop!$C$10,12*$A55,4*(PlotControl!$C$4-1),12,1)) -> 0.088354 | I55: =MAX(OFFSET(NA_W_Prop!$D$10,12*$A55,4*(PlotControl!$C$4-1),12,1)) -> 0.098247 | J55: =MAX(OFFSET(NA_W_Prop!$E$10,12*$A55,4*(PlotControl!$C$4-1),12,1)) -> 0.10635
A56: 51 | B56: =MAX(OFFSET(NA_N_Prop!$C$10,12*$A56,4*(PlotControl!$C$4-1),12,1)) -> 0.097499 | C56: =MAX(OFFSET(NA_N_Prop!$D$10,12*$A56,4*(PlotControl!$C$4-1),12,1)) -> 0.10776 | D56: =MAX(OFFSET(NA_N_Prop!$E$10,12*$A56,4*(PlotControl!$C$4-1),12,1)) -> 0.12002 | E56: =MAX(OFFSET(NA_NW_Prop!$C$10,12*$A56,4*(PlotControl!$C$4-1),12,1)) -> 0.079638 | F56: =MAX(OFFSET(NA_NW_Prop!$D$10,12*$A56,4*(PlotControl!$C$4-1),12,1)) -> 0.09311 | G56: =MAX(OFFSET(NA_NW_Prop!$E$10,12*$A56,4*(PlotControl!$C$4-1),12,1)) -> 0.11011 | H56: =MAX(OFFSET(NA_W_Prop!$C$10,12*$A56,4*(PlotControl!$C$4-1),12,1)) -> 0.088181 | I56: =MAX(OFFSET(NA_W_Prop!$D$10,12*$A56,4*(PlotControl!$C$4-1),12,1)) -> 0.098093 | J56: =MAX(OFFSET(NA_W_Prop!$E$10,12*$A56,4*(PlotControl!$C$4-1),12,1)) -> 0.10627
A57: 52 | B57: =MAX(OFFSET(NA_N_Prop!$C$10,12*$A57,4*(PlotControl!$C$4-1),12,1)) -> 0.097433 | C57: =MAX(OFFSET(NA_N_Prop!$D$10,12*$A57,4*(PlotControl!$C$4-1),12,1)) -> 0.10768 | D57: =MAX(OFFSET(NA_N_Prop!$E$10,12*$A57,4*(PlotControl!$C$4-1),12,1)) -> 0.12079 | E57: =MAX(OFFSET(NA_NW_Prop!$C$10,12*$A57,4*(PlotControl!$C$4-1),12,1)) -> 0.078667 | F57: =MAX(OFFSET(NA_NW_Prop!$D$10,12*$A57,4*(PlotControl!$C$4-1),12,1)) -> 0.092854 | G57: =MAX(OFFSET(NA_NW_Prop!$E$10,12*$A57,4*(PlotControl!$C$4-1),12,1)) -> 0.11097 | H57: =MAX(OFFSET(NA_W_Prop!$C$10,12*$A57,4*(PlotControl!$C$4-1),12,1)) -> 0.087927 | I57: =MAX(OFFSET(NA_W_Prop!$D$10,12*$A57,4*(PlotControl!$C$4-1),12,1)) -> 0.097967 | J57: =MAX(OFFSET(NA_W_Prop!$E$10,12*$A57,4*(PlotControl!$C$4-1),12,1)) -> 0.1064
A58: 53 | B58: =MAX(OFFSET(NA_N_Prop!$C$10,12*$A58,4*(PlotControl!$C$4-1),12,1)) -> 0.097321 | C58: =MAX(OFFSET(NA_N_Prop!$D$10,12*$A58,4*(PlotControl!$C$4-1),12,1)) -> 0.10753 | D58: =MAX(OFFSET(NA_N_Prop!$E$10,12*$A58,4*(PlotControl!$C$4-1),12,1)) -> 0.12126 | E58: =MAX(OFFSET(NA_NW_Prop!$C$10,12*$A58,4*(PlotControl!$C$4-1),12,1)) -> 0.077457 | F58: =MAX(OFFSET(NA_NW_Prop!$D$10,12*$A58,4*(PlotControl!$C$4-1),12,1)) -> 0.092532 | G58: =MAX(OFFSET(NA_NW_Prop!$E$10,12*$A58,4*(PlotControl!$C$4-1),12,1)) -> 0.1121 | H58: =MAX(OFFSET(NA_W_Prop!$C$10,12*$A58,4*(PlotControl!$C$4-1),12,1)) -> 0.087926 | I58: =MAX(OFFSET(NA_W_Prop!$D$10,12*$A58,4*(PlotControl!$C$4-1),12,1)) -> 0.097928 | J58: =MAX(OFFSET(NA_W_Prop!$E$10,12*$A58,4*(PlotControl!$C$4-1),12,1)) -> 0.10635
A59: 54 | B59: =MAX(OFFSET(NA_N_Prop!$C$10,12*$A59,4*(PlotControl!$C$4-1),12,1)) -> 0.097107 | C59: =MAX(OFFSET(NA_N_Prop!$D$10,12*$A59,4*(PlotControl!$C$4-1),12,1)) -> 0.10737 | D59: =MAX(OFFSET(NA_N_Prop!$E$10,12*$A59,4*(PlotControl!$C$4-1),12,1)) -> 0.12188 | E59: =MAX(OFFSET(NA_NW_Prop!$C$10,12*$A59,4*(PlotControl!$C$4-1),12,1)) -> 0.076265 | F59: =MAX(OFFSET(NA_NW_Prop!$D$10,12*$A59,4*(PlotControl!$C$4-1),12,1)) -> 0.092249 | G59: =MAX(OFFSET(NA_NW_Prop!$E$10,12*$A59,4*(PlotControl!$C$4-1),12,1)) -> 0.11363 | H59: =MAX(OFFSET(NA_W_Prop!$C$10,12*$A59,4*(PlotControl!$C$4-1),12,1)) -> 0.087649 | I59: =MAX(OFFSET(NA_W_Prop!$D$10,12*$A59,4*(PlotControl!$C$4-1),12,1)) -> 0.097861 | J59: =MAX(OFFSET(NA_W_Prop!$E$10,12*$A59,4*(PlotControl!$C$4-1),12,1)) -> 0.10625
A60: 55 | B60: =MAX(OFFSET(NA_N_Prop!$C$10,12*$A60,4*(PlotControl!$C$4-1),12,1)) -> 0.096888 | C60: =MAX(OFFSET(NA_N_Prop!$D$10,12*$A60,4*(PlotControl!$C$4-1),12,1)) -> 0.1072 | D60: =MAX(OFFSET(NA_N_Prop!$E$10,12*$A60,4*(PlotControl!$C$4-1),12,1)) -> 0.12248 | E60: =MAX(OFFSET(NA_NW_Prop!$C$10,12*$A60,4*(PlotControl!$C$4-1),12,1)) -> 0.075415 | F60: =MAX(OFFSET(NA_NW_Prop!$D$10,12*$A60,4*(PlotControl!$C$4-1),12,1)) -> 0.09195 | G60: =MAX(OFFSET(NA_NW_Prop!$E$10,12*$A60,4*(PlotControl!$C$4-1),12,1)) -> 0.11495 | H60: =MAX(OFFSET(NA_W_Prop!$C$10,12*$A60,4*(PlotControl!$C$4-1),12,1)) -> 0.087317 | I60: =MAX(OFFSET(NA_W_Prop!$D$10,12*$A60,4*(PlotControl!$C$4-1),12,1)) -> 0.097748 | J60: =MAX(OFFSET(NA_W_Prop!$E$10,12*$A60,4*(PlotControl!$C$4-1),12,1)) -> 0.10613
A61: 56 | B61: =MAX(OFFSET(NA_N_Prop!$C$10,12*$A61,4*(PlotControl!$C$4-1),12,1)) -> 0.096651 | C61: =MAX(OFFSET(NA_N_Prop!$D$10,12*$A61,4*(PlotControl!$C$4-1),12,1)) -> 0.10695 | D61: =MAX(OFFSET(NA_N_Prop!$E$10,12*$A61,4*(PlotControl!$C$4-1),12,1)) -> 0.12287 | E61: =MAX(OFFSET(NA_NW_Prop!$C$10,12*$A61,4*(PlotControl!$C$4-1),12,1)) -> 0.074406 | F61: =MAX(OFFSET(NA_NW_Prop!$D$10,12*$A61,4*(PlotControl!$C$4-1),12,1)) -> 0.091675 | G61: =MAX(OFFSET(NA_NW_Prop!$E$10,12*$A61,4*(PlotControl!$C$4-1),12,1)) -> 0.11625 | H61: =MAX(OFFSET(NA_W_Prop!$C$10,12*$A61,4*(PlotControl!$C$4-1),12,1)) -> 0.087127 | I61: =MAX(OFFSET(NA_W_Prop!$D$10,12*$A61,4*(PlotControl!$C$4-1),12,1)) -> 0.097632 | J61: =MAX(OFFSET(NA_W_Prop!$E$10,12*$A61,4*(PlotControl!$C$4-1),12,1)) -> 0.10609
A62: 57 | B62: =MAX(OFFSET(NA_N_Prop!$C$10,12*$A62,4*(PlotControl!$C$4-1),12,1)) -> 0.096305 | C62: =MAX(OFFSET(NA_N_Prop!$D$10,12*$A62,4*(PlotControl!$C$4-1),12,1)) -> 0.10682 | D62: =MAX(OFFSET(NA_N_Prop!$E$10,12*$A62,4*(PlotControl!$C$4-1),12,1)) -> 0.12301 | E62: =MAX(OFFSET(NA_NW_Prop!$C$10,12*$A62,4*(PlotControl!$C$4-1),12,1)) -> 0.073509 | F62: =MAX(OFFSET(NA_NW_Prop!$D$10,12*$A62,4*(PlotControl!$C$4-1),12,1)) -> 0.091284 | G62: =MAX(OFFSET(NA_NW_Prop!$E$10,12*$A62,4*(PlotControl!$C$4-1),12,1)) -> 0.11783 | H62: =MAX(OFFSET(NA_W_Prop!$C$10,12*$A62,4*(PlotControl!$C$4-1),12,1)) -> 0.086969 | I62: =MAX(OFFSET(NA_W_Prop!$D$10,12*$A62,4*(PlotControl!$C$4-1),12,1)) -> 0.097554 | J62: =MAX(OFFSET(NA_W_Prop!$E$10,12*$A62,4*(PlotControl!$C$4-1),12,1)) -> 0.10609
A63: 58 | B63: =MAX(OFFSET(NA_N_Prop!$C$10,12*$A63,4*(PlotControl!$C$4-1),12,1)) -> 0.09607 | C63: =MAX(OFFSET(NA_N_Prop!$D$10,12*$A63,4*(PlotControl!$C$4-1),12,1)) -> 0.10671 | D63: =MAX(OFFSET(NA_N_Prop!$E$10,12*$A63,4*(PlotControl!$C$4-1),12,1)) -> 0.12331 | E63: =MAX(OFFSET(NA_NW_Prop!$C$10,12*$A63,4*(PlotControl!$C$4-1),12,1)) -> 0.072596 | F63: =MAX(OFFSET(NA_NW_Prop!$D$10,12*$A63,4*(PlotControl!$C$4-1),12,1)) -> 0.090857 | G63: =MAX(OFFSET(NA_NW_Prop!$E$10,12*$A63,4*(PlotControl!$C$4-1),12,1)) -> 0.11939 | H63: =MAX(OFFSET(NA_W_Prop!$C$10,12*$A63,4*(PlotControl!$C$4-1),12,1)) -> 0.086865 | I63: =MAX(OFFSET(NA_W_Prop!$D$10,12*$A63,4*(PlotControl!$C$4-1),12,1)) -> 0.097586 | J63: =MAX(OFFSET(NA_W_Prop!$E$10,12*$A63,4*(PlotControl!$C$4-1),12,1)) -> 0.10605
A64: 59 | B64: =MAX(OFFSET(NA_N_Prop!$C$10,12*$A64,4*(PlotControl!$C$4-1),12,1)) -> 0.09588 | C64: =MAX(OFFSET(NA_N_Prop!$D$10,12*$A64,4*(PlotControl!$C$4-1),12,1)) -> 0.10642 | D64: =MAX(OFFSET(NA_N_Prop!$E$10,12*$A64,4*(PlotControl!$C$4-1),12,1)) -> 0.1241 | E64: =MAX(OFFSET(NA_NW_Prop!$C$10,12*$A64,4*(PlotControl!$C$4-1),12,1)) -> 0.071606 | F64: =MAX(OFFSET(NA_NW_Prop!$D$10,12*$A64,4*(PlotControl!$C$4-1),12,1)) -> 0.090572 | G64: =MAX(OFFSET(NA_NW_Prop!$E$10,12*$A64,4*(PlotControl!$C$4-1),12,1)) -> 0.12115 | H64: =MAX(OFFSET(NA_W_Prop!$C$10,12*$A64,4*(PlotControl!$C$4-1),12,1)) -> 0.086588 | I64: =MAX(OFFSET(NA_W_Prop!$D$10,12*$A64,4*(PlotControl!$C$4-1),12,1)) -> 0.097472 | J64: =MAX(OFFSET(NA_W_Prop!$E$10,12*$A64,4*(PlotControl!$C$4-1),12,1)) -> 0.10615
A65: 60 | B65: =MAX(OFFSET(NA_N_Prop!$C$10,12*$A65,4*(PlotControl!$C$4-1),12,1)) -> 0.09561 | C65: =MAX(OFFSET(NA_N_Prop!$D$10,12*$A65,4*(PlotControl!$C$4-1),12,1)) -> 0.10622 | D65: =MAX(OFFSET(NA_N_Prop!$E$10,12*$A65,4*(PlotControl!$C$4-1),12,1)) -> 0.1245 | E65: =MAX(OFFSET(NA_NW_Prop!$C$10,12*$A65,4*(PlotControl!$C$4-1),12,1)) -> 0.070662 | F65: =MAX(OFFSET(NA_NW_Prop!$D$10,12*$A65,4*(PlotControl!$C$4-1),12,1)) -> 0.090202 | G65: =MAX(OFFSET(NA_NW_Prop!$E$10,12*$A65,4*(PlotControl!$C$4-1),12,1)) -> 0.12325 | H65: =MAX(OFFSET(NA_W_Prop!$C$10,12*$A65,4*(PlotControl!$C$4-1),12,1)) -> 0.086053 | I65: =MAX(OFFSET(NA_W_Prop!$D$10,12*$A65,4*(PlotControl!$C$4-1),12,1)) -> 0.097285 | J65: =MAX(OFFSET(NA_W_Prop!$E$10,12*$A65,4*(PlotControl!$C$4-1),12,1)) -> 0.10617
A66: 61 | B66: =MAX(OFFSET(NA_N_Prop!$C$10,12*$A66,4*(PlotControl!$C$4-1),12,1)) -> 0.0954 | C66: =MAX(OFFSET(NA_N_Prop!$D$10,12*$A66,4*(PlotControl!$C$4-1),12,1)) -> 0.1061 | D66: =MAX(OFFSET(NA_N_Prop!$E$10,12*$A66,4*(PlotControl!$C$4-1),12,1)) -> 0.12543 | E66: =MAX(OFFSET(NA_NW_Prop!$C$10,12*$A66,4*(PlotControl!$C$4-1),12,1)) -> 0.069774 | F66: =MAX(OFFSET(NA_NW_Prop!$D$10,12*$A66,4*(PlotControl!$C$4-1),12,1)) -> 0.090025 | G66: =MAX(OFFSET(NA_NW_Prop!$E$10,12*$A66,4*(PlotControl!$C$4-1),12,1)) -> 0.12585 | H66: =MAX(OFFSET(NA_W_Prop!$C$10,12*$A66,4*(PlotControl!$C$4-1),12,1)) -> 0.085532 | I66: =MAX(OFFSET(NA_W_Prop!$D$10,12*$A66,4*(PlotControl!$C$4-1),12,1)) -> 0.097163 | J66: =MAX(OFFSET(NA_W_Prop!$E$10,12*$A66,4*(PlotControl!$C$4-1),12,1)) -> 0.10667
A67: 62 | B67: =MAX(OFFSET(NA_N_Prop!$C$10,12*$A67,4*(PlotControl!$C$4-1),12,1)) -> 0.095133 | C67: =MAX(OFFSET(NA_N_Prop!$D$10,12*$A67,4*(PlotControl!$C$4-1),12,1)) -> 0.10585 | D67: =MAX(OFFSET(NA_N_Prop!$E$10,12*$A67,4*(PlotControl!$C$4-1),12,1)) -> 0.12649 | E67: =MAX(OFFSET(NA_NW_Prop!$C$10,12*$A67,4*(PlotControl!$C$4-1),12,1)) -> 0.06878 | F67: =MAX(OFFSET(NA_NW_Prop!$D$10,12*$A67,4*(PlotControl!$C$4-1),12,1)) -> 0.089818 | G67: =MAX(OFFSET(NA_NW_Prop!$E$10,12*$A67,4*(PlotControl!$C$4-1),12,1)) -> 0.12694 | H67: =MAX(OFFSET(NA_W_Prop!$C$10,12*$A67,4*(PlotControl!$C$4-1),12,1)) -> 0.085425 | I67: =MAX(OFFSET(NA_W_Prop!$D$10,12*$A67,4*(PlotControl!$C$4-1),12,1)) -> 0.09685 | J67: =MAX(OFFSET(NA_W_Prop!$E$10,12*$A67,4*(PlotControl!$C$4-1),12,1)) -> 0.10705
A68: 63 | B68: =MAX(OFFSET(NA_N_Prop!$C$10,12*$A68,4*(PlotControl!$C$4-1),12,1)) -> 0.094921 | C68: =MAX(OFFSET(NA_N_Prop!$D$10,12*$A68,4*(PlotControl!$C$4-1),12,1)) -> 0.10579 | D68: =MAX(OFFSET(NA_N_Prop!$E$10,12*$A68,4*(PlotControl!$C$4-1),12,1)) -> 0.12727 | E68: =MAX(OFFSET(NA_NW_Prop!$C$10,12*$A68,4*(PlotControl!$C$4-1),12,1)) -> 0.067886 | F68: =MAX(OFFSET(NA_NW_Prop!$D$10,12*$A68,4*(PlotControl!$C$4-1),12,1)) -> 0.08979 | G68: =MAX(OFFSET(NA_NW_Prop!$E$10,12*$A68,4*(PlotControl!$C$4-1),12,1)) -> 0.12842 | H68: =MAX(OFFSET(NA_W_Prop!$C$10,12*$A68,4*(PlotControl!$C$4-1),12,1)) -> 0.084818 | I68: =MAX(OFFSET(NA_W_Prop!$D$10,12*$A68,4*(PlotControl!$C$4-1),12,1)) -> 0.096476 | J68: =MAX(OFFSET(NA_W_Prop!$E$10,12*$A68,4*(PlotControl!$C$4-1),12,1)) -> 0.10735
A69: 64 | B69: =MAX(OFFSET(NA_N_Prop!$C$10,12*$A69,4*(PlotControl!$C$4-1),12,1)) -> 0.094828 | C69: =MAX(OFFSET(NA_N_Prop!$D$10,12*$A69,4*(PlotControl!$C$4-1),12,1)) -> 0.1057 | D69: =MAX(OFFSET(NA_N_Prop!$E$10,12*$A69,4*(PlotControl!$C$4-1),12,1)) -> 0.12821 | E69: =MAX(OFFSET(NA_NW_Prop!$C$10,12*$A69,4*(PlotControl!$C$4-1),12,1)) -> 0.067012 | F69: =MAX(OFFSET(NA_NW_Prop!$D$10,12*$A69,4*(PlotControl!$C$4-1),12,1)) -> 0.089415 | G69: =MAX(OFFSET(NA_NW_Prop!$E$10,12*$A69,4*(PlotControl!$C$4-1),12,1)) -> 0.12898 | H69: =MAX(OFFSET(NA_W_Prop!$C$10,12*$A69,4*(PlotControl!$C$4-1),12,1)) -> 0.084342 | I69: =MAX(OFFSET(NA_W_Prop!$D$10,12*$A69,4*(PlotControl!$C$4-1),12,1)) -> 0.096415 | J69: =MAX(OFFSET(NA_W_Prop!$E$10,12*$A69,4*(PlotControl!$C$4-1),12,1)) -> 0.1076
